Workbook

Sheet Overview

Sheet Select School
B3: =VLOOKUP(C3,SchList!$I$1:$J$499,2,FALSE) -> 9999 | C3: 1

Sheet Grade 6 Report
A2: Click here to return to the school and sheet selection interface
A3: ='Select School'!B3 -> 9999
A4: =TEXT(A3,"0000")&"-"&VLOOKUP(A3,SchList!$A$2:$B$504,2,FALSE) -> 9999-District
A5: Reading - Grade 6
A6: Satisfactory Progress Cut Scores at 63% or above | B6: Total # of Students | C6: % of Students Tested | D6: ='G6-8 Matrix'!C2&" ["&'G6-8 Matrix'!C3&"]" -> Overall [54] | F6: ='G6-8 Matrix'!D2&" ["&'G6-8 Matrix'!D3&"]" -> Vocabulary [9] | H6: ='G6-8 Matrix'!E2&" ["&'G6-8 Matrix'!E3&"]" -> Reading Application [23] | J6: ='G6-8 Matrix'!F2&" ["&'G6-8 Matrix'!F3&"]" -> Literary Analysis Fiction/Nonfiction [14] | L6: ='G6-8 Matrix'!G2&" ["&'G6-8 Matrix'!G3&"]" -> Informational Text/ Research Process [8]
D7: Average Score | E7: % Satisfactory | F7: Average Score | G7: % Satisfactory | H7: Average Score | I7: % Satisfactory | J7: Average Score | K7: % Satisfactory | L7: Average Score | M7: % Satisfactory
A8: All students | B8: =IFERROR(VLOOKUP(TEXT($A$3,"0000"),Mem_All!$A$2:$O$500,10,FALSE),"NA") -> 26267 | C8: =IFERROR((IF(OR(B8=0,B8="",B8="NA"),"NA",((IF(VLOOKUP($A$3,'G6-RALL'!$A$6:$AM$500,3,FALSE)>=B8,"100% ("&VLOOKUP($A$3,'G6-RALL'!$A$6:$AM$500,3,FALSE)&")",(ROUND((VLOOKUP($A$3,'G6-RALL'!$A$6:$AM$500,3,FALSE)/B8*100),0))&"% ("&IF(VLOOKUP($A$3,'G6-RALL'!$A$6:$AM$500,3,FALSE)="",0,VLOOKUP($A$3,'G6-RALL'!$A$6:$AM$500,3,FALSE))&")"))))),"0% (0)") -> 93% (24410) | D8: =IFERROR((IF($C8="NA","NA",VLOOKUP($A$3,'G6-RALL'!$A$6:$AM$500,4,FALSE))),"NA") -> 32.80693159 | E8: =IFERROR((IF($C8="NA","NA",ROUND(VLOOKUP($A$3,'G6-RALL'!$A$6:$AM$500,6,FALSE),0)&"% ("&IF(VLOOKUP($A$3,'G6-RALL'!$A$6:$AM$500,5,FALSE)="",0,VLOOKUP($A$3,'G6-RALL'!$A$6:$AM$500,5,FALSE))&")")),"NA") -> 52% (12653) | F8: =IFERROR((IF($C8="NA","NA",VLOOKUP($A$3,'G6-RALL'!$A$6:$AM$500,7,FALSE))),"NA") -> 5.429176567 | G8: NA | H8: =IFERROR((IF($C8="NA","NA",VLOOKUP($A$3,'G6-RALL'!$A$6:$AM$500,10,FALSE))),"NA") -> 14.25112659 | I8: NA | J8: =IFERROR((IF($C8="NA","NA",VLOOKUP($A$3,'G6-RALL'!$A$6:$AM$500,13,FALSE))),"NA") -> 8.622105694 | K8: NA | L8: =IFERROR((IF($C8="NA","NA",VLOOKUP($A$3,'G6-RALL'!$A$6:$AM$500,16,FALSE))),"NA") -> 4.508570258 | M8: NA
A9: FCAT Level 1 | B9: =IFERROR(VLOOKUP(TEXT($A$3,"0000"),MEM_RL1!$A$2:$M$500,7,FALSE),"NA") -> 4186 | C9: =IFERROR((IF(OR(B9=0,B9="",B9="NA"),"NA",((IF(VLOOKUP($A$3,'G6-RL1'!$A$6:$AM$500,3,FALSE)>=B9,"100% ("&VLOOKUP($A$3,'G6-RL1'!$A$6:$AM$500,3,FALSE)&")",(ROUND((VLOOKUP($A$3,'G6-RL1'!$A$6:$AM$500,3,FALSE)/B9*100),0))&"% ("&IF(VLOOKUP($A$3,'G6-RL1'!$A$6:$AM$500,3,FALSE)="",0,VLOOKUP($A$3,'G6-RL1'!$A$6:$AM$500,3,FALSE))&")"))))),"0% (0)") -> 94% (3953) | D9: =IFERROR((IF($C9="NA","NA",VLOOKUP($A$3,'G6-RL1'!$A$6:$AM$500,4,FALSE))),"NA") -> 20.05608399 | E9: =IFERROR((IF($C9="NA","NA",ROUND(VLOOKUP($A$3,'G6-RL1'!$A$6:$AM$500,6,FALSE),0)&"% ("&IF(VLOOKUP($A$3,'G6-RL1'!$A$6:$AM$500,5,FALSE)="",0,VLOOKUP($A$3,'G6-RL1'!$A$6:$AM$500,5,FALSE))&")")),"NA") -> 3% (122) | F9: =IFERROR((IF($C9="NA","NA",VLOOKUP($A$3,'G6-RL1'!$A$6:$AM$500,7,FALSE))),"NA") -> 3.138300025 | G9: NA | H9: =IFERROR((IF($C9="NA","NA",VLOOKUP($A$3,'G6-RL1'!$A$6:$AM$500,10,FALSE))),"NA") -> 8.421780926 | I9: NA | J9: =IFERROR((IF($C9="NA","NA",VLOOKUP($A$3,'G6-RL1'!$A$6:$AM$500,13,FALSE))),"NA") -> 5.593448014 | K9: NA | L9: =IFERROR((IF($C9="NA","NA",VLOOKUP($A$3,'G6-RL1'!$A$6:$AM$500,16,FALSE))),"NA") -> 2.909688844 | M9: NA
A10: FCAT Level 2 | B10: =IFERROR(VLOOKUP(TEXT($A$3,"0000"),MEM_RL2!$A$2:$O$500,7,FALSE),"NA") -> 5726 | C10: =IFERROR((IF(OR(B10=0,B10="",B10="NA"),"NA",((IF(VLOOKUP($A$3,'G6-RL2'!$A$6:$AM$500,3,FALSE)>=B10,"100% ("&VLOOKUP($A$3,'G6-RL2'!$A$6:$AM$500,3,FALSE)&")",(ROUND((VLOOKUP($A$3,'G6-RL2'!$A$6:$AM$500,3,FALSE)/B10*100),0))&"% ("&IF(VLOOKUP($A$3,'G6-RL2'!$A$6:$AM$500,3,FALSE)="",0,VLOOKUP($A$3,'G6-RL2'!$A$6:$AM$500,3,FALSE))&")"))))),"0% (0)") -> 93% (5335) | D10: =IFERROR((IF($C10="NA","NA",VLOOKUP($A$3,'G6-RL2'!$A$6:$AM$500,4,FALSE))),"NA") -> 27.70245548 | E10: =IFERROR((IF($C10="NA","NA",ROUND(VLOOKUP($A$3,'G6-RL2'!$A$6:$AM$500,6,FALSE),0)&"% ("&IF(VLOOKUP($A$3,'G6-RL2'!$A$6:$AM$500,5,FALSE)="",0,VLOOKUP($A$3,'G6-RL2'!$A$6:$AM$500,5,FALSE))&")")),"NA") -> 22% (1195) | F10: =IFERROR((IF($C10="NA","NA",VLOOKUP($A$3,'G6-RL2'!$A$6:$AM$500,7,FALSE))),"NA") -> 4.333458294 | G10: NA | H10: =IFERROR((IF($C10="NA","NA",VLOOKUP($A$3,'G6-RL2'!$A$6:$AM$500,10,FALSE))),"NA") -> 11.99194002 | I10: NA | J10: =IFERROR((IF($C10="NA","NA",VLOOKUP($A$3,'G6-RL2'!$A$6:$AM$500,13,FALSE))),"NA") -> 7.526429241 | K10: NA | L10: =IFERROR((IF($C10="NA","NA",VLOOKUP($A$3,'G6-RL2'!$A$6:$AM$500,16,FALSE))),"NA") -> 3.852820993 | M10: NA
A11: FCAT Level 3 | B11: =IFERROR(VLOOKUP(TEXT($A$3,"0000"),MEM_RL3!$A$2:$O$500,7,FALSE),"NA") -> 6494 | C11: =IFERROR((IF(OR(B11=0,B11="",B11="NA"),"NA",((IF(VLOOKUP($A$3,'G6-RL3'!$A$6:$AM$500,3,FALSE)>=B11,"100% ("&VLOOKUP($A$3,'G6-RL3'!$A$6:$AM$500,3,FALSE)&")",(ROUND((VLOOKUP($A$3,'G6-RL3'!$A$6:$AM$500,3,FALSE)/B11*100),0))&"% ("&IF(VLOOKUP($A$3,'G6-RL3'!$A$6:$AM$500,3,FALSE)="",0,VLOOKUP($A$3,'G6-RL3'!$A$6:$AM$500,3,FALSE))&")"))))),"0% (0)") -> 95% (6142) | D11: =IFERROR((IF($C11="NA","NA",VLOOKUP($A$3,'G6-RL3'!$A$6:$AM$500,4,FALSE))),"NA") -> 34.20530772 | E11: =IFERROR((IF($C11="NA","NA",ROUND(VLOOKUP($A$3,'G6-RL3'!$A$6:$AM$500,6,FALSE),0)&"% ("&IF(VLOOKUP($A$3,'G6-RL3'!$A$6:$AM$500,5,FALSE)="",0,VLOOKUP($A$3,'G6-RL3'!$A$6:$AM$500,5,FALSE))&")")),"NA") -> 59% (3643) | F11: =IFERROR((IF($C11="NA","NA",VLOOKUP($A$3,'G6-RL3'!$A$6:$AM$500,7,FALSE))),"NA") -> 5.613920547 | G11: NA | H11: =IFERROR((IF($C11="NA","NA",VLOOKUP($A$3,'G6-RL3'!$A$6:$AM$500,10,FALSE))),"NA") -> 14.93593292 | I11: NA | J11: =IFERROR((IF($C11="NA","NA",VLOOKUP($A$3,'G6-RL3'!$A$6:$AM$500,13,FALSE))),"NA") -> 8.991663953 | K11: NA | L11: =IFERROR((IF($C11="NA","NA",VLOOKUP($A$3,'G6-RL3'!$A$6:$AM$500,16,FALSE))),"NA") -> 4.660875936 | M11: NA
A12: FCAT Level 4 | B12: =IFERROR(VLOOKUP(TEXT($A$3,"0000"),MEM_RL4!$A$2:$P$500,7,FALSE),"NA") -> 5549 | C12: =IFERROR((IF(OR(B12=0,B12="",B12="NA"),"NA",((IF(VLOOKUP($A$3,'G6-RL4'!$A$6:$AM$500,3,FALSE)>=B12,"100% ("&VLOOKUP($A$3,'G6-RL4'!$A$6:$AM$500,3,FALSE)&")",(ROUND((VLOOKUP($A$3,'G6-RL4'!$A$6:$AM$500,3,FALSE)/B12*100),0))&"% ("&IF(VLOOKUP($A$3,'G6-RL4'!$A$6:$AM$500,3,FALSE)="",0,VLOOKUP($A$3,'G6-RL4'!$A$6:$AM$500,3,FALSE))&")"))))),"0% (0)") -> 95% (5275) | D12: =IFERROR((IF($C12="NA","NA",VLOOKUP($A$3,'G6-RL4'!$A$6:$AM$500,4,FALSE))),"NA") -> 40.62191469 | E12: =IFERROR((IF($C12="NA","NA",ROUND(VLOOKUP($A$3,'G6-RL4'!$A$6:$AM$500,6,FALSE),0)&"% ("&IF(VLOOKUP($A$3,'G6-RL4'!$A$6:$AM$500,5,FALSE)="",0,VLOOKUP($A$3,'G6-RL4'!$A$6:$AM$500,5,FALSE))&")")),"NA") -> 90% (4723) | F12: =IFERROR((IF($C12="NA","NA",VLOOKUP($A$3,'G6-RL4'!$A$6:$AM$500,7,FALSE))),"NA") -> 6.938824645 | G12: NA | H12: =IFERROR((IF($C12="NA","NA",VLOOKUP($A$3,'G6-RL4'!$A$6:$AM$500,10,FALSE))),"NA") -> 17.80144076 | I12: NA | J12: =IFERROR((IF($C12="NA","NA",VLOOKUP($A$3,'G6-RL4'!$A$6:$AM$500,13,FALSE))),"NA") -> 10.41971564 | K12: NA | L12: =IFERROR((IF($C12="NA","NA",VLOOKUP($A$3,'G6-RL4'!$A$6:$AM$500,16,FALSE))),"NA") -> 5.469042654 | M12: NA
A13: FCAT Level 5 | B13: =IFERROR(VLOOKUP(TEXT($A$3,"0000"),MEM_RL5!$A$2:$P$500,6,FALSE),"NA") -> 2823 | C13: =IFERROR((IF(OR(B13=0,B13="",B13="NA"),"NA",((IF(VLOOKUP($A$3,'G6-RL5'!$A$6:$AM$500,3,FALSE)>=B13,"100% ("&VLOOKUP($A$3,'G6-RL5'!$A$6:$AM$500,3,FALSE)&")",(ROUND((VLOOKUP($A$3,'G6-RL5'!$A$6:$AM$500,3,FALSE)/B13*100),0))&"% ("&IF(VLOOKUP($A$3,'G6-RL5'!$A$6:$AM$500,3,FALSE)="",0,VLOOKUP($A$3,'G6-RL5'!$A$6:$AM$500,3,FALSE))&")"))))),"0% (0)") -> 95% (2679) | D13: =IFERROR((IF($C13="NA","NA",VLOOKUP($A$3,'G6-RL5'!$A$6:$AM$500,4,FALSE))),"NA") -> 45.48387458 | E13: =IFERROR((IF($C13="NA","NA",ROUND(VLOOKUP($A$3,'G6-RL5'!$A$6:$AM$500,6,FALSE),0)&"% ("&IF(VLOOKUP($A$3,'G6-RL5'!$A$6:$AM$500,5,FALSE)="",0,VLOOKUP($A$3,'G6-RL5'!$A$6:$AM$500,5,FALSE))&")")),"NA") -> 98% (2623) | F13: =IFERROR((IF($C13="NA","NA",VLOOKUP($A$3,'G6-RL5'!$A$6:$AM$500,7,FALSE))),"NA") -> 7.945128779 | G13: NA | H13: =IFERROR((IF($C13="NA","NA",VLOOKUP($A$3,'G6-RL5'!$A$6:$AM$500,10,FALSE))),"NA") -> 19.87905935 | I13: NA | J13: =IFERROR((IF($C13="NA","NA",VLOOKUP($A$3,'G6-RL5'!$A$6:$AM$500,13,FALSE))),"NA") -> 11.46300859 | K13: NA | L13: =IFERROR((IF($C13="NA","NA",VLOOKUP($A$3,'G6-RL5'!$A$6:$AM$500,16,FALSE))),"NA") -> 6.213101904 | M13: NA
A14: White | B14: =IFERROR(VLOOKUP(TEXT($A$3,"0000"),MEM_W!$A$2:$O$500,10,FALSE),"NA") -> 2161 | C14: =IFERROR((IF(OR(B14=0,B14="",B14="NA"),"NA",((IF(VLOOKUP($A$3,'G6-RW'!$A$6:$AM$500,3,FALSE)>=B14,"100% ("&VLOOKUP($A$3,'G6-RW'!$A$6:$AM$500,3,FALSE)&")",(ROUND((VLOOKUP($A$3,'G6-RW'!$A$6:$AM$500,3,FALSE)/B14*100),0))&"% ("&IF(VLOOKUP($A$3,'G6-RW'!$A$6:$AM$500,3,FALSE)="",0,VLOOKUP($A$3,'G6-RW'!$A$6:$AM$500,3,FALSE))&")"))))),"0% (0)") -> 89% (1922) | D14: =IFERROR((IF($C14="NA","NA",VLOOKUP($A$3,'G6-RW'!$A$6:$AM$500,4,FALSE))),"NA") -> 38.17752341 | E14: =IFERROR((IF($C14="NA","NA",ROUND(VLOOKUP($A$3,'G6-RW'!$A$6:$AM$500,6,FALSE),0)&"% ("&IF(VLOOKUP($A$3,'G6-RW'!$A$6:$AM$500,5,FALSE)="",0,VLOOKUP($A$3,'G6-RW'!$A$6:$AM$500,5,FALSE))&")")),"NA") -> 73% (1399) | F14: =IFERROR((IF($C14="NA","NA",VLOOKUP($A$3,'G6-RW'!$A$6:$AM$500,7,FALSE))),"NA") -> 6.628668054 | G14: NA | H14: =IFERROR((IF($C14="NA","NA",VLOOKUP($A$3,'G6-RW'!$A$6:$AM$500,10,FALSE))),"NA") -> 16.51092612 | I14: NA | J14: =IFERROR((IF($C14="NA","NA",VLOOKUP($A$3,'G6-RW'!$A$6:$AM$500,13,FALSE))),"NA") -> 9.858792924 | K14: NA | L14: =IFERROR((IF($C14="NA","NA",VLOOKUP($A$3,'G6-RW'!$A$6:$AM$500,16,FALSE))),"NA") -> 5.166337149 | M14: NA
A15: Black | B15: =IFERROR(VLOOKUP(TEXT($A$3,"0000"),MEM_B!$A$2:$O$500,10,FALSE),"NA") -> 6065 | C15: =IFERROR((IF(OR(B15=0,B15="",B15="NA"),"NA",((IF(VLOOKUP($A$3,'G6-RB'!$A$6:$AM$500,3,FALSE)>=B15,"100% ("&VLOOKUP($A$3,'G6-RB'!$A$6:$AM$500,3,FALSE)&")",(ROUND((VLOOKUP($A$3,'G6-RB'!$A$6:$AM$500,3,FALSE)/B15*100),0))&"% ("&IF(VLOOKUP($A$3,'G6-RB'!$A$6:$AM$500,3,FALSE)="",0,VLOOKUP($A$3,'G6-RB'!$A$6:$AM$500,3,FALSE))&")"))))),"0% (0)") -> 93% (5642) | D15: =IFERROR((IF($C15="NA","NA",VLOOKUP($A$3,'G6-RB'!$A$6:$AM$500,4,FALSE))),"NA") -> 29.75687699 | E15: =IFERROR((IF($C15="NA","NA",ROUND(VLOOKUP($A$3,'G6-RB'!$A$6:$AM$500,6,FALSE),0)&"% ("&IF(VLOOKUP($A$3,'G6-RB'!$A$6:$AM$500,5,FALSE)="",0,VLOOKUP($A$3,'G6-RB'!$A$6:$AM$500,5,FALSE))&")")),"NA") -> 39% (2185) | F15: =IFERROR((IF($C15="NA","NA",VLOOKUP($A$3,'G6-RB'!$A$6:$AM$500,7,FALSE))),"NA") -> 4.826143212 | G15: NA | H15: =IFERROR((IF($C15="NA","NA",VLOOKUP($A$3,'G6-RB'!$A$6:$AM$500,10,FALSE))),"NA") -> 12.82874867 | I15: NA | J15: =IFERROR((IF($C15="NA","NA",VLOOKUP($A$3,'G6-RB'!$A$6:$AM$500,13,FALSE))),"NA") -> 7.941439206 | K15: NA | L15: =IFERROR((IF($C15="NA","NA",VLOOKUP($A$3,'G6-RB'!$A$6:$AM$500,16,FALSE))),"NA") -> 4.171978022 | M15: NA
A16: Hispanic | B16: =IFERROR(VLOOKUP(TEXT($A$3,"0000"),MEM_H!$A$2:$O$500,10,FALSE),"NA") -> 17610 | C16: =IFERROR((IF(OR(B16=0,B16="",B16="NA"),"NA",((IF(VLOOKUP($A$3,'G6-RH'!$A$6:$AM$500,3,FALSE)>=B16,"100% ("&VLOOKUP($A$3,'G6-RH'!$A$6:$AM$500,3,FALSE)&")",(ROUND((VLOOKUP($A$3,'G6-RH'!$A$6:$AM$500,3,FALSE)/B16*100),0))&"% ("&IF(VLOOKUP($A$3,'G6-RH'!$A$6:$AM$500,3,FALSE)="",0,VLOOKUP($A$3,'G6-RH'!$A$6:$AM$500,3,FALSE))&")"))))),"0% (0)") -> 93% (16443) | D16: =IFERROR((IF($C16="NA","NA",VLOOKUP($A$3,'G6-RH'!$A$6:$AM$500,4,FALSE))),"NA") -> 33.10117983 | E16: =IFERROR((IF($C16="NA","NA",ROUND(VLOOKUP($A$3,'G6-RH'!$A$6:$AM$500,6,FALSE),0)&"% ("&IF(VLOOKUP($A$3,'G6-RH'!$A$6:$AM$500,5,FALSE)="",0,VLOOKUP($A$3,'G6-RH'!$A$6:$AM$500,5,FALSE))&")")),"NA") -> 53% (8762) | F16: =IFERROR((IF($C16="NA","NA",VLOOKUP($A$3,'G6-RH'!$A$6:$AM$500,7,FALSE))),"NA") -> 5.46826005 | G16: NA | H16: =IFERROR((IF($C16="NA","NA",VLOOKUP($A$3,'G6-RH'!$A$6:$AM$500,10,FALSE))),"NA") -> 14.41949766 | I16: NA | J16: =IFERROR((IF($C16="NA","NA",VLOOKUP($A$3,'G6-RH'!$A$6:$AM$500,13,FALSE))),"NA") -> 8.684984492 | K16: NA | L16: =IFERROR((IF($C16="NA","NA",VLOOKUP($A$3,'G6-RH'!$A$6:$AM$500,16,FALSE))),"NA") -> 4.527488901 | M16: NA
A17: Asian | B17: =IFERROR(VLOOKUP(TEXT($A$3,"0000"),MEM_A!$A$2:$O$500,10,FALSE),"NA") -> 301 | C17: =IFERROR((IF(OR(B17=0,B17="",B17="NA"),"NA",((IF(VLOOKUP($A$3,'G6-RA'!$A$6:$AM$500,3,FALSE)>=B17,"100% ("&VLOOKUP($A$3,'G6-RA'!$A$6:$AM$500,3,FALSE)&")",(ROUND((VLOOKUP($A$3,'G6-RA'!$A$6:$AM$500,3,FALSE)/B17*100),0))&"% ("&IF(VLOOKUP($A$3,'G6-RA'!$A$6:$AM$500,3,FALSE)="",0,VLOOKUP($A$3,'G6-RA'!$A$6:$AM$500,3,FALSE))&")"))))),"0% (0)") -> 92% (277) | D17: =IFERROR((IF($C17="NA","NA",VLOOKUP($A$3,'G6-RA'!$A$6:$AM$500,4,FALSE))),"NA") -> 39.61046931 | E17: =IFERROR((IF($C17="NA","NA",ROUND(VLOOKUP($A$3,'G6-RA'!$A$6:$AM$500,6,FALSE),0)&"% ("&IF(VLOOKUP($A$3,'G6-RA'!$A$6:$AM$500,5,FALSE)="",0,VLOOKUP($A$3,'G6-RA'!$A$6:$AM$500,5,FALSE))&")")),"NA") -> 82% (226) | F17: =IFERROR((IF($C17="NA","NA",VLOOKUP($A$3,'G6-RA'!$A$6:$AM$500,7,FALSE))),"NA") -> 6.860649819 | G17: NA | H17: =IFERROR((IF($C17="NA","NA",VLOOKUP($A$3,'G6-RA'!$A$6:$AM$500,10,FALSE))),"NA") -> 17.26895307 | I17: NA | J17: =IFERROR((IF($C17="NA","NA",VLOOKUP($A$3,'G6-RA'!$A$6:$AM$500,13,FALSE))),"NA") -> 10.07111913 | K17: NA | L17: =IFERROR((IF($C17="NA","NA",VLOOKUP($A$3,'G6-RA'!$A$6:$AM$500,16,FALSE))),"NA") -> 5.420577617 | M17: NA
A18: Am. Indian | B18: =IFERROR(VLOOKUP(TEXT($A$3,"0000"),MEM_I!$A$2:$O$500,10,FALSE),"NA") -> 12 | C18: =IFERROR((IF(OR(B18=0,B18="",B18="NA"),"NA",((IF(VLOOKUP($A$3,'G6-RI'!$A$6:$AM$500,3,FALSE)>=B18,"100% ("&VLOOKUP($A$3,'G6-RI'!$A$6:$AM$500,3,FALSE)&")",(ROUND((VLOOKUP($A$3,'G6-RI'!$A$6:$AM$500,3,FALSE)/B18*100),0))&"% ("&IF(VLOOKUP($A$3,'G6-RI'!$A$6:$AM$500,3,FALSE)="",0,VLOOKUP($A$3,'G6-RI'!$A$6:$AM$500,3,FALSE))&")"))))),"0% (0)") -> 100% (12) | D18: =IFERROR((IF($C18="NA","NA",VLOOKUP($A$3,'G6-RI'!$A$6:$AM$500,4,FALSE))),"NA") -> 33.58333333 | E18: =IFERROR((IF($C18="NA","NA",ROUND(VLOOKUP($A$3,'G6-RI'!$A$6:$AM$500,6,FALSE),0)&"% ("&IF(VLOOKUP($A$3,'G6-RI'!$A$6:$AM$500,5,FALSE)="",0,VLOOKUP($A$3,'G6-RI'!$A$6:$AM$500,5,FALSE))&")")),"NA") -> 58% (7) | F18: =IFERROR((IF($C18="NA","NA",VLOOKUP($A$3,'G6-RI'!$A$6:$AM$500,7,FALSE))),"NA") -> 5.583333333 | G18: NA | H18: =IFERROR((IF($C18="NA","NA",VLOOKUP($A$3,'G6-RI'!$A$6:$AM$500,10,FALSE))),"NA") -> 14.66666667 | I18: NA | J18: =IFERROR((IF($C18="NA","NA",VLOOKUP($A$3,'G6-RI'!$A$6:$AM$500,13,FALSE))),"NA") -> 8.833333333 | K18: NA | L18: =IFERROR((IF($C18="NA","NA",VLOOKUP($A$3,'G6-RI'!$A$6:$AM$500,16,FALSE))),"NA") -> 4.5 | M18: NA
A19: ED | B19: =IFERROR(VLOOKUP(TEXT($A$3,"0000"),MEM_ED!$A$2:$O$500,10,FALSE),"NA") -> 19889 | C19: =IFERROR((IF(OR(B19=0,B19="",B19="NA"),"NA",((IF(VLOOKUP($A$3,'G6-RED'!$A$6:$AM$500,3,FALSE)>=B19,"100% ("&VLOOKUP($A$3,'G6-RED'!$A$6:$AM$500,3,FALSE)&")",(ROUND((VLOOKUP($A$3,'G6-RED'!$A$6:$AM$500,3,FALSE)/B19*100),0))&"% ("&IF(VLOOKUP($A$3,'G6-RED'!$A$6:$AM$500,3,FALSE)="",0,VLOOKUP($A$3,'G6-RED'!$A$6:$AM$500,3,FALSE))&")"))))),"0% (0)") -> 99% (19754) | D19: =IFERROR((IF($C19="NA","NA",VLOOKUP($A$3,'G6-RED'!$A$6:$AM$500,4,FALSE))),"NA") -> 31.4986585 | E19: =IFERROR((IF($C19="NA","NA",ROUND(VLOOKUP($A$3,'G6-RED'!$A$6:$AM$500,6,FALSE),0)&"% ("&IF(VLOOKUP($A$3,'G6-RED'!$A$6:$AM$500,5,FALSE)="",0,VLOOKUP($A$3,'G6-RED'!$A$6:$AM$500,5,FALSE))&")")),"NA") -> 47% (9242) | F19: =IFERROR((IF($C19="NA","NA",VLOOKUP($A$3,'G6-RED'!$A$6:$AM$500,7,FALSE))),"NA") -> 5.152829807 | G19: NA | H19: =IFERROR((IF($C19="NA","NA",VLOOKUP($A$3,'G6-RED'!$A$6:$AM$500,10,FALSE))),"NA") -> 13.68042928 | I19: NA | J19: =IFERROR((IF($C19="NA","NA",VLOOKUP($A$3,'G6-RED'!$A$6:$AM$500,13,FALSE))),"NA") -> 8.331132935 | K19: NA | L19: =IFERROR((IF($C19="NA","NA",VLOOKUP($A$3,'G6-RED'!$A$6:$AM$500,16,FALSE))),"NA") -> 4.338377038 | M19: NA
A20: ELL | B20: =IFERROR(VLOOKUP(TEXT($A$3,"0000"),MEM_ELL!$A$2:$O$500,10,FALSE),"NA") -> 4827 | C20: =IFERROR((IF(OR(B20=0,B20="",B20="NA"),"NA",((IF(VLOOKUP($A$3,'G6-RELL'!$A$6:$AM$500,3,FALSE)>=B20,"100% ("&VLOOKUP($A$3,'G6-RELL'!$A$6:$AM$500,3,FALSE)&")",(ROUND((VLOOKUP($A$3,'G6-RELL'!$A$6:$AM$500,3,FALSE)/B20*100),0))&"% ("&IF(VLOOKUP($A$3,'G6-RELL'!$A$6:$AM$500,3,FALSE)="",0,VLOOKUP($A$3,'G6-RELL'!$A$6:$AM$500,3,FALSE))&")"))))),"0% (0)") -> 98% (4708) | D20: =IFERROR((IF($C20="NA","NA",VLOOKUP($A$3,'G6-RELL'!$A$6:$AM$500,4,FALSE))),"NA") -> 25.1584537 | E20: =IFERROR((IF($C20="NA","NA",ROUND(VLOOKUP($A$3,'G6-RELL'!$A$6:$AM$500,6,FALSE),0)&"% ("&IF(VLOOKUP($A$3,'G6-RELL'!$A$6:$AM$500,5,FALSE)="",0,VLOOKUP($A$3,'G6-RELL'!$A$6:$AM$500,5,FALSE))&")")),"NA") -> 22% (1048) | F20: =IFERROR((IF($C20="NA","NA",VLOOKUP($A$3,'G6-RELL'!$A$6:$AM$500,7,FALSE))),"NA") -> 3.920985556 | G20: NA | H20: =IFERROR((IF($C20="NA","NA",VLOOKUP($A$3,'G6-RELL'!$A$6:$AM$500,10,FALSE))),"NA") -> 10.85259133 | I20: NA | J20: =IFERROR((IF($C20="NA","NA",VLOOKUP($A$3,'G6-RELL'!$A$6:$AM$500,13,FALSE))),"NA") -> 6.846431606 | K20: NA | L20: =IFERROR((IF($C20="NA","NA",VLOOKUP($A$3,'G6-RELL'!$A$6:$AM$500,16,FALSE))),"NA") -> 3.5384452 | M20: NA
A21: SWD | B21: =IFERROR(VLOOKUP(TEXT($A$3,"0000"),MEM_SWD!$A$2:$O$500,10,FALSE),"NA") -> 2634 | C21: =IFERROR((IF(OR(B21=0,B21="",B21="NA"),"NA",((IF(VLOOKUP($A$3,'G6-RSWD'!$A$6:$AM$500,3,FALSE)>=B21,"100% ("&VLOOKUP($A$3,'G6-RSWD'!$A$6:$AM$500,3,FALSE)&")",(ROUND((VLOOKUP($A$3,'G6-RSWD'!$A$6:$AM$500,3,FALSE)/B21*100),0))&"% ("&IF(VLOOKUP($A$3,'G6-RSWD'!$A$6:$AM$500,3,FALSE)="",0,VLOOKUP($A$3,'G6-RSWD'!$A$6:$AM$500,3,FALSE))&")"))))),"0% (0)") -> 92% (2412) | D21: =IFERROR((IF($C21="NA","NA",VLOOKUP($A$3,'G6-RSWD'!$A$6:$AM$500,4,FALSE))),"NA") -> 23.86504975 | E21: =IFERROR((IF($C21="NA","NA",ROUND(VLOOKUP($A$3,'G6-RSWD'!$A$6:$AM$500,6,FALSE),0)&"% ("&IF(VLOOKUP($A$3,'G6-RSWD'!$A$6:$AM$500,5,FALSE)="",0,VLOOKUP($A$3,'G6-RSWD'!$A$6:$AM$500,5,FALSE))&")")),"NA") -> 18% (443) | F21: =IFERROR((IF($C21="NA","NA",VLOOKUP($A$3,'G6-RSWD'!$A$6:$AM$500,7,FALSE))),"NA") -> 3.801741294 | G21: NA | H21: =IFERROR((IF($C21="NA","NA",VLOOKUP($A$3,'G6-RSWD'!$A$6:$AM$500,10,FALSE))),"NA") -> 10.27139303 | I21: NA | J21: =IFERROR((IF($C21="NA","NA",VLOOKUP($A$3,'G6-RSWD'!$A$6:$AM$500,13,FALSE))),"NA") -> 6.464759536 | K21: NA | L21: =IFERROR((IF($C21="NA","NA",VLOOKUP($A$3,'G6-RSWD'!$A$6:$AM$500,16,FALSE))),"NA") -> 3.326907131 | M21: NA
A22: Math - Grade 6
A23: Satisfactory Progress Cut Scores at 51% or above | B23: Total # of Students | C23: % of Students Tested | D23: ='G6-8 Matrix'!C10&" ["&'G6-8 Matrix'!C11&"]" -> Overall [37] | F23: ='G6-8 Matrix'!D10&" ["&'G6-8 Matrix'!D11&"]" -> Fractions, Ratios/ Proportional Relationships, and Statistics [18] | H23: ='G6-8 Matrix'!E10&" ["&'G6-8 Matrix'!E11&"]" -> Expressions and Equations [19] | J23: ='G6-8 Matrix'!F10&" ["&'G6-8 Matrix'!F11&"]" -> Geometry and Measurement [0]
D24: Average Score | E24: % Satisfactory | F24: Average Score | G24: % Satisfactory | H24: Average Score | I24: % Satisfactory | J24: Average Score | K24: % Satisfactory
A25: All students | B25: =IFERROR(VLOOKUP(TEXT($A$3,"0000"),Mem_All!$A$2:$O$500,10,FALSE),"NA") -> 26267 | C25: =IFERROR((IF(OR(B25=0,B25="",B25="NA"),"NA",((IF(VLOOKUP($A$3,'G6-MALL'!$A$6:$AM$500,3,FALSE)>=B25,"100% ("&VLOOKUP($A$3,'G6-MALL'!$A$6:$AM$500,3,FALSE)&")",(ROUND((VLOOKUP($A$3,'G6-MALL'!$A$6:$AM$500,3,FALSE)/B25*100),0))&"% ("&IF(VLOOKUP($A$3,'G6-MALL'!$A$6:$AM$500,3,FALSE)="",0,VLOOKUP($A$3,'G6-MALL'!$A$6:$AM$500,3,FALSE))&")"))))),"0% (0)") -> 94% (24652) | D25: =IFERROR((IF($C25="NA","NA",VLOOKUP($A$3,'G6-MALL'!$A$6:$AM$500,4,FALSE))),"NA") -> 18.78922603 | E25: =IFERROR((IF($C25="NA","NA",ROUND(VLOOKUP($A$3,'G6-MALL'!$A$6:$AM$500,6,FALSE),0)&"% ("&IF(VLOOKUP($A$3,'G6-MALL'!$A$6:$AM$500,5,FALSE)="",0,VLOOKUP($A$3,'G6-MALL'!$A$6:$AM$500,5,FALSE))&")")),"NA") -> 48% (11889) | F25: =IFERROR((IF($C25="NA","NA",VLOOKUP($A$3,'G6-MALL'!$A$6:$AM$500,7,FALSE))),"NA") -> 8.27310563 | G25: NA | H25: =IFERROR((IF($C25="NA","NA",VLOOKUP($A$3,'G6-MALL'!$A$6:$AM$500,10,FALSE))),"NA") -> 10.52278111 | I25: NA | J25: NT | K25: NT
A26: FCAT Level 1 | B26: =IFERROR(VLOOKUP(TEXT($A$3,"0000"),MEM_ML1!$A$2:$M$500,7,FALSE),"NA") -> 4504 | C26: =IFERROR((IF(OR(B26=0,B26="",B26="NA"),"NA",((IF(VLOOKUP($A$3,'G6-ML1'!$A$6:$AM$500,3,FALSE)>=B26,"100% ("&VLOOKUP($A$3,'G6-ML1'!$A$6:$AM$500,3,FALSE)&")",(ROUND((VLOOKUP($A$3,'G6-ML1'!$A$6:$AM$500,3,FALSE)/B26*100),0))&"% ("&IF(VLOOKUP($A$3,'G6-ML1'!$A$6:$AM$500,3,FALSE)="",0,VLOOKUP($A$3,'G6-ML1'!$A$6:$AM$500,3,FALSE))&")"))))),"0% (0)") -> 95% (4291) | D26: =IFERROR((IF($C26="NA","NA",VLOOKUP($A$3,'G6-ML1'!$A$6:$AM$500,4,FALSE))),"NA") -> 13.24523421 | E26: =IFERROR((IF($C26="NA","NA",ROUND(VLOOKUP($A$3,'G6-ML1'!$A$6:$AM$500,6,FALSE),0)&"% ("&IF(VLOOKUP($A$3,'G6-ML1'!$A$6:$AM$500,5,FALSE)="",0,VLOOKUP($A$3,'G6-ML1'!$A$6:$AM$500,5,FALSE))&")")),"NA") -> 10% (450) | F26: =IFERROR((IF($C26="NA","NA",VLOOKUP($A$3,'G6-ML1'!$A$6:$AM$500,7,FALSE))),"NA") -> 6.316359823 | G26: NA | H26: =IFERROR((IF($C26="NA","NA",VLOOKUP($A$3,'G6-ML1'!$A$6:$AM$500,10,FALSE))),"NA") -> 6.931740853 | I26: NA | J26: NT | K26: NT
A27: FCAT Level 2 | B27: =IFERROR(VLOOKUP(TEXT($A$3,"0000"),MEM_ML2!$A$2:$O$500,7,FALSE),"NA") -> 6001 | C27: =IFERROR((IF(OR(B27=0,B27="",B27="NA"),"NA",((IF(VLOOKUP($A$3,'G6-ML2'!$A$6:$AM$500,3,FALSE)>=B27,"100% ("&VLOOKUP($A$3,'G6-ML2'!$A$6:$AM$500,3,FALSE)&")",(ROUND((VLOOKUP($A$3,'G6-ML2'!$A$6:$AM$500,3,FALSE)/B27*100),0))&"% ("&IF(VLOOKUP($A$3,'G6-ML2'!$A$6:$AM$500,3,FALSE)="",0,VLOOKUP($A$3,'G6-ML2'!$A$6:$AM$500,3,FALSE))&")"))))),"0% (0)") -> 95% (5695) | D27: =IFERROR((IF($C27="NA","NA",VLOOKUP($A$3,'G6-ML2'!$A$6:$AM$500,4,FALSE))),"NA") -> 15.8728007 | E27: =IFERROR((IF($C27="NA","NA",ROUND(VLOOKUP($A$3,'G6-ML2'!$A$6:$AM$500,6,FALSE),0)&"% ("&IF(VLOOKUP($A$3,'G6-ML2'!$A$6:$AM$500,5,FALSE)="",0,VLOOKUP($A$3,'G6-ML2'!$A$6:$AM$500,5,FALSE))&")")),"NA") -> 27% (1556) | F27: =IFERROR((IF($C27="NA","NA",VLOOKUP($A$3,'G6-ML2'!$A$6:$AM$500,7,FALSE))),"NA") -> 7.025636523 | G27: NA | H27: =IFERROR((IF($C27="NA","NA",VLOOKUP($A$3,'G6-ML2'!$A$6:$AM$500,10,FALSE))),"NA") -> 8.848533802 | I27: NA | J27: NT | K27: NT
A28: FCAT Level 3 | B28: =IFERROR(VLOOKUP(TEXT($A$3,"0000"),MEM_ML3!$A$2:$O$500,7,FALSE),"NA") -> 6960 | C28: =IFERROR((IF(OR(B28=0,B28="",B28="NA"),"NA",((IF(VLOOKUP($A$3,'G6-ML3'!$A$6:$AM$500,3,FALSE)>=B28,"100% ("&VLOOKUP($A$3,'G6-ML3'!$A$6:$AM$500,3,FALSE)&")",(ROUND((VLOOKUP($A$3,'G6-ML3'!$A$6:$AM$500,3,FALSE)/B28*100),0))&"% ("&IF(VLOOKUP($A$3,'G6-ML3'!$A$6:$AM$500,3,FALSE)="",0,VLOOKUP($A$3,'G6-ML3'!$A$6:$AM$500,3,FALSE))&")"))))),"0% (0)") -> 96% (6657) | D28: =IFERROR((IF($C28="NA","NA",VLOOKUP($A$3,'G6-ML3'!$A$6:$AM$500,4,FALSE))),"NA") -> 18.94233138 | E28: =IFERROR((IF($C28="NA","NA",ROUND(VLOOKUP($A$3,'G6-ML3'!$A$6:$AM$500,6,FALSE),0)&"% ("&IF(VLOOKUP($A$3,'G6-ML3'!$A$6:$AM$500,5,FALSE)="",0,VLOOKUP($A$3,'G6-ML3'!$A$6:$AM$500,5,FALSE))&")")),"NA") -> 52% (3490) | F28: =IFERROR((IF($C28="NA","NA",VLOOKUP($A$3,'G6-ML3'!$A$6:$AM$500,7,FALSE))),"NA") -> 8.149061139 | G28: NA | H28: =IFERROR((IF($C28="NA","NA",VLOOKUP($A$3,'G6-ML3'!$A$6:$AM$500,10,FALSE))),"NA") -> 10.79773171 | I28: NA | J28: NT | K28: NT
A29: FCAT Level 4 | B29: =IFERROR(VLOOKUP(TEXT($A$3,"0000"),MEM_ML4!$A$2:$P$500,7,FALSE),"NA") -> 4553 | C29: =IFERROR((IF(OR(B29=0,B29="",B29="NA"),"NA",((IF(VLOOKUP($A$3,'G6-ML4'!$A$6:$AM$500,3,FALSE)>=B29,"100% ("&VLOOKUP($A$3,'G6-ML4'!$A$6:$AM$500,3,FALSE)&")",(ROUND((VLOOKUP($A$3,'G6-ML4'!$A$6:$AM$500,3,FALSE)/B29*100),0))&"% ("&IF(VLOOKUP($A$3,'G6-ML4'!$A$6:$AM$500,3,FALSE)="",0,VLOOKUP($A$3,'G6-ML4'!$A$6:$AM$500,3,FALSE))&")"))))),"0% (0)") -> 96% (4380) | D29: =IFERROR((IF($C29="NA","NA",VLOOKUP($A$3,'G6-ML4'!$A$6:$AM$500,4,FALSE))),"NA") -> 22.95915525 | E29: =IFERROR((IF($C29="NA","NA",ROUND(VLOOKUP($A$3,'G6-ML4'!$A$6:$AM$500,6,FALSE),0)&"% ("&IF(VLOOKUP($A$3,'G6-ML4'!$A$6:$AM$500,5,FALSE)="",0,VLOOKUP($A$3,'G6-ML4'!$A$6:$AM$500,5,FALSE))&")")),"NA") -> 81% (3548) | F29: =IFERROR((IF($C29="NA","NA",VLOOKUP($A$3,'G6-ML4'!$A$6:$AM$500,7,FALSE))),"NA") -> 9.835821918 | G29: NA | H29: =IFERROR((IF($C29="NA","NA",VLOOKUP($A$3,'G6-ML4'!$A$6:$AM$500,10,FALSE))),"NA") -> 13.12700913 | I29: NA | J29: NT | K29: NT
A30: FCAT Level 5 | B30: =IFERROR(VLOOKUP(TEXT($A$3,"0000"),MEM_ML5!$A$2:$P$500,7,FALSE),"NA") -> 2741 | C30: =IFERROR((IF(OR(B30=0,B30="",B30="NA"),"NA",((IF(VLOOKUP($A$3,'G6-ML5'!$A$6:$AM$500,3,FALSE)>=B30,"100% ("&VLOOKUP($A$3,'G6-ML5'!$A$6:$AM$500,3,FALSE)&")",(ROUND((VLOOKUP($A$3,'G6-ML5'!$A$6:$AM$500,3,FALSE)/B30*100),0))&"% ("&IF(VLOOKUP($A$3,'G6-ML5'!$A$6:$AM$500,3,FALSE)="",0,VLOOKUP($A$3,'G6-ML5'!$A$6:$AM$500,3,FALSE))&")"))))),"0% (0)") -> 95% (2594) | D30: =IFERROR((IF($C30="NA","NA",VLOOKUP($A$3,'G6-ML5'!$A$6:$AM$500,4,FALSE))),"NA") -> 27.73527371 | E30: =IFERROR((IF($C30="NA","NA",ROUND(VLOOKUP($A$3,'G6-ML5'!$A$6:$AM$500,6,FALSE),0)&"% ("&IF(VLOOKUP($A$3,'G6-ML5'!$A$6:$AM$500,5,FALSE)="",0,VLOOKUP($A$3,'G6-ML5'!$A$6:$AM$500,5,FALSE))&")")),"NA") -> 96% (2494) | F30: =IFERROR((IF($C30="NA","NA",VLOOKUP($A$3,'G6-ML5'!$A$6:$AM$500,7,FALSE))),"NA") -> 12.1574017 | G30: NA | H30: =IFERROR((IF($C30="NA","NA",VLOOKUP($A$3,'G6-ML5'!$A$6:$AM$500,10,FALSE))),"NA") -> 15.57713955 | I30: NA | J30: NT | K30: NT
A31: White | B31: =IFERROR(VLOOKUP(TEXT($A$3,"0000"),MEM_W!$A$2:$O$500,10,FALSE),"NA") -> 2161 | C31: =IFERROR((IF(OR(B31=0,B31="",B31="NA"),"NA",((IF(VLOOKUP($A$3,'G6-MW'!$A$6:$AM$500,3,FALSE)>=B31,"100% ("&VLOOKUP($A$3,'G6-MW'!$A$6:$AM$500,3,FALSE)&")",(ROUND((VLOOKUP($A$3,'G6-MW'!$A$6:$AM$500,3,FALSE)/B31*100),0))&"% ("&IF(VLOOKUP($A$3,'G6-MW'!$A$6:$AM$500,3,FALSE)="",0,VLOOKUP($A$3,'G6-MW'!$A$6:$AM$500,3,FALSE))&")"))))),"0% (0)") -> 90% (1951) | D31: =IFERROR((IF($C31="NA","NA",VLOOKUP($A$3,'G6-MW'!$A$6:$AM$500,4,FALSE))),"NA") -> 21.11783701 | E31: =IFERROR((IF($C31="NA","NA",ROUND(VLOOKUP($A$3,'G6-MW'!$A$6:$AM$500,6,FALSE),0)&"% ("&IF(VLOOKUP($A$3,'G6-MW'!$A$6:$AM$500,5,FALSE)="",0,VLOOKUP($A$3,'G6-MW'!$A$6:$AM$500,5,FALSE))&")")),"NA") -> 63% (1228) | F31: =IFERROR((IF($C31="NA","NA",VLOOKUP($A$3,'G6-MW'!$A$6:$AM$500,7,FALSE))),"NA") -> 9.253305997 | G31: NA | H31: =IFERROR((IF($C31="NA","NA",VLOOKUP($A$3,'G6-MW'!$A$6:$AM$500,10,FALSE))),"NA") -> 11.86699129 | I31: NA | J31: NT | K31: NT
A32: Black | B32: =IFERROR(VLOOKUP(TEXT($A$3,"0000"),MEM_B!$A$2:$O$500,10,FALSE),"NA") -> 6065 | C32: =IFERROR((IF(OR(B32=0,B32="",B32="NA"),"NA",((IF(VLOOKUP($A$3,'G6-MB'!$A$6:$AM$500,3,FALSE)>=B32,"100% ("&VLOOKUP($A$3,'G6-MB'!$A$6:$AM$500,3,FALSE)&")",(ROUND((VLOOKUP($A$3,'G6-MB'!$A$6:$AM$500,3,FALSE)/B32*100),0))&"% ("&IF(VLOOKUP($A$3,'G6-MB'!$A$6:$AM$500,3,FALSE)="",0,VLOOKUP($A$3,'G6-MB'!$A$6:$AM$500,3,FALSE))&")"))))),"0% (0)") -> 95% (5756) | D32: =IFERROR((IF($C32="NA","NA",VLOOKUP($A$3,'G6-MB'!$A$6:$AM$500,4,FALSE))),"NA") -> 17.46011119 | E32: =IFERROR((IF($C32="NA","NA",ROUND(VLOOKUP($A$3,'G6-MB'!$A$6:$AM$500,6,FALSE),0)&"% ("&IF(VLOOKUP($A$3,'G6-MB'!$A$6:$AM$500,5,FALSE)="",0,VLOOKUP($A$3,'G6-MB'!$A$6:$AM$500,5,FALSE))&")")),"NA") -> 40% (2276) | F32: =IFERROR((IF($C32="NA","NA",VLOOKUP($A$3,'G6-MB'!$A$6:$AM$500,7,FALSE))),"NA") -> 7.732574705 | G32: NA | H32: =IFERROR((IF($C32="NA","NA",VLOOKUP($A$3,'G6-MB'!$A$6:$AM$500,10,FALSE))),"NA") -> 9.727345379 | I32: NA | J32: NT | K32: NT
A33: Hispanic | B33: =IFERROR(VLOOKUP(TEXT($A$3,"0000"),MEM_H!$A$2:$O$500,10,FALSE),"NA") -> 17610 | C33: =IFERROR((IF(OR(B33=0,B33="",B33="NA"),"NA",((IF(VLOOKUP($A$3,'G6-MH'!$A$6:$AM$500,3,FALSE)>=B33,"100% ("&VLOOKUP($A$3,'G6-MH'!$A$6:$AM$500,3,FALSE)&")",(ROUND((VLOOKUP($A$3,'G6-MH'!$A$6:$AM$500,3,FALSE)/B33*100),0))&"% ("&IF(VLOOKUP($A$3,'G6-MH'!$A$6:$AM$500,3,FALSE)="",0,VLOOKUP($A$3,'G6-MH'!$A$6:$AM$500,3,FALSE))&")"))))),"0% (0)") -> 94% (16542) | D33: =IFERROR((IF($C33="NA","NA",VLOOKUP($A$3,'G6-MH'!$A$6:$AM$500,4,FALSE))),"NA") -> 18.87564986 | E33: =IFERROR((IF($C33="NA","NA",ROUND(VLOOKUP($A$3,'G6-MH'!$A$6:$AM$500,6,FALSE),0)&"% ("&IF(VLOOKUP($A$3,'G6-MH'!$A$6:$AM$500,5,FALSE)="",0,VLOOKUP($A$3,'G6-MH'!$A$6:$AM$500,5,FALSE))&")")),"NA") -> 49% (8095) | F33: =IFERROR((IF($C33="NA","NA",VLOOKUP($A$3,'G6-MH'!$A$6:$AM$500,7,FALSE))),"NA") -> 8.299099262 | G33: NA | H33: =IFERROR((IF($C33="NA","NA",VLOOKUP($A$3,'G6-MH'!$A$6:$AM$500,10,FALSE))),"NA") -> 10.57714303 | I33: NA | J33: NT | K33: NT
A34: Asian | B34: =IFERROR(VLOOKUP(TEXT($A$3,"0000"),MEM_A!$A$2:$O$500,10,FALSE),"NA") -> 301 | C34: =IFERROR((IF(OR(B34=0,B34="",B34="NA"),"NA",((IF(VLOOKUP($A$3,'G6-MA'!$A$6:$AM$500,3,FALSE)>=B34,"100% ("&VLOOKUP($A$3,'G6-MA'!$A$6:$AM$500,3,FALSE)&")",(ROUND((VLOOKUP($A$3,'G6-MA'!$A$6:$AM$500,3,FALSE)/B34*100),0))&"% ("&IF(VLOOKUP($A$3,'G6-MA'!$A$6:$AM$500,3,FALSE)="",0,VLOOKUP($A$3,'G6-MA'!$A$6:$AM$500,3,FALSE))&")"))))),"0% (0)") -> 92% (277) | D34: =IFERROR((IF($C34="NA","NA",VLOOKUP($A$3,'G6-MA'!$A$6:$AM$500,4,FALSE))),"NA") -> 24.09530686 | E34: =IFERROR((IF($C34="NA","NA",ROUND(VLOOKUP($A$3,'G6-MA'!$A$6:$AM$500,6,FALSE),0)&"% ("&IF(VLOOKUP($A$3,'G6-MA'!$A$6:$AM$500,5,FALSE)="",0,VLOOKUP($A$3,'G6-MA'!$A$6:$AM$500,5,FALSE))&")")),"NA") -> 79% (219) | F34: =IFERROR((IF($C34="NA","NA",VLOOKUP($A$3,'G6-MA'!$A$6:$AM$500,7,FALSE))),"NA") -> 10.58880866 | G34: NA | H34: =IFERROR((IF($C34="NA","NA",VLOOKUP($A$3,'G6-MA'!$A$6:$AM$500,10,FALSE))),"NA") -> 13.51227437 | I34: NA | J34: NT | K34: NT
A35: Am. Indian | B35: =IFERROR(VLOOKUP(TEXT($A$3,"0000"),MEM_I!$A$2:$O$500,10,FALSE),"NA") -> 12 | C35: =IFERROR((IF(OR(B35=0,B35="",B35="NA"),"NA",((IF(VLOOKUP($A$3,'G6-MI'!$A$6:$AM$500,3,FALSE)>=B35,"100% ("&VLOOKUP($A$3,'G6-MI'!$A$6:$AM$500,3,FALSE)&")",(ROUND((VLOOKUP($A$3,'G6-MI'!$A$6:$AM$500,3,FALSE)/B35*100),0))&"% ("&IF(VLOOKUP($A$3,'G6-MI'!$A$6:$AM$500,3,FALSE)="",0,VLOOKUP($A$3,'G6-MI'!$A$6:$AM$500,3,FALSE))&")"))))),"0% (0)") -> 100% (12) | D35: =IFERROR((IF($C35="NA","NA",VLOOKUP($A$3,'G6-MI'!$A$6:$AM$500,4,FALSE))),"NA") -> 18.58333333 | E35: =IFERROR((IF($C35="NA","NA",ROUND(VLOOKUP($A$3,'G6-MI'!$A$6:$AM$500,6,FALSE),0)&"% ("&IF(VLOOKUP($A$3,'G6-MI'!$A$6:$AM$500,5,FALSE)="",0,VLOOKUP($A$3,'G6-MI'!$A$6:$AM$500,5,FALSE))&")")),"NA") -> 50% (6) | F35: =IFERROR((IF($C35="NA","NA",VLOOKUP($A$3,'G6-MI'!$A$6:$AM$500,7,FALSE))),"NA") -> 7.916666667 | G35: NA | H35: =IFERROR((IF($C35="NA","NA",VLOOKUP($A$3,'G6-MI'!$A$6:$AM$500,10,FALSE))),"NA") -> 10.66666667 | I35: NA | J35: NT | K35: NT
A36: ED | B36: =IFERROR(VLOOKUP(TEXT($A$3,"0000"),MEM_ED!$A$2:$O$500,10,FALSE),"NA") -> 19889 | C36: =IFERROR((IF(OR(B36=0,B36="",B36="NA"),"NA",((IF(VLOOKUP($A$3,'G6-MED'!$A$6:$AM$500,3,FALSE)>=B36,"100% ("&VLOOKUP($A$3,'G6-MED'!$A$6:$AM$500,3,FALSE)&")",(ROUND((VLOOKUP($A$3,'G6-MED'!$A$6:$AM$500,3,FALSE)/B36*100),0))&"% ("&IF(VLOOKUP($A$3,'G6-MED'!$A$6:$AM$500,3,FALSE)="",0,VLOOKUP($A$3,'G6-MED'!$A$6:$AM$500,3,FALSE))&")"))))),"0% (0)") -> 100% (19987) | D36: =IFERROR((IF($C36="NA","NA",VLOOKUP($A$3,'G6-MED'!$A$6:$AM$500,4,FALSE))),"NA") -> 18.15357482 | E36: =IFERROR((IF($C36="NA","NA",ROUND(VLOOKUP($A$3,'G6-MED'!$A$6:$AM$500,6,FALSE),0)&"% ("&IF(VLOOKUP($A$3,'G6-MED'!$A$6:$AM$500,5,FALSE)="",0,VLOOKUP($A$3,'G6-MED'!$A$6:$AM$500,5,FALSE))&")")),"NA") -> 44% (8862) | F36: =IFERROR((IF($C36="NA","NA",VLOOKUP($A$3,'G6-MED'!$A$6:$AM$500,7,FALSE))),"NA") -> 8.009411117 | G36: NA | H36: =IFERROR((IF($C36="NA","NA",VLOOKUP($A$3,'G6-MED'!$A$6:$AM$500,10,FALSE))),"NA") -> 10.14150198 | I36: NA | J36: NT | K36: NT
A37: ELL | B37: =IFERROR(VLOOKUP(TEXT($A$3,"0000"),MEM_ELL!$A$2:$O$500,10,FALSE),"NA") -> 4827 | C37: =IFERROR((IF(OR(B37=0,B37="",B37="NA"),"NA",((IF(VLOOKUP($A$3,'G6-MELL'!$A$6:$AM$500,3,FALSE)>=B37,"100% ("&VLOOKUP($A$3,'G6-MELL'!$A$6:$AM$500,3,FALSE)&")",(ROUND((VLOOKUP($A$3,'G6-MELL'!$A$6:$AM$500,3,FALSE)/B37*100),0))&"% ("&IF(VLOOKUP($A$3,'G6-MELL'!$A$6:$AM$500,3,FALSE)="",0,VLOOKUP($A$3,'G6-MELL'!$A$6:$AM$500,3,FALSE))&")"))))),"0% (0)") -> 100% (4807) | D37: =IFERROR((IF($C37="NA","NA",VLOOKUP($A$3,'G6-MELL'!$A$6:$AM$500,4,FALSE))),"NA") -> 16.28188059 | E37: =IFERROR((IF($C37="NA","NA",ROUND(VLOOKUP($A$3,'G6-MELL'!$A$6:$AM$500,6,FALSE),0)&"% ("&IF(VLOOKUP($A$3,'G6-MELL'!$A$6:$AM$500,5,FALSE)="",0,VLOOKUP($A$3,'G6-MELL'!$A$6:$AM$500,5,FALSE))&")")),"NA") -> 32% (1516) | F37: =IFERROR((IF($C37="NA","NA",VLOOKUP($A$3,'G6-MELL'!$A$6:$AM$500,7,FALSE))),"NA") -> 7.396089037 | G37: NA | H37: =IFERROR((IF($C37="NA","NA",VLOOKUP($A$3,'G6-MELL'!$A$6:$AM$500,10,FALSE))),"NA") -> 8.885791554 | I37: NA | J37: NT | K37: NT
A38: SWD | B38: =IFERROR(VLOOKUP(TEXT($A$3,"0000"),MEM_SWD!$A$2:$O$500,10,FALSE),"NA") -> 2634 | C38: =IFERROR((IF(OR(B38=0,B38="",B38="NA"),"NA",((IF(VLOOKUP($A$3,'G6-MSWD'!$A$6:$AM$500,3,FALSE)>=B38,"100% ("&VLOOKUP($A$3,'G6-MSWD'!$A$6:$AM$500,3,FALSE)&")",(ROUND((VLOOKUP($A$3,'G6-MSWD'!$A$6:$AM$500,3,FALSE)/B38*100),0))&"% ("&IF(VLOOKUP($A$3,'G6-MSWD'!$A$6:$AM$500,3,FALSE)="",0,VLOOKUP($A$3,'G6-MSWD'!$A$6:$AM$500,3,FALSE))&")"))))),"0% (0)") -> 93% (2458) | D38: =IFERROR((IF($C38="NA","NA",VLOOKUP($A$3,'G6-MSWD'!$A$6:$AM$500,4,FALSE))),"NA") -> 14.56765663 | E38: =IFERROR((IF($C38="NA","NA",ROUND(VLOOKUP($A$3,'G6-MSWD'!$A$6:$AM$500,6,FALSE),0)&"% ("&IF(VLOOKUP($A$3,'G6-MSWD'!$A$6:$AM$500,5,FALSE)="",0,VLOOKUP($A$3,'G6-MSWD'!$A$6:$AM$500,5,FALSE))&")")),"NA") -> 20% (501) | F38: =IFERROR((IF($C38="NA","NA",VLOOKUP($A$3,'G6-MSWD'!$A$6:$AM$500,7,FALSE))),"NA") -> 6.754800651 | G38: NA | H38: =IFERROR((IF($C38="NA","NA",VLOOKUP($A$3,'G6-MSWD'!$A$6:$AM$500,10,FALSE))),"NA") -> 7.816598861 | I38: NA | J38: NT | K38: NT

Sheet Grade 7 Report
A2: Click here to return to the school and sheet selection interface
A3: ='Select School'!B3 -> 9999
A4: =TEXT(A3,"0000")&"-"&VLOOKUP(A3,SchList!$A$2:$B$504,2,FALSE) -> 9999-District
A5: Reading - Grade 7
A6: Satisfactory Progress Cut Scores at 59% or above | B6: Total # of Students | C6: % of Students Tested | D6: ='G6-8 Matrix'!C2&"["&'G6-8 Matrix'!C5&"]" -> Overall[56] | F6: ='G6-8 Matrix'!D2&"["&'G6-8 Matrix'!D5&"]" -> Vocabulary[14] | H6: ='G6-8 Matrix'!E2&"["&'G6-8 Matrix'!E5&"]" -> Reading Application[21] | J6: ='G6-8 Matrix'!F2&"["&'G6-8 Matrix'!F5&"]" -> Literary Analysis Fiction/Nonfiction[11] | L6: ='G6-8 Matrix'!G2&"["&'G6-8 Matrix'!G5&"]" -> Informational Text/ Research Process[10]
D7: Average Score | E7: % Satisfactory | F7: Average Score | G7: % Satisfactory | H7: Average Score | I7: % Satisfactory | J7: Average Score | K7: % Satisfactory | L7: Average Score | M7: % Satisfactory
A8: All students | B8: =IFERROR(VLOOKUP(TEXT($A$3,"0000"),Mem_All!$A$2:$O$500,11,FALSE),"NA") -> 26993 | C8: =IFERROR((IF(OR(B8=0,B8="",B8="NA"),"NA",((IF(VLOOKUP($A$3,'G7-RALL'!$A$6:$AM$500,3,FALSE)>=B8,"100% ("&VLOOKUP($A$3,'G7-RALL'!$A$6:$AM$500,3,FALSE)&")",(ROUND((VLOOKUP($A$3,'G7-RALL'!$A$6:$AM$500,3,FALSE)/B8*100),0))&"% ("&IF(VLOOKUP($A$3,'G7-RALL'!$A$6:$AM$500,3,FALSE)="",0,VLOOKUP($A$3,'G7-RALL'!$A$6:$AM$500,3,FALSE))&")"))))),"0% (0)") -> 93% (24996) | D8: =IFERROR((IF($C8="NA","NA",VLOOKUP($A$3,'G7-RALL'!$A$6:$AM$500,4,FALSE))),"NA") -> 31.53819011 | E8: =IFERROR((IF($C8="NA","NA",ROUND(VLOOKUP($A$3,'G7-RALL'!$A$6:$AM$500,6,FALSE),0)&"% ("&IF(VLOOKUP($A$3,'G7-RALL'!$A$6:$AM$500,5,FALSE)="",0,VLOOKUP($A$3,'G7-RALL'!$A$6:$AM$500,5,FALSE))&")")),"NA") -> 49% (12305) | F8: =IFERROR((IF($C8="NA","NA",VLOOKUP($A$3,'G7-RALL'!$A$6:$AM$500,7,FALSE))),"NA") -> 7.838426148 | G8: NA | H8: =IFERROR((IF($C8="NA","NA",VLOOKUP($A$3,'G7-RALL'!$A$6:$AM$500,10,FALSE))),"NA") -> 12.70932949 | I8: NA | J8: =IFERROR((IF($C8="NA","NA",VLOOKUP($A$3,'G7-RALL'!$A$6:$AM$500,13,FALSE))),"NA") -> 5.135405665 | K8: NA | L8: =IFERROR((IF($C8="NA","NA",VLOOKUP($A$3,'G7-RALL'!$A$6:$AM$500,16,FALSE))),"NA") -> 5.847399584 | M8: NA
A9: FCAT Level 1 | B9: =IFERROR(VLOOKUP(TEXT($A$3,"0000"),MEM_RL1!$A$2:$O$500,8,FALSE),"NA") -> 5352 | C9: =IFERROR((IF(OR(B9=0,B9="",B9="NA"),"NA",((IF(VLOOKUP($A$3,'G7-RL1'!$A$6:$AL$500,3,FALSE)>=B9,"100% ("&VLOOKUP($A$3,'G7-RL1'!$A$6:$AL$500,3,FALSE)&")",(ROUND((VLOOKUP($A$3,'G7-RL1'!$A$6:$AL$500,3,FALSE)/B9*100),0))&"% ("&IF(VLOOKUP($A$3,'G7-RL1'!$A$6:$AL$500,3,FALSE)="",0,VLOOKUP($A$3,'G7-RL1'!$A$6:$AL$500,3,FALSE))&")"))))),"0% (0)") -> 93% (4983) | D9: =IFERROR((IF($C9="NA","NA",VLOOKUP($A$3,'G7-RL1'!$A$6:$AL$500,4,FALSE))),"NA") -> 19.15476621 | E9: =IFERROR((IF($C9="NA","NA",ROUND(VLOOKUP($A$3,'G7-RL1'!$A$6:$AL$500,6,FALSE),0)&"% ("&IF(VLOOKUP($A$3,'G7-RL1'!$A$6:$AL$500,5,FALSE)="",0,VLOOKUP($A$3,'G7-RL1'!$A$6:$AL$500,5,FALSE))&")")),"NA") -> 3% (159) | F9: =IFERROR((IF($C9="NA","NA",VLOOKUP($A$3,'G7-RL1'!$A$6:$AL$500,7,FALSE))),"NA") -> 4.87230584 | G9: NA | H9: =IFERROR((IF($C9="NA","NA",VLOOKUP($A$3,'G7-RL1'!$A$6:$AL$500,10,FALSE))),"NA") -> 7.491812161 | I9: NA | J9: =IFERROR((IF($C9="NA","NA",VLOOKUP($A$3,'G7-RL1'!$A$6:$AL$500,13,FALSE))),"NA") -> 3.23303231 | K9: NA | L9: =IFERROR((IF($C9="NA","NA",VLOOKUP($A$3,'G7-RL1'!$A$6:$AL$500,16,FALSE))),"NA") -> 3.56106763 | M9: NA
A10: FCAT Level 2 | B10: =IFERROR(VLOOKUP(TEXT($A$3,"0000"),MEM_RL2!$A$2:$O$500,8,FALSE),"NA") -> 6478 | C10: =IFERROR((IF(OR(B10=0,B10="",B10="NA"),"NA",((IF(VLOOKUP($A$3,'G7-RL2'!$A$6:$AL$500,3,FALSE)>=B10,"100% ("&VLOOKUP($A$3,'G7-RL2'!$A$6:$AL$500,3,FALSE)&")",(ROUND((VLOOKUP($A$3,'G7-RL2'!$A$6:$AL$500,3,FALSE)/B10*100),0))&"% ("&IF(VLOOKUP($A$3,'G7-RL2'!$A$6:$AL$500,3,FALSE)="",0,VLOOKUP($A$3,'G7-RL2'!$A$6:$AL$500,3,FALSE))&")"))))),"0% (0)") -> 94% (6063) | D10: =IFERROR((IF($C10="NA","NA",VLOOKUP($A$3,'G7-RL2'!$A$6:$AL$500,4,FALSE))),"NA") -> 26.83635164 | E10: =IFERROR((IF($C10="NA","NA",ROUND(VLOOKUP($A$3,'G7-RL2'!$A$6:$AL$500,6,FALSE),0)&"% ("&IF(VLOOKUP($A$3,'G7-RL2'!$A$6:$AL$500,5,FALSE)="",0,VLOOKUP($A$3,'G7-RL2'!$A$6:$AL$500,5,FALSE))&")")),"NA") -> 24% (1463) | F10: =IFERROR((IF($C10="NA","NA",VLOOKUP($A$3,'G7-RL2'!$A$6:$AL$500,7,FALSE))),"NA") -> 6.624591786 | G10: NA | H10: =IFERROR((IF($C10="NA","NA",VLOOKUP($A$3,'G7-RL2'!$A$6:$AL$500,10,FALSE))),"NA") -> 10.90644895 | I10: NA | J10: =IFERROR((IF($C10="NA","NA",VLOOKUP($A$3,'G7-RL2'!$A$6:$AL$500,13,FALSE))),"NA") -> 4.301665842 | K10: NA | L10: =IFERROR((IF($C10="NA","NA",VLOOKUP($A$3,'G7-RL2'!$A$6:$AL$500,16,FALSE))),"NA") -> 4.994062345 | M10: NA
A11: FCAT Level 3 | B11: =IFERROR(VLOOKUP(TEXT($A$3,"0000"),MEM_RL3!$A$2:$O$500,8,FALSE),"NA") -> 7149 | C11: =IFERROR((IF(OR(B11=0,B11="",B11="NA"),"NA",((IF(VLOOKUP($A$3,'G7-RL3'!$A$6:$AL$500,3,FALSE)>=B11,"100% ("&VLOOKUP($A$3,'G7-RL3'!$A$6:$AL$500,3,FALSE)&")",(ROUND((VLOOKUP($A$3,'G7-RL3'!$A$6:$AL$500,3,FALSE)/B11*100),0))&"% ("&IF(VLOOKUP($A$3,'G7-RL3'!$A$6:$AL$500,3,FALSE)="",0,VLOOKUP($A$3,'G7-RL3'!$A$6:$AL$500,3,FALSE))&")"))))),"0% (0)") -> 96% (6838) | D11: =IFERROR((IF($C11="NA","NA",VLOOKUP($A$3,'G7-RL3'!$A$6:$AL$500,4,FALSE))),"NA") -> 34.76614507 | E11: =IFERROR((IF($C11="NA","NA",ROUND(VLOOKUP($A$3,'G7-RL3'!$A$6:$AL$500,6,FALSE),0)&"% ("&IF(VLOOKUP($A$3,'G7-RL3'!$A$6:$AL$500,5,FALSE)="",0,VLOOKUP($A$3,'G7-RL3'!$A$6:$AL$500,5,FALSE))&")")),"NA") -> 66% (4540) | F11: =IFERROR((IF($C11="NA","NA",VLOOKUP($A$3,'G7-RL3'!$A$6:$AL$500,7,FALSE))),"NA") -> 8.554284879 | G11: NA | H11: =IFERROR((IF($C11="NA","NA",VLOOKUP($A$3,'G7-RL3'!$A$6:$AL$500,10,FALSE))),"NA") -> 14.20280784 | I11: NA | J11: =IFERROR((IF($C11="NA","NA",VLOOKUP($A$3,'G7-RL3'!$A$6:$AL$500,13,FALSE))),"NA") -> 5.610397777 | K11: NA | L11: =IFERROR((IF($C11="NA","NA",VLOOKUP($A$3,'G7-RL3'!$A$6:$AL$500,16,FALSE))),"NA") -> 6.408101784 | M11: NA
A12: FCAT Level 4 | B12: =IFERROR(VLOOKUP(TEXT($A$3,"0000"),MEM_RL4!$A$2:$O$500,8,FALSE),"NA") -> 4348 | C12: =IFERROR((IF(OR(B12=0,B12="",B12="NA"),"NA",((IF(VLOOKUP($A$3,'G7-RL4'!$A$6:$AL$500,3,FALSE)>=B12,"100% ("&VLOOKUP($A$3,'G7-RL4'!$A$6:$AL$500,3,FALSE)&")",(ROUND((VLOOKUP($A$3,'G7-RL4'!$A$6:$AL$500,3,FALSE)/B12*100),0))&"% ("&IF(VLOOKUP($A$3,'G7-RL4'!$A$6:$AL$500,3,FALSE)="",0,VLOOKUP($A$3,'G7-RL4'!$A$6:$AL$500,3,FALSE))&")"))))),"0% (0)") -> 96% (4184) | D12: =IFERROR((IF($C12="NA","NA",VLOOKUP($A$3,'G7-RL4'!$A$6:$AL$500,4,FALSE))),"NA") -> 41.9123327 | E12: =IFERROR((IF($C12="NA","NA",ROUND(VLOOKUP($A$3,'G7-RL4'!$A$6:$AL$500,6,FALSE),0)&"% ("&IF(VLOOKUP($A$3,'G7-RL4'!$A$6:$AL$500,5,FALSE)="",0,VLOOKUP($A$3,'G7-RL4'!$A$6:$AL$500,5,FALSE))&")")),"NA") -> 93% (3898) | F12: =IFERROR((IF($C12="NA","NA",VLOOKUP($A$3,'G7-RL4'!$A$6:$AL$500,7,FALSE))),"NA") -> 10.39906788 | G12: NA | H12: =IFERROR((IF($C12="NA","NA",VLOOKUP($A$3,'G7-RL4'!$A$6:$AL$500,10,FALSE))),"NA") -> 16.90564054 | I12: NA | J12: =IFERROR((IF($C12="NA","NA",VLOOKUP($A$3,'G7-RL4'!$A$6:$AL$500,13,FALSE))),"NA") -> 6.829110899 | K12: NA | L12: =IFERROR((IF($C12="NA","NA",VLOOKUP($A$3,'G7-RL4'!$A$6:$AL$500,16,FALSE))),"NA") -> 7.78083174 | M12: NA
A13: FCAT Level 5 | B13: =IFERROR(VLOOKUP(TEXT($A$3,"0000"),MEM_RL5!$A$2:$O$500,7,FALSE),"NA") -> 2165 | C13: =IFERROR((IF(OR(B13=0,B13="",B13="NA"),"NA",((IF(VLOOKUP($A$3,'G7-RL5'!$A$6:$AL$500,3,FALSE)>=B13,"100% ("&VLOOKUP($A$3,'G7-RL5'!$A$6:$AL$500,3,FALSE)&")",(ROUND((VLOOKUP($A$3,'G7-RL5'!$A$6:$AL$500,3,FALSE)/B13*100),0))&"% ("&IF(VLOOKUP($A$3,'G7-RL5'!$A$6:$AL$500,3,FALSE)="",0,VLOOKUP($A$3,'G7-RL5'!$A$6:$AL$500,3,FALSE))&")"))))),"0% (0)") -> 95% (2063) | D13: =IFERROR((IF($C13="NA","NA",VLOOKUP($A$3,'G7-RL5'!$A$6:$AL$500,4,FALSE))),"NA") -> 46.82835676 | E13: =IFERROR((IF($C13="NA","NA",ROUND(VLOOKUP($A$3,'G7-RL5'!$A$6:$AL$500,6,FALSE),0)&"% ("&IF(VLOOKUP($A$3,'G7-RL5'!$A$6:$AL$500,5,FALSE)="",0,VLOOKUP($A$3,'G7-RL5'!$A$6:$AL$500,5,FALSE))&")")),"NA") -> 99% (2038) | F13: =IFERROR((IF($C13="NA","NA",VLOOKUP($A$3,'G7-RL5'!$A$6:$AL$500,7,FALSE))),"NA") -> 11.81051866 | G13: NA | H13: =IFERROR((IF($C13="NA","NA",VLOOKUP($A$3,'G7-RL5'!$A$6:$AL$500,10,FALSE))),"NA") -> 18.53650024 | I13: NA | J13: =IFERROR((IF($C13="NA","NA",VLOOKUP($A$3,'G7-RL5'!$A$6:$AL$500,13,FALSE))),"NA") -> 7.7547746 | K13: NA | L13: =IFERROR((IF($C13="NA","NA",VLOOKUP($A$3,'G7-RL5'!$A$6:$AL$500,16,FALSE))),"NA") -> 8.738196801 | M13: NA
A14: White | B14: =IFERROR(VLOOKUP(TEXT($A$3,"0000"),MEM_W!$A$2:$O$500,11,FALSE),"NA") -> 2076 | C14: =IFERROR((IF(OR(B14=0,B14="",B14="NA"),"NA",((IF(VLOOKUP($A$3,'G7-RW'!$A$6:$AL$500,3,FALSE)>=B14,"100% ("&VLOOKUP($A$3,'G7-RW'!$A$6:$AL$500,3,FALSE)&")",(ROUND((VLOOKUP($A$3,'G7-RW'!$A$6:$AL$500,3,FALSE)/B14*100),0))&"% ("&IF(VLOOKUP($A$3,'G7-RW'!$A$6:$AL$500,3,FALSE)="",0,VLOOKUP($A$3,'G7-RW'!$A$6:$AL$500,3,FALSE))&")"))))),"0% (0)") -> 90% (1873) | D14: =IFERROR((IF($C14="NA","NA",VLOOKUP($A$3,'G7-RW'!$A$6:$AL$500,4,FALSE))),"NA") -> 37.01884677 | E14: =IFERROR((IF($C14="NA","NA",ROUND(VLOOKUP($A$3,'G7-RW'!$A$6:$AL$500,6,FALSE),0)&"% ("&IF(VLOOKUP($A$3,'G7-RW'!$A$6:$AL$500,5,FALSE)="",0,VLOOKUP($A$3,'G7-RW'!$A$6:$AL$500,5,FALSE))&")")),"NA") -> 70% (1319) | F14: =IFERROR((IF($C14="NA","NA",VLOOKUP($A$3,'G7-RW'!$A$6:$AL$500,7,FALSE))),"NA") -> 9.421676455 | G14: NA | H14: =IFERROR((IF($C14="NA","NA",VLOOKUP($A$3,'G7-RW'!$A$6:$AL$500,10,FALSE))),"NA") -> 14.83673251 | I14: NA | J14: =IFERROR((IF($C14="NA","NA",VLOOKUP($A$3,'G7-RW'!$A$6:$AL$500,13,FALSE))),"NA") -> 6.003416978 | K14: NA | L14: =IFERROR((IF($C14="NA","NA",VLOOKUP($A$3,'G7-RW'!$A$6:$AL$500,16,FALSE))),"NA") -> 6.755098772 | M14: NA
A15: Black | B15: =IFERROR(VLOOKUP(TEXT($A$3,"0000"),MEM_B!$A$2:$O$500,11,FALSE),"NA") -> 6250 | C15: =IFERROR((IF(OR(B15=0,B15="",B15="NA"),"NA",((IF(VLOOKUP($A$3,'G7-RB'!$A$6:$AL$500,3,FALSE)>=B15,"100% ("&VLOOKUP($A$3,'G7-RB'!$A$6:$AL$500,3,FALSE)&")",(ROUND((VLOOKUP($A$3,'G7-RB'!$A$6:$AL$500,3,FALSE)/B15*100),0))&"% ("&IF(VLOOKUP($A$3,'G7-RB'!$A$6:$AL$500,3,FALSE)="",0,VLOOKUP($A$3,'G7-RB'!$A$6:$AL$500,3,FALSE))&")"))))),"0% (0)") -> 92% (5766) | D15: =IFERROR((IF($C15="NA","NA",VLOOKUP($A$3,'G7-RB'!$A$6:$AL$500,4,FALSE))),"NA") -> 28.14562955 | E15: =IFERROR((IF($C15="NA","NA",ROUND(VLOOKUP($A$3,'G7-RB'!$A$6:$AL$500,6,FALSE),0)&"% ("&IF(VLOOKUP($A$3,'G7-RB'!$A$6:$AL$500,5,FALSE)="",0,VLOOKUP($A$3,'G7-RB'!$A$6:$AL$500,5,FALSE))&")")),"NA") -> 36% (2054) | F15: =IFERROR((IF($C15="NA","NA",VLOOKUP($A$3,'G7-RB'!$A$6:$AL$500,7,FALSE))),"NA") -> 6.961966701 | G15: NA | H15: =IFERROR((IF($C15="NA","NA",VLOOKUP($A$3,'G7-RB'!$A$6:$AL$500,10,FALSE))),"NA") -> 11.38844953 | I15: NA | J15: =IFERROR((IF($C15="NA","NA",VLOOKUP($A$3,'G7-RB'!$A$6:$AL$500,13,FALSE))),"NA") -> 4.612625737 | K15: NA | L15: =IFERROR((IF($C15="NA","NA",VLOOKUP($A$3,'G7-RB'!$A$6:$AL$500,16,FALSE))),"NA") -> 5.18491155 | M15: NA
A16: Hispanic | B16: =IFERROR(VLOOKUP(TEXT($A$3,"0000"),MEM_H!$A$2:$O$500,11,FALSE),"NA") -> 18220 | C16: =IFERROR((IF(OR(B16=0,B16="",B16="NA"),"NA",((IF(VLOOKUP($A$3,'G7-RH'!$A$6:$AL$500,3,FALSE)>=B16,"100% ("&VLOOKUP($A$3,'G7-RH'!$A$6:$AL$500,3,FALSE)&")",(ROUND((VLOOKUP($A$3,'G7-RH'!$A$6:$AL$500,3,FALSE)/B16*100),0))&"% ("&IF(VLOOKUP($A$3,'G7-RH'!$A$6:$AL$500,3,FALSE)="",0,VLOOKUP($A$3,'G7-RH'!$A$6:$AL$500,3,FALSE))&")"))))),"0% (0)") -> 93% (16946) | D16: =IFERROR((IF($C16="NA","NA",VLOOKUP($A$3,'G7-RH'!$A$6:$AL$500,4,FALSE))),"NA") -> 31.95040718 | E16: =IFERROR((IF($C16="NA","NA",ROUND(VLOOKUP($A$3,'G7-RH'!$A$6:$AL$500,6,FALSE),0)&"% ("&IF(VLOOKUP($A$3,'G7-RH'!$A$6:$AL$500,5,FALSE)="",0,VLOOKUP($A$3,'G7-RH'!$A$6:$AL$500,5,FALSE))&")")),"NA") -> 51% (8639) | F16: =IFERROR((IF($C16="NA","NA",VLOOKUP($A$3,'G7-RH'!$A$6:$AL$500,7,FALSE))),"NA") -> 7.930018884 | G16: NA | H16: =IFERROR((IF($C16="NA","NA",VLOOKUP($A$3,'G7-RH'!$A$6:$AL$500,10,FALSE))),"NA") -> 12.87162752 | I16: NA | J16: =IFERROR((IF($C16="NA","NA",VLOOKUP($A$3,'G7-RH'!$A$6:$AL$500,13,FALSE))),"NA") -> 5.19972855 | K16: NA | L16: =IFERROR((IF($C16="NA","NA",VLOOKUP($A$3,'G7-RH'!$A$6:$AL$500,16,FALSE))),"NA") -> 5.93962587 | M16: NA
A17: Asian | B17: =IFERROR(VLOOKUP(TEXT($A$3,"0000"),MEM_A!$A$2:$O$500,11,FALSE),"NA") -> 321 | C17: =IFERROR((IF(OR(B17=0,B17="",B17="NA"),"NA",((IF(VLOOKUP($A$3,'G7-RA'!$A$6:$AL$500,3,FALSE)>=B17,"100% ("&VLOOKUP($A$3,'G7-RA'!$A$6:$AL$500,3,FALSE)&")",(ROUND((VLOOKUP($A$3,'G7-RA'!$A$6:$AL$500,3,FALSE)/B17*100),0))&"% ("&IF(VLOOKUP($A$3,'G7-RA'!$A$6:$AL$500,3,FALSE)="",0,VLOOKUP($A$3,'G7-RA'!$A$6:$AL$500,3,FALSE))&")"))))),"0% (0)") -> 89% (287) | D17: =IFERROR((IF($C17="NA","NA",VLOOKUP($A$3,'G7-RA'!$A$6:$AL$500,4,FALSE))),"NA") -> 39.09616725 | E17: =IFERROR((IF($C17="NA","NA",ROUND(VLOOKUP($A$3,'G7-RA'!$A$6:$AL$500,6,FALSE),0)&"% ("&IF(VLOOKUP($A$3,'G7-RA'!$A$6:$AL$500,5,FALSE)="",0,VLOOKUP($A$3,'G7-RA'!$A$6:$AL$500,5,FALSE))&")")),"NA") -> 76% (219) | F17: =IFERROR((IF($C17="NA","NA",VLOOKUP($A$3,'G7-RA'!$A$6:$AL$500,7,FALSE))),"NA") -> 9.64912892 | G17: NA | H17: =IFERROR((IF($C17="NA","NA",VLOOKUP($A$3,'G7-RA'!$A$6:$AL$500,10,FALSE))),"NA") -> 15.75400697 | I17: NA | J17: =IFERROR((IF($C17="NA","NA",VLOOKUP($A$3,'G7-RA'!$A$6:$AL$500,13,FALSE))),"NA") -> 6.432404181 | K17: NA | L17: =IFERROR((IF($C17="NA","NA",VLOOKUP($A$3,'G7-RA'!$A$6:$AL$500,16,FALSE))),"NA") -> 7.278397213 | M17: NA
A18: Am. Indian | B18: =IFERROR(VLOOKUP(TEXT($A$3,"0000"),MEM_I!$A$2:$O$500,11,FALSE),"NA") -> 21 | C18: =IFERROR((IF(OR(B18=0,B18="",B18="NA"),"NA",((IF(VLOOKUP($A$3,'G7-RI'!$A$6:$AL$500,3,FALSE)>=B18,"100% ("&VLOOKUP($A$3,'G7-RI'!$A$6:$AL$500,3,FALSE)&")",(ROUND((VLOOKUP($A$3,'G7-RI'!$A$6:$AL$500,3,FALSE)/B18*100),0))&"% ("&IF(VLOOKUP($A$3,'G7-RI'!$A$6:$AL$500,3,FALSE)="",0,VLOOKUP($A$3,'G7-RI'!$A$6:$AL$500,3,FALSE))&")"))))),"0% (0)") -> 100% (21) | D18: =IFERROR((IF($C18="NA","NA",VLOOKUP($A$3,'G7-RI'!$A$6:$AL$500,4,FALSE))),"NA") -> 32.66666667 | E18: =IFERROR((IF($C18="NA","NA",ROUND(VLOOKUP($A$3,'G7-RI'!$A$6:$AL$500,6,FALSE),0)&"% ("&IF(VLOOKUP($A$3,'G7-RI'!$A$6:$AL$500,5,FALSE)="",0,VLOOKUP($A$3,'G7-RI'!$A$6:$AL$500,5,FALSE))&")")),"NA") -> 57% (12) | F18: =IFERROR((IF($C18="NA","NA",VLOOKUP($A$3,'G7-RI'!$A$6:$AL$500,7,FALSE))),"NA") -> 8.19047619 | G18: NA | H18: =IFERROR((IF($C18="NA","NA",VLOOKUP($A$3,'G7-RI'!$A$6:$AL$500,10,FALSE))),"NA") -> 13.33333333 | I18: NA | J18: =IFERROR((IF($C18="NA","NA",VLOOKUP($A$3,'G7-RI'!$A$6:$AL$500,13,FALSE))),"NA") -> 5.238095238 | K18: NA | L18: =IFERROR((IF($C18="NA","NA",VLOOKUP($A$3,'G7-RI'!$A$6:$AL$500,16,FALSE))),"NA") -> 5.904761905 | M18: NA
A19: ED | B19: =IFERROR(VLOOKUP(TEXT($A$3,"0000"),MEM_ED!$A$2:$O$500,11,FALSE),"NA") -> 20524 | C19: =IFERROR((IF(OR(B19=0,B19="",B19="NA"),"NA",((IF(VLOOKUP($A$3,'G7-RED'!$A$6:$AL$500,3,FALSE)>=B19,"100% ("&VLOOKUP($A$3,'G7-RED'!$A$6:$AL$500,3,FALSE)&")",(ROUND((VLOOKUP($A$3,'G7-RED'!$A$6:$AL$500,3,FALSE)/B19*100),0))&"% ("&IF(VLOOKUP($A$3,'G7-RED'!$A$6:$AL$500,3,FALSE)="",0,VLOOKUP($A$3,'G7-RED'!$A$6:$AL$500,3,FALSE))&")"))))),"0% (0)") -> 98% (20174) | D19: =IFERROR((IF($C19="NA","NA",VLOOKUP($A$3,'G7-RED'!$A$6:$AL$500,4,FALSE))),"NA") -> 29.9983444 | E19: =IFERROR((IF($C19="NA","NA",ROUND(VLOOKUP($A$3,'G7-RED'!$A$6:$AL$500,6,FALSE),0)&"% ("&IF(VLOOKUP($A$3,'G7-RED'!$A$6:$AL$500,5,FALSE)="",0,VLOOKUP($A$3,'G7-RED'!$A$6:$AL$500,5,FALSE))&")")),"NA") -> 43% (8756) | F19: =IFERROR((IF($C19="NA","NA",VLOOKUP($A$3,'G7-RED'!$A$6:$AL$500,7,FALSE))),"NA") -> 7.422147318 | G19: NA | H19: =IFERROR((IF($C19="NA","NA",VLOOKUP($A$3,'G7-RED'!$A$6:$AL$500,10,FALSE))),"NA") -> 12.12223159 | I19: NA | J19: =IFERROR((IF($C19="NA","NA",VLOOKUP($A$3,'G7-RED'!$A$6:$AL$500,13,FALSE))),"NA") -> 4.882918608 | K19: NA | L19: =IFERROR((IF($C19="NA","NA",VLOOKUP($A$3,'G7-RED'!$A$6:$AL$500,16,FALSE))),"NA") -> 5.577907207 | M19: NA
A20: ELL | B20: =IFERROR(VLOOKUP(TEXT($A$3,"0000"),MEM_ELL!$A$2:$O$500,11,FALSE),"NA") -> 4114 | C20: =IFERROR((IF(OR(B20=0,B20="",B20="NA"),"NA",((IF(VLOOKUP($A$3,'G7-RELL'!$A$6:$AL$500,3,FALSE)>=B20,"100% ("&VLOOKUP($A$3,'G7-RELL'!$A$6:$AL$500,3,FALSE)&")",(ROUND((VLOOKUP($A$3,'G7-RELL'!$A$6:$AL$500,3,FALSE)/B20*100),0))&"% ("&IF(VLOOKUP($A$3,'G7-RELL'!$A$6:$AL$500,3,FALSE)="",0,VLOOKUP($A$3,'G7-RELL'!$A$6:$AL$500,3,FALSE))&")"))))),"0% (0)") -> 95% (3896) | D20: =IFERROR((IF($C20="NA","NA",VLOOKUP($A$3,'G7-RELL'!$A$6:$AL$500,4,FALSE))),"NA") -> 23.16067762 | E20: =IFERROR((IF($C20="NA","NA",ROUND(VLOOKUP($A$3,'G7-RELL'!$A$6:$AL$500,6,FALSE),0)&"% ("&IF(VLOOKUP($A$3,'G7-RELL'!$A$6:$AL$500,5,FALSE)="",0,VLOOKUP($A$3,'G7-RELL'!$A$6:$AL$500,5,FALSE))&")")),"NA") -> 19% (753) | F20: =IFERROR((IF($C20="NA","NA",VLOOKUP($A$3,'G7-RELL'!$A$6:$AL$500,7,FALSE))),"NA") -> 5.719455852 | G20: NA | H20: =IFERROR((IF($C20="NA","NA",VLOOKUP($A$3,'G7-RELL'!$A$6:$AL$500,10,FALSE))),"NA") -> 9.217145791 | I20: NA | J20: =IFERROR((IF($C20="NA","NA",VLOOKUP($A$3,'G7-RELL'!$A$6:$AL$500,13,FALSE))),"NA") -> 3.85087269 | K20: NA | L20: =IFERROR((IF($C20="NA","NA",VLOOKUP($A$3,'G7-RELL'!$A$6:$AL$500,16,FALSE))),"NA") -> 4.373203285 | M20: NA
A21: SWD | B21: =IFERROR(VLOOKUP(TEXT($A$3,"0000"),MEM_SWD!$A$2:$O$500,11,FALSE),"NA") -> 2652 | C21: =IFERROR((IF(OR(B21=0,B21="",B21="NA"),"NA",((IF(VLOOKUP($A$3,'G7-RSWD'!$A$6:$AM$500,3,FALSE)>=B21,"100% ("&VLOOKUP($A$3,'G7-RSWD'!$A$6:$AM$500,3,FALSE)&")",(ROUND((VLOOKUP($A$3,'G7-RSWD'!$A$6:$AM$500,3,FALSE)/B21*100),0))&"% ("&IF(VLOOKUP($A$3,'G7-RSWD'!$A$6:$AM$500,3,FALSE)="",0,VLOOKUP($A$3,'G7-RSWD'!$A$6:$AM$500,3,FALSE))&")"))))),"0% (0)") -> 91% (2415) | D21: =IFERROR((IF($C21="NA","NA",VLOOKUP($A$3,'G7-RSWD'!$A$6:$AM$500,4,FALSE))),"NA") -> 22.99424431 | E21: =IFERROR((IF($C21="NA","NA",ROUND(VLOOKUP($A$3,'G7-RSWD'!$A$6:$AM$500,6,FALSE),0)&"% ("&IF(VLOOKUP($A$3,'G7-RSWD'!$A$6:$AM$500,5,FALSE)="",0,VLOOKUP($A$3,'G7-RSWD'!$A$6:$AM$500,5,FALSE))&")")),"NA") -> 17% (422) | F21: =IFERROR((IF($C21="NA","NA",VLOOKUP($A$3,'G7-RSWD'!$A$6:$AM$500,7,FALSE))),"NA") -> 5.745175983 | G21: NA | H21: =IFERROR((IF($C21="NA","NA",VLOOKUP($A$3,'G7-RSWD'!$A$6:$AM$500,10,FALSE))),"NA") -> 9.194202899 | I21: NA | J21: =IFERROR((IF($C21="NA","NA",VLOOKUP($A$3,'G7-RSWD'!$A$6:$AM$500,13,FALSE))),"NA") -> 3.842360248 | K21: NA | L21: =IFERROR((IF($C21="NA","NA",VLOOKUP($A$3,'G7-RSWD'!$A$6:$AM$500,16,FALSE))),"NA") -> 4.215983437 | M21: NA
A22: Math - Grade 7
A23: Satisfactory Progress Cut Scores at 49% or above | B23: Total # of Students | C23: % of Students Tested | D23: ='G6-8 Matrix'!C13&" ["&'G6-8 Matrix'!C14&"]" -> Overall [39] | F23: ='G6-8 Matrix'!D13&" ["&'G6-8 Matrix'!D14&"]" -> Number: Base Ten [39] | H23: ='G6-8 Matrix'!E13&" ["&'G6-8 Matrix'!E14&"]" -> Ratios/Proportional Relationships [0] | J23: ='G6-8 Matrix'!F13&" ["&'G6-8 Matrix'!F14&"]" -> Geometry and Measurement [0] | L23: ='G6-8 Matrix'!G13&" ["&'G6-8 Matrix'!G14&"]" -> Statistics and Probability [0]
D24: Average Score | E24: % Satisfactory | F24: Average Score | G24: % Satisfactory | H24: Average Score | I24: % Satisfactory | J24: Average Score | K24: % Satisfactory | L24: Average Score | M24: % Satisfactory
A25: All students | B25: =IFERROR(VLOOKUP(TEXT($A$3,"0000"),Mem_All!$A$2:$O$500,11,FALSE),0)-IFERROR(VLOOKUP(TEXT($A$3,"0000"),'ALG Gr07'!$A$3:$Q$500,3,FALSE),0) -> 24331 | C25: =IFERROR((IF(OR(B25=0,B25="",B25="NA"),"NA",((IF(VLOOKUP($A$3,'G7-MALL'!$A$6:$AM$500,3,FALSE)>=B25,"100% ("&VLOOKUP($A$3,'G7-MALL'!$A$6:$AM$500,3,FALSE)&")",(ROUND((VLOOKUP($A$3,'G7-MALL'!$A$6:$AM$500,3,FALSE)/B25*100),0))&"% ("&IF(VLOOKUP($A$3,'G7-MALL'!$A$6:$AM$500,3,FALSE)="",0,VLOOKUP($A$3,'G7-MALL'!$A$6:$AM$500,3,FALSE))&")"))))),"0% (0)") -> 95% (23084) | D25: =IFERROR((IF($C25="NA","NA",VLOOKUP($A$3,'G7-MALL'!$A$6:$AM$500,4,FALSE))),"NA") -> 18.6388191 | E25: =IFERROR((IF($C25="NA","NA",ROUND(VLOOKUP($A$3,'G7-MALL'!$A$6:$AM$500,6,FALSE),0)&"% ("&IF(VLOOKUP($A$3,'G7-MALL'!$A$6:$AM$500,5,FALSE)="",0,VLOOKUP($A$3,'G7-MALL'!$A$6:$AM$500,5,FALSE))&")")),"NA") -> 47% (10862) | F25: =IFERROR((IF($C25="NA","NA",VLOOKUP($A$3,'G7-MALL'!$A$6:$AM$500,7,FALSE))),"NA") -> 18.6388191 | G25: NA | H25: NT | I25: NT | J25: NT | K25: NT | L25: NT | M25: NT
A26: FCAT Level 1 | B26: =IFERROR(VLOOKUP(TEXT($A$3,"0000"),MEM_ML1!$A$2:$O$500,8,FALSE),0)-IFERROR(VLOOKUP(TEXT($A$3,"0000"),'ALG Gr07'!$A$3:$Q$500,4,FALSE),0) -> 6357 | C26: =IFERROR((IF(OR(B26=0,B26="",B26="NA"),"NA",((IF(VLOOKUP($A$3,'G7-ML1'!$A$6:$AM$500,3,FALSE)>=B26,"100% ("&VLOOKUP($A$3,'G7-ML1'!$A$6:$AM$500,3,FALSE)&")",(ROUND((VLOOKUP($A$3,'G7-ML1'!$A$6:$AM$500,3,FALSE)/B26*100),0))&"% ("&IF(VLOOKUP($A$3,'G7-ML1'!$A$6:$AM$500,3,FALSE)="",0,VLOOKUP($A$3,'G7-ML1'!$A$6:$AM$500,3,FALSE))&")"))))),"0% (0)") -> 95% (6017) | D26: =IFERROR((IF($C26="NA","NA",VLOOKUP($A$3,'G7-ML1'!$A$6:$AM$500,4,FALSE))),"NA") -> 12.88901446 | E26: =IFERROR((IF($C26="NA","NA",ROUND(VLOOKUP($A$3,'G7-ML1'!$A$6:$AM$500,6,FALSE),0)&"% ("&IF(VLOOKUP($A$3,'G7-ML1'!$A$6:$AM$500,5,FALSE)="",0,VLOOKUP($A$3,'G7-ML1'!$A$6:$AM$500,5,FALSE))&")")),"NA") -> 10% (623) | F26: =IFERROR((IF($C26="NA","NA",VLOOKUP($A$3,'G7-ML1'!$A$6:$AM$500,7,FALSE))),"NA") -> 12.88901446 | G26: NA | H26: NT | I26: NT | J26: NT | K26: NT | L26: NT | M26: NT
A27: FCAT Level 2 | B27: =IFERROR(VLOOKUP(TEXT($A$3,"0000"),MEM_ML2!$A$2:$O$500,8,FALSE),0)-IFERROR(VLOOKUP(TEXT($A$3,"0000"),'ALG Gr07'!$A$3:$Q$500,5,FALSE),0) -> 6233 | C27: =IFERROR((IF(OR(B27=0,B27="",B27="NA"),"NA",((IF(VLOOKUP($A$3,'G7-ML2'!$A$6:$AM$500,3,FALSE)>=B27,"100% ("&VLOOKUP($A$3,'G7-ML2'!$A$6:$AM$500,3,FALSE)&")",(ROUND((VLOOKUP($A$3,'G7-ML2'!$A$6:$AM$500,3,FALSE)/B27*100),0))&"% ("&IF(VLOOKUP($A$3,'G7-ML2'!$A$6:$AM$500,3,FALSE)="",0,VLOOKUP($A$3,'G7-ML2'!$A$6:$AM$500,3,FALSE))&")"))))),"0% (0)") -> 96% (5956) | D27: =IFERROR((IF($C27="NA","NA",VLOOKUP($A$3,'G7-ML2'!$A$6:$AM$500,4,FALSE))),"NA") -> 16.48263936 | E27: =IFERROR((IF($C27="NA","NA",ROUND(VLOOKUP($A$3,'G7-ML2'!$A$6:$AM$500,6,FALSE),0)&"% ("&IF(VLOOKUP($A$3,'G7-ML2'!$A$6:$AM$500,5,FALSE)="",0,VLOOKUP($A$3,'G7-ML2'!$A$6:$AM$500,5,FALSE))&")")),"NA") -> 33% (1984) | F27: =IFERROR((IF($C27="NA","NA",VLOOKUP($A$3,'G7-ML2'!$A$6:$AM$500,7,FALSE))),"NA") -> 16.48263936 | G27: NA | H27: NT | I27: NT | J27: NT | K27: NT | L27: NT | M27: NT
A28: FCAT Level 3 | B28: =IFERROR(VLOOKUP(TEXT($A$3,"0000"),MEM_ML3!$A$2:$O$500,8,FALSE),0)-IFERROR(VLOOKUP(TEXT($A$3,"0000"),'ALG Gr07'!$A$3:$Q$500,6,FALSE),0) -> 5810 | C28: =IFERROR((IF(OR(B28=0,B28="",B28="NA"),"NA",((IF(VLOOKUP($A$3,'G7-ML3'!$A$6:$AM$500,3,FALSE)>=B28,"100% ("&VLOOKUP($A$3,'G7-ML3'!$A$6:$AM$500,3,FALSE)&")",(ROUND((VLOOKUP($A$3,'G7-ML3'!$A$6:$AM$500,3,FALSE)/B28*100),0))&"% ("&IF(VLOOKUP($A$3,'G7-ML3'!$A$6:$AM$500,3,FALSE)="",0,VLOOKUP($A$3,'G7-ML3'!$A$6:$AM$500,3,FALSE))&")"))))),"0% (0)") -> 97% (5649) | D28: =IFERROR((IF($C28="NA","NA",VLOOKUP($A$3,'G7-ML3'!$A$6:$AM$500,4,FALSE))),"NA") -> 20.71435652 | E28: =IFERROR((IF($C28="NA","NA",ROUND(VLOOKUP($A$3,'G7-ML3'!$A$6:$AM$500,6,FALSE),0)&"% ("&IF(VLOOKUP($A$3,'G7-ML3'!$A$6:$AM$500,5,FALSE)="",0,VLOOKUP($A$3,'G7-ML3'!$A$6:$AM$500,5,FALSE))&")")),"NA") -> 66% (3712) | F28: =IFERROR((IF($C28="NA","NA",VLOOKUP($A$3,'G7-ML3'!$A$6:$AM$500,7,FALSE))),"NA") -> 20.71435652 | G28: NA | H28: NT | I28: NT | J28: NT | K28: NT | L28: NT | M28: NT
A29: FCAT Level 4 | B29: =IFERROR(VLOOKUP(TEXT($A$3,"0000"),MEM_ML4!$A$2:$O$500,8,FALSE),0)-IFERROR(VLOOKUP(TEXT($A$3,"0000"),'ALG Gr07'!$A$3:$Q$500,7,FALSE),0) -> 3325 | C29: =IFERROR((IF(OR(B29=0,B29="",B29="NA"),"NA",((IF(VLOOKUP($A$3,'G7-ML4'!$A$6:$AM$500,3,FALSE)>=B29,"100% ("&VLOOKUP($A$3,'G7-ML4'!$A$6:$AM$500,3,FALSE)&")",(ROUND((VLOOKUP($A$3,'G7-ML4'!$A$6:$AM$500,3,FALSE)/B29*100),0))&"% ("&IF(VLOOKUP($A$3,'G7-ML4'!$A$6:$AM$500,3,FALSE)="",0,VLOOKUP($A$3,'G7-ML4'!$A$6:$AM$500,3,FALSE))&")"))))),"0% (0)") -> 100% (3344) | D29: =IFERROR((IF($C29="NA","NA",VLOOKUP($A$3,'G7-ML4'!$A$6:$AM$500,4,FALSE))),"NA") -> 25.78184809 | E29: =IFERROR((IF($C29="NA","NA",ROUND(VLOOKUP($A$3,'G7-ML4'!$A$6:$AM$500,6,FALSE),0)&"% ("&IF(VLOOKUP($A$3,'G7-ML4'!$A$6:$AM$500,5,FALSE)="",0,VLOOKUP($A$3,'G7-ML4'!$A$6:$AM$500,5,FALSE))&")")),"NA") -> 92% (3060) | F29: =IFERROR((IF($C29="NA","NA",VLOOKUP($A$3,'G7-ML4'!$A$6:$AM$500,7,FALSE))),"NA") -> 25.78184809 | G29: NA | H29: NT | I29: NT | J29: NT | K29: NT | L29: NT | M29: NT
A30: FCAT Level 5 | B30: =IFERROR(VLOOKUP(TEXT($A$3,"0000"),MEM_ML5!$A$2:$O$500,8,FALSE),0)-IFERROR(VLOOKUP(TEXT($A$3,"0000"),'ALG Gr07'!$A$3:$Q$500,8,FALSE),0) -> 1138 | C30: =IFERROR((IF(OR(B30=0,B30="",B30="NA"),"NA",((IF(VLOOKUP($A$3,'G7-ML5'!$A$6:$AM$500,3,FALSE)>=B30,"100% ("&VLOOKUP($A$3,'G7-ML5'!$A$6:$AM$500,3,FALSE)&")",(ROUND((VLOOKUP($A$3,'G7-ML5'!$A$6:$AM$500,3,FALSE)/B30*100),0))&"% ("&IF(VLOOKUP($A$3,'G7-ML5'!$A$6:$AM$500,3,FALSE)="",0,VLOOKUP($A$3,'G7-ML5'!$A$6:$AM$500,3,FALSE))&")"))))),"0% (0)") -> 100% (1221) | D30: =IFERROR((IF($C30="NA","NA",VLOOKUP($A$3,'G7-ML5'!$A$6:$AM$500,4,FALSE))),"NA") -> 30.17993448 | E30: =IFERROR((IF($C30="NA","NA",ROUND(VLOOKUP($A$3,'G7-ML5'!$A$6:$AM$500,6,FALSE),0)&"% ("&IF(VLOOKUP($A$3,'G7-ML5'!$A$6:$AM$500,5,FALSE)="",0,VLOOKUP($A$3,'G7-ML5'!$A$6:$AM$500,5,FALSE))&")")),"NA") -> 99% (1207) | F30: =IFERROR((IF($C30="NA","NA",VLOOKUP($A$3,'G7-ML5'!$A$6:$AM$500,7,FALSE))),"NA") -> 30.17993448 | G30: NA | H30: NT | I30: NT | J30: NT | K30: NT | L30: NT | M30: NT
A31: White | B31: =IFERROR(VLOOKUP(TEXT($A$3,"0000"),MEM_W!$A$2:$O$500,11,FALSE),0)-IFERROR(VLOOKUP(TEXT($A$3,"0000"),'ALG Gr07'!$A$3:$Q$500,10,FALSE),0) -> 1715 | C31: =IFERROR((IF(OR(B31=0,B31="",B31="NA"),"NA",((IF(VLOOKUP($A$3,'G7-MW'!$A$6:$AM$500,3,FALSE)>=B31,"100% ("&VLOOKUP($A$3,'G7-MW'!$A$6:$AM$500,3,FALSE)&")",(ROUND((VLOOKUP($A$3,'G7-MW'!$A$6:$AM$500,3,FALSE)/B31*100),0))&"% ("&IF(VLOOKUP($A$3,'G7-MW'!$A$6:$AM$500,3,FALSE)="",0,VLOOKUP($A$3,'G7-MW'!$A$6:$AM$500,3,FALSE))&")"))))),"0% (0)") -> 93% (1595) | D31: =IFERROR((IF($C31="NA","NA",VLOOKUP($A$3,'G7-MW'!$A$6:$AM$500,4,FALSE))),"NA") -> 21.02407524 | E31: =IFERROR((IF($C31="NA","NA",ROUND(VLOOKUP($A$3,'G7-MW'!$A$6:$AM$500,6,FALSE),0)&"% ("&IF(VLOOKUP($A$3,'G7-MW'!$A$6:$AM$500,5,FALSE)="",0,VLOOKUP($A$3,'G7-MW'!$A$6:$AM$500,5,FALSE))&")")),"NA") -> 60% (962) | F31: =IFERROR((IF($C31="NA","NA",VLOOKUP($A$3,'G7-MW'!$A$6:$AM$500,7,FALSE))),"NA") -> 21.02407524 | G31: NA | H31: NT | I31: NT | J31: NT | K31: NT | L31: NT | M31: NT
A32: Black | B32: =IFERROR(VLOOKUP(TEXT($A$3,"0000"),MEM_B!$A$2:$O$500,11,FALSE),0)-IFERROR(VLOOKUP(TEXT($A$3,"0000"),'ALG Gr07'!$A$3:$Q$500,11,FALSE),0) -> 5873 | C32: =IFERROR((IF(OR(B32=0,B32="",B32="NA"),"NA",((IF(VLOOKUP($A$3,'G7-MB'!$A$6:$AM$500,3,FALSE)>=B32,"100% ("&VLOOKUP($A$3,'G7-MB'!$A$6:$AM$500,3,FALSE)&")",(ROUND((VLOOKUP($A$3,'G7-MB'!$A$6:$AM$500,3,FALSE)/B32*100),0))&"% ("&IF(VLOOKUP($A$3,'G7-MB'!$A$6:$AM$500,3,FALSE)="",0,VLOOKUP($A$3,'G7-MB'!$A$6:$AM$500,3,FALSE))&")"))))),"0% (0)") -> 94% (5539) | D32: =IFERROR((IF($C32="NA","NA",VLOOKUP($A$3,'G7-MB'!$A$6:$AM$500,4,FALSE))),"NA") -> 17.20028886 | E32: =IFERROR((IF($C32="NA","NA",ROUND(VLOOKUP($A$3,'G7-MB'!$A$6:$AM$500,6,FALSE),0)&"% ("&IF(VLOOKUP($A$3,'G7-MB'!$A$6:$AM$500,5,FALSE)="",0,VLOOKUP($A$3,'G7-MB'!$A$6:$AM$500,5,FALSE))&")")),"NA") -> 39% (2170) | F32: =IFERROR((IF($C32="NA","NA",VLOOKUP($A$3,'G7-MB'!$A$6:$AM$500,7,FALSE))),"NA") -> 17.20028886 | G32: NA | H32: NT | I32: NT | J32: NT | K32: NT | L32: NT | M32: NT
A33: Hispanic | B33: =IFERROR(VLOOKUP(TEXT($A$3,"0000"),MEM_H!$A$2:$O$500,11,FALSE),0)-IFERROR(VLOOKUP(TEXT($A$3,"0000"),'ALG Gr07'!$A$3:$Q$500,12,FALSE),0) -> 16421 | C33: =IFERROR((IF(OR(B33=0,B33="",B33="NA"),"NA",((IF(VLOOKUP($A$3,'G7-MH'!$A$6:$AM$500,3,FALSE)>=B33,"100% ("&VLOOKUP($A$3,'G7-MH'!$A$6:$AM$500,3,FALSE)&")",(ROUND((VLOOKUP($A$3,'G7-MH'!$A$6:$AM$500,3,FALSE)/B33*100),0))&"% ("&IF(VLOOKUP($A$3,'G7-MH'!$A$6:$AM$500,3,FALSE)="",0,VLOOKUP($A$3,'G7-MH'!$A$6:$AM$500,3,FALSE))&")"))))),"0% (0)") -> 95% (15640) | D33: =IFERROR((IF($C33="NA","NA",VLOOKUP($A$3,'G7-MH'!$A$6:$AM$500,4,FALSE))),"NA") -> 18.84147698 | E33: =IFERROR((IF($C33="NA","NA",ROUND(VLOOKUP($A$3,'G7-MH'!$A$6:$AM$500,6,FALSE),0)&"% ("&IF(VLOOKUP($A$3,'G7-MH'!$A$6:$AM$500,5,FALSE)="",0,VLOOKUP($A$3,'G7-MH'!$A$6:$AM$500,5,FALSE))&")")),"NA") -> 48% (7542) | F33: =IFERROR((IF($C33="NA","NA",VLOOKUP($A$3,'G7-MH'!$A$6:$AM$500,7,FALSE))),"NA") -> 18.84147698 | G33: NA | H33: NT | I33: NT | J33: NT | K33: NT | L33: NT | M33: NT
A34: Asian | B34: =IFERROR(VLOOKUP(TEXT($A$3,"0000"),MEM_A!$A$2:$O$500,11,FALSE),0)-IFERROR(VLOOKUP(TEXT($A$3,"0000"),'ALG Gr07'!$A$3:$Q$500,13,FALSE),0) -> 213 | C34: =IFERROR((IF(OR(B34=0,B34="",B34="NA"),"NA",((IF(VLOOKUP($A$3,'G7-MA'!$A$6:$AM$500,3,FALSE)>=B34,"100% ("&VLOOKUP($A$3,'G7-MA'!$A$6:$AM$500,3,FALSE)&")",(ROUND((VLOOKUP($A$3,'G7-MA'!$A$6:$AM$500,3,FALSE)/B34*100),0))&"% ("&IF(VLOOKUP($A$3,'G7-MA'!$A$6:$AM$500,3,FALSE)="",0,VLOOKUP($A$3,'G7-MA'!$A$6:$AM$500,3,FALSE))&")"))))),"0% (0)") -> 95% (202) | D34: =IFERROR((IF($C34="NA","NA",VLOOKUP($A$3,'G7-MA'!$A$6:$AM$500,4,FALSE))),"NA") -> 22.85 | E34: =IFERROR((IF($C34="NA","NA",ROUND(VLOOKUP($A$3,'G7-MA'!$A$6:$AM$500,6,FALSE),0)&"% ("&IF(VLOOKUP($A$3,'G7-MA'!$A$6:$AM$500,5,FALSE)="",0,VLOOKUP($A$3,'G7-MA'!$A$6:$AM$500,5,FALSE))&")")),"NA") -> 69% (139) | F34: =IFERROR((IF($C34="NA","NA",VLOOKUP($A$3,'G7-MA'!$A$6:$AM$500,7,FALSE))),"NA") -> 22.85 | G34: NA | H34: NT | I34: NT | J34: NT | K34: NT | L34: NT | M34: NT
A35: Am. Indian | B35: =IFERROR(VLOOKUP(TEXT($A$3,"0000"),MEM_I!$A$2:$O$500,11,FALSE),0)-IFERROR(VLOOKUP(TEXT($A$3,"0000"),'ALG Gr07'!$A$3:$Q$500,14,FALSE),0) -> 18 | C35: =IFERROR((IF(OR(B35=0,B35="",B35="NA"),"NA",((IF(VLOOKUP($A$3,'G7-MI'!$A$6:$AM$500,3,FALSE)>=B35,"100% ("&VLOOKUP($A$3,'G7-MI'!$A$6:$AM$500,3,FALSE)&")",(ROUND((VLOOKUP($A$3,'G7-MI'!$A$6:$AM$500,3,FALSE)/B35*100),0))&"% ("&IF(VLOOKUP($A$3,'G7-MI'!$A$6:$AM$500,3,FALSE)="",0,VLOOKUP($A$3,'G7-MI'!$A$6:$AM$500,3,FALSE))&")"))))),"0% (0)") -> 100% (19) | D35: =IFERROR((IF($C35="NA","NA",VLOOKUP($A$3,'G7-MI'!$A$6:$AM$500,4,FALSE))),"NA") -> 21.15789474 | E35: =IFERROR((IF($C35="NA","NA",ROUND(VLOOKUP($A$3,'G7-MI'!$A$6:$AM$500,6,FALSE),0)&"% ("&IF(VLOOKUP($A$3,'G7-MI'!$A$6:$AM$500,5,FALSE)="",0,VLOOKUP($A$3,'G7-MI'!$A$6:$AM$500,5,FALSE))&")")),"NA") -> 47% (9) | F35: =IFERROR((IF($C35="NA","NA",VLOOKUP($A$3,'G7-MI'!$A$6:$AM$500,7,FALSE))),"NA") -> 21.15789474 | G35: NA | H35: NT | I35: NT | J35: NT | K35: NT | L35: NT | M35: NT
A36: ED | B36: =IFERROR(VLOOKUP(TEXT($A$3,"0000"),MEM_ED!$A$2:$O$500,11,FALSE),0)-IFERROR(VLOOKUP(TEXT($A$3,"0000"),'ALG Gr07'!$A$3:$Q$500,15,FALSE),0) -> 18987 | C36: =IFERROR((IF(OR(B36=0,B36="",B36="NA"),"NA",((IF(VLOOKUP($A$3,'G7-MED'!$A$6:$AM$500,3,FALSE)>=B36,"100% ("&VLOOKUP($A$3,'G7-MED'!$A$6:$AM$500,3,FALSE)&")",(ROUND((VLOOKUP($A$3,'G7-MED'!$A$6:$AM$500,3,FALSE)/B36*100),0))&"% ("&IF(VLOOKUP($A$3,'G7-MED'!$A$6:$AM$500,3,FALSE)="",0,VLOOKUP($A$3,'G7-MED'!$A$6:$AM$500,3,FALSE))&")"))))),"0% (0)") -> 100% (19025) | D36: =IFERROR((IF($C36="NA","NA",VLOOKUP($A$3,'G7-MED'!$A$6:$AM$500,4,FALSE))),"NA") -> 17.94744284 | E36: =IFERROR((IF($C36="NA","NA",ROUND(VLOOKUP($A$3,'G7-MED'!$A$6:$AM$500,6,FALSE),0)&"% ("&IF(VLOOKUP($A$3,'G7-MED'!$A$6:$AM$500,5,FALSE)="",0,VLOOKUP($A$3,'G7-MED'!$A$6:$AM$500,5,FALSE))&")")),"NA") -> 43% (8215) | F36: =IFERROR((IF($C36="NA","NA",VLOOKUP($A$3,'G7-MED'!$A$6:$AM$500,7,FALSE))),"NA") -> 17.94744284 | G36: NA | H36: NT | I36: NT | J36: NT | K36: NT | L36: NT | M36: NT
A37: ELL | B37: =IFERROR(VLOOKUP(TEXT($A$3,"0000"),MEM_ELL!$A$2:$O$500,11,FALSE),0)-IFERROR(VLOOKUP(TEXT($A$3,"0000"),'ALG Gr07'!$A$3:$Q$500,16,FALSE),0) -> 3975 | C37: =IFERROR((IF(OR(B37=0,B37="",B37="NA"),"NA",((IF(VLOOKUP($A$3,'G7-MELL'!$A$6:$AM$500,3,FALSE)>=B37,"100% ("&VLOOKUP($A$3,'G7-MELL'!$A$6:$AM$500,3,FALSE)&")",(ROUND((VLOOKUP($A$3,'G7-MELL'!$A$6:$AM$500,3,FALSE)/B37*100),0))&"% ("&IF(VLOOKUP($A$3,'G7-MELL'!$A$6:$AM$500,3,FALSE)="",0,VLOOKUP($A$3,'G7-MELL'!$A$6:$AM$500,3,FALSE))&")"))))),"0% (0)") -> 100% (3968) | D37: =IFERROR((IF($C37="NA","NA",VLOOKUP($A$3,'G7-MELL'!$A$6:$AM$500,4,FALSE))),"NA") -> 15.9672379 | E37: =IFERROR((IF($C37="NA","NA",ROUND(VLOOKUP($A$3,'G7-MELL'!$A$6:$AM$500,6,FALSE),0)&"% ("&IF(VLOOKUP($A$3,'G7-MELL'!$A$6:$AM$500,5,FALSE)="",0,VLOOKUP($A$3,'G7-MELL'!$A$6:$AM$500,5,FALSE))&")")),"NA") -> 30% (1190) | F37: =IFERROR((IF($C37="NA","NA",VLOOKUP($A$3,'G7-MELL'!$A$6:$AM$500,7,FALSE))),"NA") -> 15.9672379 | G37: NA | H37: NT | I37: NT | J37: NT | K37: NT | L37: NT | M37: NT
A38: SWD | B38: =IFERROR(VLOOKUP(TEXT($A$3,"0000"),MEM_SWD!$A$2:$O$500,11,FALSE),0)-IFERROR(VLOOKUP(TEXT($A$3,"0000"),'ALG Gr07'!$A$3:$Q$500,17,FALSE),0) -> 2613 | C38: =IFERROR((IF(OR(B38=0,B38="",B38="NA"),"NA",((IF(VLOOKUP($A$3,'G7-MSWD'!$A$6:$AM$500,3,FALSE)>=B38,"100% ("&VLOOKUP($A$3,'G7-MSWD'!$A$6:$AM$500,3,FALSE)&")",(ROUND((VLOOKUP($A$3,'G7-MSWD'!$A$6:$AM$500,3,FALSE)/B38*100),0))&"% ("&IF(VLOOKUP($A$3,'G7-MSWD'!$A$6:$AM$500,3,FALSE)="",0,VLOOKUP($A$3,'G7-MSWD'!$A$6:$AM$500,3,FALSE))&")"))))),"0% (0)") -> 92% (2392) | D38: =IFERROR((IF($C38="NA","NA",VLOOKUP($A$3,'G7-MSWD'!$A$6:$AM$500,4,FALSE))),"NA") -> 14.20673077 | E38: =IFERROR((IF($C38="NA","NA",ROUND(VLOOKUP($A$3,'G7-MSWD'!$A$6:$AM$500,6,FALSE),0)&"% ("&IF(VLOOKUP($A$3,'G7-MSWD'!$A$6:$AM$500,5,FALSE)="",0,VLOOKUP($A$3,'G7-MSWD'!$A$6:$AM$500,5,FALSE))&")")),"NA") -> 21% (491) | F38: =IFERROR((IF($C38="NA","NA",VLOOKUP($A$3,'G7-MSWD'!$A$6:$AM$500,7,FALSE))),"NA") -> 14.20673077 | G38: NA | H38: NT | I38: NT | J38: NT | K38: NT | L38: NT | M38: NT
A39: Civics EOC
A40: Level of Proficiency at 70% or above | B40: Total # of Students | C40: % of Students Tested | D40: ='G6-8 Matrix'!C22&" ["&'G6-8 Matrix'!C23&"]" -> Overall [0] | F40: ='G6-8 Matrix'!D22&" ["&'G6-8 Matrix'!D23&"]" -> Government Policies and Political Processes [0] | H40: ='G6-8 Matrix'!E22&" ["&'G6-8 Matrix'!E23&"]" -> Organization and Function of Government [0] | J40: ='G6-8 Matrix'!F22&" ["&'G6-8 Matrix'!F23&"]" -> Origins and Purposes of Law and Government [0] | L40: ='G6-8 Matrix'!G22&" ["&'G6-8 Matrix'!G23&"]" -> Roles, Rights, and Responsibilities [0]
D41: Average Score | E41: % Satisfactory | F41: Average Score | G41: % Satisfactory | H41: Average Score | I41: % Satisfactory | J41: Average Score | K41: % Satisfactory | L41: Average Score | M41: % Satisfactory
A42: All students | B42: =IFERROR(VLOOKUP(TEXT($A$3,"0000"),Mem_All!$A$2:$O$500,12,FALSE),"NA") -> 27254 | C42: =IFERROR((IF(OR(B42=0,B42="",B42="NA"),"NA",((IF(VLOOKUP($A$3,'Civics EOC'!$A$6:$AM$500,3,FALSE)>=B42,"100% ("&VLOOKUP($A$3,'Civics EOC'!$A$6:$AM$500,3,FALSE)&")",(ROUND((VLOOKUP($A$3,'Civics EOC'!$A$6:$AM$500,3,FALSE)/B42*100),0))&"% ("&VLOOKUP($A$3,'Civics EOC'!$A$6:$AM$500,3,FALSE)&")"))))),"NA") -> 91% (24924) | D42: =IFERROR(IF($C42="NA","NA",VLOOKUP($A$3,'Civics EOC'!$A$14:$AM$500,4,FALSE)),"NA") -> 13.49836302 | E42: =IFERROR((IF($C42="NA","NA",ROUND(VLOOKUP($A$3,'Civics EOC'!$A$6:$AM$500,9,FALSE),0)&"% ("&IF(VLOOKUP($A$3,'Civics EOC'!$A$6:$AM$500,7,FALSE)="",0,VLOOKUP($A$3,'Civics EOC'!$A$6:$AM$500,7,FALSE))&")")),"NA") -> 0% (42) | F42: =IFERROR((IF($C42="NA","NA",VLOOKUP($A$3,'Civics EOC'!$A$14:$AM$500,10,FALSE))),"NA") -> 3.298363095 | G42: =IFERROR((IF($C42="NA","NA",ROUND(VLOOKUP($A$3,'Civics EOC'!$A$14:$AM$500,15,FALSE)*100,0)&"% ("&VLOOKUP($A$3,'Civics EOC'!$A$14:$AM$500,13,FALSE)&")")),"NA") -> 7% (1776) | H42: =IFERROR((IF($D42="NA","NA",VLOOKUP($A$3,'Civics EOC'!$A$14:$AM$500,16,FALSE))),"NA") -> 3.599999905 | I42: =IFERROR((IF($D42="NA","NA",ROUND(VLOOKUP($A$3,'Civics EOC'!$A$14:$AM$500,21,FALSE)*100,0)&"% ("&VLOOKUP($A$3,'Civics EOC'!$A$14:$AM$500,19,FALSE)&")")),"NA") -> 0% (20) | J42: =IFERROR((IF($C42="NA","NA",VLOOKUP($A$3,'Civics EOC'!$A$14:$AM$500,22,FALSE))),"NA") -> 3.700000048 | K42: =IFERROR((IF($C42="NA","NA",ROUND(VLOOKUP($A$3,'Civics EOC'!$A$14:$AM$500,27,FALSE)*100,0)&"% ("&VLOOKUP($A$3,'Civics EOC'!$A$14:$AM$500,25,FALSE)&")")),"NA") -> 2% (528) | L42: =IFERROR((IF($C42="NA","NA",VLOOKUP($A$3,'Civics EOC'!$A$14:$AM$500,28,FALSE))),"NA") -> 2.850818513 | M42: =IFERROR((IF($C42="NA","NA",ROUND(VLOOKUP($A$3,'Civics EOC'!$A$14:$AM$500,33,FALSE)*100,0)&"% ("&VLOOKUP($A$3,'Civics EOC'!$A$14:$AM$500,31,FALSE)&")")),"NA") -> 2% (488)

Sheet Grade 8 Report
A2: Click here to return to the school and sheet selection interface
A3: ='Select School'!B3 -> 9999
A4: =TEXT(A3,"0000")&"-"&VLOOKUP(A3,SchList!$A$2:$B$504,2,FALSE) -> 9999-District
A5: Reading - Grade 8
A6: Satisfactory Progress Cut Scores at 61% or above | B6: Total # of Students | C6: % of Students Tested | D6: ='G6-8 Matrix'!C2&"["&'G6-8 Matrix'!C7&"]" -> Overall[61] | F6: ='G6-8 Matrix'!D2&"["&'G6-8 Matrix'!D7&"]" -> Vocabulary[12] | H6: ='G6-8 Matrix'!E2&"["&'G6-8 Matrix'!E7&"]" -> Reading Application[26] | J6: ='G6-8 Matrix'!F2&"["&'G6-8 Matrix'!F7&"]" -> Literary Analysis Fiction/Nonfiction[9] | L6: ='G6-8 Matrix'!G2&"["&'G6-8 Matrix'!G7&"]" -> Informational Text/ Research Process[14]
D7: Average Score | E7: % Satisfactory | F7: Average Score | G7: % Satisfactory | H7: Average Score | I7: % Satisfactory | J7: Average Score | K7: % Satisfactory | L7: Average Score | M7: % Satisfactory
A8: All students | B8: =IFERROR(VLOOKUP(TEXT($A$3,"0000"),Mem_All!$A$2:$O$500,12,FALSE),"NA") -> 27254 | C8: =IFERROR((IF(OR(B8=0,B8="",B8="NA"),"NA",((IF(VLOOKUP($A$3,'G8-RALL'!$A$6:$AM$500,3,FALSE)>=B8,"100% ("&VLOOKUP($A$3,'G8-RALL'!$A$6:$AM$500,3,FALSE)&")",(ROUND((VLOOKUP($A$3,'G8-RALL'!$A$6:$AM$500,3,FALSE)/B8*100),0))&"% ("&IF(VLOOKUP($A$3,'G8-RALL'!$A$6:$AM$500,3,FALSE)="",0,VLOOKUP($A$3,'G8-RALL'!$A$6:$AM$500,3,FALSE))&")"))))),"NA") -> 93% (25296) | D8: =IFERROR((IF($C8="NA","NA",VLOOKUP($A$3,'G8-RALL'!$A$6:$AM$500,4,FALSE))),"NA") -> 35.15432084 | E8: =IFERROR((IF($C8="NA","NA",ROUND(VLOOKUP($A$3,'G8-RALL'!$A$6:$AM$500,6,FALSE),0)&"% ("&IF(VLOOKUP($A$3,'G8-RALL'!$A$6:$AM$500,5,FALSE)="",0,VLOOKUP($A$3,'G8-RALL'!$A$6:$AM$500,5,FALSE))&")")),"NA") -> 50% (12575) | F8: =IFERROR((IF($C8="NA","NA",VLOOKUP($A$3,'G8-RALL'!$A$6:$AM$500,7,FALSE))),"NA") -> 7.233582385 | G8: NA | H8: =IFERROR((IF($C8="NA","NA",VLOOKUP($A$3,'G8-RALL'!$A$6:$AM$500,10,FALSE))),"NA") -> 14.96348435 | I8: NA | J8: =IFERROR((IF($C8="NA","NA",VLOOKUP($A$3,'G8-RALL'!$A$6:$AM$500,13,FALSE))),"NA") -> 5.099652119 | K8: =IFERROR((IF($C8="NA","NA",ROUND(VLOOKUP($A$3,'G8-RALL'!$A$6:$AM$500,15,FALSE),0)&"% ("&IF(VLOOKUP($A$3,'G8-RALL'!$A$6:$AM$500,14,FALSE)="",0,VLOOKUP($A$3,'G8-RALL'!$A$6:$AM$500,14,FALSE))&")")),"NA") -> 0% (0) | L8: =IFERROR((IF($C8="NA","NA",VLOOKUP($A$3,'G8-RALL'!$A$6:$AM$500,16,FALSE))),"NA") -> 7.852118912 | M8: NA
A9: FCAT Level 1 | B9: =IFERROR(VLOOKUP(TEXT($A$3,"0000"),MEM_RL1!$A$2:$O$500,9,FALSE),"NA") -> 5236 | C9: =IFERROR((IF(OR(B9=0,B9="",B9="NA"),"NA",((IF(VLOOKUP($A$3,'G8-RL1'!$A$6:$AM$500,3,FALSE)>=B9,"100% ("&VLOOKUP($A$3,'G8-RL1'!$A$6:$AM$500,3,FALSE)&")",(ROUND((VLOOKUP($A$3,'G8-RL1'!$A$6:$AM$500,3,FALSE)/B9*100),0))&"% ("&IF(VLOOKUP($A$3,'G8-RL1'!$A$6:$AM$500,3,FALSE)="",0,VLOOKUP($A$3,'G8-RL1'!$A$6:$AM$500,3,FALSE))&")"))))),"NA") -> 95% (4950) | D9: =IFERROR((IF($C9="NA","NA",VLOOKUP($A$3,'G8-RL1'!$A$6:$AM$500,4,FALSE))),"NA") -> 21.31145455 | E9: =IFERROR((IF($C9="NA","NA",ROUND(VLOOKUP($A$3,'G8-RL1'!$A$6:$AM$500,6,FALSE),0)&"% ("&IF(VLOOKUP($A$3,'G8-RL1'!$A$6:$AM$500,5,FALSE)="",0,VLOOKUP($A$3,'G8-RL1'!$A$6:$AM$500,5,FALSE))&")")),"NA") -> 3% (143) | F9: =IFERROR((IF($C9="NA","NA",VLOOKUP($A$3,'G8-RL1'!$A$6:$AM$500,7,FALSE))),"NA") -> 4.307636364 | G9: NA | H9: =IFERROR((IF($C9="NA","NA",VLOOKUP($A$3,'G8-RL1'!$A$6:$AM$500,10,FALSE))),"NA") -> 9.158424242 | I9: NA | J9: =IFERROR((IF($C9="NA","NA",VLOOKUP($A$3,'G8-RL1'!$A$6:$AM$500,13,FALSE))),"NA") -> 3.218686869 | K9: =IFERROR((IF($C9="NA","NA",ROUND(VLOOKUP($A$3,'G8-RL1'!$A$6:$AM$500,15,FALSE),0)&"% ("&IF(VLOOKUP($A$3,'G8-RL1'!$A$6:$AM$500,14,FALSE)="",0,VLOOKUP($A$3,'G8-RL1'!$A$6:$AM$500,14,FALSE))&")")),"NA") -> 0% (0) | L9: =IFERROR((IF($C9="NA","NA",VLOOKUP($A$3,'G8-RL1'!$A$6:$AM$500,16,FALSE))),"NA") -> 4.630989899 | M9: NA
A10: FCAT Level 2 | B10: =IFERROR(VLOOKUP(TEXT($A$3,"0000"),MEM_RL2!$A$2:$O$500,9,FALSE),"NA") -> 6455 | C10: =IFERROR((IF(OR(B10=0,B10="",B10="NA"),"NA",((IF(VLOOKUP($A$3,'G8-RL2'!$A$6:$AM$500,3,FALSE)>=B10,"100% ("&VLOOKUP($A$3,'G8-RL2'!$A$6:$AM$500,3,FALSE)&")",(ROUND((VLOOKUP($A$3,'G8-RL2'!$A$6:$AM$500,3,FALSE)/B10*100),0))&"% ("&IF(VLOOKUP($A$3,'G8-RL2'!$A$6:$AM$500,3,FALSE)="",0,VLOOKUP($A$3,'G8-RL2'!$A$6:$AM$500,3,FALSE))&")"))))),"NA") -> 95% (6115) | D10: =IFERROR((IF($C10="NA","NA",VLOOKUP($A$3,'G8-RL2'!$A$6:$AM$500,4,FALSE))),"NA") -> 30.29582993 | E10: =IFERROR((IF($C10="NA","NA",ROUND(VLOOKUP($A$3,'G8-RL2'!$A$6:$AM$500,6,FALSE),0)&"% ("&IF(VLOOKUP($A$3,'G8-RL2'!$A$6:$AM$500,5,FALSE)="",0,VLOOKUP($A$3,'G8-RL2'!$A$6:$AM$500,5,FALSE))&")")),"NA") -> 26% (1573) | F10: =IFERROR((IF($C10="NA","NA",VLOOKUP($A$3,'G8-RL2'!$A$6:$AM$500,7,FALSE))),"NA") -> 6.338740801 | G10: NA | H10: =IFERROR((IF($C10="NA","NA",VLOOKUP($A$3,'G8-RL2'!$A$6:$AM$500,10,FALSE))),"NA") -> 12.88686836 | I10: NA | J10: =IFERROR((IF($C10="NA","NA",VLOOKUP($A$3,'G8-RL2'!$A$6:$AM$500,13,FALSE))),"NA") -> 4.404399019 | K10: =IFERROR((IF($C10="NA","NA",ROUND(VLOOKUP($A$3,'G8-RL2'!$A$6:$AM$500,15,FALSE),0)&"% ("&IF(VLOOKUP($A$3,'G8-RL2'!$A$6:$AM$500,14,FALSE)="",0,VLOOKUP($A$3,'G8-RL2'!$A$6:$AM$500,14,FALSE))&")")),"NA") -> 0% (0) | L10: =IFERROR((IF($C10="NA","NA",VLOOKUP($A$3,'G8-RL2'!$A$6:$AM$500,16,FALSE))),"NA") -> 6.657710548 | M10: NA
A11: FCAT Level 3 | B11: =IFERROR(VLOOKUP(TEXT($A$3,"0000"),MEM_RL3!$A$2:$O$500,9,FALSE),"NA") -> 7364 | C11: =IFERROR((IF(OR(B11=0,B11="",B11="NA"),"NA",((IF(VLOOKUP($A$3,'G8-RL3'!$A$6:$AM$500,3,FALSE)>=B11,"100% ("&VLOOKUP($A$3,'G8-RL3'!$A$6:$AM$500,3,FALSE)&")",(ROUND((VLOOKUP($A$3,'G8-RL3'!$A$6:$AM$500,3,FALSE)/B11*100),0))&"% ("&IF(VLOOKUP($A$3,'G8-RL3'!$A$6:$AM$500,3,FALSE)="",0,VLOOKUP($A$3,'G8-RL3'!$A$6:$AM$500,3,FALSE))&")"))))),"NA") -> 95% (6976) | D11: =IFERROR((IF($C11="NA","NA",VLOOKUP($A$3,'G8-RL3'!$A$6:$AM$500,4,FALSE))),"NA") -> 38.66654243 | E11: =IFERROR((IF($C11="NA","NA",ROUND(VLOOKUP($A$3,'G8-RL3'!$A$6:$AM$500,6,FALSE),0)&"% ("&IF(VLOOKUP($A$3,'G8-RL3'!$A$6:$AM$500,5,FALSE)="",0,VLOOKUP($A$3,'G8-RL3'!$A$6:$AM$500,5,FALSE))&")")),"NA") -> 66% (4616) | F11: =IFERROR((IF($C11="NA","NA",VLOOKUP($A$3,'G8-RL3'!$A$6:$AM$500,7,FALSE))),"NA") -> 8.023781537 | G11: NA | H11: =IFERROR((IF($C11="NA","NA",VLOOKUP($A$3,'G8-RL3'!$A$6:$AM$500,10,FALSE))),"NA") -> 16.41066514 | I11: NA | J11: =IFERROR((IF($C11="NA","NA",VLOOKUP($A$3,'G8-RL3'!$A$6:$AM$500,13,FALSE))),"NA") -> 5.541499427 | K11: =IFERROR((IF($C11="NA","NA",ROUND(VLOOKUP($A$3,'G8-RL3'!$A$6:$AM$500,15,FALSE),0)&"% ("&IF(VLOOKUP($A$3,'G8-RL3'!$A$6:$AM$500,14,FALSE)="",0,VLOOKUP($A$3,'G8-RL3'!$A$6:$AM$500,14,FALSE))&")")),"NA") -> 0% (0) | L11: =IFERROR((IF($C11="NA","NA",VLOOKUP($A$3,'G8-RL3'!$A$6:$AM$500,16,FALSE))),"NA") -> 8.699698968 | M11: NA
A12: FCAT Level 4 | B12: =IFERROR(VLOOKUP(TEXT($A$3,"0000"),MEM_RL4!$A$2:$O$500,9,FALSE),"NA") -> 4451 | C12: =IFERROR((IF(OR(B12=0,B12="",B12="NA"),"NA",((IF(VLOOKUP($A$3,'G8-RL4'!$A$6:$AM$500,3,FALSE)>=B12,"100% ("&VLOOKUP($A$3,'G8-RL4'!$A$6:$AM$500,3,FALSE)&")",(ROUND((VLOOKUP($A$3,'G8-RL4'!$A$6:$AM$500,3,FALSE)/B12*100),0))&"% ("&IF(VLOOKUP($A$3,'G8-RL4'!$A$6:$AM$500,3,FALSE)="",0,VLOOKUP($A$3,'G8-RL4'!$A$6:$AM$500,3,FALSE))&")"))))),"NA") -> 96% (4267) | D12: =IFERROR((IF($C12="NA","NA",VLOOKUP($A$3,'G8-RL4'!$A$6:$AM$500,4,FALSE))),"NA") -> 46.19041481 | E12: =IFERROR((IF($C12="NA","NA",ROUND(VLOOKUP($A$3,'G8-RL4'!$A$6:$AM$500,6,FALSE),0)&"% ("&IF(VLOOKUP($A$3,'G8-RL4'!$A$6:$AM$500,5,FALSE)="",0,VLOOKUP($A$3,'G8-RL4'!$A$6:$AM$500,5,FALSE))&")")),"NA") -> 92% (3932) | F12: =IFERROR((IF($C12="NA","NA",VLOOKUP($A$3,'G8-RL4'!$A$6:$AM$500,7,FALSE))),"NA") -> 9.429692993 | G12: NA | H12: =IFERROR((IF($C12="NA","NA",VLOOKUP($A$3,'G8-RL4'!$A$6:$AM$500,10,FALSE))),"NA") -> 19.61387392 | I12: NA | J12: =IFERROR((IF($C12="NA","NA",VLOOKUP($A$3,'G8-RL4'!$A$6:$AM$500,13,FALSE))),"NA") -> 6.650035154 | K12: =IFERROR((IF($C12="NA","NA",ROUND(VLOOKUP($A$3,'G8-RL4'!$A$6:$AM$500,15,FALSE),0)&"% ("&IF(VLOOKUP($A$3,'G8-RL4'!$A$6:$AM$500,14,FALSE)="",0,VLOOKUP($A$3,'G8-RL4'!$A$6:$AM$500,14,FALSE))&")")),"NA") -> 0% (0) | L12: =IFERROR((IF($C12="NA","NA",VLOOKUP($A$3,'G8-RL4'!$A$6:$AM$500,16,FALSE))),"NA") -> 10.50175768 | M12: NA
A13: FCAT Level 5 | B13: =IFERROR(VLOOKUP(TEXT($A$3,"0000"),MEM_RL5!$A$2:$O$500,8,FALSE),"NA") -> 2285 | C13: =IFERROR((IF(OR(B13=0,B13="",B13="NA"),"NA",((IF(VLOOKUP($A$3,'G8-RL5'!$A$6:$AM$500,3,FALSE)>=B13,"100% ("&VLOOKUP($A$3,'G8-RL5'!$A$6:$AM$500,3,FALSE)&")",(ROUND((VLOOKUP($A$3,'G8-RL5'!$A$6:$AM$500,3,FALSE)/B13*100),0))&"% ("&IF(VLOOKUP($A$3,'G8-RL5'!$A$6:$AM$500,3,FALSE)="",0,VLOOKUP($A$3,'G8-RL5'!$A$6:$AM$500,3,FALSE))&")"))))),"NA") -> 94% (2146) | D13: =IFERROR((IF($C13="NA","NA",VLOOKUP($A$3,'G8-RL5'!$A$6:$AM$500,4,FALSE))),"NA") -> 50.7860205 | E13: =IFERROR((IF($C13="NA","NA",ROUND(VLOOKUP($A$3,'G8-RL5'!$A$6:$AM$500,6,FALSE),0)&"% ("&IF(VLOOKUP($A$3,'G8-RL5'!$A$6:$AM$500,5,FALSE)="",0,VLOOKUP($A$3,'G8-RL5'!$A$6:$AM$500,5,FALSE))&")")),"NA") -> 98% (2100) | F13: =IFERROR((IF($C13="NA","NA",VLOOKUP($A$3,'G8-RL5'!$A$6:$AM$500,7,FALSE))),"NA") -> 10.27306617 | G13: NA | H13: =IFERROR((IF($C13="NA","NA",VLOOKUP($A$3,'G8-RL5'!$A$6:$AM$500,10,FALSE))),"NA") -> 21.62520969 | I13: NA | J13: =IFERROR((IF($C13="NA","NA",VLOOKUP($A$3,'G8-RL5'!$A$6:$AM$500,13,FALSE))),"NA") -> 7.415191053 | K13: =IFERROR((IF($C13="NA","NA",ROUND(VLOOKUP($A$3,'G8-RL5'!$A$6:$AM$500,15,FALSE),0)&"% ("&IF(VLOOKUP($A$3,'G8-RL5'!$A$6:$AM$500,14,FALSE)="",0,VLOOKUP($A$3,'G8-RL5'!$A$6:$AM$500,14,FALSE))&")")),"NA") -> 0% (0) | L13: =IFERROR((IF($C13="NA","NA",VLOOKUP($A$3,'G8-RL5'!$A$6:$AM$500,16,FALSE))),"NA") -> 11.47241379 | M13: NA
A14: White | B14: =IFERROR(VLOOKUP(TEXT($A$3,"0000"),MEM_W!$A$2:$O$500,12,FALSE),"NA") -> 2276 | C14: =IFERROR((IF(OR(B14=0,B14="",B14="NA"),"NA",((IF(VLOOKUP($A$3,'G8-RW'!$A$6:$AM$500,3,FALSE)>=B14,"100% ("&VLOOKUP($A$3,'G8-RW'!$A$6:$AM$500,3,FALSE)&")",(ROUND((VLOOKUP($A$3,'G8-RW'!$A$6:$AM$500,3,FALSE)/B14*100),0))&"% ("&IF(VLOOKUP($A$3,'G8-RW'!$A$6:$AM$500,3,FALSE)="",0,VLOOKUP($A$3,'G8-RW'!$A$6:$AM$500,3,FALSE))&")"))))),"NA") -> 89% (2036) | D14: =IFERROR((IF($C14="NA","NA",VLOOKUP($A$3,'G8-RW'!$A$6:$AM$500,4,FALSE))),"NA") -> 41.35275049 | E14: =IFERROR((IF($C14="NA","NA",ROUND(VLOOKUP($A$3,'G8-RW'!$A$6:$AM$500,6,FALSE),0)&"% ("&IF(VLOOKUP($A$3,'G8-RW'!$A$6:$AM$500,5,FALSE)="",0,VLOOKUP($A$3,'G8-RW'!$A$6:$AM$500,5,FALSE))&")")),"NA") -> 71% (1442) | F14: =IFERROR((IF($C14="NA","NA",VLOOKUP($A$3,'G8-RW'!$A$6:$AM$500,7,FALSE))),"NA") -> 8.59891945 | G14: NA | H14: =IFERROR((IF($C14="NA","NA",VLOOKUP($A$3,'G8-RW'!$A$6:$AM$500,10,FALSE))),"NA") -> 17.59238703 | I14: NA | J14: =IFERROR((IF($C14="NA","NA",VLOOKUP($A$3,'G8-RW'!$A$6:$AM$500,13,FALSE))),"NA") -> 5.948133595 | K14: =IFERROR((IF($C14="NA","NA",ROUND(VLOOKUP($A$3,'G8-RW'!$A$6:$AM$500,15,FALSE),0)&"% ("&IF(VLOOKUP($A$3,'G8-RW'!$A$6:$AM$500,14,FALSE)="",0,VLOOKUP($A$3,'G8-RW'!$A$6:$AM$500,14,FALSE))&")")),"NA") -> 0% (0) | L14: =IFERROR((IF($C14="NA","NA",VLOOKUP($A$3,'G8-RW'!$A$6:$AM$500,16,FALSE))),"NA") -> 9.218811395 | M14: NA
A15: Black | B15: =IFERROR(VLOOKUP(TEXT($A$3,"0000"),MEM_B!$A$2:$O$500,12,FALSE),"NA") -> 6252 | C15: =IFERROR((IF(OR(B15=0,B15="",B15="NA"),"NA",((IF(VLOOKUP($A$3,'G8-RB'!$A$6:$AM$500,3,FALSE)>=B15,"100% ("&VLOOKUP($A$3,'G8-RB'!$A$6:$AM$500,3,FALSE)&")",(ROUND((VLOOKUP($A$3,'G8-RB'!$A$6:$AM$500,3,FALSE)/B15*100),0))&"% ("&IF(VLOOKUP($A$3,'G8-RB'!$A$6:$AM$500,3,FALSE)="",0,VLOOKUP($A$3,'G8-RB'!$A$6:$AM$500,3,FALSE))&")"))))),"NA") -> 93% (5844) | D15: =IFERROR((IF($C15="NA","NA",VLOOKUP($A$3,'G8-RB'!$A$6:$AM$500,4,FALSE))),"NA") -> 31.79360027 | E15: =IFERROR((IF($C15="NA","NA",ROUND(VLOOKUP($A$3,'G8-RB'!$A$6:$AM$500,6,FALSE),0)&"% ("&IF(VLOOKUP($A$3,'G8-RB'!$A$6:$AM$500,5,FALSE)="",0,VLOOKUP($A$3,'G8-RB'!$A$6:$AM$500,5,FALSE))&")")),"NA") -> 37% (2189) | F15: =IFERROR((IF($C15="NA","NA",VLOOKUP($A$3,'G8-RB'!$A$6:$AM$500,7,FALSE))),"NA") -> 6.508025325 | G15: NA | H15: =IFERROR((IF($C15="NA","NA",VLOOKUP($A$3,'G8-RB'!$A$6:$AM$500,10,FALSE))),"NA") -> 13.48033881 | I15: NA | J15: =IFERROR((IF($C15="NA","NA",VLOOKUP($A$3,'G8-RB'!$A$6:$AM$500,13,FALSE))),"NA") -> 4.705082136 | K15: =IFERROR((IF($C15="NA","NA",ROUND(VLOOKUP($A$3,'G8-RB'!$A$6:$AM$500,15,FALSE),0)&"% ("&IF(VLOOKUP($A$3,'G8-RB'!$A$6:$AM$500,14,FALSE)="",0,VLOOKUP($A$3,'G8-RB'!$A$6:$AM$500,14,FALSE))&")")),"NA") -> 0% (0) | L15: =IFERROR((IF($C15="NA","NA",VLOOKUP($A$3,'G8-RB'!$A$6:$AM$500,16,FALSE))),"NA") -> 7.111841205 | M15: NA
A16: Hispanic | B16: =IFERROR(VLOOKUP(TEXT($A$3,"0000"),MEM_H!$A$2:$O$500,12,FALSE),"NA") -> 18334 | C16: =IFERROR((IF(OR(B16=0,B16="",B16="NA"),"NA",((IF(VLOOKUP($A$3,'G8-RH'!$A$6:$AM$500,3,FALSE)>=B16,"100% ("&VLOOKUP($A$3,'G8-RH'!$A$6:$AM$500,3,FALSE)&")",(ROUND((VLOOKUP($A$3,'G8-RH'!$A$6:$AM$500,3,FALSE)/B16*100),0))&"% ("&IF(VLOOKUP($A$3,'G8-RH'!$A$6:$AM$500,3,FALSE)="",0,VLOOKUP($A$3,'G8-RH'!$A$6:$AM$500,3,FALSE))&")"))))),"NA") -> 93% (17046) | D16: =IFERROR((IF($C16="NA","NA",VLOOKUP($A$3,'G8-RH'!$A$6:$AM$500,4,FALSE))),"NA") -> 35.38491728 | E16: =IFERROR((IF($C16="NA","NA",ROUND(VLOOKUP($A$3,'G8-RH'!$A$6:$AM$500,6,FALSE),0)&"% ("&IF(VLOOKUP($A$3,'G8-RH'!$A$6:$AM$500,5,FALSE)="",0,VLOOKUP($A$3,'G8-RH'!$A$6:$AM$500,5,FALSE))&")")),"NA") -> 51% (8662) | F16: =IFERROR((IF($C16="NA","NA",VLOOKUP($A$3,'G8-RH'!$A$6:$AM$500,7,FALSE))),"NA") -> 7.284541828 | G16: NA | H16: =IFERROR((IF($C16="NA","NA",VLOOKUP($A$3,'G8-RH'!$A$6:$AM$500,10,FALSE))),"NA") -> 15.09639212 | I16: NA | J16: =IFERROR((IF($C16="NA","NA",VLOOKUP($A$3,'G8-RH'!$A$6:$AM$500,13,FALSE))),"NA") -> 5.108277602 | K16: =IFERROR((IF($C16="NA","NA",ROUND(VLOOKUP($A$3,'G8-RH'!$A$6:$AM$500,15,FALSE),0)&"% ("&IF(VLOOKUP($A$3,'G8-RH'!$A$6:$AM$500,14,FALSE)="",0,VLOOKUP($A$3,'G8-RH'!$A$6:$AM$500,14,FALSE))&")")),"NA") -> 0% (0) | L16: =IFERROR((IF($C16="NA","NA",VLOOKUP($A$3,'G8-RH'!$A$6:$AM$500,16,FALSE))),"NA") -> 7.905403027 | M16: NA
A17: Asian | B17: =IFERROR(VLOOKUP(TEXT($A$3,"0000"),MEM_A!$A$2:$O$500,12,FALSE),"NA") -> 300 | C17: =IFERROR((IF(OR(B17=0,B17="",B17="NA"),"NA",((IF(VLOOKUP($A$3,'G8-RA'!$A$6:$AM$500,3,FALSE)>=B17,"100% ("&VLOOKUP($A$3,'G8-RA'!$A$6:$AM$500,3,FALSE)&")",(ROUND((VLOOKUP($A$3,'G8-RA'!$A$6:$AM$500,3,FALSE)/B17*100),0))&"% ("&IF(VLOOKUP($A$3,'G8-RA'!$A$6:$AM$500,3,FALSE)="",0,VLOOKUP($A$3,'G8-RA'!$A$6:$AM$500,3,FALSE))&")"))))),"NA") -> 93% (280) | D17: =IFERROR((IF($C17="NA","NA",VLOOKUP($A$3,'G8-RA'!$A$6:$AM$500,4,FALSE))),"NA") -> 43.56571429 | E17: =IFERROR((IF($C17="NA","NA",ROUND(VLOOKUP($A$3,'G8-RA'!$A$6:$AM$500,6,FALSE),0)&"% ("&IF(VLOOKUP($A$3,'G8-RA'!$A$6:$AM$500,5,FALSE)="",0,VLOOKUP($A$3,'G8-RA'!$A$6:$AM$500,5,FALSE))&")")),"NA") -> 79% (221) | F17: =IFERROR((IF($C17="NA","NA",VLOOKUP($A$3,'G8-RA'!$A$6:$AM$500,7,FALSE))),"NA") -> 8.978571429 | G17: NA | H17: =IFERROR((IF($C17="NA","NA",VLOOKUP($A$3,'G8-RA'!$A$6:$AM$500,10,FALSE))),"NA") -> 18.33035714 | I17: NA | J17: =IFERROR((IF($C17="NA","NA",VLOOKUP($A$3,'G8-RA'!$A$6:$AM$500,13,FALSE))),"NA") -> 6.344642857 | K17: =IFERROR((IF($C17="NA","NA",ROUND(VLOOKUP($A$3,'G8-RA'!$A$6:$AM$500,15,FALSE),0)&"% ("&IF(VLOOKUP($A$3,'G8-RA'!$A$6:$AM$500,14,FALSE)="",0,VLOOKUP($A$3,'G8-RA'!$A$6:$AM$500,14,FALSE))&")")),"NA") -> 0% (0) | L17: =IFERROR((IF($C17="NA","NA",VLOOKUP($A$3,'G8-RA'!$A$6:$AM$500,16,FALSE))),"NA") -> 9.918928571 | M17: NA
A18: Am. Indian | B18: =IFERROR(VLOOKUP(TEXT($A$3,"0000"),MEM_I!$A$2:$O$500,12,FALSE),"NA") -> 22 | C18: =IFERROR((IF(OR(B18=0,B18="",B18="NA"),"NA",((IF(VLOOKUP($A$3,'G8-RI'!$A$6:$AM$500,3,FALSE)>=B18,"100% ("&VLOOKUP($A$3,'G8-RI'!$A$6:$AM$500,3,FALSE)&")",(ROUND((VLOOKUP($A$3,'G8-RI'!$A$6:$AM$500,3,FALSE)/B18*100),0))&"% ("&IF(VLOOKUP($A$3,'G8-RI'!$A$6:$AM$500,3,FALSE)="",0,VLOOKUP($A$3,'G8-RI'!$A$6:$AM$500,3,FALSE))&")"))))),"NA") -> 86% (19) | D18: =IFERROR((IF($C18="NA","NA",VLOOKUP($A$3,'G8-RI'!$A$6:$AM$500,4,FALSE))),"NA") -> 42.26315789 | E18: =IFERROR((IF($C18="NA","NA",ROUND(VLOOKUP($A$3,'G8-RI'!$A$6:$AM$500,6,FALSE),0)&"% ("&IF(VLOOKUP($A$3,'G8-RI'!$A$6:$AM$500,5,FALSE)="",0,VLOOKUP($A$3,'G8-RI'!$A$6:$AM$500,5,FALSE))&")")),"NA") -> 58% (11) | F18: =IFERROR((IF($C18="NA","NA",VLOOKUP($A$3,'G8-RI'!$A$6:$AM$500,7,FALSE))),"NA") -> 9.047368421 | G18: NA | H18: =IFERROR((IF($C18="NA","NA",VLOOKUP($A$3,'G8-RI'!$A$6:$AM$500,10,FALSE))),"NA") -> 17.78421053 | I18: NA | J18: =IFERROR((IF($C18="NA","NA",VLOOKUP($A$3,'G8-RI'!$A$6:$AM$500,13,FALSE))),"NA") -> 6.531578947 | K18: =IFERROR((IF($C18="NA","NA",ROUND(VLOOKUP($A$3,'G8-RI'!$A$6:$AM$500,15,FALSE),0)&"% ("&IF(VLOOKUP($A$3,'G8-RI'!$A$6:$AM$500,14,FALSE)="",0,VLOOKUP($A$3,'G8-RI'!$A$6:$AM$500,14,FALSE))&")")),"NA") -> 0% (0) | L18: =IFERROR((IF($C18="NA","NA",VLOOKUP($A$3,'G8-RI'!$A$6:$AM$500,16,FALSE))),"NA") -> 8.9 | M18: NA
A19: ED | B19: =IFERROR(VLOOKUP(TEXT($A$3,"0000"),MEM_ED!$A$2:$O$500,12,FALSE),"NA") -> 20441 | C19: =IFERROR((IF(OR(B19=0,B19="",B19="NA"),"NA",((IF(VLOOKUP($A$3,'G8-RED'!$A$6:$AM$500,3,FALSE)>=B19,"100% ("&VLOOKUP($A$3,'G8-RED'!$A$6:$AM$500,3,FALSE)&")",(ROUND((VLOOKUP($A$3,'G8-RED'!$A$6:$AM$500,3,FALSE)/B19*100),0))&"% ("&IF(VLOOKUP($A$3,'G8-RED'!$A$6:$AM$500,3,FALSE)="",0,VLOOKUP($A$3,'G8-RED'!$A$6:$AM$500,3,FALSE))&")"))))),"NA") -> 99% (20294) | D19: =IFERROR((IF($C19="NA","NA",VLOOKUP($A$3,'G8-RED'!$A$6:$AM$500,4,FALSE))),"NA") -> 33.57249926 | E19: =IFERROR((IF($C19="NA","NA",ROUND(VLOOKUP($A$3,'G8-RED'!$A$6:$AM$500,6,FALSE),0)&"% ("&IF(VLOOKUP($A$3,'G8-RED'!$A$6:$AM$500,5,FALSE)="",0,VLOOKUP($A$3,'G8-RED'!$A$6:$AM$500,5,FALSE))&")")),"NA") -> 44% (8991) | F19: =IFERROR((IF($C19="NA","NA",VLOOKUP($A$3,'G8-RED'!$A$6:$AM$500,7,FALSE))),"NA") -> 6.884665418 | G19: NA | H19: =IFERROR((IF($C19="NA","NA",VLOOKUP($A$3,'G8-RED'!$A$6:$AM$500,10,FALSE))),"NA") -> 14.3023061 | I19: NA | J19: =IFERROR((IF($C19="NA","NA",VLOOKUP($A$3,'G8-RED'!$A$6:$AM$500,13,FALSE))),"NA") -> 4.883177294 | K19: =IFERROR((IF($C19="NA","NA",ROUND(VLOOKUP($A$3,'G8-RED'!$A$6:$AM$500,15,FALSE),0)&"% ("&IF(VLOOKUP($A$3,'G8-RED'!$A$6:$AM$500,14,FALSE)="",0,VLOOKUP($A$3,'G8-RED'!$A$6:$AM$500,14,FALSE))&")")),"NA") -> 0% (0) | L19: =IFERROR((IF($C19="NA","NA",VLOOKUP($A$3,'G8-RED'!$A$6:$AM$500,16,FALSE))),"NA") -> 7.504508722 | M19: NA
A20: ELL | B20: =IFERROR(VLOOKUP(TEXT($A$3,"0000"),MEM_ELL!$A$2:$O$500,12,FALSE),"NA") -> 3638 | C20: =IFERROR((IF(OR(B20=0,B20="",B20="NA"),"NA",((IF(VLOOKUP($A$3,'G8-RELL'!$A$6:$AM$500,3,FALSE)>=B20,"100% ("&VLOOKUP($A$3,'G8-RELL'!$A$6:$AM$500,3,FALSE)&")",(ROUND((VLOOKUP($A$3,'G8-RELL'!$A$6:$AM$500,3,FALSE)/B20*100),0))&"% ("&IF(VLOOKUP($A$3,'G8-RELL'!$A$6:$AM$500,3,FALSE)="",0,VLOOKUP($A$3,'G8-RELL'!$A$6:$AM$500,3,FALSE))&")"))))),"NA") -> 97% (3528) | D20: =IFERROR((IF($C20="NA","NA",VLOOKUP($A$3,'G8-RELL'!$A$6:$AM$500,4,FALSE))),"NA") -> 24.8494898 | E20: =IFERROR((IF($C20="NA","NA",ROUND(VLOOKUP($A$3,'G8-RELL'!$A$6:$AM$500,6,FALSE),0)&"% ("&IF(VLOOKUP($A$3,'G8-RELL'!$A$6:$AM$500,5,FALSE)="",0,VLOOKUP($A$3,'G8-RELL'!$A$6:$AM$500,5,FALSE))&")")),"NA") -> 16% (558) | F20: =IFERROR((IF($C20="NA","NA",VLOOKUP($A$3,'G8-RELL'!$A$6:$AM$500,7,FALSE))),"NA") -> 4.950680272 | G20: NA | H20: =IFERROR((IF($C20="NA","NA",VLOOKUP($A$3,'G8-RELL'!$A$6:$AM$500,10,FALSE))),"NA") -> 10.88066893 | I20: NA | J20: =IFERROR((IF($C20="NA","NA",VLOOKUP($A$3,'G8-RELL'!$A$6:$AM$500,13,FALSE))),"NA") -> 3.552721088 | K20: =IFERROR((IF($C20="NA","NA",ROUND(VLOOKUP($A$3,'G8-RELL'!$A$6:$AM$500,15,FALSE),0)&"% ("&IF(VLOOKUP($A$3,'G8-RELL'!$A$6:$AM$500,14,FALSE)="",0,VLOOKUP($A$3,'G8-RELL'!$A$6:$AM$500,14,FALSE))&")")),"NA") -> 0% (0) | L20: =IFERROR((IF($C20="NA","NA",VLOOKUP($A$3,'G8-RELL'!$A$6:$AM$500,16,FALSE))),"NA") -> 5.465419501 | M20: NA
A21: SWD | B21: =IFERROR(VLOOKUP(TEXT($A$3,"0000"),MEM_SWD!$A$2:$O$500,12,FALSE),"NA") -> 2700 | C21: =IFERROR((IF(OR(B21=0,B21="",B21="NA"),"NA",((IF(VLOOKUP($A$3,'G8-RSWD'!$A$6:$AM$500,3,FALSE)>=B21,"100% ("&VLOOKUP($A$3,'G8-RSWD'!$A$6:$AM$500,3,FALSE)&")",(ROUND((VLOOKUP($A$3,'G8-RSWD'!$A$6:$AM$500,3,FALSE)/B21*100),0))&"% ("&IF(VLOOKUP($A$3,'G8-RSWD'!$A$6:$AM$500,3,FALSE)="",0,VLOOKUP($A$3,'G8-RSWD'!$A$6:$AM$500,3,FALSE))&")"))))),"NA") -> 91% (2445) | D21: =IFERROR((IF($C21="NA","NA",VLOOKUP($A$3,'G8-RSWD'!$A$6:$AM$500,4,FALSE))),"NA") -> 26.2402454 | E21: =IFERROR((IF($C21="NA","NA",ROUND(VLOOKUP($A$3,'G8-RSWD'!$A$6:$AM$500,6,FALSE),0)&"% ("&IF(VLOOKUP($A$3,'G8-RSWD'!$A$6:$AM$500,5,FALSE)="",0,VLOOKUP($A$3,'G8-RSWD'!$A$6:$AM$500,5,FALSE))&")")),"NA") -> 21% (510) | F21: =IFERROR((IF($C21="NA","NA",VLOOKUP($A$3,'G8-RSWD'!$A$6:$AM$500,7,FALSE))),"NA") -> 5.23402863 | G21: NA | H21: =IFERROR((IF($C21="NA","NA",VLOOKUP($A$3,'G8-RSWD'!$A$6:$AM$500,10,FALSE))),"NA") -> 11.33754601 | I21: NA | J21: =IFERROR((IF($C21="NA","NA",VLOOKUP($A$3,'G8-RSWD'!$A$6:$AM$500,13,FALSE))),"NA") -> 3.898568507 | K21: =IFERROR((IF($C21="NA","NA",ROUND(VLOOKUP($A$3,'G8-RSWD'!$A$6:$AM$500,15,FALSE),0)&"% ("&IF(VLOOKUP($A$3,'G8-RSWD'!$A$6:$AM$500,14,FALSE)="",0,VLOOKUP($A$3,'G8-RSWD'!$A$6:$AM$500,14,FALSE))&")")),"NA") -> 0% (0) | L21: =IFERROR((IF($C21="NA","NA",VLOOKUP($A$3,'G8-RSWD'!$A$6:$AM$500,16,FALSE))),"NA") -> 5.779263804 | M21: NA
A22: Math - Grade 8
A23: Satisfactory Progress Cut Scores at 51% or above | B23: Total # of Students | C23: % of Students Tested | D23: ='G6-8 Matrix'!C16&" ["&'G6-8 Matrix'!C17&"]" -> Overall [39] | F23: ='G6-8 Matrix'!D16&" ["&'G6-8 Matrix'!D17&"]" -> Number: Operations, Problems, and Stat. [27] | H23: ='G6-8 Matrix'!E16&" ["&'G6-8 Matrix'!E17&"]" -> Expressions, Equations, and Functions [12] | J23: ='G6-8 Matrix'!F16&" ["&'G6-8 Matrix'!F17&"]" -> Geometry and Measurement [0]
D24: Average Score | E24: % Satisfactory | F24: Average Score | G24: % Satisfactory | H24: Average Score | I24: % Satisfactory | J24: Average Score | K24: % Satisfactory
A25: All students | B25: =IFERROR(VLOOKUP(TEXT($A$3,"0000"),Mem_All!$A$2:$O$500,12,FALSE),0)-IFERROR(VLOOKUP(TEXT($A$3,"0000"),'ALG Gr08'!$A$3:$Q$500,3,FALSE),0)-IFERROR(VLOOKUP(TEXT($A$3,"0000"),'Geo G08'!$A$3:$Q$500,3,FALSE),0) -> 16758 | C25: =IFERROR((IF(OR(B25=0,B25="",B25="NA"),"NA",((IF(VLOOKUP($A$3,'G8-MALL'!$A$6:$AG$500,3,FALSE)>=B25,"100% ("&VLOOKUP($A$3,'G8-MALL'!$A$6:$AG$500,3,FALSE)&")",(ROUND((VLOOKUP($A$3,'G8-MALL'!$A$6:$AG$500,3,FALSE)/B25*100),0))&"% ("&IF(VLOOKUP($A$3,'G8-MALL'!$A$6:$AG$500,3,FALSE)="",0,VLOOKUP($A$3,'G8-MALL'!$A$6:$AG$500,3,FALSE))&")"))))),"NA") -> 99% (16608) | D25: =IFERROR((IF($C25="NA","NA",VLOOKUP($A$3,'G8-MALL'!$A$6:$AG$500,4,FALSE))),"NA") -> 18.1728685 | E25: =IFERROR((IF($C25="NA","NA",ROUND(VLOOKUP($A$3,'G8-MALL'!$A$6:$AG$500,6,FALSE),0)&"% ("&IF(VLOOKUP($A$3,'G8-MALL'!$A$6:$AG$500,5,FALSE)="",0,VLOOKUP($A$3,'G8-MALL'!$A$6:$AG$500,5,FALSE))&")")),"NA") -> 39% (6558) | F25: =IFERROR((IF($C25="NA","NA",VLOOKUP($A$3,'G8-MALL'!$A$6:$AG$500,7,FALSE))),"NA") -> 12.89411127 | G25: NA | H25: =IFERROR((IF($C25="NA","NA",VLOOKUP($A$3,'G8-MALL'!$A$6:$AG$500,10,FALSE))),"NA") -> 5.287283237 | I25: NA | J25: NT | K25: NT
A26: FCAT Level 1 | B26: =IFERROR(VLOOKUP(TEXT($A$3,"0000"),MEM_ML1!$A$2:$O$500,9,FALSE),0)-IFERROR(VLOOKUP(TEXT($A$3,"0000"),'ALG Gr08'!$A$3:$Q$500,4,FALSE),0)-IFERROR(VLOOKUP(TEXT($A$3,"0000"),'Geo G08'!$A$3:$Q$500,4,FALSE),0) -> 5933 | C26: =IFERROR((IF(OR(B26=0,B26="",B26="NA"),"NA",((IF(VLOOKUP($A$3,'G8-ML1'!$A$6:$AG$500,3,FALSE)>=B26,"100% ("&VLOOKUP($A$3,'G8-ML1'!$A$6:$AG$500,3,FALSE)&")",(ROUND((VLOOKUP($A$3,'G8-ML1'!$A$6:$AG$500,3,FALSE)/B26*100),0))&"% ("&IF(VLOOKUP($A$3,'G8-ML1'!$A$6:$AG$500,3,FALSE)="",0,VLOOKUP($A$3,'G8-ML1'!$A$6:$AG$500,3,FALSE))&")"))))),"NA") -> 95% (5662) | D26: =IFERROR((IF($C26="NA","NA",VLOOKUP($A$3,'G8-ML1'!$A$6:$AG$500,4,FALSE))),"NA") -> 14.16418227 | E26: =IFERROR((IF($C26="NA","NA",ROUND(VLOOKUP($A$3,'G8-ML1'!$A$6:$AG$500,6,FALSE),0)&"% ("&IF(VLOOKUP($A$3,'G8-ML1'!$A$6:$AG$500,5,FALSE)="",0,VLOOKUP($A$3,'G8-ML1'!$A$6:$AG$500,5,FALSE))&")")),"NA") -> 14% (773) | F26: =IFERROR((IF($C26="NA","NA",VLOOKUP($A$3,'G8-ML1'!$A$6:$AG$500,7,FALSE))),"NA") -> 10.1033557 | G26: NA | H26: =IFERROR((IF($C26="NA","NA",VLOOKUP($A$3,'G8-ML1'!$A$6:$AG$500,10,FALSE))),"NA") -> 4.061656658 | I26: NA | J26: NT | K26: NT
A27: FCAT Level 2 | B27: =IFERROR(VLOOKUP(TEXT($A$3,"0000"),MEM_ML2!$A$2:$O$500,9,FALSE),0)-IFERROR(VLOOKUP(TEXT($A$3,"0000"),'ALG Gr08'!$A$3:$Q$500,5,FALSE),0)-IFERROR(VLOOKUP(TEXT($A$3,"0000"),'Geo G08'!$A$3:$Q$500,5,FALSE),0) -> 5824 | C27: =IFERROR((IF(OR(B27=0,B27="",B27="NA"),"NA",((IF(VLOOKUP($A$3,'G8-ML2'!$A$6:$AG$500,3,FALSE)>=B27,"100% ("&VLOOKUP($A$3,'G8-ML2'!$A$6:$AG$500,3,FALSE)&")",(ROUND((VLOOKUP($A$3,'G8-ML2'!$A$6:$AG$500,3,FALSE)/B27*100),0))&"% ("&IF(VLOOKUP($A$3,'G8-ML2'!$A$6:$AG$500,3,FALSE)="",0,VLOOKUP($A$3,'G8-ML2'!$A$6:$AG$500,3,FALSE))&")"))))),"NA") -> 96% (5592) | D27: =IFERROR((IF($C27="NA","NA",VLOOKUP($A$3,'G8-ML2'!$A$6:$AG$500,4,FALSE))),"NA") -> 18.21872318 | E27: =IFERROR((IF($C27="NA","NA",ROUND(VLOOKUP($A$3,'G8-ML2'!$A$6:$AG$500,6,FALSE),0)&"% ("&IF(VLOOKUP($A$3,'G8-ML2'!$A$6:$AG$500,5,FALSE)="",0,VLOOKUP($A$3,'G8-ML2'!$A$6:$AG$500,5,FALSE))&")")),"NA") -> 39% (2195) | F27: =IFERROR((IF($C27="NA","NA",VLOOKUP($A$3,'G8-ML2'!$A$6:$AG$500,7,FALSE))),"NA") -> 12.98472818 | G27: NA | H27: =IFERROR((IF($C27="NA","NA",VLOOKUP($A$3,'G8-ML2'!$A$6:$AG$500,10,FALSE))),"NA") -> 5.236337625 | I27: NA | J27: NT | K27: NT
A28: FCAT Level 3 | B28: =IFERROR(VLOOKUP(TEXT($A$3,"0000"),MEM_ML3!$A$2:$O$500,9,FALSE),0)-IFERROR(VLOOKUP(TEXT($A$3,"0000"),'ALG Gr08'!$A$3:$Q$500,6,FALSE),0)-IFERROR(VLOOKUP(TEXT($A$3,"0000"),'Geo G08'!$A$3:$Q$500,6,FALSE),0) -> 2956 | C28: =IFERROR((IF(OR(B28=0,B28="",B28="NA"),"NA",((IF(VLOOKUP($A$3,'G8-ML3'!$A$6:$AG$501,3,FALSE)>=B28,"100% ("&VLOOKUP($A$3,'G8-ML3'!$A$6:$AG$501,3,FALSE)&")",(ROUND((VLOOKUP($A$3,'G8-ML3'!$A$6:$AG$501,3,FALSE)/B28*100),0))&"% ("&IF(VLOOKUP($A$3,'G8-ML3'!$A$6:$AG$501,3,FALSE)="",0,VLOOKUP($A$3,'G8-ML3'!$A$6:$AG$501,3,FALSE))&")"))))),"NA") -> 100% (3254) | D28: =IFERROR((IF($C28="NA","NA",VLOOKUP($A$3,'G8-ML3'!$A$6:$AG$500,4,FALSE))),"NA") -> 21.67237246 | E28: =IFERROR((IF($C28="NA","NA",ROUND(VLOOKUP($A$3,'G8-ML3'!$A$6:$AG$500,6,FALSE),0)&"% ("&IF(VLOOKUP($A$3,'G8-ML3'!$A$6:$AG$500,5,FALSE)="",0,VLOOKUP($A$3,'G8-ML3'!$A$6:$AG$500,5,FALSE))&")")),"NA") -> 65% (2107) | F28: =IFERROR((IF($C28="NA","NA",VLOOKUP($A$3,'G8-ML3'!$A$6:$AG$500,7,FALSE))),"NA") -> 15.38165335 | G28: NA | H28: =IFERROR((IF($C28="NA","NA",VLOOKUP($A$3,'G8-ML3'!$A$6:$AG$500,10,FALSE))),"NA") -> 6.289397664 | I28: NA | J28: NT | K28: NT
A29: FCAT Level 4 | B29: =IFERROR(VLOOKUP(TEXT($A$3,"0000"),MEM_ML4!$A$2:$O$500,9,FALSE),0)-IFERROR(VLOOKUP(TEXT($A$3,"0000"),'ALG Gr08'!$A$3:$Q$500,7,FALSE),0)-IFERROR(VLOOKUP(TEXT($A$3,"0000"),'Geo G08'!$A$3:$Q$500,7,FALSE),0) -> 762 | C29: =IFERROR((IF(OR(B29=0,B29="",B29="NA"),"NA",((IF(VLOOKUP($A$3,'G8-ML4'!$A$6:$AG$500,3,FALSE)>=B29,"100% ("&VLOOKUP($A$3,'G8-ML4'!$A$6:$AG$500,3,FALSE)&")",(ROUND((VLOOKUP($A$3,'G8-ML4'!$A$6:$AG$500,3,FALSE)/B29*100),0))&"% ("&IF(VLOOKUP($A$3,'G8-ML4'!$A$6:$AG$500,3,FALSE)="",0,VLOOKUP($A$3,'G8-ML4'!$A$6:$AG$500,3,FALSE))&")"))))),"NA") -> 100% (1096) | D29: =IFERROR((IF($C29="NA","NA",VLOOKUP($A$3,'G8-ML4'!$A$6:$AG$500,4,FALSE))),"NA") -> 26.11222628 | E29: =IFERROR((IF($C29="NA","NA",ROUND(VLOOKUP($A$3,'G8-ML4'!$A$6:$AG$500,6,FALSE),0)&"% ("&IF(VLOOKUP($A$3,'G8-ML4'!$A$6:$AG$500,5,FALSE)="",0,VLOOKUP($A$3,'G8-ML4'!$A$6:$AG$500,5,FALSE))&")")),"NA") -> 90% (985) | F29: =IFERROR((IF($C29="NA","NA",VLOOKUP($A$3,'G8-ML4'!$A$6:$AG$500,7,FALSE))),"NA") -> 18.02527372 | G29: NA | H29: =IFERROR((IF($C29="NA","NA",VLOOKUP($A$3,'G8-ML4'!$A$6:$AG$500,10,FALSE))),"NA") -> 8.085218978 | I29: NA | J29: NT | K29: NT
A30: FCAT Level 5 | B30: =IFERROR(VLOOKUP(TEXT($A$3,"0000"),MEM_ML5!$A$2:$O$500,9,FALSE),0)-IFERROR(VLOOKUP(TEXT($A$3,"0000"),'ALG Gr08'!$A$3:$Q$500,8,FALSE),0)-IFERROR(VLOOKUP(TEXT($A$3,"0000"),'Geo G08'!$A$3:$Q$500,8,FALSE),0) -> 40 | C30: =IFERROR((IF(OR(B30=0,B30="",B30="NA"),"NA",((IF(VLOOKUP($A$3,'G8-ML5'!$A$6:$AG$481,3,FALSE)>=B30,"100% ("&VLOOKUP($A$3,'G8-ML5'!$A$6:$AG$481,3,FALSE)&")",(ROUND((VLOOKUP($A$3,'G8-ML5'!$A$6:$AG$481,3,FALSE)/B30*100),0))&"% ("&IF(VLOOKUP($A$3,'G8-ML5'!$A$6:$AG$481,3,FALSE)="",0,VLOOKUP($A$3,'G8-ML5'!$A$6:$AG$481,3,FALSE))&")"))))),"NA") -> 100% (245) | D30: =IFERROR((IF($C30="NA","NA",VLOOKUP($A$3,'G8-ML5'!$A$6:$AG$481,4,FALSE))),"NA") -> 30.42204082 | E30: =IFERROR((IF($C30="NA","NA",ROUND(VLOOKUP($A$3,'G8-ML5'!$A$6:$AG$481,6,FALSE),0)&"% ("&IF(VLOOKUP($A$3,'G8-ML5'!$A$6:$AG$481,5,FALSE)="",0,VLOOKUP($A$3,'G8-ML5'!$A$6:$AG$481,5,FALSE))&")")),"NA") -> 98% (240) | F30: =IFERROR((IF($C30="NA","NA",VLOOKUP($A$3,'G8-ML5'!$A$6:$AG$481,7,FALSE))),"NA") -> 20.45877551 | G30: NA | H30: =IFERROR((IF($C30="NA","NA",VLOOKUP($A$3,'G8-ML5'!$A$6:$AG$481,10,FALSE))),"NA") -> 9.947755102 | I30: NA | J30: NT | K30: NT
A31: White | B31: =IFERROR(VLOOKUP(TEXT($A$3,"0000"),MEM_W!$A$2:$O$500,12,FALSE),0)-IFERROR(VLOOKUP(TEXT($A$3,"0000"),'ALG Gr08'!$A$3:$Q$500,10,FALSE),0)-IFERROR(VLOOKUP(TEXT($A$3,"0000"),'Geo G08'!$A$3:$Q$500,10,FALSE),0) -> 959 | C31: =IFERROR((IF(OR(B31=0,B31="",B31="NA"),"NA",((IF(VLOOKUP($A$3,'G8-MW'!$A$6:$AG$500,3,FALSE)>=B31,"100% ("&VLOOKUP($A$3,'G8-MW'!$A$6:$AG$500,3,FALSE)&")",(ROUND((VLOOKUP($A$3,'G8-MW'!$A$6:$AG$500,3,FALSE)/B31*100),0))&"% ("&IF(VLOOKUP($A$3,'G8-MW'!$A$6:$AG$500,3,FALSE)="",0,VLOOKUP($A$3,'G8-MW'!$A$6:$AG$500,3,FALSE))&")"))))),"NA") -> 98% (942) | D31: =IFERROR((IF($C31="NA","NA",VLOOKUP($A$3,'G8-MW'!$A$6:$AG$500,4,FALSE))),"NA") -> 19.89097665 | E31: =IFERROR((IF($C31="NA","NA",ROUND(VLOOKUP($A$3,'G8-MW'!$A$6:$AG$500,6,FALSE),0)&"% ("&IF(VLOOKUP($A$3,'G8-MW'!$A$6:$AG$500,5,FALSE)="",0,VLOOKUP($A$3,'G8-MW'!$A$6:$AG$500,5,FALSE))&")")),"NA") -> 50% (469) | F31: =IFERROR((IF($C31="NA","NA",VLOOKUP($A$3,'G8-MW'!$A$6:$AG$500,7,FALSE))),"NA") -> 14.11783439 | G31: NA | H31: =IFERROR((IF($C31="NA","NA",VLOOKUP($A$3,'G8-MW'!$A$6:$AG$500,10,FALSE))),"NA") -> 5.773248408 | I31: NA | J31: NT | K31: NT
A32: Black | B32: =IFERROR(VLOOKUP(TEXT($A$3,"0000"),MEM_B!$A$2:$O$500,12,FALSE),0)-IFERROR(VLOOKUP(TEXT($A$3,"0000"),'ALG Gr08'!$A$3:$Q$500,11,FALSE),0)-IFERROR(VLOOKUP(TEXT($A$3,"0000"),'Geo G08'!$A$3:$Q$500,11,FALSE),0) -> 4497 | C32: =IFERROR((IF(OR(B32=0,B32="",B32="NA"),"NA",((IF(VLOOKUP($A$3,'G8-MB'!$A$6:$AG$500,3,FALSE)>=B32,"100% ("&VLOOKUP($A$3,'G8-MB'!$A$6:$AG$500,3,FALSE)&")",(ROUND((VLOOKUP($A$3,'G8-MB'!$A$6:$AG$500,3,FALSE)/B32*100),0))&"% ("&IF(VLOOKUP($A$3,'G8-MB'!$A$6:$AG$500,3,FALSE)="",0,VLOOKUP($A$3,'G8-MB'!$A$6:$AG$500,3,FALSE))&")"))))),"NA") -> 95% (4292) | D32: =IFERROR((IF($C32="NA","NA",VLOOKUP($A$3,'G8-MB'!$A$6:$AG$500,4,FALSE))),"NA") -> 17.14568966 | E32: =IFERROR((IF($C32="NA","NA",ROUND(VLOOKUP($A$3,'G8-MB'!$A$6:$AG$500,6,FALSE),0)&"% ("&IF(VLOOKUP($A$3,'G8-MB'!$A$6:$AG$500,5,FALSE)="",0,VLOOKUP($A$3,'G8-MB'!$A$6:$AG$500,5,FALSE))&")")),"NA") -> 33% (1426) | F32: =IFERROR((IF($C32="NA","NA",VLOOKUP($A$3,'G8-MB'!$A$6:$AG$500,7,FALSE))),"NA") -> 12.06766076 | G32: NA | H32: =IFERROR((IF($C32="NA","NA",VLOOKUP($A$3,'G8-MB'!$A$6:$AG$500,10,FALSE))),"NA") -> 5.074836906 | I32: NA | J32: NT | K32: NT
A33: Hispanic | B33: =IFERROR(VLOOKUP(TEXT($A$3,"0000"),MEM_H!$A$2:$O$500,12,FALSE),0)-IFERROR(VLOOKUP(TEXT($A$3,"0000"),'ALG Gr08'!$A$3:$Q$500,12,FALSE),0)-IFERROR(VLOOKUP(TEXT($A$3,"0000"),'Geo G08'!$A$3:$Q$500,12,FALSE),0) -> 11168 | C33: =IFERROR((IF(OR(B33=0,B33="",B33="NA"),"NA",((IF(VLOOKUP($A$3,'G8-MH'!$A$6:$AG$500,3,FALSE)>=B33,"100% ("&VLOOKUP($A$3,'G8-MH'!$A$6:$AG$500,3,FALSE)&")",(ROUND((VLOOKUP($A$3,'G8-MH'!$A$6:$AG$500,3,FALSE)/B33*100),0))&"% ("&IF(VLOOKUP($A$3,'G8-MH'!$A$6:$AG$500,3,FALSE)="",0,VLOOKUP($A$3,'G8-MH'!$A$6:$AG$500,3,FALSE))&")"))))),"NA") -> 100% (11237) | D33: =IFERROR((IF($C33="NA","NA",VLOOKUP($A$3,'G8-MH'!$A$6:$AG$500,4,FALSE))),"NA") -> 18.39700988 | E33: =IFERROR((IF($C33="NA","NA",ROUND(VLOOKUP($A$3,'G8-MH'!$A$6:$AG$500,6,FALSE),0)&"% ("&IF(VLOOKUP($A$3,'G8-MH'!$A$6:$AG$500,5,FALSE)="",0,VLOOKUP($A$3,'G8-MH'!$A$6:$AG$500,5,FALSE))&")")),"NA") -> 41% (4591) | F33: =IFERROR((IF($C33="NA","NA",VLOOKUP($A$3,'G8-MH'!$A$6:$AG$500,7,FALSE))),"NA") -> 13.07782326 | G33: NA | H33: =IFERROR((IF($C33="NA","NA",VLOOKUP($A$3,'G8-MH'!$A$6:$AG$500,10,FALSE))),"NA") -> 5.309922577 | I33: NA | J33: NT | K33: NT
A34: Asian | B34: =IFERROR(VLOOKUP(TEXT($A$3,"0000"),MEM_A!$A$2:$O$500,12,FALSE),0)-IFERROR(VLOOKUP(TEXT($A$3,"0000"),'ALG Gr08'!$A$3:$Q$500,13,FALSE),0)-IFERROR(VLOOKUP(TEXT($A$3,"0000"),'Geo G08'!$A$3:$Q$500,13,FALSE),0) -> 95 | C34: =IFERROR((IF(OR(B34=0,B34="",B34="NA"),"NA",((IF(VLOOKUP($A$3,'G8-MA'!$A$6:$AG$500,3,FALSE)>=B34,"100% ("&VLOOKUP($A$3,'G8-MA'!$A$6:$AG$500,3,FALSE)&")",(ROUND((VLOOKUP($A$3,'G8-MA'!$A$6:$AG$500,3,FALSE)/B34*100),0))&"% ("&IF(VLOOKUP($A$3,'G8-MA'!$A$6:$AG$500,3,FALSE)="",0,VLOOKUP($A$3,'G8-MA'!$A$6:$AG$500,3,FALSE))&")"))))),"NA") -> 100% (98) | D34: =IFERROR((IF($C34="NA","NA",VLOOKUP($A$3,'G8-MA'!$A$6:$AG$500,4,FALSE))),"NA") -> 20.45612245 | E34: =IFERROR((IF($C34="NA","NA",ROUND(VLOOKUP($A$3,'G8-MA'!$A$6:$AG$500,6,FALSE),0)&"% ("&IF(VLOOKUP($A$3,'G8-MA'!$A$6:$AG$500,5,FALSE)="",0,VLOOKUP($A$3,'G8-MA'!$A$6:$AG$500,5,FALSE))&")")),"NA") -> 53% (52) | F34: =IFERROR((IF($C34="NA","NA",VLOOKUP($A$3,'G8-MA'!$A$6:$AG$500,7,FALSE))),"NA") -> 14.43265306 | G34: NA | H34: =IFERROR((IF($C34="NA","NA",VLOOKUP($A$3,'G8-MA'!$A$6:$AG$500,10,FALSE))),"NA") -> 6.024489796 | I34: NA | J34: NT | K34: NT
A35: Am. Indian | B35: =IFERROR(VLOOKUP(TEXT($A$3,"0000"),MEM_I!$A$2:$O$500,12,FALSE),0)-IFERROR(VLOOKUP(TEXT($A$3,"0000"),'ALG Gr08'!$A$3:$Q$500,14,FALSE),0)-IFERROR(VLOOKUP(TEXT($A$3,"0000"),'Geo G08'!$A$3:$Q$500,14,FALSE),0) -> 12 | C35: =IFERROR((IF(OR(B35=0,B35="",B35="NA"),"NA",((IF(VLOOKUP($A$3,'G8-MI'!$A$6:$AG$500,3,FALSE)>=B35,"100% ("&VLOOKUP($A$3,'G8-MI'!$A$6:$AG$500,3,FALSE)&")",(ROUND((VLOOKUP($A$3,'G8-MI'!$A$6:$AG$500,3,FALSE)/B35*100),0))&"% ("&IF(VLOOKUP($A$3,'G8-MI'!$A$6:$AG$500,3,FALSE)="",0,VLOOKUP($A$3,'G8-MI'!$A$6:$AG$500,3,FALSE))&")"))))),"NA") -> 92% (11) | D35: =IFERROR((IF($C35="NA","NA",VLOOKUP($A$3,'G8-MI'!$A$6:$AG$500,4,FALSE))),"NA") -> 16.45454545 | E35: =IFERROR((IF($C35="NA","NA",ROUND(VLOOKUP($A$3,'G8-MI'!$A$6:$AG$500,6,FALSE),0)&"% ("&IF(VLOOKUP($A$3,'G8-MI'!$A$6:$AG$500,5,FALSE)="",0,VLOOKUP($A$3,'G8-MI'!$A$6:$AG$500,5,FALSE))&")")),"NA") -> 27% (3) | F35: =IFERROR((IF($C35="NA","NA",VLOOKUP($A$3,'G8-MI'!$A$6:$AG$500,7,FALSE))),"NA") -> 10.81818182 | G35: NA | H35: =IFERROR((IF($C35="NA","NA",VLOOKUP($A$3,'G8-MI'!$A$6:$AG$500,10,FALSE))),"NA") -> 5.636363636 | I35: NA | J35: NT | K35: NT
A36: ED | B36: =IFERROR(VLOOKUP(TEXT($A$3,"0000"),MEM_ED!$A$2:$O$500,12,FALSE),0)-IFERROR(VLOOKUP(TEXT($A$3,"0000"),'ALG Gr08'!$A$3:$Q$500,15,FALSE),0)-IFERROR(VLOOKUP(TEXT($A$3,"0000"),'Geo G08'!$A$3:$Q$500,15,FALSE),0) -> 13570 | C36: =IFERROR((IF(OR(B36=0,B36="",B36="NA"),"NA",((IF(VLOOKUP($A$3,'G8-MED'!$A$6:$AG$500,3,FALSE)>=B36,"100% ("&VLOOKUP($A$3,'G8-MED'!$A$6:$AG$500,3,FALSE)&")",(ROUND((VLOOKUP($A$3,'G8-MED'!$A$6:$AG$500,3,FALSE)/B36*100),0))&"% ("&IF(VLOOKUP($A$3,'G8-MED'!$A$6:$AG$500,3,FALSE)="",0,VLOOKUP($A$3,'G8-MED'!$A$6:$AG$500,3,FALSE))&")"))))),"NA") -> 100% (14243) | D36: =IFERROR((IF($C36="NA","NA",VLOOKUP($A$3,'G8-MED'!$A$6:$AG$500,4,FALSE))),"NA") -> 17.82895457 | E36: =IFERROR((IF($C36="NA","NA",ROUND(VLOOKUP($A$3,'G8-MED'!$A$6:$AG$500,6,FALSE),0)&"% ("&IF(VLOOKUP($A$3,'G8-MED'!$A$6:$AG$500,5,FALSE)="",0,VLOOKUP($A$3,'G8-MED'!$A$6:$AG$500,5,FALSE))&")")),"NA") -> 37% (5336) | F36: =IFERROR((IF($C36="NA","NA",VLOOKUP($A$3,'G8-MED'!$A$6:$AG$500,7,FALSE))),"NA") -> 12.63829952 | G36: NA | H36: =IFERROR((IF($C36="NA","NA",VLOOKUP($A$3,'G8-MED'!$A$6:$AG$500,10,FALSE))),"NA") -> 5.190514639 | I36: NA | J36: NT | K36: NT
A37: ELL | B37: =IFERROR(VLOOKUP(TEXT($A$3,"0000"),MEM_ELL!$A$2:$O$500,12,FALSE),0)-IFERROR(VLOOKUP(TEXT($A$3,"0000"),'ALG Gr08'!$A$3:$Q$500,16,FALSE),0)-IFERROR(VLOOKUP(TEXT($A$3,"0000"),'Geo G08'!$A$3:$Q$500,16,FALSE),0) -> 2914 | C37: =IFERROR((IF(OR(B37=0,B37="",B37="NA"),"NA",((IF(VLOOKUP($A$3,'G8-MELL'!$A$6:$AG$500,3,FALSE)>=B37,"100% ("&VLOOKUP($A$3,'G8-MELL'!$A$6:$AG$500,3,FALSE)&")",(ROUND((VLOOKUP($A$3,'G8-MELL'!$A$6:$AG$500,3,FALSE)/B37*100),0))&"% ("&IF(VLOOKUP($A$3,'G8-MELL'!$A$6:$AG$500,3,FALSE)="",0,VLOOKUP($A$3,'G8-MELL'!$A$6:$AG$500,3,FALSE))&")"))))),"NA") -> 100% (3073) | D37: =IFERROR((IF($C37="NA","NA",VLOOKUP($A$3,'G8-MELL'!$A$6:$AG$500,4,FALSE))),"NA") -> 17.02505695 | E37: =IFERROR((IF($C37="NA","NA",ROUND(VLOOKUP($A$3,'G8-MELL'!$A$6:$AG$500,6,FALSE),0)&"% ("&IF(VLOOKUP($A$3,'G8-MELL'!$A$6:$AG$500,5,FALSE)="",0,VLOOKUP($A$3,'G8-MELL'!$A$6:$AG$500,5,FALSE))&")")),"NA") -> 32% (977) | F37: =IFERROR((IF($C37="NA","NA",VLOOKUP($A$3,'G8-MELL'!$A$6:$AG$500,7,FALSE))),"NA") -> 12.14904003 | G37: NA | H37: =IFERROR((IF($C37="NA","NA",VLOOKUP($A$3,'G8-MELL'!$A$6:$AG$500,10,FALSE))),"NA") -> 4.876016922 | I37: NA | J37: NT | K37: NT
A38: SWD | B38: =IFERROR(VLOOKUP(TEXT($A$3,"0000"),MEM_SWD!$A$2:$O$500,12,FALSE),0)-IFERROR(VLOOKUP(TEXT($A$3,"0000"),'ALG Gr08'!$A$3:$Q$500,17,FALSE),0)-IFERROR(VLOOKUP(TEXT($A$3,"0000"),'Geo G08'!$A$3:$Q$500,17,FALSE),0) -> 2401 | C38: =IFERROR((IF(OR(B38=0,B38="",B38="NA"),"NA",((IF(VLOOKUP($A$3,'G8-MSWD'!$A$6:$AG$500,3,FALSE)>=B38,"100% ("&VLOOKUP($A$3,'G8-MSWD'!$A$6:$AG$500,3,FALSE)&")",(ROUND((VLOOKUP($A$3,'G8-MSWD'!$A$6:$AG$500,3,FALSE)/B38*100),0))&"% ("&IF(VLOOKUP($A$3,'G8-MSWD'!$A$6:$AG$500,3,FALSE)="",0,VLOOKUP($A$3,'G8-MSWD'!$A$6:$AG$500,3,FALSE))&")"))))),"NA") -> 91% (2190) | D38: =IFERROR((IF($C38="NA","NA",VLOOKUP($A$3,'G8-MSWD'!$A$6:$AG$500,4,FALSE))),"NA") -> 14.78808219 | E38: =IFERROR((IF($C38="NA","NA",ROUND(VLOOKUP($A$3,'G8-MSWD'!$A$6:$AG$500,6,FALSE),0)&"% ("&IF(VLOOKUP($A$3,'G8-MSWD'!$A$6:$AG$500,5,FALSE)="",0,VLOOKUP($A$3,'G8-MSWD'!$A$6:$AG$500,5,FALSE))&")")),"NA") -> 20% (432) | F38: =IFERROR((IF($C38="NA","NA",VLOOKUP($A$3,'G8-MSWD'!$A$6:$AG$500,7,FALSE))),"NA") -> 10.56191781 | G38: NA | H38: =IFERROR((IF($C38="NA","NA",VLOOKUP($A$3,'G8-MSWD'!$A$6:$AG$500,10,FALSE))),"NA") -> 4.220410959 | I38: NA | J38: NT | K38: NT
A39: District Writing Pre-Test, Grade 8 | P39: Writing Grade 8
A40: Level of Proficiency at 3 or above | B40: Total # of Students | C40: % of Students Tested (Max. of the two prompts) | D40: Combined Prompts (Weighted Values) | H40: Expository | J40: Persuasive | P40: =H40 -> Expository | Q40: =J40 -> Persuasive
D41: Average Score | E41: % at 3.0 | F41: % at or above 4.0 | H41: Average Score | I41: % Proficient | J41: Average Score | K41: % Proficient | P41: Number Tested | Q41: Number Tested
A42: All students | B42: =IFERROR(VLOOKUP(TEXT($A$3,"0000"),Mem_All!$A$2:$O$500,12,FALSE),"NA") -> 27254 | C42: =IF(OR(B42=0,B42="",B42="NA"),"NA",IF(VLOOKUP($A$3,'G8-WALL'!$A$6:$Z$500,3,FALSE)>B42,"100% ("&VLOOKUP($A$3,'G8-WALL'!$A$6:$Z$500,3,FALSE)&")",ROUND(VLOOKUP($A$3,'G8-WALL'!$A$6:$Z$500,3,FALSE)/B42*100,0)&"%("&VLOOKUP($A$3,'G8-WALL'!$A$6:$Z$500,3,FALSE)&")")) -> 61%(16649) | D42: =IFERROR((IF($C42="NA","NA",VLOOKUP($A$3,'G8-WALL'!$A$6:$Z$500,4,FALSE))),"NA") -> 2.466833864 | E42: =IF($C42="NA","NA",ROUND(VLOOKUP($A$3,'G8-WALL'!$A$6:$Z$500,6,FALSE),0)&"% ("&VLOOKUP($A$3,'G8-WALL'!$A$6:$Z$500,5,FALSE)&")") -> 34% (5636) | F42: =IF($C42="NA","NA",ROUND(VLOOKUP($A$3,'G8-WALL'!$A$6:$Z$500,8,FALSE),0)&"% ("&VLOOKUP($A$3,'G8-WALL'!$A$6:$Z$500,7,FALSE)&")") -> 16% (2739) | H42: =IFERROR(IF(VLOOKUP($A$3,'G8-WALL'!$A$6:$Z$500,9,FALSE)="","Not Test",VLOOKUP($A$3,'G8-WALL'!$A$6:$Z$500,10,FALSE)),"NA") -> 2.599723222 | I42: =IFERROR(IF(VLOOKUP($A$3,'G8-WALL'!$A$6:$Z$500,3,FALSE)="","Not Test",VLOOKUP($A$3,'G8-WALL'!$A$6:$Z$500,16,FALSE)&"% ("&VLOOKUP($A$3,'G8-WALL'!$A$6:$Z$500,12,FALSE)&")"),"NA") -> 56% (8056) | J42: =IFERROR(IF(VLOOKUP($A$3,'G8-WALL'!$A$6:$Z$500,17,FALSE)="","Not Test",VLOOKUP($A$3,'G8-WALL'!$A$6:$Z$500,18,FALSE)),"NA") -> 2.351480569 | K42: =IFERROR(IF(VLOOKUP($A$3,'G8-WALL'!$A$6:$Z$500,17,FALSE)="","Not Test",VLOOKUP($A$3,'G8-WALL'!$A$6:$Z$500,24,FALSE)&"% ("&VLOOKUP($A$3,'G8-WALL'!$A$6:$Z$500,20,FALSE)&")"),"NA") -> 46% (7589) | P42: =IFERROR(IF(VLOOKUP($A$3,'G8-WALL'!$A$6:$Z$500,9,FALSE)="","0",VLOOKUP($A$3,'G8-WALL'!$A$6:$Z$500,9,FALSE)),"Not Test") -> 14452 | Q42: =IFERROR(IF(VLOOKUP($A$3,'G8-WALL'!$A$6:$Z$500,17,FALSE)="","0",VLOOKUP($A$3,'G8-WALL'!$A$6:$Z$500,17,FALSE)),"Not Test") -> 16649
A43: White | B43: =IFERROR(VLOOKUP(TEXT($A$3,"0000"),MEM_W!$A$2:$O$500,12,FALSE),"NA") -> 2276 | C43: =IF(OR(B43=0,B43="",B43="NA"),"NA",IF(VLOOKUP($A$3,'G8-WW'!$A$6:$Z$500,3,FALSE)>B43,"100% ("&VLOOKUP($A$3,'G8-WW'!$A$6:$Z$500,3,FALSE)&")",ROUND(VLOOKUP($A$3,'G8-WW'!$A$6:$Z$500,3,FALSE)/B43*100,0)&"%("&VLOOKUP($A$3,'G8-WW'!$A$6:$Z$500,3,FALSE)&")")) -> 64%(1460) | D43: =IFERROR((IF($C43="NA","NA",VLOOKUP($A$3,'G8-WW'!$A$6:$Z$500,4,FALSE))),"NA") -> 2.826430326 | E43: =IF($C43="NA","NA",ROUND(VLOOKUP($A$3,'G8-WW'!$A$6:$Z$500,6,FALSE),0)&"% ("&VLOOKUP($A$3,'G8-WW'!$A$6:$Z$500,5,FALSE)&")") -> 38% (552) | F43: =IF($C43="NA","NA",ROUND(VLOOKUP($A$3,'G8-WW'!$A$6:$Z$500,8,FALSE),0)&"% ("&VLOOKUP($A$3,'G8-WW'!$A$6:$Z$500,7,FALSE)&")") -> 26% (373) | H43: =IFERROR(IF(VLOOKUP($A$3,'G8-WW'!$A$6:$Z$500,9,FALSE)="","Not Test",VLOOKUP($A$3,'G8-WW'!$A$6:$Z$500,10,FALSE)),"NA") -> 2.976889849 | I43: =IFERROR(IF(VLOOKUP($A$3,'G8-WW'!$A$6:$Z$500,3,FALSE)="","Not Test",VLOOKUP($A$3,'G8-WW'!$A$6:$Z$500,16,FALSE)&"% ("&VLOOKUP($A$3,'G8-WW'!$A$6:$Z$500,12,FALSE)&")"),"NA") -> 69% (965) | J43: =IFERROR(IF(VLOOKUP($A$3,'G8-WW'!$A$6:$Z$500,17,FALSE)="","Not Test",VLOOKUP($A$3,'G8-WW'!$A$6:$Z$500,18,FALSE)),"NA") -> 2.683287671 | K43: =IFERROR(IF(VLOOKUP($A$3,'G8-WW'!$A$6:$Z$500,17,FALSE)="","Not Test",VLOOKUP($A$3,'G8-WW'!$A$6:$Z$500,24,FALSE)&"% ("&VLOOKUP($A$3,'G8-WW'!$A$6:$Z$500,20,FALSE)&")"),"NA") -> 58% (840) | P43: =IFERROR(IF(VLOOKUP($A$3,'G8-WW'!$A$6:$Z$500,9,FALSE)="","0",VLOOKUP($A$3,'G8-WW'!$A$6:$Z$500,9,FALSE)),"Not Test") -> 1389 | Q43: =IFERROR(IF(VLOOKUP($A$3,'G8-WW'!$A$6:$Z$500,17,FALSE)="","0",VLOOKUP($A$3,'G8-WW'!$A$6:$Z$500,17,FALSE)),"Not Test") -> 1460
A44: Black | B44: =IFERROR(VLOOKUP(TEXT($A$3,"0000"),MEM_B!$A$2:$O$500,12,FALSE),"NA") -> 6252 | C44: =IF(OR(B44=0,B44="",B44="NA"),"NA",IF(VLOOKUP($A$3,'G8-WB'!$A$6:$Z$500,3,FALSE)>B44,"100% ("&VLOOKUP($A$3,'G8-WB'!$A$6:$Z$500,3,FALSE)&")",ROUND(VLOOKUP($A$3,'G8-WB'!$A$6:$Z$500,3,FALSE)/B44*100,0)&"%("&VLOOKUP($A$3,'G8-WB'!$A$6:$Z$500,3,FALSE)&")")) -> 46%(2902) | D44: =IFERROR((IF($C44="NA","NA",VLOOKUP($A$3,'G8-WB'!$A$6:$Z$500,4,FALSE))),"NA") -> 2.267296957 | E44: =IF($C44="NA","NA",ROUND(VLOOKUP($A$3,'G8-WB'!$A$6:$Z$500,6,FALSE),0)&"% ("&VLOOKUP($A$3,'G8-WB'!$A$6:$Z$500,5,FALSE)&")") -> 30% (860) | F44: =IF($C44="NA","NA",ROUND(VLOOKUP($A$3,'G8-WB'!$A$6:$Z$500,8,FALSE),0)&"% ("&VLOOKUP($A$3,'G8-WB'!$A$6:$Z$500,7,FALSE)&")") -> 11% (333) | H44: =IFERROR(IF(VLOOKUP($A$3,'G8-WB'!$A$6:$Z$500,9,FALSE)="","Not Test",VLOOKUP($A$3,'G8-WB'!$A$6:$Z$500,10,FALSE)),"NA") -> 2.341003395 | I44: =IFERROR(IF(VLOOKUP($A$3,'G8-WB'!$A$6:$Z$500,3,FALSE)="","Not Test",VLOOKUP($A$3,'G8-WB'!$A$6:$Z$500,16,FALSE)&"% ("&VLOOKUP($A$3,'G8-WB'!$A$6:$Z$500,12,FALSE)&")"),"NA") -> 43% (1150) | J44: =IFERROR(IF(VLOOKUP($A$3,'G8-WB'!$A$6:$Z$500,17,FALSE)="","Not Test",VLOOKUP($A$3,'G8-WB'!$A$6:$Z$500,18,FALSE)),"NA") -> 2.199965541 | K44: =IFERROR(IF(VLOOKUP($A$3,'G8-WB'!$A$6:$Z$500,17,FALSE)="","Not Test",VLOOKUP($A$3,'G8-WB'!$A$6:$Z$500,24,FALSE)&"% ("&VLOOKUP($A$3,'G8-WB'!$A$6:$Z$500,20,FALSE)&")"),"NA") -> 39% (1133) | P44: =IFERROR(IF(VLOOKUP($A$3,'G8-WB'!$A$6:$Z$500,9,FALSE)="","0",VLOOKUP($A$3,'G8-WB'!$A$6:$Z$500,9,FALSE)),"Not Test") -> 2651 | Q44: =IFERROR(IF(VLOOKUP($A$3,'G8-WB'!$A$6:$Z$500,17,FALSE)="","0",VLOOKUP($A$3,'G8-WB'!$A$6:$Z$500,17,FALSE)),"Not Test") -> 2902
A45: Hispanic | B45: =IFERROR(VLOOKUP(TEXT($A$3,"0000"),MEM_H!$A$2:$O$500,12,FALSE),"NA") -> 18334 | C45: =IF(OR(B45=0,B45="",B45="NA"),"NA",IF(VLOOKUP($A$3,'G8-WH'!$A$6:$Z$500,3,FALSE)>B45,"100% ("&VLOOKUP($A$3,'G8-WH'!$A$6:$Z$500,3,FALSE)&")",ROUND(VLOOKUP($A$3,'G8-WH'!$A$6:$Z$500,3,FALSE)/B45*100,0)&"%("&VLOOKUP($A$3,'G8-WH'!$A$6:$Z$500,3,FALSE)&")")) -> 66%(12025) | D45: =IFERROR((IF($C45="NA","NA",VLOOKUP($A$3,'G8-WH'!$A$6:$Z$500,4,FALSE))),"NA") -> 2.46294896 | E45: =IF($C45="NA","NA",ROUND(VLOOKUP($A$3,'G8-WH'!$A$6:$Z$500,6,FALSE),0)&"% ("&VLOOKUP($A$3,'G8-WH'!$A$6:$Z$500,5,FALSE)&")") -> 34% (4136) | F45: =IF($C45="NA","NA",ROUND(VLOOKUP($A$3,'G8-WH'!$A$6:$Z$500,8,FALSE),0)&"% ("&VLOOKUP($A$3,'G8-WH'!$A$6:$Z$500,7,FALSE)&")") -> 16% (1941) | H45: =IFERROR(IF(VLOOKUP($A$3,'G8-WH'!$A$6:$Z$500,9,FALSE)="","Not Test",VLOOKUP($A$3,'G8-WH'!$A$6:$Z$500,10,FALSE)),"NA") -> 2.601275385 | I45: =IFERROR(IF(VLOOKUP($A$3,'G8-WH'!$A$6:$Z$500,3,FALSE)="","Not Test",VLOOKUP($A$3,'G8-WH'!$A$6:$Z$500,16,FALSE)&"% ("&VLOOKUP($A$3,'G8-WH'!$A$6:$Z$500,12,FALSE)&")"),"NA") -> 57% (5784) | J45: =IFERROR(IF(VLOOKUP($A$3,'G8-WH'!$A$6:$Z$500,17,FALSE)="","Not Test",VLOOKUP($A$3,'G8-WH'!$A$6:$Z$500,18,FALSE)),"NA") -> 2.345696466 | K45: =IFERROR(IF(VLOOKUP($A$3,'G8-WH'!$A$6:$Z$500,17,FALSE)="","Not Test",VLOOKUP($A$3,'G8-WH'!$A$6:$Z$500,24,FALSE)&"% ("&VLOOKUP($A$3,'G8-WH'!$A$6:$Z$500,20,FALSE)&")"),"NA") -> 45% (5445) | P45: =IFERROR(IF(VLOOKUP($A$3,'G8-WH'!$A$6:$Z$500,9,FALSE)="","0",VLOOKUP($A$3,'G8-WH'!$A$6:$Z$500,9,FALSE)),"Not Test") -> 10193 | Q45: =IFERROR(IF(VLOOKUP($A$3,'G8-WH'!$A$6:$Z$500,17,FALSE)="","0",VLOOKUP($A$3,'G8-WH'!$A$6:$Z$500,17,FALSE)),"Not Test") -> 12025
A46: Asian | B46: =IFERROR(VLOOKUP(TEXT($A$3,"0000"),MEM_A!$A$2:$O$500,12,FALSE),"NA") -> 300 | C46: =IF(OR(B46=0,B46="",B46="NA"),"NA",IF(VLOOKUP($A$3,'G8-WA'!$A$6:$Z$500,3,FALSE)>B46,"100% ("&VLOOKUP($A$3,'G8-WA'!$A$6:$Z$500,3,FALSE)&")",ROUND(VLOOKUP($A$3,'G8-WA'!$A$6:$Z$500,3,FALSE)/B46*100,0)&"%("&VLOOKUP($A$3,'G8-WA'!$A$6:$Z$500,3,FALSE)&")")) -> 66%(198) | D46: =IFERROR((IF($C46="NA","NA",VLOOKUP($A$3,'G8-WA'!$A$6:$Z$500,4,FALSE))),"NA") -> 3.065229111 | E46: =IF($C46="NA","NA",ROUND(VLOOKUP($A$3,'G8-WA'!$A$6:$Z$500,6,FALSE),0)&"% ("&VLOOKUP($A$3,'G8-WA'!$A$6:$Z$500,5,FALSE)&")") -> 37% (74) | F46: =IF($C46="NA","NA",ROUND(VLOOKUP($A$3,'G8-WA'!$A$6:$Z$500,8,FALSE),0)&"% ("&VLOOKUP($A$3,'G8-WA'!$A$6:$Z$500,7,FALSE)&")") -> 35% (69) | H46: =IFERROR(IF(VLOOKUP($A$3,'G8-WA'!$A$6:$Z$500,9,FALSE)="","Not Test",VLOOKUP($A$3,'G8-WA'!$A$6:$Z$500,10,FALSE)),"NA") -> 3.206358382 | I46: =IFERROR(IF(VLOOKUP($A$3,'G8-WA'!$A$6:$Z$500,3,FALSE)="","Not Test",VLOOKUP($A$3,'G8-WA'!$A$6:$Z$500,16,FALSE)&"% ("&VLOOKUP($A$3,'G8-WA'!$A$6:$Z$500,12,FALSE)&")"),"NA") -> 76% (131) | J46: =IFERROR(IF(VLOOKUP($A$3,'G8-WA'!$A$6:$Z$500,17,FALSE)="","Not Test",VLOOKUP($A$3,'G8-WA'!$A$6:$Z$500,18,FALSE)),"NA") -> 2.941919192 | K46: =IFERROR(IF(VLOOKUP($A$3,'G8-WA'!$A$6:$Z$500,17,FALSE)="","Not Test",VLOOKUP($A$3,'G8-WA'!$A$6:$Z$500,24,FALSE)&"% ("&VLOOKUP($A$3,'G8-WA'!$A$6:$Z$500,20,FALSE)&")"),"NA") -> 69% (137) | P46: =IFERROR(IF(VLOOKUP($A$3,'G8-WA'!$A$6:$Z$500,9,FALSE)="","0",VLOOKUP($A$3,'G8-WA'!$A$6:$Z$500,9,FALSE)),"Not Test") -> 173 | Q46: =IFERROR(IF(VLOOKUP($A$3,'G8-WA'!$A$6:$Z$500,17,FALSE)="","0",VLOOKUP($A$3,'G8-WA'!$A$6:$Z$500,17,FALSE)),"Not Test") -> 198
A47: Am. Indian | B47: =IFERROR(VLOOKUP(TEXT($A$3,"0000"),MEM_I!$A$2:$O$500,12,FALSE),"NA") -> 22 | C47: =IF(OR(B47=0,B47="",B47="NA"),"NA",IF(VLOOKUP($A$3,'G8-WI'!$A$6:$Z$500,3,FALSE)>B47,"100% ("&VLOOKUP($A$3,'G8-WI'!$A$6:$Z$500,3,FALSE)&")",ROUND(VLOOKUP($A$3,'G8-WI'!$A$6:$Z$500,3,FALSE)/B47*100,0)&"%("&VLOOKUP($A$3,'G8-WI'!$A$6:$Z$500,3,FALSE)&")")) -> 59%(13) | D47: =IFERROR((IF($C47="NA","NA",VLOOKUP($A$3,'G8-WI'!$A$6:$Z$500,4,FALSE))),"NA") -> 2.95 | E47: =IF($C47="NA","NA",ROUND(VLOOKUP($A$3,'G8-WI'!$A$6:$Z$500,6,FALSE),0)&"% ("&VLOOKUP($A$3,'G8-WI'!$A$6:$Z$500,5,FALSE)&")") -> 10% (1) | F47: =IF($C47="NA","NA",ROUND(VLOOKUP($A$3,'G8-WI'!$A$6:$Z$500,8,FALSE),0)&"% ("&VLOOKUP($A$3,'G8-WI'!$A$6:$Z$500,7,FALSE)&")") -> 50% (7) | H47: =IFERROR(IF(VLOOKUP($A$3,'G8-WI'!$A$6:$Z$500,9,FALSE)="","Not Test",VLOOKUP($A$3,'G8-WI'!$A$6:$Z$500,10,FALSE)),"NA") -> 3.428571429 | I47: =IFERROR(IF(VLOOKUP($A$3,'G8-WI'!$A$6:$Z$500,3,FALSE)="","Not Test",VLOOKUP($A$3,'G8-WI'!$A$6:$Z$500,16,FALSE)&"% ("&VLOOKUP($A$3,'G8-WI'!$A$6:$Z$500,12,FALSE)&")"),"NA") -> 71% (5) | J47: =IFERROR(IF(VLOOKUP($A$3,'G8-WI'!$A$6:$Z$500,17,FALSE)="","Not Test",VLOOKUP($A$3,'G8-WI'!$A$6:$Z$500,18,FALSE)),"NA") -> 2.692307692 | K47: =IFERROR(IF(VLOOKUP($A$3,'G8-WI'!$A$6:$Z$500,17,FALSE)="","Not Test",VLOOKUP($A$3,'G8-WI'!$A$6:$Z$500,24,FALSE)&"% ("&VLOOKUP($A$3,'G8-WI'!$A$6:$Z$500,20,FALSE)&")"),"NA") -> 54% (7) | P47: =IFERROR(IF(VLOOKUP($A$3,'G8-WI'!$A$6:$Z$500,9,FALSE)="","0",VLOOKUP($A$3,'G8-WI'!$A$6:$Z$500,9,FALSE)),"Not Test") -> 7 | Q47: =IFERROR(IF(VLOOKUP($A$3,'G8-WI'!$A$6:$Z$500,17,FALSE)="","0",VLOOKUP($A$3,'G8-WI'!$A$6:$Z$500,17,FALSE)),"Not Test") -> 13
A48: ED | B48: =IFERROR(VLOOKUP(TEXT($A$3,"0000"),MEM_ED!$A$2:$O$500,12,FALSE),"NA") -> 20441 | C48: =IF(OR(B48=0,B48="",B48="NA"),"NA",IF(VLOOKUP($A$3,'G8-WED'!$A$6:$Z$500,3,FALSE)>B48,"100% ("&VLOOKUP($A$3,'G8-WED'!$A$6:$Z$500,3,FALSE)&")",ROUND(VLOOKUP($A$3,'G8-WED'!$A$6:$Z$500,3,FALSE)/B48*100,0)&"%("&VLOOKUP($A$3,'G8-WED'!$A$6:$Z$500,3,FALSE)&")")) -> 63%(12854) | D48: =IFERROR((IF($C48="NA","NA",VLOOKUP($A$3,'G8-WED'!$A$6:$Z$500,4,FALSE))),"NA") -> 2.365825372 | E48: =IF($C48="NA","NA",ROUND(VLOOKUP($A$3,'G8-WED'!$A$6:$Z$500,6,FALSE),0)&"% ("&VLOOKUP($A$3,'G8-WED'!$A$6:$Z$500,5,FALSE)&")") -> 33% (4239) | F48: =IF($C48="NA","NA",ROUND(VLOOKUP($A$3,'G8-WED'!$A$6:$Z$500,8,FALSE),0)&"% ("&VLOOKUP($A$3,'G8-WED'!$A$6:$Z$500,7,FALSE)&")") -> 14% (1745) | H48: =IFERROR(IF(VLOOKUP($A$3,'G8-WED'!$A$6:$Z$500,9,FALSE)="","Not Test",VLOOKUP($A$3,'G8-WED'!$A$6:$Z$500,10,FALSE)),"NA") -> 2.489907349 | I48: =IFERROR(IF(VLOOKUP($A$3,'G8-WED'!$A$6:$Z$500,3,FALSE)="","Not Test",VLOOKUP($A$3,'G8-WED'!$A$6:$Z$500,16,FALSE)&"% ("&VLOOKUP($A$3,'G8-WED'!$A$6:$Z$500,12,FALSE)&")"),"NA") -> 52% (5757) | J48: =IFERROR(IF(VLOOKUP($A$3,'G8-WED'!$A$6:$Z$500,17,FALSE)="","Not Test",VLOOKUP($A$3,'G8-WED'!$A$6:$Z$500,18,FALSE)),"NA") -> 2.258510969 | K48: =IFERROR(IF(VLOOKUP($A$3,'G8-WED'!$A$6:$Z$500,17,FALSE)="","Not Test",VLOOKUP($A$3,'G8-WED'!$A$6:$Z$500,24,FALSE)&"% ("&VLOOKUP($A$3,'G8-WED'!$A$6:$Z$500,20,FALSE)&")"),"NA") -> 42% (5404) | P48: =IFERROR(IF(VLOOKUP($A$3,'G8-WED'!$A$6:$Z$500,9,FALSE)="","0",VLOOKUP($A$3,'G8-WED'!$A$6:$Z$500,9,FALSE)),"Not Test") -> 11117 | Q48: =IFERROR(IF(VLOOKUP($A$3,'G8-WED'!$A$6:$Z$500,17,FALSE)="","0",VLOOKUP($A$3,'G8-WED'!$A$6:$Z$500,17,FALSE)),"Not Test") -> 12854
A49: ELL | B49: =IFERROR(VLOOKUP(TEXT($A$3,"0000"),MEM_ELL!$A$2:$O$500,12,FALSE),"NA") -> 3638 | C49: =IF(OR(B49=0,B49="",B49="NA"),"NA",IF(VLOOKUP($A$3,'G8-WELL'!$A$6:$Z$500,3,FALSE)>B49,"100% ("&VLOOKUP($A$3,'G8-WELL'!$A$6:$Z$500,3,FALSE)&")",ROUND(VLOOKUP($A$3,'G8-WELL'!$A$6:$Z$500,3,FALSE)/B49*100,0)&"%("&VLOOKUP($A$3,'G8-WELL'!$A$6:$Z$500,3,FALSE)&")")) -> 57%(2082) | D49: =IFERROR((IF($C49="NA","NA",VLOOKUP($A$3,'G8-WELL'!$A$6:$Z$500,4,FALSE))),"NA") -> 1.016447368 | E49: =IF($C49="NA","NA",ROUND(VLOOKUP($A$3,'G8-WELL'!$A$6:$Z$500,6,FALSE),0)&"% ("&VLOOKUP($A$3,'G8-WELL'!$A$6:$Z$500,5,FALSE)&")") -> 15% (322) | F49: =IF($C49="NA","NA",ROUND(VLOOKUP($A$3,'G8-WELL'!$A$6:$Z$500,8,FALSE),0)&"% ("&VLOOKUP($A$3,'G8-WELL'!$A$6:$Z$500,7,FALSE)&")") -> 3% (71) | H49: =IFERROR(IF(VLOOKUP($A$3,'G8-WELL'!$A$6:$Z$500,9,FALSE)="","Not Test",VLOOKUP($A$3,'G8-WELL'!$A$6:$Z$500,10,FALSE)),"NA") -> 1.803208556 | I49: =IFERROR(IF(VLOOKUP($A$3,'G8-WELL'!$A$6:$Z$500,3,FALSE)="","Not Test",VLOOKUP($A$3,'G8-WELL'!$A$6:$Z$500,16,FALSE)&"% ("&VLOOKUP($A$3,'G8-WELL'!$A$6:$Z$500,12,FALSE)&")"),"NA") -> 22% (411) | J49: =IFERROR(IF(VLOOKUP($A$3,'G8-WELL'!$A$6:$Z$500,17,FALSE)="","Not Test",VLOOKUP($A$3,'G8-WELL'!$A$6:$Z$500,18,FALSE)),"NA") -> 0.3097982709 | K49: =IFERROR(IF(VLOOKUP($A$3,'G8-WELL'!$A$6:$Z$500,17,FALSE)="","Not Test",VLOOKUP($A$3,'G8-WELL'!$A$6:$Z$500,24,FALSE)&"% ("&VLOOKUP($A$3,'G8-WELL'!$A$6:$Z$500,20,FALSE)&")"),"NA") -> 16% (334) | P49: =IFERROR(IF(VLOOKUP($A$3,'G8-WELL'!$A$6:$Z$500,9,FALSE)="","0",VLOOKUP($A$3,'G8-WELL'!$A$6:$Z$500,9,FALSE)),"Not Test") -> 1870 | Q49: =IFERROR(IF(VLOOKUP($A$3,'G8-WELL'!$A$6:$Z$500,17,FALSE)="","0",VLOOKUP($A$3,'G8-WELL'!$A$6:$Z$500,17,FALSE)),"Not Test") -> 2082
A50: SWD | B50: =IFERROR(VLOOKUP(TEXT($A$3,"0000"),MEM_SWD!$A$2:$O$500,12,FALSE),"NA") -> 2700 | C50: =IF(OR(B50=0,B50="",B50="NA"),"NA",IF(VLOOKUP($A$3,'G8-WSWD'!$A$6:$Z$500,3,FALSE)>B50,"100% ("&VLOOKUP($A$3,'G8-WSWD'!$A$6:$Z$500,3,FALSE)&")",ROUND(VLOOKUP($A$3,'G8-WSWD'!$A$6:$Z$500,3,FALSE)/B50*100,0)&"%("&VLOOKUP($A$3,'G8-WSWD'!$A$6:$Z$500,3,FALSE)&")")) -> 58%(1573) | D50: =IFERROR((IF($C50="NA","NA",VLOOKUP($A$3,'G8-WSWD'!$A$6:$Z$500,4,FALSE))),"NA") -> 1.862615227 | E50: =IF($C50="NA","NA",ROUND(VLOOKUP($A$3,'G8-WSWD'!$A$6:$Z$500,6,FALSE),0)&"% ("&VLOOKUP($A$3,'G8-WSWD'!$A$6:$Z$500,5,FALSE)&")") -> 21% (337) | F50: =IF($C50="NA","NA",ROUND(VLOOKUP($A$3,'G8-WSWD'!$A$6:$Z$500,8,FALSE),0)&"% ("&VLOOKUP($A$3,'G8-WSWD'!$A$6:$Z$500,7,FALSE)&")") -> 5% (75) | H50: =IFERROR(IF(VLOOKUP($A$3,'G8-WSWD'!$A$6:$Z$500,9,FALSE)="","Not Test",VLOOKUP($A$3,'G8-WSWD'!$A$6:$Z$500,10,FALSE)),"NA") -> 1.976032448 | I50: =IFERROR(IF(VLOOKUP($A$3,'G8-WSWD'!$A$6:$Z$500,3,FALSE)="","Not Test",VLOOKUP($A$3,'G8-WSWD'!$A$6:$Z$500,16,FALSE)&"% ("&VLOOKUP($A$3,'G8-WSWD'!$A$6:$Z$500,12,FALSE)&")"),"NA") -> 31% (424) | J50: =IFERROR(IF(VLOOKUP($A$3,'G8-WSWD'!$A$6:$Z$500,17,FALSE)="","Not Test",VLOOKUP($A$3,'G8-WSWD'!$A$6:$Z$500,18,FALSE)),"NA") -> 1.764844247 | K50: =IFERROR(IF(VLOOKUP($A$3,'G8-WSWD'!$A$6:$Z$500,17,FALSE)="","Not Test",VLOOKUP($A$3,'G8-WSWD'!$A$6:$Z$500,24,FALSE)&"% ("&VLOOKUP($A$3,'G8-WSWD'!$A$6:$Z$500,20,FALSE)&")"),"NA") -> 22% (343) | P50: =IFERROR(IF(VLOOKUP($A$3,'G8-WSWD'!$A$6:$Z$500,9,FALSE)="","0",VLOOKUP($A$3,'G8-WSWD'!$A$6:$Z$500,9,FALSE)),"Not Test") -> 1356 | Q50: =IFERROR(IF(VLOOKUP($A$3,'G8-WSWD'!$A$6:$Z$500,17,FALSE)="","0",VLOOKUP($A$3,'G8-WSWD'!$A$6:$Z$500,17,FALSE)),"Not Test") -> 1573
A51: Science - Grade 8
A52: Level of Proficiency at 70% or above | B52: Total # of Students | C52: % of Students Tested | D52: ='G6-8 Matrix'!C19&" ["&'G6-8 Matrix'!C20&"]" -> Overall [71] | F52: ='G6-8 Matrix'!D19&" ["&'G6-8 Matrix'!D20&"]" -> Nature of Science [10] | H52: ='G6-8 Matrix'!E19&" ["&'G6-8 Matrix'!E20&"]" -> Earth & Space Science [22] | J52: ='G6-8 Matrix'!F19&" ["&'G6-8 Matrix'!F20&"]" -> Physical Science [21] | L52: ='G6-8 Matrix'!G19&" ["&'G6-8 Matrix'!G20&"]" -> Life Science [18]
D53: Average Score | E53: % Proficient | F53: Average Score | G53: % Proficient | H53: Average Score | I53: % Proficient | J53: Average Score | K53: % Proficient | L53: Average Score | M53: % Proficient
A54: All students | B54: =IFERROR(VLOOKUP(TEXT($A$3,"0000"),Mem_All!$A$2:$O$500,12,FALSE),"NA")-IFERROR(VLOOKUP(TEXT($A$3,"0000"),'Bio Gr08'!$A$3:$Q$500,3,FALSE),0) -> 25894 | C54: =IFERROR((IF(OR(B54=0,B54="",B54="NA"),"NA",((IF(VLOOKUP($A$3,'G8-SALL'!$A$6:$AM$500,3,FALSE)>=B54,"100% ("&VLOOKUP($A$3,'G8-SALL'!$A$6:$AM$500,3,FALSE)&")",(ROUND((VLOOKUP($A$3,'G8-SALL'!$A$6:$AM$500,3,FALSE)/B54*100),0))&"% ("&IF(VLOOKUP($A$3,'G8-SALL'!$A$6:$AM$500,3,FALSE)="",0,VLOOKUP($A$3,'G8-SALL'!$A$6:$AM$500,3,FALSE))&")"))))),"NA") -> 92% (23825) | D54: =IFERROR((IF($C54="NA","NA",VLOOKUP($A$3,'G8-SALL'!$A$6:$AM$500,4,FALSE))),"NA") -> 31.03177754 | E54: =IFERROR((IF($C54="NA","NA",ROUND(VLOOKUP($A$3,'G8-SALL'!$A$6:$AM$500,6,FALSE),0)&"% ("&IF(VLOOKUP($A$3,'G8-SALL'!$A$6:$AM$500,5,FALSE)="",0,VLOOKUP($A$3,'G8-SALL'!$A$6:$AM$500,5,FALSE))&")")),"NA") -> 8% (1938) | F54: =IFERROR((IF($C54="NA","NA",VLOOKUP($A$3,'G8-SALL'!$A$6:$AM$500,7,FALSE))),"NA") -> 4.340432319 | G54: =IFERROR((IF($C54="NA","NA",ROUND(VLOOKUP($A$3,'G8-SALL'!$A$6:$AM$500,9,FALSE),0)&"% ("&IF(VLOOKUP($A$3,'G8-SALL'!$A$6:$AM$500,8,FALSE)="",0,VLOOKUP($A$3,'G8-SALL'!$A$6:$AM$500,8,FALSE))&")")),"NA") -> 18% (4365) | H54: =IFERROR((IF($C54="NA","NA",VLOOKUP($A$3,'G8-SALL'!$A$6:$AM$500,10,FALSE))),"NA") -> 9.361250787 | I54: =IFERROR((IF($C54="NA","NA",ROUND(VLOOKUP($A$3,'G8-SALL'!$A$6:$AM$500,12,FALSE),0)&"% ("&IF(VLOOKUP($A$3,'G8-SALL'!$A$6:$AM$500,11,FALSE)="",0,VLOOKUP($A$3,'G8-SALL'!$A$6:$AM$500,11,FALSE))&")")),"NA") -> 8% (1936) | J54: =IFERROR((IF($C54="NA","NA",VLOOKUP($A$3,'G8-SALL'!$A$6:$AM$500,13,FALSE))),"NA") -> 9.243236097 | K54: =IFERROR((IF($C54="NA","NA",ROUND(VLOOKUP($A$3,'G8-SALL'!$A$6:$AM$500,15,FALSE),0)&"% ("&IF(VLOOKUP($A$3,'G8-SALL'!$A$6:$AM$500,14,FALSE)="",0,VLOOKUP($A$3,'G8-SALL'!$A$6:$AM$500,14,FALSE))&")")),"NA") -> 12% (2836) | L54: =IFERROR((IF($C54="NA","NA",VLOOKUP($A$3,'G8-SALL'!$A$6:$AM$500,16,FALSE))),"NA") -> 8.092285414 | M54: =IFERROR((IF($C54="NA","NA",ROUND(VLOOKUP($A$3,'G8-SALL'!$A$6:$AM$500,18,FALSE),0)&"% ("&IF(VLOOKUP($A$3,'G8-SALL'!$A$6:$AM$500,17,FALSE)="",0,VLOOKUP($A$3,'G8-SALL'!$A$6:$AM$500,17,FALSE))&")")),"NA") -> 12% (2907)

Sheet EOC Reports
A2: Click here to return to the school and sheet selection interface
A3: ='Select School'!B3 -> 9999
A4: =TEXT(A3,"0000")&"-"&VLOOKUP(A3,SchList!$A$2:$B$504,2,FALSE) -> 9999-District
A5: Algebra I | Q5: Algebra I
A6: Satisfactory Progress Cut Scores at 44% or above | B6: Course Enrollment | C6: % and/or Number of Tested | D6: ='G9-10 Matrix'!C8&" ["&'G9-10 Matrix'!C9&"]" -> Overall [34] | F6: ='G9-10 Matrix'!D8&" ["&'G9-10 Matrix'!D9&"]" -> Functions, Linear Equations, and Inequalities [13] | H6: ='G9-10 Matrix'!E8&" ["&'G9-10 Matrix'!E9&"]" -> Polynomials [5] | J6: ='G9-10 Matrix'!F8&" ["&'G9-10 Matrix'!F9&"]" -> Rationals, Radicals, Quadratics, and Discrete Mathematics [16] | Q6: Number Tested
D7: Average Score | E7: % Satisfactory | F7: Average Score | G7: % Satisfactory | H7: Average Score | I7: % Satisfactory | J7: Average Score | K7: % Satisfactory
A8: All students | B8: =IFERROR(VLOOKUP(TEXT($A$3,"0000"),'Alg Enrollment'!$A$2:$Q$500,3,FALSE),0) -> 32444 | C8: =IFERROR((IF(OR(B8=0,B8="",B8="NA"),"NA",((IF(VLOOKUP($A$3,'ALG-ALL'!$A$6:$AM$500,3,FALSE)>=B8,"100% ("&VLOOKUP($A$3,'ALG-ALL'!$A$6:$AM$500,3,FALSE)&")",(ROUND((VLOOKUP($A$3,'ALG-ALL'!$A$6:$AM$500,3,FALSE)/B8*100),0))&"% ("&IF(VLOOKUP($A$3,'ALG-ALL'!$A$6:$AM$500,3,FALSE)="",0,VLOOKUP($A$3,'ALG-ALL'!$A$6:$AM$500,3,FALSE))&")"))))),"0% (0)") -> 92% (29850) | D8: =IFERROR((IF($C8="NA","NA",VLOOKUP($A$3,'ALG-ALL'!$A$6:$AM$500,4,FALSE))),"NA") -> 15.27446901 | E8: =IFERROR((IF($C8="NA","NA",ROUND(VLOOKUP($A$3,'ALG-ALL'!$A$6:$AM$500,6,FALSE),0)&"% ("&IF(VLOOKUP($A$3,'ALG-ALL'!$A$6:$AM$500,5,FALSE)="",0,VLOOKUP($A$3,'ALG-ALL'!$A$6:$AM$500,5,FALSE))&")")),"NA") -> 50% (14854) | F8: =IFERROR((IF($C8="NA","NA",VLOOKUP($A$3,'ALG-ALL'!$A$6:$AM$500,7,FALSE))),"NA") -> 6.034046901 | G8: NA | H8: =IFERROR((IF($C8="NA","NA",VLOOKUP($A$3,'ALG-ALL'!$A$6:$AM$500,10,FALSE))),"NA") -> 2.022703518 | I8: NA | J8: =IFERROR((IF($C8="NA","NA",VLOOKUP($A$3,'ALG-ALL'!$A$6:$AM$500,13,FALSE))),"NA") -> 7.213865997 | K8: NA | Q8: =IFERROR(VLOOKUP($A$3,'ALG-ALL'!$A$6:$AA$500,3,FALSE),"not tested") -> 29850
A9: FCAT Level 1 | B9: =IFERROR(VLOOKUP(TEXT($A$3,"0000"),'Alg Enrollment'!$A$2:$Q$500,4,FALSE),0) -> 5332 | C9: =IFERROR((IF(OR(B9=0,B9="",B9="NA"),"NA",((IF(VLOOKUP($A$3,'ALG-L1'!$A$6:$AM$500,3,FALSE)>=B9,"100% ("&VLOOKUP($A$3,'ALG-L1'!$A$6:$AM$500,3,FALSE)&")",(ROUND((VLOOKUP($A$3,'ALG-L1'!$A$6:$AM$500,3,FALSE)/B9*100),0))&"% ("&IF(VLOOKUP($A$3,'ALG-L1'!$A$6:$AM$500,3,FALSE)="",0,VLOOKUP($A$3,'ALG-L1'!$A$6:$AM$500,3,FALSE))&")"))))),"0% (0)") -> 100% (5460) | D9: =IFERROR((IF($C9="NA","NA",VLOOKUP($A$3,'ALG-L1'!$A$6:$AG$500,4,FALSE))),"NA") -> 10.57049451 | E9: =IFERROR((IF($C9="NA","NA",ROUND(VLOOKUP($A$3,'ALG-L1'!$A$6:$AG$500,6,FALSE),0)&"% ("&IF(VLOOKUP($A$3,'ALG-L1'!$A$6:$AG$500,5,FALSE)="",0,VLOOKUP($A$3,'ALG-L1'!$A$6:$AG$500,5,FALSE))&")")),"NA") -> 13% (718) | F9: =IFERROR((IF($C9="NA","NA",VLOOKUP($A$3,'ALG-L1'!$A$6:$AG$500,7,FALSE))),"NA") -> 4.094432234 | G9: NA | H9: =IFERROR((IF($C9="NA","NA",VLOOKUP($A$3,'ALG-L1'!$A$6:$AM$500,10,FALSE))),"NA") -> 1.462838828 | I9: NA | J9: =IFERROR((IF($C9="NA","NA",VLOOKUP($A$3,'ALG-L1'!$A$6:$AM$500,13,FALSE))),"NA") -> 5.017802198 | K9: NA | Q9: =IFERROR(VLOOKUP($A$3,'ALG-L1'!$A$6:$BX$500,3,FALSE),"not tested") -> 5460
A10: FCAT Level 2 | B10: =IFERROR(VLOOKUP(TEXT($A$3,"0000"),'Alg Enrollment'!$A$2:$Q$500,5,FALSE),0) -> 5370 | C10: =IFERROR((IF(OR(B10=0,B10="",B10="NA"),"NA",((IF(VLOOKUP($A$3,'ALG-L2'!$A$6:$AM$500,3,FALSE)>=B10,"100% ("&VLOOKUP($A$3,'ALG-L2'!$A$6:$AM$500,3,FALSE)&")",(ROUND((VLOOKUP($A$3,'ALG-L2'!$A$6:$AM$500,3,FALSE)/B10*100),0))&"% ("&IF(VLOOKUP($A$3,'ALG-L2'!$A$6:$AM$500,3,FALSE)="",0,VLOOKUP($A$3,'ALG-L2'!$A$6:$AM$500,3,FALSE))&")"))))),"0% (0)") -> 100% (5454) | D10: =IFERROR((IF($C10="NA","NA",VLOOKUP($A$3,'ALG-L2'!$A$6:$AG$500,4,FALSE))),"NA") -> 12.72779611 | E10: =IFERROR((IF($C10="NA","NA",ROUND(VLOOKUP($A$3,'ALG-L2'!$A$6:$AG$500,6,FALSE),0)&"% ("&IF(VLOOKUP($A$3,'ALG-L2'!$A$6:$AG$500,5,FALSE)="",0,VLOOKUP($A$3,'ALG-L2'!$A$6:$AG$500,5,FALSE))&")")),"NA") -> 30% (1632) | F10: =IFERROR((IF($C10="NA","NA",VLOOKUP($A$3,'ALG-L2'!$A$6:$AG$500,7,FALSE))),"NA") -> 4.861716172 | G10: NA | H10: =IFERROR((IF($C10="NA","NA",VLOOKUP($A$3,'ALG-L2'!$A$6:$AM$500,10,FALSE))),"NA") -> 1.738723872 | I10: NA | J10: =IFERROR((IF($C10="NA","NA",VLOOKUP($A$3,'ALG-L2'!$A$6:$AM$500,13,FALSE))),"NA") -> 6.118426843 | K10: NA | Q10: =IFERROR(VLOOKUP($A$3,'ALG-L2'!$A$6:$BX$500,3,FALSE),"not tested") -> 5454
A11: FCAT Level 3 | B11: =IFERROR(VLOOKUP(TEXT($A$3,"0000"),'Alg Enrollment'!$A$2:$Q$500,6,FALSE),0) -> 9822 | C11: =IFERROR((IF(OR(B11=0,B11="",B11="NA"),"NA",((IF(VLOOKUP($A$3,'ALG-L3'!$A$6:$AM$500,3,FALSE)>=B11,"100% ("&VLOOKUP($A$3,'ALG-L3'!$A$6:$AM$500,3,FALSE)&")",(ROUND((VLOOKUP($A$3,'ALG-L3'!$A$6:$AM$500,3,FALSE)/B11*100),0))&"% ("&IF(VLOOKUP($A$3,'ALG-L3'!$A$6:$AM$500,3,FALSE)="",0,VLOOKUP($A$3,'ALG-L3'!$A$6:$AM$500,3,FALSE))&")"))))),"0% (0)") -> 100% (9835) | D11: =IFERROR((IF($C11="NA","NA",VLOOKUP($A$3,'ALG-L3'!$A$6:$AG$500,4,FALSE))),"NA") -> 15.43846467 | E11: =IFERROR((IF($C11="NA","NA",ROUND(VLOOKUP($A$3,'ALG-L3'!$A$6:$AG$500,6,FALSE),0)&"% ("&IF(VLOOKUP($A$3,'ALG-L3'!$A$6:$AG$500,5,FALSE)="",0,VLOOKUP($A$3,'ALG-L3'!$A$6:$AG$500,5,FALSE))&")")),"NA") -> 54% (5299) | F11: =IFERROR((IF($C11="NA","NA",VLOOKUP($A$3,'ALG-L3'!$A$6:$AG$500,7,FALSE))),"NA") -> 6.066446365 | G11: NA | H11: =IFERROR((IF($C11="NA","NA",VLOOKUP($A$3,'ALG-L3'!$A$6:$AM$500,10,FALSE))),"NA") -> 2.014641586 | I11: NA | J11: =IFERROR((IF($C11="NA","NA",VLOOKUP($A$3,'ALG-L3'!$A$6:$AM$500,13,FALSE))),"NA") -> 7.363070666 | K11: NA | Q11: =IFERROR(VLOOKUP($A$3,'ALG-L3'!$A$6:$BX$500,3,FALSE),"not tested") -> 9835
A12: FCAT Level 4 | B12: =IFERROR(VLOOKUP(TEXT($A$3,"0000"),'Alg Enrollment'!$A$2:$Q$500,7,FALSE),0) -> 5534 | C12: =IFERROR((IF(OR(B12=0,B12="",B12="NA"),"NA",((IF(VLOOKUP($A$3,'ALG-L4'!$A$6:$AM$500,3,FALSE)>=B12,"100% ("&VLOOKUP($A$3,'ALG-L4'!$A$6:$AM$500,3,FALSE)&")",(ROUND((VLOOKUP($A$3,'ALG-L4'!$A$6:$AM$500,3,FALSE)/B12*100),0))&"% ("&IF(VLOOKUP($A$3,'ALG-L4'!$A$6:$AM$500,3,FALSE)="",0,VLOOKUP($A$3,'ALG-L4'!$A$6:$AM$500,3,FALSE))&")"))))),"0% (0)") -> 96% (5294) | D12: =IFERROR((IF($C12="NA","NA",VLOOKUP($A$3,'ALG-L4'!$A$6:$AG$500,4,FALSE))),"NA") -> 19.14344541 | E12: =IFERROR((IF($C12="NA","NA",ROUND(VLOOKUP($A$3,'ALG-L4'!$A$6:$AG$500,6,FALSE),0)&"% ("&IF(VLOOKUP($A$3,'ALG-L4'!$A$6:$AG$500,5,FALSE)="",0,VLOOKUP($A$3,'ALG-L4'!$A$6:$AG$500,5,FALSE))&")")),"NA") -> 81% (4280) | F12: =IFERROR((IF($C12="NA","NA",VLOOKUP($A$3,'ALG-L4'!$A$6:$AG$500,7,FALSE))),"NA") -> 7.748243294 | G12: NA | H12: =IFERROR((IF($C12="NA","NA",VLOOKUP($A$3,'ALG-L4'!$A$6:$AM$500,10,FALSE))),"NA") -> 2.443332074 | I12: NA | J12: =IFERROR((IF($C12="NA","NA",VLOOKUP($A$3,'ALG-L4'!$A$6:$AM$500,13,FALSE))),"NA") -> 8.957442388 | K12: NA | Q12: =IFERROR(VLOOKUP($A$3,'ALG-L4'!$A$6:$BX$500,3,FALSE),"not tested") -> 5294
A13: FCAT Level 5 | B13: =IFERROR(VLOOKUP(TEXT($A$3,"0000"),'Alg Enrollment'!$A$2:$Q$500,8,FALSE),0) -> 2712 | C13: =IFERROR((IF(OR(B13=0,B13="",B13="NA"),"NA",((IF(VLOOKUP($A$3,'ALG-L5'!$A$6:$AM$500,3,FALSE)>=B13,"100% ("&VLOOKUP($A$3,'ALG-L5'!$A$6:$AM$500,3,FALSE)&")",(ROUND((VLOOKUP($A$3,'ALG-L5'!$A$6:$AM$500,3,FALSE)/B13*100),0))&"% ("&IF(VLOOKUP($A$3,'ALG-L5'!$A$6:$AM$500,3,FALSE)="",0,VLOOKUP($A$3,'ALG-L5'!$A$6:$AM$500,3,FALSE))&")"))))),"0% (0)") -> 94% (2555) | D13: =IFERROR((IF($C13="NA","NA",VLOOKUP($A$3,'ALG-L5'!$A$6:$AG$500,4,FALSE))),"NA") -> 22.89600783 | E13: =IFERROR((IF($C13="NA","NA",ROUND(VLOOKUP($A$3,'ALG-L5'!$A$6:$AG$500,6,FALSE),0)&"% ("&IF(VLOOKUP($A$3,'ALG-L5'!$A$6:$AG$500,5,FALSE)="",0,VLOOKUP($A$3,'ALG-L5'!$A$6:$AG$500,5,FALSE))&")")),"NA") -> 95% (2436) | F13: =IFERROR((IF($C13="NA","NA",VLOOKUP($A$3,'ALG-L5'!$A$6:$AG$500,7,FALSE))),"NA") -> 9.337612524 | G13: NA | H13: =IFERROR((IF($C13="NA","NA",VLOOKUP($A$3,'ALG-L5'!$A$6:$AM$500,10,FALSE))),"NA") -> 2.943561644 | I13: NA | J13: =IFERROR((IF($C13="NA","NA",VLOOKUP($A$3,'ALG-L5'!$A$6:$AM$500,13,FALSE))),"NA") -> 10.61111546 | K13: NA | Q13: =IFERROR(VLOOKUP($A$3,'ALG-L5'!$A$6:$BX$500,3,FALSE),"not tested") -> 2555
A14: White | B14: =IFERROR(VLOOKUP(TEXT($A$3,"0000"),'Alg Enrollment'!$A$2:$Q$500,10,FALSE),0) -> 2752 | C14: =IFERROR((IF(OR(B14=0,B14="",B14="NA"),"NA",((IF(VLOOKUP($A$3,'ALG-W'!$A$6:$AG$500,3,FALSE)>=B14,"100% ("&VLOOKUP($A$3,'ALG-W'!$A$6:$AG$500,3,FALSE)&")",(ROUND((VLOOKUP($A$3,'ALG-W'!$A$6:$AG$500,3,FALSE)/B14*100),0))&"% ("&IF(VLOOKUP($A$3,'ALG-W'!$A$6:$AG$500,3,FALSE)="",0,VLOOKUP($A$3,'ALG-W'!$A$6:$AG$500,3,FALSE))&")"))))),"0% (0)") -> 88% (2417) | D14: =IFERROR((IF($C14="NA","NA",VLOOKUP($A$3,'ALG-W'!$A$6:$AG$500,4,FALSE))),"NA") -> 17.04720728 | E14: =IFERROR((IF($C14="NA","NA",ROUND(VLOOKUP($A$3,'ALG-W'!$A$6:$AG$500,6,FALSE),0)&"% ("&IF(VLOOKUP($A$3,'ALG-W'!$A$6:$AG$500,5,FALSE)="",0,VLOOKUP($A$3,'ALG-W'!$A$6:$AG$500,5,FALSE))&")")),"NA") -> 60% (1462) | F14: =IFERROR((IF($C14="NA","NA",VLOOKUP($A$3,'ALG-W'!$A$6:$AG$500,7,FALSE))),"NA") -> 6.849689698 | G14: NA | H14: =IFERROR((IF($C14="NA","NA",VLOOKUP($A$3,'ALG-W'!$A$6:$AM$500,10,FALSE))),"NA") -> 2.195614398 | I14: NA | J14: =IFERROR((IF($C14="NA","NA",VLOOKUP($A$3,'ALG-W'!$A$6:$AM$500,13,FALSE))),"NA") -> 8.011170873 | K14: NA | Q14: =IFERROR(VLOOKUP($A$3,'ALG-W'!$A$6:$BX$500,3,FALSE),"not tested") -> 2417
A15: Black | B15: =IFERROR(VLOOKUP(TEXT($A$3,"0000"),'Alg Enrollment'!$A$2:$Q$500,11,FALSE),0) -> 7658 | C15: =IFERROR((IF(OR(B15=0,B15="",B15="NA"),"NA",((IF(VLOOKUP($A$3,'ALG-B'!$A$6:$AG$500,3,FALSE)>=B15,"100% ("&VLOOKUP($A$3,'ALG-B'!$A$6:$AG$500,3,FALSE)&")",(ROUND((VLOOKUP($A$3,'ALG-B'!$A$6:$AG$500,3,FALSE)/B15*100),0))&"% ("&IF(VLOOKUP($A$3,'ALG-B'!$A$6:$AG$500,3,FALSE)="",0,VLOOKUP($A$3,'ALG-B'!$A$6:$AG$500,3,FALSE))&")"))))),"0% (0)") -> 89% (6829) | D15: =IFERROR((IF($C15="NA","NA",VLOOKUP($A$3,'ALG-B'!$A$6:$AG$500,4,FALSE))),"NA") -> 14.07348074 | E15: =IFERROR((IF($C15="NA","NA",ROUND(VLOOKUP($A$3,'ALG-B'!$A$6:$AG$500,6,FALSE),0)&"% ("&IF(VLOOKUP($A$3,'ALG-B'!$A$6:$AG$500,5,FALSE)="",0,VLOOKUP($A$3,'ALG-B'!$A$6:$AG$500,5,FALSE))&")")),"NA") -> 42% (2864) | F15: =IFERROR((IF($C15="NA","NA",VLOOKUP($A$3,'ALG-B'!$A$6:$AG$500,7,FALSE))),"NA") -> 5.322492312 | G15: NA | H15: =IFERROR((IF($C15="NA","NA",VLOOKUP($A$3,'ALG-B'!$A$6:$AM$500,10,FALSE))),"NA") -> 1.894186557 | I15: NA | J15: =IFERROR((IF($C15="NA","NA",VLOOKUP($A$3,'ALG-B'!$A$6:$AM$500,13,FALSE))),"NA") -> 6.888680627 | K15: NA | Q15: =IFERROR(VLOOKUP($A$3,'ALG-B'!$A$6:$BX$500,3,FALSE),"not tested") -> 6829
A16: Hispanic | B16: =IFERROR(VLOOKUP(TEXT($A$3,"0000"),'Alg Enrollment'!$A$2:$Q$500,12,FALSE),0) -> 21560 | C16: =IFERROR((IF(OR(B16=0,B16="",B16="NA"),"NA",((IF(VLOOKUP($A$3,'ALG-H'!$A$6:$AG$500,3,FALSE)>=B16,"100% ("&VLOOKUP($A$3,'ALG-H'!$A$6:$AG$500,3,FALSE)&")",(ROUND((VLOOKUP($A$3,'ALG-H'!$A$6:$AG$500,3,FALSE)/B16*100),0))&"% ("&IF(VLOOKUP($A$3,'ALG-H'!$A$6:$AG$500,3,FALSE)="",0,VLOOKUP($A$3,'ALG-H'!$A$6:$AG$500,3,FALSE))&")"))))),"0% (0)") -> 94% (20168) | D16: =IFERROR((IF($C16="NA","NA",VLOOKUP($A$3,'ALG-H'!$A$6:$AG$500,4,FALSE))),"NA") -> 15.37754363 | E16: =IFERROR((IF($C16="NA","NA",ROUND(VLOOKUP($A$3,'ALG-H'!$A$6:$AG$500,6,FALSE),0)&"% ("&IF(VLOOKUP($A$3,'ALG-H'!$A$6:$AG$500,5,FALSE)="",0,VLOOKUP($A$3,'ALG-H'!$A$6:$AG$500,5,FALSE))&")")),"NA") -> 51% (10199) | F16: =IFERROR((IF($C16="NA","NA",VLOOKUP($A$3,'ALG-H'!$A$6:$AG$500,7,FALSE))),"NA") -> 6.138214002 | G16: NA | H16: =IFERROR((IF($C16="NA","NA",VLOOKUP($A$3,'ALG-H'!$A$6:$AM$500,10,FALSE))),"NA") -> 2.036681872 | I16: NA | J16: =IFERROR((IF($C16="NA","NA",VLOOKUP($A$3,'ALG-H'!$A$6:$AM$500,13,FALSE))),"NA") -> 7.198790163 | K16: NA | Q16: =IFERROR(VLOOKUP($A$3,'ALG-H'!$A$6:$BX$500,3,FALSE),"not tested") -> 20168
A17: Asian | B17: =IFERROR(VLOOKUP(TEXT($A$3,"0000"),'Alg Enrollment'!$A$2:$Q$500,13,FALSE),0) -> 364 | C17: =IFERROR((IF(OR(B17=0,B17="",B17="NA"),"NA",((IF(VLOOKUP($A$3,'ALG-A'!$A$6:$AG$500,3,FALSE)>=B17,"100% ("&VLOOKUP($A$3,'ALG-A'!$A$6:$AG$500,3,FALSE)&")",(ROUND((VLOOKUP($A$3,'ALG-A'!$A$6:$AG$500,3,FALSE)/B17*100),0))&"% ("&IF(VLOOKUP($A$3,'ALG-A'!$A$6:$AG$500,3,FALSE)="",0,VLOOKUP($A$3,'ALG-A'!$A$6:$AG$500,3,FALSE))&")"))))),"0% (0)") -> 92% (334) | D17: =IFERROR((IF($C17="NA","NA",VLOOKUP($A$3,'ALG-A'!$A$6:$AG$500,4,FALSE))),"NA") -> 19.87844311 | E17: =IFERROR((IF($C17="NA","NA",ROUND(VLOOKUP($A$3,'ALG-A'!$A$6:$AG$500,6,FALSE),0)&"% ("&IF(VLOOKUP($A$3,'ALG-A'!$A$6:$AG$500,5,FALSE)="",0,VLOOKUP($A$3,'ALG-A'!$A$6:$AG$500,5,FALSE))&")")),"NA") -> 79% (263) | F17: =IFERROR((IF($C17="NA","NA",VLOOKUP($A$3,'ALG-A'!$A$6:$AG$500,7,FALSE))),"NA") -> 7.935628743 | G17: NA | H17: =IFERROR((IF($C17="NA","NA",VLOOKUP($A$3,'ALG-A'!$A$6:$AM$500,10,FALSE))),"NA") -> 2.762874251 | I17: NA | J17: =IFERROR((IF($C17="NA","NA",VLOOKUP($A$3,'ALG-A'!$A$6:$AM$500,13,FALSE))),"NA") -> 9.196407186 | K17: NA | Q17: =IFERROR(VLOOKUP($A$3,'ALG-A'!$A$6:$BX$500,3,FALSE),"not tested") -> 334
A18: Am. Indian | B18: =IFERROR(VLOOKUP(TEXT($A$3,"0000"),'Alg Enrollment'!$A$2:$Q$500,14,FALSE),0) -> 30 | C18: =IFERROR((IF(OR(B18=0,B18="",B18="NA"),"NA",((IF(VLOOKUP($A$3,'ALG-I'!$A$6:$AG$500,3,FALSE)>=B18,"100% ("&VLOOKUP($A$3,'ALG-I'!$A$6:$AG$500,3,FALSE)&")",(ROUND((VLOOKUP($A$3,'ALG-I'!$A$6:$AG$500,3,FALSE)/B18*100),0))&"% ("&IF(VLOOKUP($A$3,'ALG-I'!$A$6:$AG$500,3,FALSE)="",0,VLOOKUP($A$3,'ALG-I'!$A$6:$AG$500,3,FALSE))&")"))))),"0% (0)") -> 90% (27) | D18: =IFERROR((IF($C18="NA","NA",VLOOKUP($A$3,'ALG-I'!$A$6:$AG$500,4,FALSE))),"NA") -> 17.2962963 | E18: =IFERROR((IF($C18="NA","NA",ROUND(VLOOKUP($A$3,'ALG-I'!$A$6:$AG$500,6,FALSE),0)&"% ("&IF(VLOOKUP($A$3,'ALG-I'!$A$6:$AG$500,5,FALSE)="",0,VLOOKUP($A$3,'ALG-I'!$A$6:$AG$500,5,FALSE))&")")),"NA") -> 59% (16) | F18: =IFERROR((IF($C18="NA","NA",VLOOKUP($A$3,'ALG-I'!$A$6:$AG$500,7,FALSE))),"NA") -> 7.337037037 | G18: NA | H18: =IFERROR((IF($C18="NA","NA",VLOOKUP($A$3,'ALG-I'!$A$6:$AM$500,10,FALSE))),"NA") -> 2.218518519 | I18: NA | J18: =IFERROR((IF($C18="NA","NA",VLOOKUP($A$3,'ALG-I'!$A$6:$AM$500,13,FALSE))),"NA") -> 7.740740741 | K18: NA | Q18: =IFERROR(VLOOKUP($A$3,'ALG-I'!$A$6:$BX$500,3,FALSE),"not tested") -> 27
A19: ED | B19: =IFERROR(VLOOKUP(TEXT($A$3,"0000"),'Alg Enrollment'!$A$2:$Q$500,15,FALSE),0) -> 23742 | C19: =IFERROR((IF(OR(B19=0,B19="",B19="NA"),"NA",((IF(VLOOKUP($A$3,'ALG-ED'!$A$6:$AG$500,3,FALSE)>=B19,"100% ("&VLOOKUP($A$3,'ALG-ED'!$A$6:$AG$500,3,FALSE)&")",(ROUND((VLOOKUP($A$3,'ALG-ED'!$A$6:$AG$500,3,FALSE)/B19*100),0))&"% ("&IF(VLOOKUP($A$3,'ALG-ED'!$A$6:$AG$500,3,FALSE)="",0,VLOOKUP($A$3,'ALG-ED'!$A$6:$AG$500,3,FALSE))&")"))))),"0% (0)") -> 100% (23828) | D19: =IFERROR((IF($C19="NA","NA",VLOOKUP($A$3,'ALG-ED'!$A$6:$AG$500,4,FALSE))),"NA") -> 14.80173745 | E19: =IFERROR((IF($C19="NA","NA",ROUND(VLOOKUP($A$3,'ALG-ED'!$A$6:$AG$500,6,FALSE),0)&"% ("&IF(VLOOKUP($A$3,'ALG-ED'!$A$6:$AG$500,5,FALSE)="",0,VLOOKUP($A$3,'ALG-ED'!$A$6:$AG$500,5,FALSE))&")")),"NA") -> 47% (11093) | F19: =IFERROR((IF($C19="NA","NA",VLOOKUP($A$3,'ALG-ED'!$A$6:$AG$500,7,FALSE))),"NA") -> 5.81475575 | G19: NA | H19: =IFERROR((IF($C19="NA","NA",VLOOKUP($A$3,'ALG-ED'!$A$6:$AM$500,10,FALSE))),"NA") -> 1.967189861 | I19: NA | J19: =IFERROR((IF($C19="NA","NA",VLOOKUP($A$3,'ALG-ED'!$A$6:$AM$500,13,FALSE))),"NA") -> 7.025935874 | K19: NA | Q19: =IFERROR(VLOOKUP($A$3,'ALG-ED'!$A$6:$BX$500,3,FALSE),"not tested") -> 23828
A20: ELL | B20: =IFERROR(VLOOKUP(TEXT($A$3,"0000"),'Alg Enrollment'!$A$2:$Q$500,16,FALSE),0) -> 4642 | C20: =IFERROR((IF(OR(B20=0,B20="",B20="NA"),"NA",((IF(VLOOKUP($A$3,'ALG-ELL'!$A$6:$AG$500,3,FALSE)>=B20,"100% ("&VLOOKUP($A$3,'ALG-ELL'!$A$6:$AG$500,3,FALSE)&")",(ROUND((VLOOKUP($A$3,'ALG-ELL'!$A$6:$AG$500,3,FALSE)/B20*100),0))&"% ("&IF(VLOOKUP($A$3,'ALG-ELL'!$A$6:$AG$500,3,FALSE)="",0,VLOOKUP($A$3,'ALG-ELL'!$A$6:$AG$500,3,FALSE))&")"))))),"0% (0)") -> 88% (4070) | D20: =IFERROR((IF($C20="NA","NA",VLOOKUP($A$3,'ALG-ELL'!$A$6:$AG$500,4,FALSE))),"NA") -> 13.75823096 | E20: =IFERROR((IF($C20="NA","NA",ROUND(VLOOKUP($A$3,'ALG-ELL'!$A$6:$AG$500,6,FALSE),0)&"% ("&IF(VLOOKUP($A$3,'ALG-ELL'!$A$6:$AG$500,5,FALSE)="",0,VLOOKUP($A$3,'ALG-ELL'!$A$6:$AG$500,5,FALSE))&")")),"NA") -> 38% (1564) | F20: =IFERROR((IF($C20="NA","NA",VLOOKUP($A$3,'ALG-ELL'!$A$6:$AG$500,7,FALSE))),"NA") -> 5.491154791 | G20: NA | H20: =IFERROR((IF($C20="NA","NA",VLOOKUP($A$3,'ALG-ELL'!$A$6:$AM$500,10,FALSE))),"NA") -> 1.964127764 | I20: NA | J20: =IFERROR((IF($C20="NA","NA",VLOOKUP($A$3,'ALG-ELL'!$A$6:$AM$500,13,FALSE))),"NA") -> 6.302948403 | K20: NA | Q20: =IFERROR(VLOOKUP($A$3,'ALG-ELL'!$A$6:$BX$500,3,FALSE),"not tested") -> 4070
A21: SWD | B21: =IFERROR(VLOOKUP(TEXT($A$3,"0000"),'Alg Enrollment'!$A$2:$Q$500,17,FALSE),0) -> 3084 | C21: =IFERROR((IF(OR(B21=0,B21="",B21="NA"),"NA",((IF(VLOOKUP($A$3,'ALG-SWD'!$A$6:$AG$500,3,FALSE)>=B21,"100% ("&VLOOKUP($A$3,'ALG-SWD'!$A$6:$AG$500,3,FALSE)&")",(ROUND((VLOOKUP($A$3,'ALG-SWD'!$A$6:$AG$500,3,FALSE)/B21*100),0))&"% ("&IF(VLOOKUP($A$3,'ALG-SWD'!$A$6:$AG$500,3,FALSE)="",0,VLOOKUP($A$3,'ALG-SWD'!$A$6:$AG$500,3,FALSE))&")"))))),"0% (0)") -> 88% (2705) | D21: =IFERROR((IF($C21="NA","NA",VLOOKUP($A$3,'ALG-SWD'!$A$6:$AG$500,4,FALSE))),"NA") -> 11.95020333 | E21: =IFERROR((IF($C21="NA","NA",ROUND(VLOOKUP($A$3,'ALG-SWD'!$A$6:$AG$500,6,FALSE),0)&"% ("&IF(VLOOKUP($A$3,'ALG-SWD'!$A$6:$AG$500,5,FALSE)="",0,VLOOKUP($A$3,'ALG-SWD'!$A$6:$AG$500,5,FALSE))&")")),"NA") -> 25% (664) | F21: =IFERROR((IF($C21="NA","NA",VLOOKUP($A$3,'ALG-SWD'!$A$6:$AG$500,7,FALSE))),"NA") -> 4.683401109 | G21: NA | H21: =IFERROR((IF($C21="NA","NA",VLOOKUP($A$3,'ALG-SWD'!$A$6:$AM$500,10,FALSE))),"NA") -> 1.632495379 | I21: NA | J21: =IFERROR((IF($C21="NA","NA",VLOOKUP($A$3,'ALG-SWD'!$A$6:$AM$500,13,FALSE))),"NA") -> 5.643216266 | K21: NA | Q21: =IFERROR(VLOOKUP($A$3,'ALG-SWD'!$A$6:$BX$500,3,FALSE),"not tested") -> 2705
A22: Geometry | Q22: Geometry
A23: Level of Proficiency at 70% or above | B23: Course Enrollment | C23: % and/or Number of Tested | D23: ='G9-10 Matrix'!C12&" ["&'G9-10 Matrix'!C13&"]" -> Overall [38] | F23: ='G9-10 Matrix'!D12&" ["&'G9-10 Matrix'!D13&"]" -> Two-Dimensional Geometry [38] | H23: ='G9-10 Matrix'!E12&" ["&'G9-10 Matrix'!E13&"]" -> Three-Dimensional Geometry [0] | J23: ='G9-10 Matrix'!F12&" ["&'G9-10 Matrix'!F13&"]" -> Trigonometry and Discrete Mathematics [0] | Q23: Number Tested
D24: Average Score | E24: % Proficient | F24: Average Score | G24: % Proficient | H24: Average Score | I24: % Proficient | J24: Average Score | K24: % Proficient
A25: All students | B25: =IFERROR(VLOOKUP(TEXT($A$3,"0000"),'Geo Enrollment'!$A$3:$Q$500,3,FALSE),0) -> 28296 | C25: =IFERROR((IF(OR(B25=0,B25="",B25="NA"),"NA",((IF(VLOOKUP($A$3,'GEO-ALL'!$A$6:$AM$500,3,FALSE)>=B25,"100% ("&VLOOKUP($A$3,'GEO-ALL'!$A$6:$AM$500,3,FALSE)&")",(ROUND((VLOOKUP($A$3,'GEO-ALL'!$A$6:$AM$500,3,FALSE)/B25*100),0))&"% ("&IF(VLOOKUP($A$3,'GEO-ALL'!$A$6:$AM$500,3,FALSE)="",0,VLOOKUP($A$3,'GEO-ALL'!$A$6:$AM$500,3,FALSE))&")"))))),"0% (0)") -> 91% (25864) | D25: =IFERROR((IF($C25="NA","NA",VLOOKUP($A$3,'GEO-ALL'!$A$6:$AM$500,4,FALSE))),"NA") -> 19.81481983 | E25: =IFERROR((IF($C25="NA","NA",ROUND(VLOOKUP($A$3,'GEO-ALL'!$A$6:$AM$500,6,FALSE),0)&"% ("&IF(VLOOKUP($A$3,'GEO-ALL'!$A$6:$AM$500,5,FALSE)="",0,VLOOKUP($A$3,'GEO-ALL'!$A$6:$AM$500,5,FALSE))&")")),"NA") -> 17% (4448) | F25: =IFERROR((IF($C25="NA","NA",VLOOKUP($A$3,'GEO-ALL'!$A$6:$AM$500,7,FALSE))),"NA") -> 19.81481983 | G25: =IFERROR((IF($C25="NA","NA",ROUND(VLOOKUP($A$3,'GEO-ALL'!$A$6:$AM$500,9,FALSE),0)&"% ("&IF(VLOOKUP($A$3,'GEO-ALL'!$A$6:$AM$500,8,FALSE)="",0,VLOOKUP($A$3,'GEO-ALL'!$A$6:$AM$500,8,FALSE))&")")),"NA") -> 17% (4448) | H25: NT | I25: NT | J25: NT | K25: NT | Q25: =IFERROR(VLOOKUP($A$3,'GEO-ALL'!$A$6:$BX$500,3,FALSE),"not tested") -> 25864
A26: FCAT Level 1 | B26: NA | C26: =IFERROR((IF(OR(B26=0,B26="",B26="NA"),"NA",((IF(VLOOKUP($A$3,'GEO-L1'!$A$6:$AM$500,3,FALSE)>=B26,"100% ("&VLOOKUP($A$3,'GEO-L1'!$A$6:$AM$500,3,FALSE)&")",(ROUND((VLOOKUP($A$3,'GEO-L1'!$A$6:$AM$500,3,FALSE)/B26*100),0))&"% ("&IF(VLOOKUP($A$3,'GEO-L1'!$A$6:$AM$500,3,FALSE)="",0,VLOOKUP($A$3,'GEO-L1'!$A$6:$AM$500,3,FALSE))&")"))))),"0% (0)") -> NA | D26: NA | E26: NA | F26: NA | G26: NA | H26: NA | I26: NA | J26: NA | K26: NA | Q26: =IFERROR(VLOOKUP($A$3,'GEO-L1'!$A$6:$BX$500,3,FALSE),"not tested") -> 2922
A27: FCAT Level 2 | B27: NA | C27: =IFERROR((IF(OR(B27=0,B27="",B27="NA"),"NA",((IF(VLOOKUP($A$3,'GEO-L2'!$A$6:$AM$500,3,FALSE)>=B27,"100% ("&VLOOKUP($A$3,'GEO-L2'!$A$6:$AM$500,3,FALSE)&")",(ROUND((VLOOKUP($A$3,'GEO-L2'!$A$6:$AM$500,3,FALSE)/B27*100),0))&"% ("&IF(VLOOKUP($A$3,'GEO-L2'!$A$6:$AM$500,3,FALSE)="",0,VLOOKUP($A$3,'GEO-L2'!$A$6:$AM$500,3,FALSE))&")"))))),"0% (0)") -> NA | D27: NA | E27: NA | F27: NA | G27: NA | H27: NA | I27: NA | J27: NA | K27: NA | Q27: =IFERROR(VLOOKUP($A$3,'GEO-L2'!$A$6:$BX$500,3,FALSE),"not tested") -> 4927
A28: FCAT Level 3 | B28: NA | C28: =IFERROR((IF(OR(B28=0,B28="",B28="NA"),"NA",((IF(VLOOKUP($A$3,'GEO-L3'!$A$6:$AM$500,3,FALSE)>=B28,"100% ("&VLOOKUP($A$3,'GEO-L3'!$A$6:$AM$500,3,FALSE)&")",(ROUND((VLOOKUP($A$3,'GEO-L3'!$A$6:$AM$500,3,FALSE)/B28*100),0))&"% ("&IF(VLOOKUP($A$3,'GEO-L3'!$A$6:$AM$500,3,FALSE)="",0,VLOOKUP($A$3,'GEO-L3'!$A$6:$AM$500,3,FALSE))&")"))))),"0% (0)") -> NA | D28: NA | E28: NA | F28: NA | G28: NA | H28: NA | I28: NA | J28: NA | K28: NA | Q28: =IFERROR(VLOOKUP($A$3,'GEO-L3'!$A$6:$BX$500,3,FALSE),"not tested") -> 9146
A29: FCAT Level 4 | B29: NA | C29: =IFERROR((IF(OR(B29=0,B29="",B29="NA"),"NA",((IF(VLOOKUP($A$3,'GEO-L4'!$A$6:$AM$500,3,FALSE)>=B29,"100% ("&VLOOKUP($A$3,'GEO-L4'!$A$6:$AM$500,3,FALSE)&")",(ROUND((VLOOKUP($A$3,'GEO-L4'!$A$6:$AM$500,3,FALSE)/B29*100),0))&"% ("&IF(VLOOKUP($A$3,'GEO-L4'!$A$6:$AM$500,3,FALSE)="",0,VLOOKUP($A$3,'GEO-L4'!$A$6:$AM$500,3,FALSE))&")"))))),"0% (0)") -> NA | D29: NA | E29: NA | F29: NA | G29: NA | H29: NA | I29: NA | J29: NA | K29: NA | Q29: =IFERROR(VLOOKUP($A$3,'GEO-L4'!$A$6:$BX$500,3,FALSE),"not tested") -> 4537
A30: FCAT Level 5 | B30: NA | C30: =IFERROR((IF(OR(B30=0,B30="",B30="NA"),"NA",((IF(VLOOKUP($A$3,'GEO-L5'!$A$6:$AM$500,3,FALSE)>=B30,"100% ("&VLOOKUP($A$3,'GEO-L5'!$A$6:$AM$500,3,FALSE)&")",(ROUND((VLOOKUP($A$3,'GEO-L5'!$A$6:$AM$500,3,FALSE)/B30*100),0))&"% ("&IF(VLOOKUP($A$3,'GEO-L5'!$A$6:$AM$500,3,FALSE)="",0,VLOOKUP($A$3,'GEO-L5'!$A$6:$AM$500,3,FALSE))&")"))))),"0% (0)") -> NA | D30: NA | E30: NA | F30: NA | G30: NA | H30: NA | I30: NA | J30: NA | K30: NA | Q30: =IFERROR(VLOOKUP($A$3,'GEO-L5'!$A$6:$BX$500,3,FALSE),"not tested") -> 2195
A31: White | B31: =IFERROR(VLOOKUP(TEXT($A$3,"0000"),'Geo Enrollment'!$A$3:$Q$500,10,FALSE),0) -> 2459 | C31: =IFERROR((IF(OR(B31=0,B31="",B31="NA"),"NA",((IF(VLOOKUP($A$3,'GEO-W'!$A$6:$AG$500,3,FALSE)>=B31,"100% ("&VLOOKUP($A$3,'GEO-W'!$A$6:$AG$500,3,FALSE)&")",(ROUND((VLOOKUP($A$3,'GEO-W'!$A$6:$AG$500,3,FALSE)/B31*100),0))&"% ("&IF(VLOOKUP($A$3,'GEO-W'!$A$6:$AG$500,3,FALSE)="",0,VLOOKUP($A$3,'GEO-W'!$A$6:$AG$500,3,FALSE))&")"))))),"0% (0)") -> 90% (2218) | D31: =IFERROR((IF($C31="NA","NA",VLOOKUP($A$3,'GEO-W'!$A$6:$AM$500,4,FALSE))),"NA") -> 22.18972047 | E31: =IFERROR((IF($C31="NA","NA",ROUND(VLOOKUP($A$3,'GEO-W'!$A$6:$AG$500,6,FALSE),0)&"% ("&IF(VLOOKUP($A$3,'GEO-W'!$A$6:$AG$500,5,FALSE)="",0,VLOOKUP($A$3,'GEO-W'!$A$6:$AG$500,5,FALSE))&")")),"NA") -> 27% (609) | F31: =IFERROR((IF($C31="NA","NA",VLOOKUP($A$3,'GEO-W'!$A$6:$AG$500,7,FALSE))),"NA") -> 22.18972047 | G31: =IFERROR((IF($C31="NA","NA",ROUND(VLOOKUP($A$3,'GEO-W'!$A$6:$AG$500,9,FALSE),0)&"% ("&IF(VLOOKUP($A$3,'GEO-W'!$A$6:$AG$500,8,FALSE)="",0,VLOOKUP($A$3,'GEO-W'!$A$6:$AG$500,8,FALSE))&")")),"NA") -> 27% (609) | H31: NT | I31: NT | J31: NT | K31: NT | Q31: =IFERROR(VLOOKUP($A$3,'GEO-W'!$A$6:$BX$500,3,FALSE),"not tested") -> 2218
A32: Black | B32: =IFERROR(VLOOKUP(TEXT($A$3,"0000"),'Geo Enrollment'!$A$3:$Q$500,11,FALSE),0) -> 6686 | C32: =IFERROR((IF(OR(B32=0,B32="",B32="NA"),"NA",((IF(VLOOKUP($A$3,'GEO-B'!$A$6:$AG$500,3,FALSE)>=B32,"100% ("&VLOOKUP($A$3,'GEO-B'!$A$6:$AG$500,3,FALSE)&")",(ROUND((VLOOKUP($A$3,'GEO-B'!$A$6:$AG$500,3,FALSE)/B32*100),0))&"% ("&IF(VLOOKUP($A$3,'GEO-B'!$A$6:$AG$500,3,FALSE)="",0,VLOOKUP($A$3,'GEO-B'!$A$6:$AG$500,3,FALSE))&")"))))),"0% (0)") -> 88% (5900) | D32: =IFERROR((IF($C32="NA","NA",VLOOKUP($A$3,'GEO-B'!$A$6:$AM$500,4,FALSE))),"NA") -> 17.64989831 | E32: =IFERROR((IF($C32="NA","NA",ROUND(VLOOKUP($A$3,'GEO-B'!$A$6:$AG$500,6,FALSE),0)&"% ("&IF(VLOOKUP($A$3,'GEO-B'!$A$6:$AG$500,5,FALSE)="",0,VLOOKUP($A$3,'GEO-B'!$A$6:$AG$500,5,FALSE))&")")),"NA") -> 8% (484) | F32: =IFERROR((IF($C32="NA","NA",VLOOKUP($A$3,'GEO-B'!$A$6:$AG$500,7,FALSE))),"NA") -> 17.64989831 | G32: =IFERROR((IF($C32="NA","NA",ROUND(VLOOKUP($A$3,'GEO-B'!$A$6:$AG$500,9,FALSE),0)&"% ("&IF(VLOOKUP($A$3,'GEO-B'!$A$6:$AG$500,8,FALSE)="",0,VLOOKUP($A$3,'GEO-B'!$A$6:$AG$500,8,FALSE))&")")),"NA") -> 8% (484) | H32: NT | I32: NT | J32: NT | K32: NT | Q32: =IFERROR(VLOOKUP($A$3,'GEO-B'!$A$6:$BX$500,3,FALSE),"not tested") -> 5900
A33: Hispanic | B33: =IFERROR(VLOOKUP(TEXT($A$3,"0000"),'Geo Enrollment'!$A$3:$Q$500,12,FALSE),0) -> 18724 | C33: =IFERROR((IF(OR(B33=0,B33="",B33="NA"),"NA",((IF(VLOOKUP($A$3,'GEO-H'!$A$6:$AG$500,3,FALSE)>=B33,"100% ("&VLOOKUP($A$3,'GEO-H'!$A$6:$AG$500,3,FALSE)&")",(ROUND((VLOOKUP($A$3,'GEO-H'!$A$6:$AG$500,3,FALSE)/B33*100),0))&"% ("&IF(VLOOKUP($A$3,'GEO-H'!$A$6:$AG$500,3,FALSE)="",0,VLOOKUP($A$3,'GEO-H'!$A$6:$AG$500,3,FALSE))&")"))))),"0% (0)") -> 93% (17345) | D33: =IFERROR((IF($C33="NA","NA",VLOOKUP($A$3,'GEO-H'!$A$6:$AM$500,4,FALSE))),"NA") -> 20.15886999 | E33: =IFERROR((IF($C33="NA","NA",ROUND(VLOOKUP($A$3,'GEO-H'!$A$6:$AG$500,6,FALSE),0)&"% ("&IF(VLOOKUP($A$3,'GEO-H'!$A$6:$AG$500,5,FALSE)="",0,VLOOKUP($A$3,'GEO-H'!$A$6:$AG$500,5,FALSE))&")")),"NA") -> 19% (3210) | F33: =IFERROR((IF($C33="NA","NA",VLOOKUP($A$3,'GEO-H'!$A$6:$AG$500,7,FALSE))),"NA") -> 20.15886999 | G33: =IFERROR((IF($C33="NA","NA",ROUND(VLOOKUP($A$3,'GEO-H'!$A$6:$AG$500,9,FALSE),0)&"% ("&IF(VLOOKUP($A$3,'GEO-H'!$A$6:$AG$500,8,FALSE)="",0,VLOOKUP($A$3,'GEO-H'!$A$6:$AG$500,8,FALSE))&")")),"NA") -> 19% (3210) | H33: NT | I33: NT | J33: NT | K33: NT | Q33: =IFERROR(VLOOKUP($A$3,'GEO-H'!$A$6:$BX$500,3,FALSE),"not tested") -> 17345
A34: Asian | B34: =IFERROR(VLOOKUP(TEXT($A$3,"0000"),'Geo Enrollment'!$A$3:$Q$500,13,FALSE),0) -> 319 | C34: =IFERROR((IF(OR(B34=0,B34="",B34="NA"),"NA",((IF(VLOOKUP($A$3,'GEO-A'!$A$6:$AG$500,3,FALSE)>=B34,"100% ("&VLOOKUP($A$3,'GEO-A'!$A$6:$AG$500,3,FALSE)&")",(ROUND((VLOOKUP($A$3,'GEO-A'!$A$6:$AG$500,3,FALSE)/B34*100),0))&"% ("&IF(VLOOKUP($A$3,'GEO-A'!$A$6:$AG$500,3,FALSE)="",0,VLOOKUP($A$3,'GEO-A'!$A$6:$AG$500,3,FALSE))&")"))))),"0% (0)") -> 94% (300) | D34: =IFERROR((IF($C34="NA","NA",VLOOKUP($A$3,'GEO-A'!$A$6:$AM$500,4,FALSE))),"NA") -> 23.82633333 | E34: =IFERROR((IF($C34="NA","NA",ROUND(VLOOKUP($A$3,'GEO-A'!$A$6:$AG$500,6,FALSE),0)&"% ("&IF(VLOOKUP($A$3,'GEO-A'!$A$6:$AG$500,5,FALSE)="",0,VLOOKUP($A$3,'GEO-A'!$A$6:$AG$500,5,FALSE))&")")),"NA") -> 40% (121) | F34: =IFERROR((IF($C34="NA","NA",VLOOKUP($A$3,'GEO-A'!$A$6:$AG$500,7,FALSE))),"NA") -> 23.82633333 | G34: =IFERROR((IF($C34="NA","NA",ROUND(VLOOKUP($A$3,'GEO-A'!$A$6:$AG$500,9,FALSE),0)&"% ("&IF(VLOOKUP($A$3,'GEO-A'!$A$6:$AG$500,8,FALSE)="",0,VLOOKUP($A$3,'GEO-A'!$A$6:$AG$500,8,FALSE))&")")),"NA") -> 40% (121) | H34: NT | I34: NT | J34: NT | K34: NT | Q34: =IFERROR(VLOOKUP($A$3,'GEO-A'!$A$6:$BX$500,3,FALSE),"not tested") -> 300
A35: Am. Indian | B35: =IFERROR(VLOOKUP(TEXT($A$3,"0000"),'Geo Enrollment'!$A$3:$Q$500,14,FALSE),0) -> 31 | C35: =IFERROR((IF(OR(B35=0,B35="",B35="NA"),"NA",((IF(VLOOKUP($A$3,'GEO-I'!$A$6:$AG$500,3,FALSE)>=B35,"100% ("&VLOOKUP($A$3,'GEO-I'!$A$6:$AG$500,3,FALSE)&")",(ROUND((VLOOKUP($A$3,'GEO-I'!$A$6:$AG$500,3,FALSE)/B35*100),0))&"% ("&IF(VLOOKUP($A$3,'GEO-I'!$A$6:$AG$500,3,FALSE)="",0,VLOOKUP($A$3,'GEO-I'!$A$6:$AG$500,3,FALSE))&")"))))),"0% (0)") -> 97% (30) | D35: =IFERROR((IF($C35="NA","NA",VLOOKUP($A$3,'GEO-I'!$A$6:$AM$500,4,FALSE))),"NA") -> 20.23 | E35: =IFERROR((IF($C35="NA","NA",ROUND(VLOOKUP($A$3,'GEO-I'!$A$6:$AG$500,6,FALSE),0)&"% ("&IF(VLOOKUP($A$3,'GEO-I'!$A$6:$AG$500,5,FALSE)="",0,VLOOKUP($A$3,'GEO-I'!$A$6:$AG$500,5,FALSE))&")")),"NA") -> 23% (7) | F35: =IFERROR((IF($C35="NA","NA",VLOOKUP($A$3,'GEO-I'!$A$6:$AG$500,7,FALSE))),"NA") -> 20.23 | G35: =IFERROR((IF($C35="NA","NA",ROUND(VLOOKUP($A$3,'GEO-I'!$A$6:$AG$500,9,FALSE),0)&"% ("&IF(VLOOKUP($A$3,'GEO-I'!$A$6:$AG$500,8,FALSE)="",0,VLOOKUP($A$3,'GEO-I'!$A$6:$AG$500,8,FALSE))&")")),"NA") -> 23% (7) | H35: NT | I35: NT | J35: NT | K35: NT | Q35: =IFERROR(VLOOKUP($A$3,'GEO-I'!$A$6:$BX$500,3,FALSE),"not tested") -> 30
A36: ED | B36: =IFERROR(VLOOKUP(TEXT($A$3,"0000"),'Geo Enrollment'!$A$3:$Q$500,15,FALSE),0) -> 20034 | C36: =IFERROR((IF(OR(B36=0,B36="",B36="NA"),"NA",((IF(VLOOKUP($A$3,'GEO-ED'!$A$6:$AG$500,3,FALSE)>=B36,"100% ("&VLOOKUP($A$3,'GEO-ED'!$A$6:$AG$500,3,FALSE)&")",(ROUND((VLOOKUP($A$3,'GEO-ED'!$A$6:$AG$500,3,FALSE)/B36*100),0))&"% ("&IF(VLOOKUP($A$3,'GEO-ED'!$A$6:$AG$500,3,FALSE)="",0,VLOOKUP($A$3,'GEO-ED'!$A$6:$AG$500,3,FALSE))&")"))))),"0% (0)") -> 100% (20040) | D36: =IFERROR((IF($C36="NA","NA",VLOOKUP($A$3,'GEO-ED'!$A$6:$AM$500,4,FALSE))),"NA") -> 19.17144711 | E36: =IFERROR((IF($C36="NA","NA",ROUND(VLOOKUP($A$3,'GEO-ED'!$A$6:$AG$500,6,FALSE),0)&"% ("&IF(VLOOKUP($A$3,'GEO-ED'!$A$6:$AG$500,5,FALSE)="",0,VLOOKUP($A$3,'GEO-ED'!$A$6:$AG$500,5,FALSE))&")")),"NA") -> 14% (2832) | F36: =IFERROR((IF($C36="NA","NA",VLOOKUP($A$3,'GEO-ED'!$A$6:$AG$500,7,FALSE))),"NA") -> 19.17144711 | G36: =IFERROR((IF($C36="NA","NA",ROUND(VLOOKUP($A$3,'GEO-ED'!$A$6:$AG$500,9,FALSE),0)&"% ("&IF(VLOOKUP($A$3,'GEO-ED'!$A$6:$AG$500,8,FALSE)="",0,VLOOKUP($A$3,'GEO-ED'!$A$6:$AG$500,8,FALSE))&")")),"NA") -> 14% (2832) | H36: NT | I36: NT | J36: NT | K36: NT | Q36: =IFERROR(VLOOKUP($A$3,'GEO-ED'!$A$6:$BX$500,3,FALSE),"not tested") -> 20040
A37: ELL | B37: =IFERROR(VLOOKUP(TEXT($A$3,"0000"),'Geo Enrollment'!$A$3:$Q$500,16,FALSE),0) -> 3943 | C37: =IFERROR((IF(OR(B37=0,B37="",B37="NA"),"NA",((IF(VLOOKUP($A$3,'GEO-ELL'!$A$6:$AG$500,3,FALSE)>=B37,"100% ("&VLOOKUP($A$3,'GEO-ELL'!$A$6:$AG$500,3,FALSE)&")",(ROUND((VLOOKUP($A$3,'GEO-ELL'!$A$6:$AG$500,3,FALSE)/B37*100),0))&"% ("&IF(VLOOKUP($A$3,'GEO-ELL'!$A$6:$AG$500,3,FALSE)="",0,VLOOKUP($A$3,'GEO-ELL'!$A$6:$AG$500,3,FALSE))&")"))))),"0% (0)") -> 88% (3466) | D37: =IFERROR((IF($C37="NA","NA",VLOOKUP($A$3,'GEO-ELL'!$A$6:$AM$500,4,FALSE))),"NA") -> 17.15954991 | E37: =IFERROR((IF($C37="NA","NA",ROUND(VLOOKUP($A$3,'GEO-ELL'!$A$6:$AG$500,6,FALSE),0)&"% ("&IF(VLOOKUP($A$3,'GEO-ELL'!$A$6:$AG$500,5,FALSE)="",0,VLOOKUP($A$3,'GEO-ELL'!$A$6:$AG$500,5,FALSE))&")")),"NA") -> 10% (339) | F37: =IFERROR((IF($C37="NA","NA",VLOOKUP($A$3,'GEO-ELL'!$A$6:$AG$500,7,FALSE))),"NA") -> 17.15954991 | G37: =IFERROR((IF($C37="NA","NA",ROUND(VLOOKUP($A$3,'GEO-ELL'!$A$6:$AG$500,9,FALSE),0)&"% ("&IF(VLOOKUP($A$3,'GEO-ELL'!$A$6:$AG$500,8,FALSE)="",0,VLOOKUP($A$3,'GEO-ELL'!$A$6:$AG$500,8,FALSE))&")")),"NA") -> 10% (339) | H37: NT | I37: NT | J37: NT | K37: NT | Q37: =IFERROR(VLOOKUP($A$3,'GEO-ELL'!$A$6:$BX$500,3,FALSE),"not tested") -> 3466
A38: SWD | B38: =IFERROR(VLOOKUP(TEXT($A$3,"0000"),'Geo Enrollment'!$A$3:$Q$500,17,FALSE),0) -> 2718 | C38: =IFERROR((IF(OR(B38=0,B38="",B38="NA"),"NA",((IF(VLOOKUP($A$3,'GEO-SWD'!$A$6:$AG$500,3,FALSE)>=B38,"100% ("&VLOOKUP($A$3,'GEO-SWD'!$A$6:$AG$500,3,FALSE)&")",(ROUND((VLOOKUP($A$3,'GEO-SWD'!$A$6:$AG$500,3,FALSE)/B38*100),0))&"% ("&IF(VLOOKUP($A$3,'GEO-SWD'!$A$6:$AG$500,3,FALSE)="",0,VLOOKUP($A$3,'GEO-SWD'!$A$6:$AG$500,3,FALSE))&")"))))),"0% (0)") -> 88% (2390) | D38: =IFERROR((IF($C38="NA","NA",VLOOKUP($A$3,'GEO-SWD'!$A$6:$AM$500,4,FALSE))),"NA") -> 15.37640167 | E38: =IFERROR((IF($C38="NA","NA",ROUND(VLOOKUP($A$3,'GEO-SWD'!$A$6:$AG$500,6,FALSE),0)&"% ("&IF(VLOOKUP($A$3,'GEO-SWD'!$A$6:$AG$500,5,FALSE)="",0,VLOOKUP($A$3,'GEO-SWD'!$A$6:$AG$500,5,FALSE))&")")),"NA") -> 5% (123) | F38: =IFERROR((IF($C38="NA","NA",VLOOKUP($A$3,'GEO-SWD'!$A$6:$AG$500,7,FALSE))),"NA") -> 15.37640167 | G38: =IFERROR((IF($C38="NA","NA",ROUND(VLOOKUP($A$3,'GEO-SWD'!$A$6:$AG$500,9,FALSE),0)&"% ("&IF(VLOOKUP($A$3,'GEO-SWD'!$A$6:$AG$500,8,FALSE)="",0,VLOOKUP($A$3,'GEO-SWD'!$A$6:$AG$500,8,FALSE))&")")),"NA") -> 5% (123) | H38: NT | I38: NT | J38: NT | K38: NT | Q38: =IFERROR(VLOOKUP($A$3,'GEO-SWD'!$A$6:$BX$500,3,FALSE),"not tested") -> 2390
A39: Biology | Q39: Biology
A40: Level of Proficiency at 70% or above | B40: Course Enrollment | C40: % of Students Tested | D40: ='G9-10 Matrix'!C15&" ["&'G9-10 Matrix'!C16&"]" -> Overall [67] | F40: ='G9-10 Matrix'!D15&" ["&'G9-10 Matrix'!D16&"]" -> Molecular and Cellular Biology [24] | H40: ='G9-10 Matrix'!E15&" ["&'G9-10 Matrix'!E16&"]" -> Classification, Heredity, and Evolution [18] | J40: ='G9-10 Matrix'!F15&" ["&'G9-10 Matrix'!F16&"]" -> Organisms, Populations, and Ecosystems [25] | Q40: Number Tested
D41: Average Score | E41: % Proficient | F41: Average Score | G41: % Proficient | H41: Average Score | I41: % Proficient | J41: Average Score | K41: % Proficient
A42: All students | B42: =IFERROR(VLOOKUP(TEXT($A$3,"0000"),'Bio Enrollment'!$A$2:$C$500,3,FALSE),0) -> 27636 | C42: =IFERROR((IF(OR(B42=0,B42="",B42="NA"),"NA",((IF(VLOOKUP($A$3,'Bio-ALL'!$A$14:$X$500,3,FALSE)>=B42,"100% ("&VLOOKUP($A$3,'Bio-ALL'!$A$14:$X$500,3,FALSE)&")",(ROUND((VLOOKUP($A$3,'Bio-ALL'!$A$14:$X$500,3,FALSE)/B42*100),0))&"% ("&VLOOKUP($A$3,'Bio-ALL'!$A$14:$X$500,3,FALSE)&")"))))),"NA") -> 90% (24922) | D42: =IFERROR((IF($C42="NA","NA",VLOOKUP($A$3,'Bio-ALL'!$A$6:$AM$500,4,FALSE))),"NA") -> 28.66760693 | E42: =IFERROR((IF($C42="NA","NA",ROUND(VLOOKUP($A$3,'Bio-ALL'!$A$6:$AM$500,6,FALSE),0)&"% ("&IF(VLOOKUP($A$3,'Bio-ALL'!$A$6:$AM$500,5,FALSE)="",0,VLOOKUP($A$3,'Bio-ALL'!$A$6:$AM$500,5,FALSE))&")")),"NA") -> 3% (739) | F42: =IFERROR((IF($C42="NA","NA",VLOOKUP($A$3,'Bio-ALL'!$A$6:$AM$500,7,FALSE))),"NA") -> 9.663951529 | G42: =IFERROR((IF($C42="NA","NA",ROUND(VLOOKUP($A$3,'Bio-ALL'!$A$6:$AM$500,9,FALSE),0)&"% ("&IF(VLOOKUP($A$3,'Bio-ALL'!$A$6:$AM$500,8,FALSE)="",0,VLOOKUP($A$3,'Bio-ALL'!$A$6:$AM$500,8,FALSE))&")")),"NA") -> 3% (849) | H42: =IFERROR((IF($C42="NA","NA",VLOOKUP($A$3,'Bio-ALL'!$A$6:$AM$500,10,FALSE))),"NA") -> 7.700674103 | I42: =IFERROR((IF($C42="NA","NA",ROUND(VLOOKUP($A$3,'Bio-ALL'!$A$6:$AM$500,12,FALSE),0)&"% ("&IF(VLOOKUP($A$3,'Bio-ALL'!$A$6:$AM$500,11,FALSE)="",0,VLOOKUP($A$3,'Bio-ALL'!$A$6:$AM$500,11,FALSE))&")")),"NA") -> 7% (1652) | J42: =IFERROR((IF($C42="NA","NA",VLOOKUP($A$3,'Bio-ALL'!$A$6:$AM$500,13,FALSE))),"NA") -> 11.29654923 | K42: =IFERROR((IF($C42="NA","NA",ROUND(VLOOKUP($A$3,'Bio-ALL'!$A$6:$AM$500,15,FALSE),0)&"% ("&IF(VLOOKUP($A$3,'Bio-ALL'!$A$6:$AM$500,14,FALSE)="",0,VLOOKUP($A$3,'Bio-ALL'!$A$6:$AM$500,14,FALSE))&")")),"NA") -> 6% (1602) | Q42: =IFERROR(VLOOKUP($A$3,'Bio-ALL'!$A$6:$BI$500,3,FALSE),"not tested") -> 24922
A43: US History | Q43: US History
A44: Level of Proficiency at 70% or above | B44: Course Enrollment | C44: % of Students Tested | D44: ='G9-10 Matrix'!C18&" ["&'G9-10 Matrix'!C19&"]" -> Overall [39] | F44: ='G9-10 Matrix'!D18&" ["&'G9-10 Matrix'!D19&"]" -> Late Nineteenth and Early Century, 1860-1910 [9] | H44: ='G9-10 Matrix'!E18&" ["&'G9-10 Matrix'!E19&"]" -> Global Military, Political, & Eco. Challenges [19] | J44: ='G9-10 Matrix'!F18&" ["&'G9-10 Matrix'!F19&"]" -> The U.S. & Defense of the International Peace [11] | Q44: Number Tested
D45: Average Score | E45: % Proficient | F45: Average Score | G45: % Proficient | H45: Average Score | I45: % Proficient | J45: Average Score | K45: % Proficient
A46: All students | B46: =IFERROR(VLOOKUP(TEXT($A$3,"0000"),'USH Enrollment'!$A$2:$C$497,3,FALSE),0) -> 20752 | C46: =IFERROR((IF(OR(B46=0,B46="",B46="NA"),"NA",((IF(VLOOKUP($A$3,'USH-ALL'!$A$14:$AG$500,3,FALSE)>=B46,"100% ("&VLOOKUP($A$3,'USH-ALL'!$A$14:$AG$500,3,FALSE)&")",(ROUND((VLOOKUP($A$3,'USH-ALL'!$A$14:$AG$500,3,FALSE)/B46*100),0))&"% ("&VLOOKUP($A$3,'USH-ALL'!$A$14:$AG$500,3,FALSE)&")"))))),"NA") -> 92% (19032) | D46: =IFERROR((IF($C46="NA","NA",VLOOKUP($A$3,'USH-ALL'!$A$14:$AG$500,4,FALSE))),"NA") -> 17.75152898 | E46: =IFERROR((IF($C46="NA","NA",ROUND(VLOOKUP($A$3,'USH-ALL'!$A$14:$AG$500,9,FALSE)*100,0)&"% ("&IF(VLOOKUP($A$3,'USH-ALL'!$A$14:$AG$500,7,FALSE)="",0,VLOOKUP($A$3,'USH-ALL'!$A$14:$AG$500,7,FALSE))&")")),"NA") -> 0% (21) | F46: =IFERROR((IF($C46="NA","NA",VLOOKUP($A$3,'USH-ALL'!$A$14:$AG$500,10,FALSE))),"NA") -> 3.14847097 | G46: =IFERROR((IF($C46="NA","NA",ROUND(VLOOKUP($A$3,'USH-ALL'!$A$14:$AG$500,15,FALSE)*100,0)&"% ("&IF(VLOOKUP($A$3,'USH-ALL'!$A$14:$AG$500,13,FALSE)="",0,VLOOKUP($A$3,'USH-ALL'!$A$14:$AG$500,13,FALSE))&")")),"NA") -> 3% (556) | H46: =IFERROR((IF($C46="NA","NA",VLOOKUP($A$3,'USH-ALL'!$A$14:$AG$500,16,FALSE))),"NA") -> 5.74847099 | I46: =IFERROR((IF($C46="NA","NA",ROUND(VLOOKUP($A$3,'USH-ALL'!$A$14:$AG$500,21,FALSE)*100,0)&"% ("&IF(VLOOKUP($A$3,'USH-ALL'!$A$14:$AG$500,19,FALSE)="",0,VLOOKUP($A$3,'USH-ALL'!$A$14:$AG$500,19,FALSE))&")")),"NA") -> 0% (66) | J46: =IFERROR((IF($C46="NA","NA",VLOOKUP($A$3,'USH-ALL'!$A$14:$AG$500,22,FALSE))),"NA") -> 8.8061162 | K46: =IFERROR((IF($C46="NA","NA",ROUND(VLOOKUP($A$3,'USH-ALL'!$A$14:$AG$500,27,FALSE)*100,0)&"% ("&IF(VLOOKUP($A$3,'USH-ALL'!$A$14:$AG$500,25,FALSE)="",0,VLOOKUP($A$3,'USH-ALL'!$A$14:$AG$500,25,FALSE))&")")),"NA") -> 0% (19) | Q46: =IFERROR(VLOOKUP($A$3,'USH-ALL'!$A$14:$BR$500,3,FALSE),"not tested") -> 19032

Sheet G6-8 Matrix (hidden)
A2: Grade | B2: Reading | C2: Overall | D2: Vocabulary | E2: Reading Application | F2: Literary Analysis Fiction/Nonfiction | G2: Informational Text/ Research Process
A3: 6 | B3: N of Items | C3: =SUM(D3:G3) -> 54 | D3: 9 | E3: 23 | F3: 14 | G3: 8
A4: 6 | B4: 51% Cut | C4: =ROUND(0.505*C3,2) -> 27.27 | D4: =ROUND(0.505*D3,2) -> 4.55 | E4: 11.62 | F4: 7.07 | G4: 4.04
A5: 7 | B5: N of Items | C5: =SUM(D5:G5) -> 56 | D5: 14 | E5: 21 | F5: 11 | G5: 10
A6: 7 | B6: 51% Cut | C6: =ROUND(0.505*C5,2) -> 28.28 | D6: =ROUND(0.505*D5,2) -> 7.07 | E6: =ROUND(0.505*E5,2) -> 10.61 | F6: =ROUND(0.505*F5,2) -> 5.56 | G6: =ROUND(0.505*G5,2) -> 5.05
A7: 8 | B7: N of Items | C7: =SUM(D7:G7) -> 61 | D7: 12 | E7: 26 | F7: 9 | G7: 14
A8: 8 | B8: 51% Cut | C8: =ROUND(0.505*C7,2) -> 30.81 | D8: =ROUND(0.505*D7,2) -> 6.06 | E8: =ROUND(0.505*E7,2) -> 13.13 | F8: =ROUND(0.505*F7,2) -> 4.55 | G8: =ROUND(0.505*G7,2) -> 7.07
A10: 6 | B10: Math | C10: Overall | D10: Fractions, Ratios/ Proportional Relationships, and Statistics | E10: Expressions and Equations | F10: Geometry and Measurement
A11: 6 | B11: N of Items | C11: =SUM(D11:F11) -> 37 | D11: 18 | E11: 19 | F11: 0
A12: 6 | B12: 51% Cut | C12: =ROUND(0.505*C11,2) -> 18.69 | D12: =ROUND(0.505*D11,2) -> 9.09 | E12: 9.6 | F12: 0
A13: 7 | B13: Math | C13: Overall | D13: Number: Base Ten | E13: Ratios/Proportional Relationships | F13: Geometry and Measurement | G13: Statistics and Probability
A14: 7 | B14: N of Items | C14: =SUM(D14:G14) -> 39 | D14: 39 | E14: 0 | F14: 0 | G14: 0
A15: 7 | B15: 51% Cut | C15: =ROUND(0.505*C14,2) -> 19.7 | D15: =ROUND(0.505*D14,2) -> 19.7 | E15: 0 | F15: 0 | G15: 0
A16: 8 | B16: Math | C16: Overall | D16: Number: Operations, Problems, and Stat. | E16: Expressions, Equations, and Functions | F16: Geometry and Measurement
A17: 8 | B17: N of Items | C17: =SUM(D17:F17) -> 39 | D17: 27 | E17: 12 | F17: 0
A18: 8 | B18: 51% Cut | C18: =ROUND(0.505*C17,2) -> 19.7 | D18: =ROUND(0.505*D17,2) -> 13.64 | E18: =ROUND(0.505*E17,2) -> 6.06 | F18: =ROUND(0.505*F17,2) -> 0
A19: 8 | B19: Science | C19: Overall | D19: Nature of Science | E19: Earth & Space Science | F19: Physical Science | G19: Life Science
A20: 8 | B20: N of Items | C20: =SUM(D20:G20) -> 71 | D20: 10 | E20: 22 | F20: 21 | G20: 18
A21: 8 | B21: 51% Cut | C21: =ROUND(0.505*C20,2) -> 35.86 | D21: =ROUND(0.505*D20,2) -> 5.05 | E21: =ROUND(0.505*E20,2) -> 11.11 | F21: =ROUND(0.505*F20,2) -> 10.61 | G21: =ROUND(0.505*G20,2) -> 9.09
A22: 8 | B22: Civics EOC | C22: Overall | D22: Government Policies and Political Processes | E22: Organization and Function of Government | F22: Origins and Purposes of Law and Government | G22: Roles, Rights, and Responsibilities
A23: 8 | B23: N of Items | C23: =SUM(D23:G23) -> 0 | D23: 0 | E23: 0 | F23: 0 | G23: 0
A24: 8 | B24: 51% Cut | C24: =ROUND(0.505*C23,2) -> 0 | D24: =ROUND(0.505*D23,2) -> 0 | E24: =ROUND(0.505*E23,2) -> 0 | F24: =ROUND(0.505*F23,2) -> 0 | G24: =ROUND(0.505*G23,2) -> 0

Sheet G9-10 Matrix (hidden)
A2: Grade | B2: Reading | C2: Overall | D2: Vocabulary | E2: Reading Application | F2: Literary Analysis Fiction/Nonfiction | G2: Informational Text/ Research Process
A3: 9 | B3: N of Items | C3: =SUM(D3:G3) -> 57 | D3: 13 | E3: 22 | F3: 12 | G3: 10
A4: 9 | B4: 51% Cut | C4: =ROUND(0.505*C3,2) -> 28.79 | D4: =ROUND(0.505*D3,2) -> 6.57 | E4: 11.11 | F4: 6.06 | G4: 5.05
A5: 10 | B5: N of Items | C5: =SUM(D5:G5) -> 53 | D5: 11 | E5: 23 | F5: 10 | G5: 9
A6: 10 | B6: 51% Cut | C6: =ROUND(0.505*C5,2) -> 26.77 | D6: =ROUND(0.505*D5,2) -> 5.56 | E6: 11.62 | F6: 5.05 | G6: 4.55
A8: Algebra | B8: Algebra | C8: Overall | D8: Functions, Linear Equations, and Inequalities | E8: Polynomials | F8: Rationals, Radicals, Quadratics, and Discrete Mathematics
B9: N of Items | C9: =SUM(D9:G9) -> 34 | D9: 13 | E9: 5 | F9: 16
B10: 51% Cut | C10: =ROUND(0.505*C9,2) -> 17.17 | D10: =ROUND(0.505*D9,2) -> 6.57 | E10: 2.53 | F10: 8.08
A12: Geometry | B12: Geometry | C12: Overall | D12: Two-Dimensional Geometry | E12: Three-Dimensional Geometry | F12: Trigonometry and Discrete Mathematics
B13: N of Items | C13: =SUM(D13:F13) -> 38 | D13: 38 | E13: 0 | F13: 0
B14: 51% Cut | C14: =ROUND(0.505*C13,2) -> 19.19 | D14: =ROUND(0.505*D13,2) -> 19.19 | E14: 0 | F14: 0
A15: Biology | B15: Biology | C15: Overall | D15: Molecular and Cellular Biology | E15: Classification, Heredity, and Evolution | F15: Organisms, Populations, and Ecosystems
B16: N of Items | C16: =SUM(D16:G16) -> 67 | D16: 24 | E16: 18 | F16: 25
B17: 51% Cut | C17: =ROUND(0.505*C16,2) -> 33.84 | D17: =ROUND(0.505*D16,2) -> 12.12 | E17: 9.09 | F17: 12.63
A18: US History | B18: US History | C18: Overall | D18: Late Nineteenth and Early Century, 1860-1910 | E18: Global Military, Political, & Eco. Challenges | F18: The U.S. & Defense of the International Peace
B19: N of Items | C19: =SUM(D19:G19) -> 39 | D19: 9 | E19: 19 | F19: 11
B20: 51% Cut | C20: =ROUND(0.505*C19,2) -> 19.7 | D20: =ROUND(0.505*D19,2) -> 4.55 | E20: 9.6 | F20: 5.56

Sheet Geo G08 (hidden)
A1: 1 | B1: 2 | C1: 3 | D1: 4 | E1: 5 | F1: 6 | G1: 7 | H1: 8 | I1: 9 | J1: 10 | K1: 11 | L1: 12 | M1: 13 | N1: 14 | O1: 15 | P1: 16 | Q1: 17
A2: 08 | B2: SchName | C2: Total | D2: ML1 | E2: ML2 | F2: ML3 | G2: ML4 | H2: ML5 | I2: ML0 | J2: W | K2: B | L2: H | M2: A | N2: I | O2: ED | P2: ELL | Q2: SWD
A3: 0071 | B3: EUGENIA B. THOMAS K-8 CENTER | C3: 23 | D3: 0 | E3: 0 | F3: 1 | G3: 11 | H3: 11 | I3: 0 | J3: 2 | K3: 0 | L3: 21 | M3: 0 | N3: 0 | O3: 6 | P3: 1 | Q3: 0
A4: 0092 | B4: NORMAN S. EDELCUP/SUNNY ISLES | C4: 11 | D4: 0 | E4: 0 | F4: 0 | G4: 0 | H4: 11 | I4: 0 | J4: 6 | K4: 0 | L4: 3 | M4: 2 | N4: 0 | O4: 2 | P4: 0 | Q4: 0
A5: 0122 | B5: DR ROLANDO ESPINOSA K-8 | C5: 12 | D5: 0 | E5: 0 | F5: 0 | G5: 3 | H5: 8 | I5: 1 | J5: 2 | K5: 0 | L5: 10 | M5: 0 | N5: 0 | O5: 2 | P5: 0 | Q5: 0
A6: 0231 | B6: AVENTURA WATERWAYS K-8 CENTER | C6: 20 | D6: 0 | E6: 0 | F6: 1 | G6: 3 | H6: 16 | I6: 0 | J6: 8 | K6: 2 | L6: 7 | M6: 3 | N6: 0 | O6: 4 | P6: 2 | Q6: 0
A7: 0241 | B7: RUTH K BROAD/BAY HARBOR K-8 | C7: 7 | D7: 0 | E7: 0 | F7: 0 | G7: 4 | H7: 3 | I7: 0 | J7: 3 | K7: 0 | L7: 4 | M7: 0 | N7: 0 | O7: 1 | P7: 0 | Q7: 0
A8: 0332 | B8: SOMERSET ACADEMY(SILVER PALMS) | C8: 2 | D8: 0 | E8: 0 | F8: 0 | G8: 1 | H8: 0 | I8: 1 | J8: 1 | K8: 0 | L8: 1 | M8: 0 | N8: 0 | O8: 1 | P8: 0 | Q8: 0
A9: 0950 | B9: AVENTURA CITY OF EXCELLENCE | C9: 15 | D9: 0 | E9: 0 | F9: 0 | G9: 1 | H9: 13 | I9: 1 | J9: 7 | K9: 0 | L9: 7 | M9: 1 | N9: 0 | O9: 0 | P9: 0 | Q9: 0
A10: 0961 | B10: CORAL GABLES PREPARATORY ACAD | C10: 13 | D10: 0 | E10: 1 | F10: 1 | G10: 7 | H10: 4 | I10: 0 | J10: 1 | K10: 0 | L10: 11 | M10: 1 | N10: 0 | O10: 6 | P10: 1 | Q10: 1
A11: 1020 | B11: YOUTH CO-OP CHARTER SCHOOL | C11: 20 | D11: 0 | E11: 1 | F11: 7 | G11: 9 | H11: 3 | I11: 0 | J11: 1 | K11: 1 | L11: 18 | M11: 0 | N11: 0 | O11: 14 | P11: 0 | Q11: 0
A12: 1331 | B12: DEVON AIRE K-8 CENTER | C12: 15 | D12: 0 | E12: 0 | F12: 1 | G12: 1 | H12: 13 | I12: 0 | J12: 3 | K12: 0 | L12: 11 | M12: 1 | N12: 0 | O12: 6 | P12: 0 | Q12: 0
A13: 1721 | B13: EVERGLADES K-8 CENTER | C13: 35 | D13: 0 | E13: 0 | F13: 6 | G13: 14 | H13: 15 | I13: 0 | J13: 1 | K13: 0 | L13: 33 | M13: 1 | N13: 0 | O13: 19 | P13: 1 | Q13: 1
A14: 2741 | B14: KEY BISCAYNE K-8 CENTER | C14: 4 | D14: 0 | E14: 0 | F14: 1 | G14: 1 | H14: 2 | I14: 0 | J14: 1 | K14: 0 | L14: 3 | M14: 0 | N14: 0 | O14: 0 | P14: 0 | Q14: 0
A15: 3029 | B15: DORAL ACADEMY OF TECHNOLOGY | C15: 38 | D15: 0 | E15: 0 | F15: 3 | G15: 17 | H15: 18 | I15: 0 | J15: 4 | K15: 0 | L15: 31 | M15: 3 | N15: 0 | O15: 14 | P15: 0 | Q15: 0
A16: 3032 | B16: PALM GLADES PREPATORY ACADEMY | C16: 1 | D16: 0 | E16: 0 | F16: 0 | G16: 0 | H16: 0 | I16: 1 | J16: 0 | K16: 0 | L16: 1 | M16: 0 | N16: 0 | O16: 0 | P16: 0 | Q16: 0
A17: 3101 | B17: FRANK C. MARTIN K-8 CENTER | C17: 40 | D17: 0 | E17: 0 | F17: 7 | G17: 19 | H17: 14 | I17: 0 | J17: 8 | K17: 14 | L17: 13 | M17: 4 | N17: 1 | O17: 11 | P17: 0 | Q17: 1
A18: 3191 | B18: ADA MERRITT K-8 CENTER | C18: 20 | D18: 0 | E18: 0 | F18: 0 | G18: 8 | H18: 12 | I18: 0 | J18: 9 | K18: 1 | L18: 9 | M18: 0 | N18: 0 | O18: 6 | P18: 0 | Q18: 0
A19: 3281 | B19: MIAMI LAKES K-8 CENTER | C19: 34 | D19: 0 | E19: 0 | F19: 0 | G19: 17 | H19: 17 | I19: 0 | J19: 2 | K19: 0 | L19: 31 | M19: 1 | N19: 0 | O19: 12 | P19: 0 | Q19: 0
A20: 3421 | B20: M.A. MILAM K-8 CENTER | C20: 12 | D20: 0 | E20: 0 | F20: 0 | G20: 4 | H20: 8 | I20: 0 | J20: 0 | K20: 0 | L20: 12 | M20: 0 | N20: 0 | O20: 9 | P20: 0 | Q20: 0
A21: 5003 | B21: SOUTH DADE MIDDLE SCHOOL | C21: 9 | D21: 0 | E21: 0 | F21: 2 | G21: 4 | H21: 3 | I21: 0 | J21: 2 | K21: 0 | L21: 7 | M21: 0 | N21: 0 | O21: 8 | P21: 0 | Q21: 0
A22: 5005 | B22: DAVID LAWRENCE JR K-8 CENTER | C22: 14 | D22: 0 | E22: 0 | F22: 0 | G22: 0 | H22: 14 | I22: 0 | J22: 6 | K22: 2 | L22: 5 | M22: 1 | N22: 0 | O22: 5 | P22: 0 | Q22: 0
A23: 5006 | B23: EVERGLADES PREPARATORY ACADEMY | C23: 17 | D23: 1 | E23: 3 | F23: 5 | G23: 5 | H23: 3 | I23: 0 | J23: 1 | K23: 0 | L23: 16 | M23: 0 | N23: 0 | O23: 15 | P23: 2 | Q23: 1
A24: 5961 | B24: WINSTON PARK K-8 CENTER | C24: 12 | D24: 0 | E24: 0 | F24: 2 | G24: 7 | H24: 3 | I24: 0 | J24: 0 | K24: 0 | L24: 12 | M24: 0 | N24: 0 | O24: 6 | P24: 0 | Q24: 1
A25: 6001 | B25: HERBERT A. AMMONS MIDDLE | C25: 98 | D25: 0 | E25: 0 | F25: 8 | G25: 42 | H25: 46 | I25: 2 | J25: 20 | K25: 12 | L25: 55 | M25: 8 | N25: 0 | O25: 39 | P25: 1 | Q25: 0
A26: 6006 | B26: ARCHIMEDEAN CONSERVATORY | C26: 79 | D26: 1 | E26: 5 | F26: 18 | G26: 19 | H26: 34 | I26: 2 | J26: 15 | K26: 1 | L26: 62 | M26: 1 | N26: 0 | O26: 39 | P26: 2 | Q26: 3
A27: 6010 | B27: FLORIDA INTERNATIONAL ACADEMY | C27: 15 | D27: 0 | E27: 0 | F27: 2 | G27: 11 | H27: 2 | I27: 0 | J27: 0 | K27: 14 | L27: 1 | M27: 0 | N27: 0 | O27: 14 | P27: 0 | Q27: 0
A28: 6012 | B28: MATER ACADEMY CHARTER MIDDLE | C28: 46 | D28: 0 | E28: 0 | F28: 0 | G28: 10 | H28: 36 | I28: 0 | J28: 1 | K28: 0 | L28: 44 | M28: 1 | N28: 0 | O28: 34 | P28: 5 | Q28: 1
A29: 6021 | B29: ARVIDA MIDDLE SCHOOL | C29: 40 | D29: 0 | E29: 0 | F29: 0 | G29: 11 | H29: 29 | I29: 0 | J29: 10 | K29: 2 | L29: 24 | M29: 4 | N29: 0 | O29: 18 | P29: 0 | Q29: 0
A30: 6022 | B30: PINECREST ACADEMY CHARTER MIDD | C30: 21 | D30: 0 | E30: 0 | F30: 2 | G30: 11 | H30: 8 | I30: 0 | J30: 2 | K30: 0 | L30: 19 | M30: 0 | N30: 0 | O30: 11 | P30: 0 | Q30: 0
A31: 6030 | B31: DORAL ACADEMY CHARTER MIDDLE | C31: 29 | D31: 0 | E31: 0 | F31: 5 | G31: 13 | H31: 11 | I31: 0 | J31: 3 | K31: 0 | L31: 26 | M31: 0 | N31: 0 | O31: 10 | P31: 0 | Q31: 0
A32: 6033 | B32: MATER ACADEMY LAKES MIDDLE | C32: 8 | D32: 0 | E32: 1 | F32: 2 | G32: 2 | H32: 3 | I32: 0 | J32: 0 | K32: 0 | L32: 8 | M32: 0 | N32: 0 | O32: 6 | P32: 0 | Q32: 0
A33: 6040 | B33: DOCTORS CHARTER/MIAMI SHORES | C33: 0 | D33: 0 | E33: 0 | F33: 0 | G33: 0 | H33: 0 | I33: 0 | J33: 0 | K33: 0 | L33: 0 | M33: 0 | N33: 0 | O33: 0 | P33: 0 | Q33: 0
A34: 6045 | B34: INTL. STUDIES CHARTER MIDDLE | C34: 1 | D34: 0 | E34: 0 | F34: 0 | G34: 0 | H34: 1 | I34: 0 | J34: 0 | K34: 0 | L34: 1 | M34: 0 | N34: 0 | O34: 0 | P34: 0 | Q34: 0
A35: 6052 | B35: ZELDA GLAZER MIDDLE SCHOOL | C35: 116 | D35: 0 | E35: 0 | F35: 30 | G35: 50 | H35: 35 | I35: 1 | J35: 4 | K35: 1 | L35: 108 | M35: 3 | N35: 0 | O35: 65 | P35: 1 | Q35: 1
A36: 6060 | B36: ASPIRA SOUTH YOUTH LEADERSHIP | C36: 23 | D36: 0 | E36: 1 | F36: 9 | G36: 11 | H36: 2 | I36: 0 | J36: 0 | K36: 0 | L36: 23 | M36: 0 | N36: 0 | O36: 19 | P36: 0 | Q36: 0
A37: 6071 | B37: GEORGE WASHINGTON CARVER | C37: 36 | D37: 0 | E37: 0 | F37: 3 | G37: 4 | H37: 29 | I37: 0 | J37: 17 | K37: 2 | L37: 15 | M37: 2 | N37: 0 | O37: 5 | P37: 0 | Q37: 0
A38: 6081 | B38: CENTENNIAL MIDDLE | C38: 2 | D38: 0 | E38: 0 | F38: 1 | G38: 1 | H38: 0 | I38: 0 | J38: 1 | K38: 0 | L38: 1 | M38: 0 | N38: 0 | O38: 2 | P38: 0 | Q38: 0
A39: 6111 | B39: CUTLER RIDGE MIDDLE | C39: 17 | D39: 1 | E39: 0 | F39: 8 | G39: 5 | H39: 3 | I39: 0 | J39: 3 | K39: 6 | L39: 8 | M39: 0 | N39: 0 | O39: 15 | P39: 0 | Q39: 1
A40: 6151 | B40: DORAL MIDDLE SCHOOL | C40: 29 | D40: 0 | E40: 0 | F40: 7 | G40: 10 | H40: 12 | I40: 0 | J40: 5 | K40: 2 | L40: 21 | M40: 1 | N40: 0 | O40: 13 | P40: 1 | Q40: 2
A41: 6161 | B41: LAWTON CHILES MIDDLE SCHOOL | C41: 2 | D41: 0 | E41: 0 | F41: 1 | G41: 1 | H41: 0 | I41: 0 | J41: 0 | K41: 0 | L41: 2 | M41: 0 | N41: 0 | O41: 2 | P41: 0 | Q41: 0
A42: 6211 | B42: GLADES MIDDLE | C42: 43 | D42: 0 | E42: 0 | F42: 5 | G42: 20 | H42: 18 | I42: 0 | J42: 6 | K42: 0 | L42: 34 | M42: 1 | N42: 0 | O42: 23 | P42: 0 | Q42: 2
A43: 6231 | B43: HIALEAH MIDDLE | C43: 31 | D43: 1 | E43: 2 | F43: 7 | G43: 19 | H43: 2 | I43: 0 | J43: 1 | K43: 1 | L43: 29 | M43: 0 | N43: 0 | O43: 27 | P43: 0 | Q43: 0
A44: 6241 | B44: HIGHLAND OAKS MIDDLE | C44: 44 | D44: 0 | E44: 1 | F44: 7 | G44: 18 | H44: 18 | I44: 0 | J44: 25 | K44: 5 | L44: 11 | M44: 2 | N44: 0 | O44: 17 | P44: 0 | Q44: 0
A45: 6301 | B45: JOHN F. KENNEDY MIDDLE | C45: 54 | D45: 0 | E45: 0 | F45: 5 | G45: 22 | H45: 27 | I45: 0 | J45: 1 | K45: 36 | L45: 15 | M45: 1 | N45: 1 | O45: 50 | P45: 0 | Q45: 0
A46: 6411 | B46: HORACE MANN MIDDLE | C46: 21 | D46: 0 | E46: 1 | F46: 9 | G46: 10 | H46: 1 | I46: 0 | J46: 2 | K46: 17 | L46: 2 | M46: 0 | N46: 0 | O46: 20 | P46: 0 | Q46: 1
A47: 6431 | B47: MAYS MIDDLE | C47: 3 | D47: 0 | E47: 0 | F47: 1 | G47: 2 | H47: 0 | I47: 0 | J47: 0 | K47: 2 | L47: 1 | M47: 0 | N47: 0 | O47: 1 | P47: 0 | Q47: 0
A48: 6441 | B48: HOWARD D. MCMILLAN MIDDLE | C48: 49 | D48: 0 | E48: 0 | F48: 6 | G48: 29 | H48: 14 | I48: 0 | J48: 1 | K48: 0 | L48: 45 | M48: 3 | N48: 0 | O48: 38 | P48: 2 | Q48: 2
A49: 6501 | B49: MIAMI LAKES MIDDLE | C49: 31 | D49: 0 | E49: 0 | F49: 3 | G49: 8 | H49: 20 | I49: 0 | J49: 0 | K49: 4 | L49: 25 | M49: 1 | N49: 0 | O49: 19 | P49: 0 | Q49: 0
A50: 6521 | B50: MIAMI SPRINGS MIDDLE | C50: 25 | D50: 0 | E50: 0 | F50: 3 | G50: 10 | H50: 12 | I50: 0 | J50: 3 | K50: 1 | L50: 20 | M50: 0 | N50: 0 | O50: 17 | P50: 0 | Q50: 0
A51: 6541 | B51: NAUTILUS MIDDLE | C51: 50 | D51: 0 | E51: 0 | F51: 6 | G51: 16 | H51: 27 | I51: 1 | J51: 32 | K51: 1 | L51: 16 | M51: 1 | N51: 0 | O51: 12 | P51: 1 | Q51: 0
A52: 6591 | B52: NORTH DADE MIDDLE | C52: 9 | D52: 0 | E52: 1 | F52: 3 | G52: 2 | H52: 3 | I52: 0 | J52: 0 | K52: 8 | L52: 1 | M52: 0 | N52: 0 | O52: 7 | P52: 0 | Q52: 0
A53: 6611 | B53: COUNTRY CLUB MIDDLE SCHOOL | C53: 20 | D53: 0 | E53: 0 | F53: 3 | G53: 7 | H53: 9 | I53: 1 | J53: 1 | K53: 2 | L53: 16 | M53: 1 | N53: 0 | O53: 15 | P53: 0 | Q53: 0
A54: 6701 | B54: PALMETTO MIDDLE | C54: 19 | D54: 0 | E54: 0 | F54: 1 | G54: 4 | H54: 14 | I54: 0 | J54: 7 | K54: 0 | L54: 7 | M54: 4 | N54: 0 | O54: 1 | P54: 0 | Q54: 0
A55: 6741 | B55: PONCE DE LEON MIDDLE | C55: 20 | D55: 0 | E55: 0 | F55: 1 | G55: 6 | H55: 11 | I55: 2 | J55: 7 | K55: 1 | L55: 10 | M55: 2 | N55: 0 | O55: 8 | P55: 0 | Q55: 0
A56: 6751 | B56: HIALEAH GARDENS MIDDLE SCHOOL | C56: 217 | D56: 1 | E56: 13 | F56: 68 | G56: 82 | H56: 53 | I56: 0 | J56: 6 | K56: 2 | L56: 206 | M56: 3 | N56: 0 | O56: 178 | P56: 7 | Q56: 1
A57: 6761 | B57: REDLAND MIDDLE | C57: 26 | D57: 0 | E57: 1 | F57: 17 | G57: 6 | H57: 2 | I57: 0 | J57: 7 | K57: 4 | L57: 15 | M57: 0 | N57: 0 | O57: 20 | P57: 2 | Q57: 1
A58: 6771 | B58: JORGE MAS CANOSA MIDDLE | C58: 55 | D58: 0 | E58: 1 | F58: 7 | G58: 23 | H58: 23 | I58: 1 | J58: 9 | K58: 2 | L58: 41 | M58: 2 | N58: 0 | O58: 38 | P58: 1 | Q58: 1
A59: 6781 | B59: RICHMOND HEIGHTS MIDDLE | C59: 10 | D59: 0 | E59: 0 | F59: 0 | G59: 4 | H59: 6 | I59: 0 | J59: 1 | K59: 3 | L59: 6 | M59: 0 | N59: 0 | O59: 8 | P59: 0 | Q59: 1
A60: 6801 | B60: RIVIERA MIDDLE | C60: 21 | D60: 0 | E60: 0 | F60: 3 | G60: 12 | H60: 6 | I60: 0 | J60: 3 | K60: 0 | L60: 16 | M60: 2 | N60: 0 | O60: 14 | P60: 0 | Q60: 1
A61: 6821 | B61: ROCKWAY MIDDLE | C61: 21 | D61: 0 | E61: 0 | F61: 0 | G61: 5 | H61: 16 | I61: 0 | J61: 1 | K61: 0 | L61: 20 | M61: 0 | N61: 0 | O61: 7 | P61: 0 | Q61: 0
A62: 6841 | B62: SHENANDOAH MIDDLE | C62: 46 | D62: 0 | E62: 0 | F62: 4 | G62: 31 | H62: 11 | I62: 0 | J62: 2 | K62: 1 | L62: 43 | M62: 0 | N62: 0 | O62: 36 | P62: 4 | Q62: 0
A63: 6861 | B63: SOUTHWOOD MIDDLE | C63: 31 | D63: 0 | E63: 0 | F63: 0 | G63: 4 | H63: 26 | I63: 1 | J63: 10 | K63: 0 | L63: 14 | M63: 7 | N63: 0 | O63: 2 | P63: 0 | Q63: 1
A64: 6901 | B64: W. R. THOMAS MIDDLE | C64: 54 | D64: 0 | E64: 0 | F64: 13 | G64: 26 | H64: 15 | I64: 0 | J64: 2 | K64: 0 | L64: 51 | M64: 0 | N64: 1 | O64: 39 | P64: 1 | Q64: 0
A65: 6921 | B65: LAMAR LOUISE CURRY MIDDLE SCH | C65: 21 | D65: 0 | E65: 0 | F65: 0 | G65: 3 | H65: 18 | I65: 0 | J65: 3 | K65: 1 | L65: 15 | M65: 1 | N65: 1 | O65: 7 | P65: 0 | Q65: 0
A66: 7001 | B66: MIAMI-DADE ONLINE ACADEMY | C66: 4 | D66: 0 | E66: 0 | F66: 0 | G66: 2 | H66: 2 | I66: 0 | J66: 3 | K66: 0 | L66: 1 | M66: 0 | N66: 0 | O66: 1 | P66: 0 | Q66: 0
A67: 7007 | B67: INTL. STUDIES CHARTER SENIOR | C67: 0 | D67: 0 | E67: 0 | F67: 0 | G67: 0 | H67: 0 | I67: 0 | J67: 0 | K67: 0 | L67: 0 | M67: 0 | N67: 0 | O67: 0 | P67: 0 | Q67: 0
A68: 7009 | B68: DORAL PERFORMING ARTS ACADEMY | C68: 0 | D68: 0 | E68: 0 | F68: 0 | G68: 0 | H68: 0 | I68: 0 | J68: 0 | K68: 0 | L68: 0 | M68: 0 | N68: 0 | O68: 0 | P68: 0 | Q68: 0
A69: 7011 | B69: AMERICAN SENIOR | C69: 0 | D69: 0 | E69: 0 | F69: 0 | G69: 0 | H69: 0 | I69: 0 | J69: 0 | K69: 0 | L69: 0 | M69: 0 | N69: 0 | O69: 0 | P69: 0 | Q69: 0
A70: 7014 | B70: MATER PERFORMING ARTS ACADEMY | C70: 0 | D70: 0 | E70: 0 | F70: 0 | G70: 0 | H70: 0 | I70: 0 | J70: 0 | K70: 0 | L70: 0 | M70: 0 | N70: 0 | O70: 0 | P70: 0 | Q70: 0
A71: 7015 | B71: STELLAR LEADERSHIP ACADEMY | C71: 0 | D71: 0 | E71: 0 | F71: 0 | G71: 0 | H71: 0 | I71: 0 | J71: 0 | K71: 0 | L71: 0 | M71: 0 | N71: 0 | O71: 0 | P71: 0 | Q71: 0
A72: 7016 | B72: SPORTS LEADERSHIP OF MIAMI CHS | C72: 0 | D72: 0 | E72: 0 | F72: 0 | G72: 0 | H72: 0 | I72: 0 | J72: 0 | K72: 0 | L72: 0 | M72: 0 | N72: 0 | O72: 0 | P72: 0 | Q72: 0
A73: 7018 | B73: MATER ACADEMY LAKES HIGH SCH | C73: 0 | D73: 0 | E73: 0 | F73: 0 | G73: 0 | H73: 0 | I73: 0 | J73: 0 | K73: 0 | L73: 0 | M73: 0 | N73: 0 | O73: 0 | P73: 0 | Q73: 0
A74: 7020 | B74: DORAL ACADEMY HIGH SCHOOL | C74: 0 | D74: 0 | E74: 0 | F74: 0 | G74: 0 | H74: 0 | I74: 0 | J74: 0 | K74: 0 | L74: 0 | M74: 0 | N74: 0 | O74: 0 | P74: 0 | Q74: 0
A75: 7022 | B75: ACADEMY OF ARTS AND MINDS | C75: 0 | D75: 0 | E75: 0 | F75: 0 | G75: 0 | H75: 0 | I75: 0 | J75: 0 | K75: 0 | L75: 0 | M75: 0 | N75: 0 | O75: 0 | P75: 0 | Q75: 0
A76: 7024 | B76: MATER ACADEMY HIGH-INTL STUDIE | C76: 0 | D76: 0 | E76: 0 | F76: 0 | G76: 0 | H76: 0 | I76: 0 | J76: 0 | K76: 0 | L76: 0 | M76: 0 | N76: 0 | O76: 0 | P76: 0 | Q76: 0
A77: 7029 | B77: TERRA ENVIRONMENTAL RESEARCH | C77: 0 | D77: 0 | E77: 0 | F77: 0 | G77: 0 | H77: 0 | I77: 0 | J77: 0 | K77: 0 | L77: 0 | M77: 0 | N77: 0 | O77: 0 | P77: 0 | Q77: 0
A78: 7030 | B78: INTEGRATED ACADEMICS (SIATECH) | C78: 0 | D78: 0 | E78: 0 | F78: 0 | G78: 0 | H78: 0 | I78: 0 | J78: 0 | K78: 0 | L78: 0 | M78: 0 | N78: 0 | O78: 0 | P78: 0 | Q78: 0
A79: 7032 | B79: PALM GLADES PREP HIGH SCHOOL | C79: 0 | D79: 0 | E79: 0 | F79: 0 | G79: 0 | H79: 0 | I79: 0 | J79: 0 | K79: 0 | L79: 0 | M79: 0 | N79: 0 | O79: 0 | P79: 0 | Q79: 0
A80: 7033 | B80: LAW ENFORCEMENT OFFICERS HS | C80: 0 | D80: 0 | E80: 0 | F80: 0 | G80: 0 | H80: 0 | I80: 0 | J80: 0 | K80: 0 | L80: 0 | M80: 0 | N80: 0 | O80: 0 | P80: 0 | Q80: 0
A81: 7034 | B81: SOMERSET ACAD HIGH SOUTH-HMSTD | C81: 0 | D81: 0 | E81: 0 | F81: 0 | G81: 0 | H81: 0 | I81: 0 | J81: 0 | K81: 0 | L81: 0 | M81: 0 | N81: 0 | O81: 0 | P81: 0 | Q81: 0
A82: 7036 | B82: LAWRENCE ACADEMY SENIOR | C82: 0 | D82: 0 | E82: 0 | F82: 0 | G82: 0 | H82: 0 | I82: 0 | J82: 0 | K82: 0 | L82: 0 | M82: 0 | N82: 0 | O82: 0 | P82: 0 | Q82: 0
A83: 7037 | B83: MATER ACADEMY EAST HIGH SCHOOL | C83: 0 | D83: 0 | E83: 0 | F83: 0 | G83: 0 | H83: 0 | I83: 0 | J83: 0 | K83: 0 | L83: 0 | M83: 0 | N83: 0 | O83: 0 | P83: 0 | Q83: 0
A84: 7042 | B84: SOMERSET ACADEMY CHARTER HIGH | C84: 0 | D84: 0 | E84: 0 | F84: 0 | G84: 0 | H84: 0 | I84: 0 | J84: 0 | K84: 0 | L84: 0 | M84: 0 | N84: 0 | O84: 0 | P84: 0 | Q84: 0
A85: 7048 | B85: ALONZO & TRACY MOURNING SH | C85: 0 | D85: 0 | E85: 0 | F85: 0 | G85: 0 | H85: 0 | I85: 0 | J85: 0 | K85: 0 | L85: 0 | M85: 0 | N85: 0 | O85: 0 | P85: 0 | Q85: 0
A86: 7049 | B86: WESTLAND HIALEAH SENIOR HIGH | C86: 0 | D86: 0 | E86: 0 | F86: 0 | G86: 0 | H86: 0 | I86: 0 | J86: 0 | K86: 0 | L86: 0 | M86: 0 | N86: 0 | O86: 0 | P86: 0 | Q86: 0
A87: 7050 | B87: KEYS GATE CHARTER HIGH SCHL | C87: 0 | D87: 0 | E87: 0 | F87: 0 | G87: 0 | H87: 0 | I87: 0 | J87: 0 | K87: 0 | L87: 0 | M87: 0 | N87: 0 | O87: 0 | P87: 0 | Q87: 0
A88: 7051 | B88: G. HOLMES BRADDOCK SENIOR HIGH | C88: 0 | D88: 0 | E88: 0 | F88: 0 | G88: 0 | H88: 0 | I88: 0 | J88: 0 | K88: 0 | L88: 0 | M88: 0 | N88: 0 | O88: 0 | P88: 0 | Q88: 0
A89: 7053 | B89: PINECREST ACADEMY CHARTER HIGH | C89: 0 | D89: 0 | E89: 0 | F89: 0 | G89: 0 | H89: 0 | I89: 0 | J89: 0 | K89: 0 | L89: 0 | M89: 0 | N89: 0 | O89: 0 | P89: 0 | Q89: 0
A90: 7054 | B90: EXCELSIOR CHARTER HIGH SCHOOL | C90: 0 | D90: 0 | E90: 0 | F90: 0 | G90: 0 | H90: 0 | I90: 0 | J90: 0 | K90: 0 | L90: 0 | M90: 0 | N90: 0 | O90: 0 | P90: 0 | Q90: 0
A91: 7055 | B91: YOUNG WOMEN'S PREPARATORY ACAD | C91: 2 | D91: 0 | E91: 0 | F91: 0 | G91: 1 | H91: 0 | I91: 1 | J91: 0 | K91: 1 | L91: 1 | M91: 0 | N91: 0 | O91: 1 | P91: 0 | Q91: 0
A92: 7056 | B92: YOUNG MENS PREPARATORY ACADEMY | C92: 0 | D92: 0 | E92: 0 | F92: 0 | G92: 0 | H92: 0 | I92: 0 | J92: 0 | K92: 0 | L92: 0 | M92: 0 | N92: 0 | O92: 0 | P92: 0 | Q92: 0
A93: 7058 | B93: MIAMI COMMUNITY CH HIGH SCHOOL | C93: 0 | D93: 0 | E93: 0 | F93: 0 | G93: 0 | H93: 0 | I93: 0 | J93: 0 | K93: 0 | L93: 0 | M93: 0 | N93: 0 | O93: 0 | P93: 0 | Q93: 0
A94: 7059 | B94: MIAMI ARTS CHARTER | C94: 5 | D94: 0 | E94: 0 | F94: 0 | G94: 0 | H94: 5 | I94: 0 | J94: 4 | K94: 0 | L94: 1 | M94: 0 | N94: 0 | O94: 0 | P94: 0 | Q94: 0
A95: 7060 | B95: EVERGLADES PREP ACADEMY HIGH | C95: 0 | D95: 0 | E95: 0 | F95: 0 | G95: 0 | H95: 0 | I95: 0 | J95: 0 | K95: 0 | L95: 0 | M95: 0 | N95: 0 | O95: 0 | P95: 0 | Q95: 0
A96: 7062 | B96: MAVERICKS HIGH OF NORTH M-DADE | C96: 0 | D96: 0 | E96: 0 | F96: 0 | G96: 0 | H96: 0 | I96: 0 | J96: 0 | K96: 0 | L96: 0 | M96: 0 | N96: 0 | O96: 0 | P96: 0 | Q96: 0
A97: 7065 | B97: MAVERICKS HIGH OF SOUTH M-DADE | C97: 0 | D97: 0 | E97: 0 | F97: 0 | G97: 0 | H97: 0 | I97: 0 | J97: 0 | K97: 0 | L97: 0 | M97: 0 | N97: 0 | O97: 0 | P97: 0 | Q97: 0
A98: 7067 | B98: GREEN SPRINGS HIGH SCHOOL | C98: 0 | D98: 0 | E98: 0 | F98: 0 | G98: 0 | H98: 0 | I98: 0 | J98: 0 | K98: 0 | L98: 0 | M98: 0 | N98: 0 | O98: 0 | P98: 0 | Q98: 0
A99: 7068 | B99: NORTH GARDENS HIGH SCHOOL | C99: 0 | D99: 0 | E99: 0 | F99: 0 | G99: 0 | H99: 0 | I99: 0 | J99: 0 | K99: 0 | L99: 0 | M99: 0 | N99: 0 | O99: 0 | P99: 0 | Q99: 0
A100: 7069 | B100: NORTH PARK HIGH SCHOOL | C100: 0 | D100: 0 | E100: 0 | F100: 0 | G100: 0 | H100: 0 | I100: 0 | J100: 0 | K100: 0 | L100: 0 | M100: 0 | N100: 0 | O100: 0 | P100: 0 | Q100: 0
A101: 7070 | B101: YOUTH CO-OP PREP HIGH SCHOOL | C101: 0 | D101: 0 | E101: 0 | F101: 0 | G101: 0 | H101: 0 | I101: 0 | J101: 0 | K101: 0 | L101: 0 | M101: 0 | N101: 0 | O101: 0 | P101: 0 | Q101: 0
A102: 7071 | B102: CORAL GABLES SENIOR HIGH | C102: 0 | D102: 0 | E102: 0 | F102: 0 | G102: 0 | H102: 0 | I102: 0 | J102: 0 | K102: 0 | L102: 0 | M102: 0 | N102: 0 | O102: 0 | P102: 0 | Q102: 0
A103: 7080 | B103: CHARTER HS OF THE AMERICAS | C103: 0 | D103: 0 | E103: 0 | F103: 0 | G103: 0 | H103: 0 | I103: 0 | J103: 0 | K103: 0 | L103: 0 | M103: 0 | N103: 0 | O103: 0 | P103: 0 | Q103: 0
A104: 7081 | B104: DESIGN & ARCHITECTURE SENIOR | C104: 0 | D104: 0 | E104: 0 | F104: 0 | G104: 0 | H104: 0 | I104: 0 | J104: 0 | K104: 0 | L104: 0 | M104: 0 | N104: 0 | O104: 0 | P104: 0 | Q104: 0
A105: 7101 | B105: CORAL REEF SENIOR HIGH | C105: 0 | D105: 0 | E105: 0 | F105: 0 | G105: 0 | H105: 0 | I105: 0 | J105: 0 | K105: 0 | L105: 0 | M105: 0 | N105: 0 | O105: 0 | P105: 0 | Q105: 0
A106: 7111 | B106: HIALEAH SENIOR | C106: 0 | D106: 0 | E106: 0 | F106: 0 | G106: 0 | H106: 0 | I106: 0 | J106: 0 | K106: 0 | L106: 0 | M106: 0 | N106: 0 | O106: 0 | P106: 0 | Q106: 0
A107: 7121 | B107: JOHN A FERGUSON SENIOR HIGH | C107: 0 | D107: 0 | E107: 0 | F107: 0 | G107: 0 | H107: 0 | I107: 0 | J107: 0 | K107: 0 | L107: 0 | M107: 0 | N107: 0 | O107: 0 | P107: 0 | Q107: 0
A108: 7131 | B108: HIALEAH-MIAMI LAKES SENIOR | C108: 0 | D108: 0 | E108: 0 | F108: 0 | G108: 0 | H108: 0 | I108: 0 | J108: 0 | K108: 0 | L108: 0 | M108: 0 | N108: 0 | O108: 0 | P108: 0 | Q108: 0
A109: 7141 | B109: DR MICHAEL M KROP SENIOR HIGH | C109: 0 | D109: 0 | E109: 0 | F109: 0 | G109: 0 | H109: 0 | I109: 0 | J109: 0 | K109: 0 | L109: 0 | M109: 0 | N109: 0 | O109: 0 | P109: 0 | Q109: 0
A110: 7151 | B110: HOMESTEAD SENIOR HIGH | C110: 0 | D110: 0 | E110: 0 | F110: 0 | G110: 0 | H110: 0 | I110: 0 | J110: 0 | K110: 0 | L110: 0 | M110: 0 | N110: 0 | O110: 0 | P110: 0 | Q110: 0
A111: 7160 | B111: MATER ACADEMY CHARTER HIGH | C111: 0 | D111: 0 | E111: 0 | F111: 0 | G111: 0 | H111: 0 | I111: 0 | J111: 0 | K111: 0 | L111: 0 | M111: 0 | N111: 0 | O111: 0 | P111: 0 | Q111: 0
A112: 7161 | B112: MAST @ VIRGINIA KEY | C112: 24 | D112: 0 | E112: 0 | F112: 1 | G112: 9 | H112: 13 | I112: 1 | J112: 6 | K112: 9 | L112: 8 | M112: 1 | N112: 0 | O112: 7 | P112: 1 | Q112: 0
A113: 7171 | B113: MED ACAD SCIENCE & TECHNOLOGY | C113: 0 | D113: 0 | E113: 0 | F113: 0 | G113: 0 | H113: 0 | I113: 0 | J113: 0 | K113: 0 | L113: 0 | M113: 0 | N113: 0 | O113: 0 | P113: 0 | Q113: 0
A114: 7191 | B114: HIALEAH GARDENS SENIOR | C114: 0 | D114: 0 | E114: 0 | F114: 0 | G114: 0 | H114: 0 | I114: 0 | J114: 0 | K114: 0 | L114: 0 | M114: 0 | N114: 0 | O114: 0 | P114: 0 | Q114: 0
A115: 7201 | B115: MIAMI BEACH SENIOR HIGH | C115: 0 | D115: 0 | E115: 0 | F115: 0 | G115: 0 | H115: 0 | I115: 0 | J115: 0 | K115: 0 | L115: 0 | M115: 0 | N115: 0 | O115: 0 | P115: 0 | Q115: 0
A116: 7231 | B116: MIAMI CAROL CITY SENIOR HIGH | C116: 0 | D116: 0 | E116: 0 | F116: 0 | G116: 0 | H116: 0 | I116: 0 | J116: 0 | K116: 0 | L116: 0 | M116: 0 | N116: 0 | O116: 0 | P116: 0 | Q116: 0
A117: 7241 | B117: RONALD W REAGAN/DORAL SENIOR | C117: 0 | D117: 0 | E117: 0 | F117: 0 | G117: 0 | H117: 0 | I117: 0 | J117: 0 | K117: 0 | L117: 0 | M117: 0 | N117: 0 | O117: 0 | P117: 0 | Q117: 0
A118: 7251 | B118: MIAMI CENTRAL SENIOR HIGH | C118: 0 | D118: 0 | E118: 0 | F118: 0 | G118: 0 | H118: 0 | I118: 0 | J118: 0 | K118: 0 | L118: 0 | M118: 0 | N118: 0 | O118: 0 | P118: 0 | Q118: 0
A119: 7262 | B119: CITY OF HIALEAH EDUCATION ACAD | C119: 0 | D119: 0 | E119: 0 | F119: 0 | G119: 0 | H119: 0 | I119: 0 | J119: 0 | K119: 0 | L119: 0 | M119: 0 | N119: 0 | O119: 0 | P119: 0 | Q119: 0
A120: 7265 | B120: ARCHIMEDEAN UPPER CONSERV CHAR | C120: 0 | D120: 0 | E120: 0 | F120: 0 | G120: 0 | H120: 0 | I120: 0 | J120: 0 | K120: 0 | L120: 0 | M120: 0 | N120: 0 | O120: 0 | P120: 0 | Q120: 0
A121: 7271 | B121: MIAMI CORAL PARK SENIOR HIGH | C121: 0 | D121: 0 | E121: 0 | F121: 0 | G121: 0 | H121: 0 | I121: 0 | J121: 0 | K121: 0 | L121: 0 | M121: 0 | N121: 0 | O121: 0 | P121: 0 | Q121: 0
A122: 7291 | B122: JOSE MARTI MAST 6-12 ACADEMY | C122: 0 | D122: 0 | E122: 0 | F122: 0 | G122: 0 | H122: 0 | I122: 0 | J122: 0 | K122: 0 | L122: 0 | M122: 0 | N122: 0 | O122: 0 | P122: 0 | Q122: 0
A123: 7301 | B123: MIAMI EDISON SENIOR HIGH | C123: 0 | D123: 0 | E123: 0 | F123: 0 | G123: 0 | H123: 0 | I123: 0 | J123: 0 | K123: 0 | L123: 0 | M123: 0 | N123: 0 | O123: 0 | P123: 0 | Q123: 0
A124: 7341 | B124: MIAMI JACKSON SENIOR HIGH | C124: 0 | D124: 0 | E124: 0 | F124: 0 | G124: 0 | H124: 0 | I124: 0 | J124: 0 | K124: 0 | L124: 0 | M124: 0 | N124: 0 | O124: 0 | P124: 0 | Q124: 0
A125: 7351 | B125: ARTHUR AND POLLY MAYS CONSERVA | C125: 0 | D125: 0 | E125: 0 | F125: 0 | G125: 0 | H125: 0 | I125: 0 | J125: 0 | K125: 0 | L125: 0 | M125: 0 | N125: 0 | O125: 0 | P125: 0 | Q125: 0
A126: 7361 | B126: MIAMI KILLIAN SENIOR HIGH | C126: 0 | D126: 0 | E126: 0 | F126: 0 | G126: 0 | H126: 0 | I126: 0 | J126: 0 | K126: 0 | L126: 0 | M126: 0 | N126: 0 | O126: 0 | P126: 0 | Q126: 0
A127: 7371 | B127: ROBERT MORGAN EDUCATIONAL CTR | C127: 0 | D127: 0 | E127: 0 | F127: 0 | G127: 0 | H127: 0 | I127: 0 | J127: 0 | K127: 0 | L127: 0 | M127: 0 | N127: 0 | O127: 0 | P127: 0 | Q127: 0
A128: 7381 | B128: MIAMI NORLAND SENIOR HIGH | C128: 0 | D128: 0 | E128: 0 | F128: 0 | G128: 0 | H128: 0 | I128: 0 | J128: 0 | K128: 0 | L128: 0 | M128: 0 | N128: 0 | O128: 0 | P128: 0 | Q128: 0
A129: 7391 | B129: MIAMI LAKES EDUCATIONAL CENTER | C129: 0 | D129: 0 | E129: 0 | F129: 0 | G129: 0 | H129: 0 | I129: 0 | J129: 0 | K129: 0 | L129: 0 | M129: 0 | N129: 0 | O129: 0 | P129: 0 | Q129: 0
A130: 7411 | B130: MIAMI NORTHWESTERN SENIOR HIGH | C130: 0 | D130: 0 | E130: 0 | F130: 0 | G130: 0 | H130: 0 | I130: 0 | J130: 0 | K130: 0 | L130: 0 | M130: 0 | N130: 0 | O130: 0 | P130: 0 | Q130: 0
A131: 7431 | B131: MIAMI PALMETTO SENIOR HIGH | C131: 0 | D131: 0 | E131: 0 | F131: 0 | G131: 0 | H131: 0 | I131: 0 | J131: 0 | K131: 0 | L131: 0 | M131: 0 | N131: 0 | O131: 0 | P131: 0 | Q131: 0
A132: 7461 | B132: MIAMI SENIOR HIGH | C132: 0 | D132: 0 | E132: 0 | F132: 0 | G132: 0 | H132: 0 | I132: 0 | J132: 0 | K132: 0 | L132: 0 | M132: 0 | N132: 0 | O132: 0 | P132: 0 | Q132: 0
A133: 7511 | B133: MIAMI SPRINGS SENIOR HIGH | C133: 0 | D133: 0 | E133: 0 | F133: 0 | G133: 0 | H133: 0 | I133: 0 | J133: 0 | K133: 0 | L133: 0 | M133: 0 | N133: 0 | O133: 0 | P133: 0 | Q133: 0
A134: 7531 | B134: MIAMI SUNSET SENIOR HIGH | C134: 0 | D134: 0 | E134: 0 | F134: 0 | G134: 0 | H134: 0 | I134: 0 | J134: 0 | K134: 0 | L134: 0 | M134: 0 | N134: 0 | O134: 0 | P134: 0 | Q134: 0
A135: 7541 | B135: NORTH MIAMI BEACH SENIOR HIGH | C135: 0 | D135: 0 | E135: 0 | F135: 0 | G135: 0 | H135: 0 | I135: 0 | J135: 0 | K135: 0 | L135: 0 | M135: 0 | N135: 0 | O135: 0 | P135: 0 | Q135: 0
A136: 7571 | B136: INTL STUDIES PREP ACADEMY | C136: 0 | D136: 0 | E136: 0 | F136: 0 | G136: 0 | H136: 0 | I136: 0 | J136: 0 | K136: 0 | L136: 0 | M136: 0 | N136: 0 | O136: 0 | P136: 0 | Q136: 0
A137: 7581 | B137: IPREPARATORY ACADEMY | C137: 0 | D137: 0 | E137: 0 | F137: 0 | G137: 0 | H137: 0 | I137: 0 | J137: 0 | K137: 0 | L137: 0 | M137: 0 | N137: 0 | O137: 0 | P137: 0 | Q137: 0
A138: 7591 | B138: NORTH MIAMI SENIOR HIGH | C138: 0 | D138: 0 | E138: 0 | F138: 0 | G138: 0 | H138: 0 | I138: 0 | J138: 0 | K138: 0 | L138: 0 | M138: 0 | N138: 0 | O138: 0 | P138: 0 | Q138: 0
A139: 7601 | B139: WILLIAM H. TURNER TECHNICAL | C139: 0 | D139: 0 | E139: 0 | F139: 0 | G139: 0 | H139: 0 | I139: 0 | J139: 0 | K139: 0 | L139: 0 | M139: 0 | N139: 0 | O139: 0 | P139: 0 | Q139: 0
A140: 7631 | B140: MIAMI MACARTHUR SOUTH | C140: 0 | D140: 0 | E140: 0 | F140: 0 | G140: 0 | H140: 0 | I140: 0 | J140: 0 | K140: 0 | L140: 0 | M140: 0 | N140: 0 | O140: 0 | P140: 0 | Q140: 0
A141: 7701 | B141: SOUTH DADE SENIOR HIGH | C141: 0 | D141: 0 | E141: 0 | F141: 0 | G141: 0 | H141: 0 | I141: 0 | J141: 0 | K141: 0 | L141: 0 | M141: 0 | N141: 0 | O141: 0 | P141: 0 | Q141: 0
A142: 7721 | B142: SOUTH MIAMI SENIOR HIGH | C142: 0 | D142: 0 | E142: 0 | F142: 0 | G142: 0 | H142: 0 | I142: 0 | J142: 0 | K142: 0 | L142: 0 | M142: 0 | N142: 0 | O142: 0 | P142: 0 | Q142: 0
A143: 7731 | B143: MIAMI SOUTHRIDGE SENIOR HIGH | C143: 0 | D143: 0 | E143: 0 | F143: 0 | G143: 0 | H143: 0 | I143: 0 | J143: 0 | K143: 0 | L143: 0 | M143: 0 | N143: 0 | O143: 0 | P143: 0 | Q143: 0
A144: 7741 | B144: SOUTHWEST MIAMI SENIOR HIGH | C144: 0 | D144: 0 | E144: 0 | F144: 0 | G144: 0 | H144: 0 | I144: 0 | J144: 0 | K144: 0 | L144: 0 | M144: 0 | N144: 0 | O144: 0 | P144: 0 | Q144: 0
A145: 7751 | B145: BARBARA GOLEMAN SENIOR HIGH | C145: 0 | D145: 0 | E145: 0 | F145: 0 | G145: 0 | H145: 0 | I145: 0 | J145: 0 | K145: 0 | L145: 0 | M145: 0 | N145: 0 | O145: 0 | P145: 0 | Q145: 0
A146: 7781 | B146: FELIX VARELA SENIOR HIGH | C146: 0 | D146: 0 | E146: 0 | F146: 0 | G146: 0 | H146: 0 | I146: 0 | J146: 0 | K146: 0 | L146: 0 | M146: 0 | N146: 0 | O146: 0 | P146: 0 | Q146: 0
A147: 7791 | B147: BOOKER T. WASHINGTON SR. HIGH | C147: 0 | D147: 0 | E147: 0 | F147: 0 | G147: 0 | H147: 0 | I147: 0 | J147: 0 | K147: 0 | L147: 0 | M147: 0 | N147: 0 | O147: 0 | P147: 0 | Q147: 0
A148: 7901 | B148: NEW WORLD SCHOOL OF THE ARTS | C148: 0 | D148: 0 | E148: 0 | F148: 0 | G148: 0 | H148: 0 | I148: 0 | J148: 0 | K148: 0 | L148: 0 | M148: 0 | N148: 0 | O148: 0 | P148: 0 | Q148: 0
A149: 8014 | B149: ALTERNATIVE OUTREACH-EXT. YR | C149: 0 | D149: 0 | E149: 0 | F149: 0 | G149: 0 | H149: 0 | I149: 0 | J149: 0 | K149: 0 | L149: 0 | M149: 0 | N149: 0 | O149: 0 | P149: 0 | Q149: 0
A150: 8017 | B150: ALTERNATIVE OUTREACH PROGRAM | C150: 1 | D150: 0 | E150: 0 | F150: 0 | G150: 0 | H150: 0 | I150: 1 | J150: 0 | K150: 1 | L150: 0 | M150: 0 | N150: 0 | O150: 0 | P150: 0 | Q150: 0
A151: 8019 | B151: ACADEMY FOR COMMUNITY ED | C151: 0 | D151: 0 | E151: 0 | F151: 0 | G151: 0 | H151: 0 | I151: 0 | J151: 0 | K151: 0 | L151: 0 | M151: 0 | N151: 0 | O151: 0 | P151: 0 | Q151: 0
A152: 8101 | B152: JAN MANN OPPORTUNITY SCHOOL | C152: 0 | D152: 0 | E152: 0 | F152: 0 | G152: 0 | H152: 0 | I152: 0 | J152: 0 | K152: 0 | L152: 0 | M152: 0 | N152: 0 | O152: 0 | P152: 0 | Q152: 0
A153: 8121 | B153: COPE CENTER NORTH | C153: 0 | D153: 0 | E153: 0 | F153: 0 | G153: 0 | H153: 0 | I153: 0 | J153: 0 | K153: 0 | L153: 0 | M153: 0 | N153: 0 | O153: 0 | P153: 0 | Q153: 0
A154: 8131 | B154: DOROTHY M WALLACE COPE CENTER | C154: 0 | D154: 0 | E154: 0 | F154: 0 | G154: 0 | H154: 0 | I154: 0 | J154: 0 | K154: 0 | L154: 0 | M154: 0 | N154: 0 | O154: 0 | P154: 0 | Q154: 0
A155: 8141 | B155: JUVENILE JUSTICE CENTER | C155: 0 | D155: 0 | E155: 0 | F155: 0 | G155: 0 | H155: 0 | I155: 0 | J155: 0 | K155: 0 | L155: 0 | M155: 0 | N155: 0 | O155: 0 | P155: 0 | Q155: 0
A156: 8151 | B156: ROBERT RENICK EDUCATION CTR | C156: 0 | D156: 0 | E156: 0 | F156: 0 | G156: 0 | H156: 0 | I156: 0 | J156: 0 | K156: 0 | L156: 0 | M156: 0 | N156: 0 | O156: 0 | P156: 0 | Q156: 0
A157: 8181 | B157: RUTH OWENS KRUSE' EDUC CENTER | C157: 0 | D157: 0 | E157: 0 | F157: 0 | G157: 0 | H157: 0 | I157: 0 | J157: 0 | K157: 0 | L157: 0 | M157: 0 | N157: 0 | O157: 0 | P157: 0 | Q157: 0
A158: 9732 | B158: MERRICK EDUCATIONAL CENTER | C158: 0 | D158: 0 | E158: 0 | F158: 0 | G158: 0 | H158: 0 | I158: 0 | J158: 0 | K158: 0 | L158: 0 | M158: 0 | N158: 0 | O158: 0 | P158: 0 | Q158: 0
A159: 9999 | B159: District | C159: 1893 | D159: 5 | E159: 32 | F159: 306 | G159: 718 | H159: 814 | I159: 18 | J159: 292 | K159: 162 | L159: 1354 | M159: 70 | N159: 4 | O159: 1052 | P159: 36 | Q159: 24

Sheet ALG Gr06 (hidden)
A1: 1 | B1: 2 | C1: 3 | D1: 4 | E1: 5 | F1: 6 | G1: 7 | H1: 8 | I1: 9 | J1: 10 | K1: 11 | L1: 12 | M1: 13 | N1: 14 | O1: 15 | P1: 16 | Q1: 17
A2: 06 | B2: SchName | C2: Total | D2: ML1 | E2: ML2 | F2: ML3 | G2: ML4 | H2: ML5 | I2: ML0 | J2: W | K2: B | L2: H | M2: A | N2: I | O2: ED | P2: ELL | Q2: SWD
A3: 0070 | B3: CORAL REEF MONTESSORI ACAD CH | C3: 0 | D3: 0 | E3: 0 | F3: 0 | G3: 0 | H3: 0 | I3: 0 | J3: 0 | K3: 0 | L3: 0 | M3: 0 | N3: 0 | O3: 0 | P3: 0 | Q3: 0
A4: 0071 | B4: EUGENIA B. THOMAS K-8 CENTER | C4: 0 | D4: 0 | E4: 0 | F4: 0 | G4: 0 | H4: 0 | I4: 0 | J4: 0 | K4: 0 | L4: 0 | M4: 0 | N4: 0 | O4: 0 | P4: 0 | Q4: 0
A5: 0073 | B5: MANDARIN LAKES K-8 CENTER | C5: 0 | D5: 0 | E5: 0 | F5: 0 | G5: 0 | H5: 0 | I5: 0 | J5: 0 | K5: 0 | L5: 0 | M5: 0 | N5: 0 | O5: 0 | P5: 0 | Q5: 0
A6: 0091 | B6: BOB GRAHAM EDUCATION CTR | C6: 0 | D6: 0 | E6: 0 | F6: 0 | G6: 0 | H6: 0 | I6: 0 | J6: 0 | K6: 0 | L6: 0 | M6: 0 | N6: 0 | O6: 0 | P6: 0 | Q6: 0
A7: 0092 | B7: NORMAN S. EDELCUP/SUNNY ISLES | C7: 0 | D7: 0 | E7: 0 | F7: 0 | G7: 0 | H7: 0 | I7: 0 | J7: 0 | K7: 0 | L7: 0 | M7: 0 | N7: 0 | O7: 0 | P7: 0 | Q7: 0
A8: 0122 | B8: DR ROLANDO ESPINOSA K-8 | C8: 0 | D8: 0 | E8: 0 | F8: 0 | G8: 0 | H8: 0 | I8: 0 | J8: 0 | K8: 0 | L8: 0 | M8: 0 | N8: 0 | O8: 0 | P8: 0 | Q8: 0
A9: 0231 | B9: AVENTURA WATERWAYS K-8 CENTER | C9: 0 | D9: 0 | E9: 0 | F9: 0 | G9: 0 | H9: 0 | I9: 0 | J9: 0 | K9: 0 | L9: 0 | M9: 0 | N9: 0 | O9: 0 | P9: 0 | Q9: 0
A10: 0241 | B10: RUTH K BROAD/BAY HARBOR K-8 | C10: 0 | D10: 0 | E10: 0 | F10: 0 | G10: 0 | H10: 0 | I10: 0 | J10: 0 | K10: 0 | L10: 0 | M10: 0 | N10: 0 | O10: 0 | P10: 0 | Q10: 0
A11: 0332 | B11: SOMERSET ACADEMY(SILVER PALMS) | C11: 0 | D11: 0 | E11: 0 | F11: 0 | G11: 0 | H11: 0 | I11: 0 | J11: 0 | K11: 0 | L11: 0 | M11: 0 | N11: 0 | O11: 0 | P11: 0 | Q11: 0
A12: 0451 | B12: BOWMAN ASHE/DOOLIN K-8 ACAD | C12: 0 | D12: 0 | E12: 0 | F12: 0 | G12: 0 | H12: 0 | I12: 0 | J12: 0 | K12: 0 | L12: 0 | M12: 0 | N12: 0 | O12: 0 | P12: 0 | Q12: 0
A13: 0761 | B13: FIENBERG/FISHER K-8 CENTER | C13: 0 | D13: 0 | E13: 0 | F13: 0 | G13: 0 | H13: 0 | I13: 0 | J13: 0 | K13: 0 | L13: 0 | M13: 0 | N13: 0 | O13: 0 | P13: 0 | Q13: 0
A14: 0950 | B14: AVENTURA CITY OF EXCELLENCE | C14: 0 | D14: 0 | E14: 0 | F14: 0 | G14: 0 | H14: 0 | I14: 0 | J14: 0 | K14: 0 | L14: 0 | M14: 0 | N14: 0 | O14: 0 | P14: 0 | Q14: 0
A15: 0961 | B15: CORAL GABLES PREPARATORY ACAD | C15: 0 | D15: 0 | E15: 0 | F15: 0 | G15: 0 | H15: 0 | I15: 0 | J15: 0 | K15: 0 | L15: 0 | M15: 0 | N15: 0 | O15: 0 | P15: 0 | Q15: 0
A16: 1020 | B16: YOUTH CO-OP CHARTER SCHOOL | C16: 0 | D16: 0 | E16: 0 | F16: 0 | G16: 0 | H16: 0 | I16: 0 | J16: 0 | K16: 0 | L16: 0 | M16: 0 | N16: 0 | O16: 0 | P16: 0 | Q16: 0
A17: 1121 | B17: CORAL WAY K-8 CENTER | C17: 0 | D17: 0 | E17: 0 | F17: 0 | G17: 0 | H17: 0 | I17: 0 | J17: 0 | K17: 0 | L17: 0 | M17: 0 | N17: 0 | O17: 0 | P17: 0 | Q17: 0
A18: 1331 | B18: DEVON AIRE K-8 CENTER | C18: 0 | D18: 0 | E18: 0 | F18: 0 | G18: 0 | H18: 0 | I18: 0 | J18: 0 | K18: 0 | L18: 0 | M18: 0 | N18: 0 | O18: 0 | P18: 0 | Q18: 0
A19: 1681 | B19: LILLIE C. EVANS K-8 CENTER | C19: 0 | D19: 0 | E19: 0 | F19: 0 | G19: 0 | H19: 0 | I19: 0 | J19: 0 | K19: 0 | L19: 0 | M19: 0 | N19: 0 | O19: 0 | P19: 0 | Q19: 0
A20: 1721 | B20: EVERGLADES K-8 CENTER | C20: 0 | D20: 0 | E20: 0 | F20: 0 | G20: 0 | H20: 0 | I20: 0 | J20: 0 | K20: 0 | L20: 0 | M20: 0 | N20: 0 | O20: 0 | P20: 0 | Q20: 0
A21: 2701 | B21: KENWOOD K-8 CENTER | C21: 0 | D21: 0 | E21: 0 | F21: 0 | G21: 0 | H21: 0 | I21: 0 | J21: 0 | K21: 0 | L21: 0 | M21: 0 | N21: 0 | O21: 0 | P21: 0 | Q21: 0
A22: 2741 | B22: KEY BISCAYNE K-8 CENTER | C22: 0 | D22: 0 | E22: 0 | F22: 0 | G22: 0 | H22: 0 | I22: 0 | J22: 0 | K22: 0 | L22: 0 | M22: 0 | N22: 0 | O22: 0 | P22: 0 | Q22: 0
A23: 2881 | B23: LEEWOOD K-8 CENTER | C23: 0 | D23: 0 | E23: 0 | F23: 0 | G23: 0 | H23: 0 | I23: 0 | J23: 0 | K23: 0 | L23: 0 | M23: 0 | N23: 0 | O23: 0 | P23: 0 | Q23: 0
A24: 2901 | B24: LEISURE CITY K-8 CENTER | C24: 0 | D24: 0 | E24: 0 | F24: 0 | G24: 0 | H24: 0 | I24: 0 | J24: 0 | K24: 0 | L24: 0 | M24: 0 | N24: 0 | O24: 0 | P24: 0 | Q24: 0
A25: 2911 | B25: LINDA LENTIN K-8 CENTER | C25: 0 | D25: 0 | E25: 0 | F25: 0 | G25: 0 | H25: 0 | I25: 0 | J25: 0 | K25: 0 | L25: 0 | M25: 0 | N25: 0 | O25: 0 | P25: 0 | Q25: 0
A26: 3029 | B26: DORAL ACADEMY OF TECHNOLOGY | C26: 0 | D26: 0 | E26: 0 | F26: 0 | G26: 0 | H26: 0 | I26: 0 | J26: 0 | K26: 0 | L26: 0 | M26: 0 | N26: 0 | O26: 0 | P26: 0 | Q26: 0
A27: 3032 | B27: PALM GLADES PREPATORY ACADEMY | C27: 0 | D27: 0 | E27: 0 | F27: 0 | G27: 0 | H27: 0 | I27: 0 | J27: 0 | K27: 0 | L27: 0 | M27: 0 | N27: 0 | O27: 0 | P27: 0 | Q27: 0
A28: 3101 | B28: FRANK C. MARTIN K-8 CENTER | C28: 0 | D28: 0 | E28: 0 | F28: 0 | G28: 0 | H28: 0 | I28: 0 | J28: 0 | K28: 0 | L28: 0 | M28: 0 | N28: 0 | O28: 0 | P28: 0 | Q28: 0
A29: 3191 | B29: ADA MERRITT K-8 CENTER | C29: 0 | D29: 0 | E29: 0 | F29: 0 | G29: 0 | H29: 0 | I29: 0 | J29: 0 | K29: 0 | L29: 0 | M29: 0 | N29: 0 | O29: 0 | P29: 0 | Q29: 0
A30: 3281 | B30: MIAMI LAKES K-8 CENTER | C30: 0 | D30: 0 | E30: 0 | F30: 0 | G30: 0 | H30: 0 | I30: 0 | J30: 0 | K30: 0 | L30: 0 | M30: 0 | N30: 0 | O30: 0 | P30: 0 | Q30: 0
A31: 3421 | B31: M.A. MILAM K-8 CENTER | C31: 0 | D31: 0 | E31: 0 | F31: 0 | G31: 0 | H31: 0 | I31: 0 | J31: 0 | K31: 0 | L31: 0 | M31: 0 | N31: 0 | O31: 0 | P31: 0 | Q31: 0
A32: 3610 | B32: KEYS GATE CHARTER SCHOOL | C32: 0 | D32: 0 | E32: 0 | F32: 0 | G32: 0 | H32: 0 | I32: 0 | J32: 0 | K32: 0 | L32: 0 | M32: 0 | N32: 0 | O32: 0 | P32: 0 | Q32: 0
A33: 3621 | B33: COCONUT PALM K-8 ACADEMY | C33: 0 | D33: 0 | E33: 0 | F33: 0 | G33: 0 | H33: 0 | I33: 0 | J33: 0 | K33: 0 | L33: 0 | M33: 0 | N33: 0 | O33: 0 | P33: 0 | Q33: 0
A34: 4691 | B34: JANE ROBERTS K-8 CENTER | C34: 0 | D34: 0 | E34: 0 | F34: 0 | G34: 0 | H34: 0 | I34: 0 | J34: 0 | K34: 0 | L34: 0 | M34: 0 | N34: 0 | O34: 0 | P34: 0 | Q34: 0
A35: 5003 | B35: SOUTH DADE MIDDLE SCHOOL | C35: 0 | D35: 0 | E35: 0 | F35: 0 | G35: 0 | H35: 0 | I35: 0 | J35: 0 | K35: 0 | L35: 0 | M35: 0 | N35: 0 | O35: 0 | P35: 0 | Q35: 0
A36: 5005 | B36: DAVID LAWRENCE JR K-8 CENTER | C36: 0 | D36: 0 | E36: 0 | F36: 0 | G36: 0 | H36: 0 | I36: 0 | J36: 0 | K36: 0 | L36: 0 | M36: 0 | N36: 0 | O36: 0 | P36: 0 | Q36: 0
A37: 5006 | B37: EVERGLADES PREPARATORY ACADEMY | C37: 0 | D37: 0 | E37: 0 | F37: 0 | G37: 0 | H37: 0 | I37: 0 | J37: 0 | K37: 0 | L37: 0 | M37: 0 | N37: 0 | O37: 0 | P37: 0 | Q37: 0
A38: 5010 | B38: OXFORD ACADEMY OF MIAMI | C38: 0 | D38: 0 | E38: 0 | F38: 0 | G38: 0 | H38: 0 | I38: 0 | J38: 0 | K38: 0 | L38: 0 | M38: 0 | N38: 0 | O38: 0 | P38: 0 | Q38: 0
A39: 5025 | B39: LINCOLN-MARTI CS LITTLE HAVANA | C39: 0 | D39: 0 | E39: 0 | F39: 0 | G39: 0 | H39: 0 | I39: 0 | J39: 0 | K39: 0 | L39: 0 | M39: 0 | N39: 0 | O39: 0 | P39: 0 | Q39: 0
A40: 5029 | B40: EXCELSIOR LANGUAGE ACADEMY K-8 | C40: 0 | D40: 0 | E40: 0 | F40: 0 | G40: 0 | H40: 0 | I40: 0 | J40: 0 | K40: 0 | L40: 0 | M40: 0 | N40: 0 | O40: 0 | P40: 0 | Q40: 0
A41: 5047 | B41: MATER ACADEMY (MIAMI BEACH) | C41: 0 | D41: 0 | E41: 0 | F41: 0 | G41: 0 | H41: 0 | I41: 0 | J41: 0 | K41: 0 | L41: 0 | M41: 0 | N41: 0 | O41: 0 | P41: 0 | Q41: 0
A42: 5101 | B42: JOHN I. SMITH K-8 CENTER | C42: 0 | D42: 0 | E42: 0 | F42: 0 | G42: 0 | H42: 0 | I42: 0 | J42: 0 | K42: 0 | L42: 0 | M42: 0 | N42: 0 | O42: 0 | P42: 0 | Q42: 0
A43: 5141 | B43: HUBERT O. SIBLEY K-8 CENTER | C43: 0 | D43: 0 | E43: 0 | F43: 0 | G43: 0 | H43: 0 | I43: 0 | J43: 0 | K43: 0 | L43: 0 | M43: 0 | N43: 0 | O43: 0 | P43: 0 | Q43: 0
A44: 5241 | B44: SOUTH MIAMI K-8 CENTER | C44: 0 | D44: 0 | E44: 0 | F44: 0 | G44: 0 | H44: 0 | I44: 0 | J44: 0 | K44: 0 | L44: 0 | M44: 0 | N44: 0 | O44: 0 | P44: 0 | Q44: 0
A45: 5671 | B45: VINELAND K-8 CENTER | C45: 0 | D45: 0 | E45: 0 | F45: 0 | G45: 0 | H45: 0 | I45: 0 | J45: 0 | K45: 0 | L45: 0 | M45: 0 | N45: 0 | O45: 0 | P45: 0 | Q45: 0
A46: 5961 | B46: WINSTON PARK K-8 CENTER | C46: 0 | D46: 0 | E46: 0 | F46: 0 | G46: 0 | H46: 0 | I46: 0 | J46: 0 | K46: 0 | L46: 0 | M46: 0 | N46: 0 | O46: 0 | P46: 0 | Q46: 0
A47: 6001 | B47: HERBERT A. AMMONS MIDDLE | C47: 0 | D47: 0 | E47: 0 | F47: 0 | G47: 0 | H47: 0 | I47: 0 | J47: 0 | K47: 0 | L47: 0 | M47: 0 | N47: 0 | O47: 0 | P47: 0 | Q47: 0
A48: 6004 | B48: SOMERSET ACADEMY MIDDLE | C48: 0 | D48: 0 | E48: 0 | F48: 0 | G48: 0 | H48: 0 | I48: 0 | J48: 0 | K48: 0 | L48: 0 | M48: 0 | N48: 0 | O48: 0 | P48: 0 | Q48: 0
A49: 6006 | B49: ARCHIMEDEAN CONSERVATORY | C49: 0 | D49: 0 | E49: 0 | F49: 0 | G49: 0 | H49: 0 | I49: 0 | J49: 0 | K49: 0 | L49: 0 | M49: 0 | N49: 0 | O49: 0 | P49: 0 | Q49: 0
A50: 6009 | B50: MATER ACADEMY EAST MIDDLE | C50: 0 | D50: 0 | E50: 0 | F50: 0 | G50: 0 | H50: 0 | I50: 0 | J50: 0 | K50: 0 | L50: 0 | M50: 0 | N50: 0 | O50: 0 | P50: 0 | Q50: 0
A51: 6010 | B51: FLORIDA INTERNATIONAL ACADEMY | C51: 0 | D51: 0 | E51: 0 | F51: 0 | G51: 0 | H51: 0 | I51: 0 | J51: 0 | K51: 0 | L51: 0 | M51: 0 | N51: 0 | O51: 0 | P51: 0 | Q51: 0
A52: 6011 | B52: ALLAPATTAH MIDDLE | C52: 0 | D52: 0 | E52: 0 | F52: 0 | G52: 0 | H52: 0 | I52: 0 | J52: 0 | K52: 0 | L52: 0 | M52: 0 | N52: 0 | O52: 0 | P52: 0 | Q52: 0
A53: 6012 | B53: MATER ACADEMY CHARTER MIDDLE | C53: 1 | D53: 0 | E53: 0 | F53: 0 | G53: 0 | H53: 1 | I53: 0 | J53: 0 | K53: 0 | L53: 1 | M53: 0 | N53: 0 | O53: 0 | P53: 0 | Q53: 0
A54: 6013 | B54: SOMERSET ACADEMY MIDDLE-SOUTH | C54: 0 | D54: 0 | E54: 0 | F54: 0 | G54: 0 | H54: 0 | I54: 0 | J54: 0 | K54: 0 | L54: 0 | M54: 0 | N54: 0 | O54: 0 | P54: 0 | Q54: 0
A55: 6020 | B55: ASPIRA RAUL A. MARTINEZ CHTR | C55: 0 | D55: 0 | E55: 0 | F55: 0 | G55: 0 | H55: 0 | I55: 0 | J55: 0 | K55: 0 | L55: 0 | M55: 0 | N55: 0 | O55: 0 | P55: 0 | Q55: 0
A56: 6021 | B56: ARVIDA MIDDLE SCHOOL | C56: 0 | D56: 0 | E56: 0 | F56: 0 | G56: 0 | H56: 0 | I56: 0 | J56: 0 | K56: 0 | L56: 0 | M56: 0 | N56: 0 | O56: 0 | P56: 0 | Q56: 0
A57: 6022 | B57: PINECREST ACADEMY CHARTER MIDD | C57: 0 | D57: 0 | E57: 0 | F57: 0 | G57: 0 | H57: 0 | I57: 0 | J57: 0 | K57: 0 | L57: 0 | M57: 0 | N57: 0 | O57: 0 | P57: 0 | Q57: 0
A58: 6023 | B58: ANDOVER MIDDLE SCHOOL | C58: 0 | D58: 0 | E58: 0 | F58: 0 | G58: 0 | H58: 0 | I58: 0 | J58: 0 | K58: 0 | L58: 0 | M58: 0 | N58: 0 | O58: 0 | P58: 0 | Q58: 0
A59: 6028 | B59: RENAISSANCE MIDDLE CHARTER | C59: 0 | D59: 0 | E59: 0 | F59: 0 | G59: 0 | H59: 0 | I59: 0 | J59: 0 | K59: 0 | L59: 0 | M59: 0 | N59: 0 | O59: 0 | P59: 0 | Q59: 0
A60: 6030 | B60: DORAL ACADEMY CHARTER MIDDLE | C60: 0 | D60: 0 | E60: 0 | F60: 0 | G60: 0 | H60: 0 | I60: 0 | J60: 0 | K60: 0 | L60: 0 | M60: 0 | N60: 0 | O60: 0 | P60: 0 | Q60: 0
A61: 6031 | B61: BROWNSVILLE MIDDLE | C61: 0 | D61: 0 | E61: 0 | F61: 0 | G61: 0 | H61: 0 | I61: 0 | J61: 0 | K61: 0 | L61: 0 | M61: 0 | N61: 0 | O61: 0 | P61: 0 | Q61: 0
A62: 6033 | B62: MATER ACADEMY LAKES MIDDLE | C62: 0 | D62: 0 | E62: 0 | F62: 0 | G62: 0 | H62: 0 | I62: 0 | J62: 0 | K62: 0 | L62: 0 | M62: 0 | N62: 0 | O62: 0 | P62: 0 | Q62: 0
A63: 6040 | B63: DOCTORS CHARTER/MIAMI SHORES | C63: 0 | D63: 0 | E63: 0 | F63: 0 | G63: 0 | H63: 0 | I63: 0 | J63: 0 | K63: 0 | L63: 0 | M63: 0 | N63: 0 | O63: 0 | P63: 0 | Q63: 0
A64: 6041 | B64: PAUL W. BELL MIDDLE | C64: 0 | D64: 0 | E64: 0 | F64: 0 | G64: 0 | H64: 0 | I64: 0 | J64: 0 | K64: 0 | L64: 0 | M64: 0 | N64: 0 | O64: 0 | P64: 0 | Q64: 0
A65: 6042 | B65: MATER GARDENS ACADEMY MIDDLE | C65: 0 | D65: 0 | E65: 0 | F65: 0 | G65: 0 | H65: 0 | I65: 0 | J65: 0 | K65: 0 | L65: 0 | M65: 0 | N65: 0 | O65: 0 | P65: 0 | Q65: 0
A66: 6045 | B66: INTL. STUDIES CHARTER MIDDLE | C66: 0 | D66: 0 | E66: 0 | F66: 0 | G66: 0 | H66: 0 | I66: 0 | J66: 0 | K66: 0 | L66: 0 | M66: 0 | N66: 0 | O66: 0 | P66: 0 | Q66: 0
A67: 6047 | B67: MATER ACADEMY MIDDLE-INTL STUD | C67: 0 | D67: 0 | E67: 0 | F67: 0 | G67: 0 | H67: 0 | I67: 0 | J67: 0 | K67: 0 | L67: 0 | M67: 0 | N67: 0 | O67: 0 | P67: 0 | Q67: 0
A68: 6048 | B68: MIAMI COMMUNITY CHARTER MIDDLE | C68: 0 | D68: 0 | E68: 0 | F68: 0 | G68: 0 | H68: 0 | I68: 0 | J68: 0 | K68: 0 | L68: 0 | M68: 0 | N68: 0 | O68: 0 | P68: 0 | Q68: 0
A69: 6049 | B69: RIVER CITIES COMMUNITY CHARTER | C69: 0 | D69: 0 | E69: 0 | F69: 0 | G69: 0 | H69: 0 | I69: 0 | J69: 0 | K69: 0 | L69: 0 | M69: 0 | N69: 0 | O69: 0 | P69: 0 | Q69: 0
A70: 6051 | B70: CAROL CITY MIDDLE | C70: 0 | D70: 0 | E70: 0 | F70: 0 | G70: 0 | H70: 0 | I70: 0 | J70: 0 | K70: 0 | L70: 0 | M70: 0 | N70: 0 | O70: 0 | P70: 0 | Q70: 0
A71: 6052 | B71: ZELDA GLAZER MIDDLE SCHOOL | C71: 0 | D71: 0 | E71: 0 | F71: 0 | G71: 0 | H71: 0 | I71: 0 | J71: 0 | K71: 0 | L71: 0 | M71: 0 | N71: 0 | O71: 0 | P71: 0 | Q71: 0
A72: 6053 | B72: SOMERSET ACAD MIDDLE (S-MIAMI) | C72: 0 | D72: 0 | E72: 0 | F72: 0 | G72: 0 | H72: 0 | I72: 0 | J72: 0 | K72: 0 | L72: 0 | M72: 0 | N72: 0 | O72: 0 | P72: 0 | Q72: 0
A73: 6060 | B73: ASPIRA SOUTH YOUTH LEADERSHIP | C73: 0 | D73: 0 | E73: 0 | F73: 0 | G73: 0 | H73: 0 | I73: 0 | J73: 0 | K73: 0 | L73: 0 | M73: 0 | N73: 0 | O73: 0 | P73: 0 | Q73: 0
A74: 6061 | B74: CAMPBELL DRIVE MIDDLE | C74: 0 | D74: 0 | E74: 0 | F74: 0 | G74: 0 | H74: 0 | I74: 0 | J74: 0 | K74: 0 | L74: 0 | M74: 0 | N74: 0 | O74: 0 | P74: 0 | Q74: 0
A75: 6070 | B75: ASPIRA EUGENIO MARIA DE HOSTOS | C75: 0 | D75: 0 | E75: 0 | F75: 0 | G75: 0 | H75: 0 | I75: 0 | J75: 0 | K75: 0 | L75: 0 | M75: 0 | N75: 0 | O75: 0 | P75: 0 | Q75: 0
A76: 6071 | B76: GEORGE WASHINGTON CARVER | C76: 0 | D76: 0 | E76: 0 | F76: 0 | G76: 0 | H76: 0 | I76: 0 | J76: 0 | K76: 0 | L76: 0 | M76: 0 | N76: 0 | O76: 0 | P76: 0 | Q76: 0
A77: 6081 | B77: CENTENNIAL MIDDLE | C77: 0 | D77: 0 | E77: 0 | F77: 0 | G77: 0 | H77: 0 | I77: 0 | J77: 0 | K77: 0 | L77: 0 | M77: 0 | N77: 0 | O77: 0 | P77: 0 | Q77: 0
A78: 6091 | B78: CITRUS GROVE MIDDLE SCHOOL | C78: 0 | D78: 0 | E78: 0 | F78: 0 | G78: 0 | H78: 0 | I78: 0 | J78: 0 | K78: 0 | L78: 0 | M78: 0 | N78: 0 | O78: 0 | P78: 0 | Q78: 0
A79: 6111 | B79: CUTLER RIDGE MIDDLE | C79: 0 | D79: 0 | E79: 0 | F79: 0 | G79: 0 | H79: 0 | I79: 0 | J79: 0 | K79: 0 | L79: 0 | M79: 0 | N79: 0 | O79: 0 | P79: 0 | Q79: 0
A80: 6121 | B80: RUBEN DARIO MIDDLE | C80: 1 | D80: 0 | E80: 0 | F80: 0 | G80: 0 | H80: 1 | I80: 0 | J80: 0 | K80: 0 | L80: 0 | M80: 1 | N80: 0 | O80: 1 | P80: 1 | Q80: 0
A81: 6141 | B81: CHARLES R. DREW MIDDLE | C81: 0 | D81: 0 | E81: 0 | F81: 0 | G81: 0 | H81: 0 | I81: 0 | J81: 0 | K81: 0 | L81: 0 | M81: 0 | N81: 0 | O81: 0 | P81: 0 | Q81: 0
A82: 6151 | B82: DORAL MIDDLE SCHOOL | C82: 0 | D82: 0 | E82: 0 | F82: 0 | G82: 0 | H82: 0 | I82: 0 | J82: 0 | K82: 0 | L82: 0 | M82: 0 | N82: 0 | O82: 0 | P82: 0 | Q82: 0
A83: 6161 | B83: LAWTON CHILES MIDDLE SCHOOL | C83: 0 | D83: 0 | E83: 0 | F83: 0 | G83: 0 | H83: 0 | I83: 0 | J83: 0 | K83: 0 | L83: 0 | M83: 0 | N83: 0 | O83: 0 | P83: 0 | Q83: 0
A84: 6171 | B84: HENRY H. FILER MIDDLE | C84: 0 | D84: 0 | E84: 0 | F84: 0 | G84: 0 | H84: 0 | I84: 0 | J84: 0 | K84: 0 | L84: 0 | M84: 0 | N84: 0 | O84: 0 | P84: 0 | Q84: 0
A85: 6211 | B85: GLADES MIDDLE | C85: 0 | D85: 0 | E85: 0 | F85: 0 | G85: 0 | H85: 0 | I85: 0 | J85: 0 | K85: 0 | L85: 0 | M85: 0 | N85: 0 | O85: 0 | P85: 0 | Q85: 0
A86: 6221 | B86: HAMMOCKS MIDDLE | C86: 0 | D86: 0 | E86: 0 | F86: 0 | G86: 0 | H86: 0 | I86: 0 | J86: 0 | K86: 0 | L86: 0 | M86: 0 | N86: 0 | O86: 0 | P86: 0 | Q86: 0
A87: 6231 | B87: HIALEAH MIDDLE | C87: 0 | D87: 0 | E87: 0 | F87: 0 | G87: 0 | H87: 0 | I87: 0 | J87: 0 | K87: 0 | L87: 0 | M87: 0 | N87: 0 | O87: 0 | P87: 0 | Q87: 0
A88: 6241 | B88: HIGHLAND OAKS MIDDLE | C88: 1 | D88: 0 | E88: 0 | F88: 0 | G88: 0 | H88: 1 | I88: 0 | J88: 1 | K88: 0 | L88: 0 | M88: 0 | N88: 0 | O88: 0 | P88: 0 | Q88: 0
A89: 6251 | B89: HOMESTEAD MIDDLE | C89: 0 | D89: 0 | E89: 0 | F89: 0 | G89: 0 | H89: 0 | I89: 0 | J89: 0 | K89: 0 | L89: 0 | M89: 0 | N89: 0 | O89: 0 | P89: 0 | Q89: 0
A90: 6281 | B90: THOMAS JEFFERSON MIDDLE | C90: 0 | D90: 0 | E90: 0 | F90: 0 | G90: 0 | H90: 0 | I90: 0 | J90: 0 | K90: 0 | L90: 0 | M90: 0 | N90: 0 | O90: 0 | P90: 0 | Q90: 0
A91: 6301 | B91: JOHN F. KENNEDY MIDDLE | C91: 0 | D91: 0 | E91: 0 | F91: 0 | G91: 0 | H91: 0 | I91: 0 | J91: 0 | K91: 0 | L91: 0 | M91: 0 | N91: 0 | O91: 0 | P91: 0 | Q91: 0
A92: 6331 | B92: KINLOCH PARK MIDDLE | C92: 0 | D92: 0 | E92: 0 | F92: 0 | G92: 0 | H92: 0 | I92: 0 | J92: 0 | K92: 0 | L92: 0 | M92: 0 | N92: 0 | O92: 0 | P92: 0 | Q92: 0
A93: 6351 | B93: LAKE STEVENS MIDDLE | C93: 0 | D93: 0 | E93: 0 | F93: 0 | G93: 0 | H93: 0 | I93: 0 | J93: 0 | K93: 0 | L93: 0 | M93: 0 | N93: 0 | O93: 0 | P93: 0 | Q93: 0
A94: 6361 | B94: JOSE DE DIEGO MIDDLE SCHOOL | C94: 0 | D94: 0 | E94: 0 | F94: 0 | G94: 0 | H94: 0 | I94: 0 | J94: 0 | K94: 0 | L94: 0 | M94: 0 | N94: 0 | O94: 0 | P94: 0 | Q94: 0
A95: 6391 | B95: MADISON MIDDLE SCHOOL | C95: 0 | D95: 0 | E95: 0 | F95: 0 | G95: 0 | H95: 0 | I95: 0 | J95: 0 | K95: 0 | L95: 0 | M95: 0 | N95: 0 | O95: 0 | P95: 0 | Q95: 0
A96: 6411 | B96: HORACE MANN MIDDLE | C96: 0 | D96: 0 | E96: 0 | F96: 0 | G96: 0 | H96: 0 | I96: 0 | J96: 0 | K96: 0 | L96: 0 | M96: 0 | N96: 0 | O96: 0 | P96: 0 | Q96: 0
A97: 6421 | B97: JOSE MARTI MIDDLE | C97: 0 | D97: 0 | E97: 0 | F97: 0 | G97: 0 | H97: 0 | I97: 0 | J97: 0 | K97: 0 | L97: 0 | M97: 0 | N97: 0 | O97: 0 | P97: 0 | Q97: 0
A98: 6431 | B98: MAYS MIDDLE | C98: 0 | D98: 0 | E98: 0 | F98: 0 | G98: 0 | H98: 0 | I98: 0 | J98: 0 | K98: 0 | L98: 0 | M98: 0 | N98: 0 | O98: 0 | P98: 0 | Q98: 0
A99: 6441 | B99: HOWARD D. MCMILLAN MIDDLE | C99: 0 | D99: 0 | E99: 0 | F99: 0 | G99: 0 | H99: 0 | I99: 0 | J99: 0 | K99: 0 | L99: 0 | M99: 0 | N99: 0 | O99: 0 | P99: 0 | Q99: 0
A100: 6481 | B100: MIAMI EDISON MIDDLE | C100: 0 | D100: 0 | E100: 0 | F100: 0 | G100: 0 | H100: 0 | I100: 0 | J100: 0 | K100: 0 | L100: 0 | M100: 0 | N100: 0 | O100: 0 | P100: 0 | Q100: 0
A101: 6501 | B101: MIAMI LAKES MIDDLE | C101: 0 | D101: 0 | E101: 0 | F101: 0 | G101: 0 | H101: 0 | I101: 0 | J101: 0 | K101: 0 | L101: 0 | M101: 0 | N101: 0 | O101: 0 | P101: 0 | Q101: 0
A102: 6521 | B102: MIAMI SPRINGS MIDDLE | C102: 0 | D102: 0 | E102: 0 | F102: 0 | G102: 0 | H102: 0 | I102: 0 | J102: 0 | K102: 0 | L102: 0 | M102: 0 | N102: 0 | O102: 0 | P102: 0 | Q102: 0
A103: 6541 | B103: NAUTILUS MIDDLE | C103: 1 | D103: 0 | E103: 0 | F103: 0 | G103: 0 | H103: 1 | I103: 0 | J103: 1 | K103: 0 | L103: 0 | M103: 0 | N103: 0 | O103: 0 | P103: 0 | Q103: 0
A104: 6571 | B104: NORLAND MIDDLE | C104: 0 | D104: 0 | E104: 0 | F104: 0 | G104: 0 | H104: 0 | I104: 0 | J104: 0 | K104: 0 | L104: 0 | M104: 0 | N104: 0 | O104: 0 | P104: 0 | Q104: 0
A105: 6591 | B105: NORTH DADE MIDDLE | C105: 0 | D105: 0 | E105: 0 | F105: 0 | G105: 0 | H105: 0 | I105: 0 | J105: 0 | K105: 0 | L105: 0 | M105: 0 | N105: 0 | O105: 0 | P105: 0 | Q105: 0
A106: 6611 | B106: COUNTRY CLUB MIDDLE SCHOOL | C106: 0 | D106: 0 | E106: 0 | F106: 0 | G106: 0 | H106: 0 | I106: 0 | J106: 0 | K106: 0 | L106: 0 | M106: 0 | N106: 0 | O106: 0 | P106: 0 | Q106: 0
A107: 6631 | B107: NORTH MIAMI MIDDLE | C107: 0 | D107: 0 | E107: 0 | F107: 0 | G107: 0 | H107: 0 | I107: 0 | J107: 0 | K107: 0 | L107: 0 | M107: 0 | N107: 0 | O107: 0 | P107: 0 | Q107: 0
A108: 6681 | B108: PALM SPRINGS MIDDLE | C108: 0 | D108: 0 | E108: 0 | F108: 0 | G108: 0 | H108: 0 | I108: 0 | J108: 0 | K108: 0 | L108: 0 | M108: 0 | N108: 0 | O108: 0 | P108: 0 | Q108: 0
A109: 6701 | B109: PALMETTO MIDDLE | C109: 0 | D109: 0 | E109: 0 | F109: 0 | G109: 0 | H109: 0 | I109: 0 | J109: 0 | K109: 0 | L109: 0 | M109: 0 | N109: 0 | O109: 0 | P109: 0 | Q109: 0
A110: 6721 | B110: PARKWAY MIDDLE | C110: 0 | D110: 0 | E110: 0 | F110: 0 | G110: 0 | H110: 0 | I110: 0 | J110: 0 | K110: 0 | L110: 0 | M110: 0 | N110: 0 | O110: 0 | P110: 0 | Q110: 0
A111: 6741 | B111: PONCE DE LEON MIDDLE | C111: 0 | D111: 0 | E111: 0 | F111: 0 | G111: 0 | H111: 0 | I111: 0 | J111: 0 | K111: 0 | L111: 0 | M111: 0 | N111: 0 | O111: 0 | P111: 0 | Q111: 0
A112: 6751 | B112: HIALEAH GARDENS MIDDLE SCHOOL | C112: 0 | D112: 0 | E112: 0 | F112: 0 | G112: 0 | H112: 0 | I112: 0 | J112: 0 | K112: 0 | L112: 0 | M112: 0 | N112: 0 | O112: 0 | P112: 0 | Q112: 0
A113: 6761 | B113: REDLAND MIDDLE | C113: 0 | D113: 0 | E113: 0 | F113: 0 | G113: 0 | H113: 0 | I113: 0 | J113: 0 | K113: 0 | L113: 0 | M113: 0 | N113: 0 | O113: 0 | P113: 0 | Q113: 0
A114: 6771 | B114: JORGE MAS CANOSA MIDDLE | C114: 0 | D114: 0 | E114: 0 | F114: 0 | G114: 0 | H114: 0 | I114: 0 | J114: 0 | K114: 0 | L114: 0 | M114: 0 | N114: 0 | O114: 0 | P114: 0 | Q114: 0
A115: 6781 | B115: RICHMOND HEIGHTS MIDDLE | C115: 0 | D115: 0 | E115: 0 | F115: 0 | G115: 0 | H115: 0 | I115: 0 | J115: 0 | K115: 0 | L115: 0 | M115: 0 | N115: 0 | O115: 0 | P115: 0 | Q115: 0
A116: 6801 | B116: RIVIERA MIDDLE | C116: 0 | D116: 0 | E116: 0 | F116: 0 | G116: 0 | H116: 0 | I116: 0 | J116: 0 | K116: 0 | L116: 0 | M116: 0 | N116: 0 | O116: 0 | P116: 0 | Q116: 0
A117: 6821 | B117: ROCKWAY MIDDLE | C117: 0 | D117: 0 | E117: 0 | F117: 0 | G117: 0 | H117: 0 | I117: 0 | J117: 0 | K117: 0 | L117: 0 | M117: 0 | N117: 0 | O117: 0 | P117: 0 | Q117: 0
A118: 6841 | B118: SHENANDOAH MIDDLE | C118: 0 | D118: 0 | E118: 0 | F118: 0 | G118: 0 | H118: 0 | I118: 0 | J118: 0 | K118: 0 | L118: 0 | M118: 0 | N118: 0 | O118: 0 | P118: 0 | Q118: 0
A119: 6861 | B119: SOUTHWOOD MIDDLE | C119: 0 | D119: 0 | E119: 0 | F119: 0 | G119: 0 | H119: 0 | I119: 0 | J119: 0 | K119: 0 | L119: 0 | M119: 0 | N119: 0 | O119: 0 | P119: 0 | Q119: 0
A120: 6881 | B120: SOUTH MIAMI MIDDLE SCHOOL | C120: 0 | D120: 0 | E120: 0 | F120: 0 | G120: 0 | H120: 0 | I120: 0 | J120: 0 | K120: 0 | L120: 0 | M120: 0 | N120: 0 | O120: 0 | P120: 0 | Q120: 0
A121: 6901 | B121: W. R. THOMAS MIDDLE | C121: 0 | D121: 0 | E121: 0 | F121: 0 | G121: 0 | H121: 0 | I121: 0 | J121: 0 | K121: 0 | L121: 0 | M121: 0 | N121: 0 | O121: 0 | P121: 0 | Q121: 0
A122: 6921 | B122: LAMAR LOUISE CURRY MIDDLE SCH | C122: 0 | D122: 0 | E122: 0 | F122: 0 | G122: 0 | H122: 0 | I122: 0 | J122: 0 | K122: 0 | L122: 0 | M122: 0 | N122: 0 | O122: 0 | P122: 0 | Q122: 0
A123: 6961 | B123: WEST MIAMI MIDDLE | C123: 0 | D123: 0 | E123: 0 | F123: 0 | G123: 0 | H123: 0 | I123: 0 | J123: 0 | K123: 0 | L123: 0 | M123: 0 | N123: 0 | O123: 0 | P123: 0 | Q123: 0
A124: 6981 | B124: WESTVIEW MIDDLE | C124: 0 | D124: 0 | E124: 0 | F124: 0 | G124: 0 | H124: 0 | I124: 0 | J124: 0 | K124: 0 | L124: 0 | M124: 0 | N124: 0 | O124: 0 | P124: 0 | Q124: 0
A125: 7001 | B125: MIAMI-DADE ONLINE ACADEMY | C125: 0 | D125: 0 | E125: 0 | F125: 0 | G125: 0 | H125: 0 | I125: 0 | J125: 0 | K125: 0 | L125: 0 | M125: 0 | N125: 0 | O125: 0 | P125: 0 | Q125: 0
A126: 7007 | B126: INTL. STUDIES CHARTER SENIOR | C126: 0 | D126: 0 | E126: 0 | F126: 0 | G126: 0 | H126: 0 | I126: 0 | J126: 0 | K126: 0 | L126: 0 | M126: 0 | N126: 0 | O126: 0 | P126: 0 | Q126: 0
A127: 7009 | B127: DORAL PERFORMING ARTS ACADEMY | C127: 0 | D127: 0 | E127: 0 | F127: 0 | G127: 0 | H127: 0 | I127: 0 | J127: 0 | K127: 0 | L127: 0 | M127: 0 | N127: 0 | O127: 0 | P127: 0 | Q127: 0
A128: 7011 | B128: AMERICAN SENIOR | C128: 0 | D128: 0 | E128: 0 | F128: 0 | G128: 0 | H128: 0 | I128: 0 | J128: 0 | K128: 0 | L128: 0 | M128: 0 | N128: 0 | O128: 0 | P128: 0 | Q128: 0
A129: 7014 | B129: MATER PERFORMING ARTS ACADEMY | C129: 0 | D129: 0 | E129: 0 | F129: 0 | G129: 0 | H129: 0 | I129: 0 | J129: 0 | K129: 0 | L129: 0 | M129: 0 | N129: 0 | O129: 0 | P129: 0 | Q129: 0
A130: 7015 | B130: STELLAR LEADERSHIP ACADEMY | C130: 0 | D130: 0 | E130: 0 | F130: 0 | G130: 0 | H130: 0 | I130: 0 | J130: 0 | K130: 0 | L130: 0 | M130: 0 | N130: 0 | O130: 0 | P130: 0 | Q130: 0
A131: 7016 | B131: SPORTS LEADERSHIP OF MIAMI CHS | C131: 0 | D131: 0 | E131: 0 | F131: 0 | G131: 0 | H131: 0 | I131: 0 | J131: 0 | K131: 0 | L131: 0 | M131: 0 | N131: 0 | O131: 0 | P131: 0 | Q131: 0
A132: 7018 | B132: MATER ACADEMY LAKES HIGH SCH | C132: 0 | D132: 0 | E132: 0 | F132: 0 | G132: 0 | H132: 0 | I132: 0 | J132: 0 | K132: 0 | L132: 0 | M132: 0 | N132: 0 | O132: 0 | P132: 0 | Q132: 0
A133: 7020 | B133: DORAL ACADEMY HIGH SCHOOL | C133: 0 | D133: 0 | E133: 0 | F133: 0 | G133: 0 | H133: 0 | I133: 0 | J133: 0 | K133: 0 | L133: 0 | M133: 0 | N133: 0 | O133: 0 | P133: 0 | Q133: 0
A134: 7022 | B134: ACADEMY OF ARTS AND MINDS | C134: 0 | D134: 0 | E134: 0 | F134: 0 | G134: 0 | H134: 0 | I134: 0 | J134: 0 | K134: 0 | L134: 0 | M134: 0 | N134: 0 | O134: 0 | P134: 0 | Q134: 0
A135: 7024 | B135: MATER ACADEMY HIGH-INTL STUDIE | C135: 0 | D135: 0 | E135: 0 | F135: 0 | G135: 0 | H135: 0 | I135: 0 | J135: 0 | K135: 0 | L135: 0 | M135: 0 | N135: 0 | O135: 0 | P135: 0 | Q135: 0
A136: 7025 | B136: MATER ACAD HIGH (MIAMI BEACH) | C136: 0 | D136: 0 | E136: 0 | F136: 0 | G136: 0 | H136: 0 | I136: 0 | J136: 0 | K136: 0 | L136: 0 | M136: 0 | N136: 0 | O136: 0 | P136: 0 | Q136: 0
A137: 7029 | B137: TERRA ENVIRONMENTAL RESEARCH | C137: 0 | D137: 0 | E137: 0 | F137: 0 | G137: 0 | H137: 0 | I137: 0 | J137: 0 | K137: 0 | L137: 0 | M137: 0 | N137: 0 | O137: 0 | P137: 0 | Q137: 0
A138: 7030 | B138: INTEGRATED ACADEMICS (SIATECH) | C138: 0 | D138: 0 | E138: 0 | F138: 0 | G138: 0 | H138: 0 | I138: 0 | J138: 0 | K138: 0 | L138: 0 | M138: 0 | N138: 0 | O138: 0 | P138: 0 | Q138: 0
A139: 7032 | B139: PALM GLADES PREP HIGH SCHOOL | C139: 0 | D139: 0 | E139: 0 | F139: 0 | G139: 0 | H139: 0 | I139: 0 | J139: 0 | K139: 0 | L139: 0 | M139: 0 | N139: 0 | O139: 0 | P139: 0 | Q139: 0
A140: 7033 | B140: LAW ENFORCEMENT OFFICERS HS | C140: 0 | D140: 0 | E140: 0 | F140: 0 | G140: 0 | H140: 0 | I140: 0 | J140: 0 | K140: 0 | L140: 0 | M140: 0 | N140: 0 | O140: 0 | P140: 0 | Q140: 0
A141: 7034 | B141: SOMERSET ACAD HIGH SOUTH-HMSTD | C141: 0 | D141: 0 | E141: 0 | F141: 0 | G141: 0 | H141: 0 | I141: 0 | J141: 0 | K141: 0 | L141: 0 | M141: 0 | N141: 0 | O141: 0 | P141: 0 | Q141: 0
A142: 7036 | B142: LAWRENCE ACADEMY SENIOR | C142: 0 | D142: 0 | E142: 0 | F142: 0 | G142: 0 | H142: 0 | I142: 0 | J142: 0 | K142: 0 | L142: 0 | M142: 0 | N142: 0 | O142: 0 | P142: 0 | Q142: 0
A143: 7037 | B143: MATER ACADEMY EAST HIGH SCHOOL | C143: 0 | D143: 0 | E143: 0 | F143: 0 | G143: 0 | H143: 0 | I143: 0 | J143: 0 | K143: 0 | L143: 0 | M143: 0 | N143: 0 | O143: 0 | P143: 0 | Q143: 0
A144: 7042 | B144: SOMERSET ACADEMY CHARTER HIGH | C144: 0 | D144: 0 | E144: 0 | F144: 0 | G144: 0 | H144: 0 | I144: 0 | J144: 0 | K144: 0 | L144: 0 | M144: 0 | N144: 0 | O144: 0 | P144: 0 | Q144: 0
A145: 7048 | B145: ALONZO & TRACY MOURNING SH | C145: 0 | D145: 0 | E145: 0 | F145: 0 | G145: 0 | H145: 0 | I145: 0 | J145: 0 | K145: 0 | L145: 0 | M145: 0 | N145: 0 | O145: 0 | P145: 0 | Q145: 0
A146: 7049 | B146: WESTLAND HIALEAH SENIOR HIGH | C146: 0 | D146: 0 | E146: 0 | F146: 0 | G146: 0 | H146: 0 | I146: 0 | J146: 0 | K146: 0 | L146: 0 | M146: 0 | N146: 0 | O146: 0 | P146: 0 | Q146: 0
A147: 7050 | B147: KEYS GATE CHARTER HIGH SCHL | C147: 0 | D147: 0 | E147: 0 | F147: 0 | G147: 0 | H147: 0 | I147: 0 | J147: 0 | K147: 0 | L147: 0 | M147: 0 | N147: 0 | O147: 0 | P147: 0 | Q147: 0
A148: 7051 | B148: G. HOLMES BRADDOCK SENIOR HIGH | C148: 0 | D148: 0 | E148: 0 | F148: 0 | G148: 0 | H148: 0 | I148: 0 | J148: 0 | K148: 0 | L148: 0 | M148: 0 | N148: 0 | O148: 0 | P148: 0 | Q148: 0
A149: 7053 | B149: PINECREST ACADEMY CHARTER HIGH | C149: 0 | D149: 0 | E149: 0 | F149: 0 | G149: 0 | H149: 0 | I149: 0 | J149: 0 | K149: 0 | L149: 0 | M149: 0 | N149: 0 | O149: 0 | P149: 0 | Q149: 0
A150: 7054 | B150: EXCELSIOR CHARTER HIGH SCHOOL | C150: 0 | D150: 0 | E150: 0 | F150: 0 | G150: 0 | H150: 0 | I150: 0 | J150: 0 | K150: 0 | L150: 0 | M150: 0 | N150: 0 | O150: 0 | P150: 0 | Q150: 0
A151: 7055 | B151: YOUNG WOMEN'S PREPARATORY ACAD | C151: 0 | D151: 0 | E151: 0 | F151: 0 | G151: 0 | H151: 0 | I151: 0 | J151: 0 | K151: 0 | L151: 0 | M151: 0 | N151: 0 | O151: 0 | P151: 0 | Q151: 0
A152: 7056 | B152: YOUNG MENS PREPARATORY ACADEMY | C152: 0 | D152: 0 | E152: 0 | F152: 0 | G152: 0 | H152: 0 | I152: 0 | J152: 0 | K152: 0 | L152: 0 | M152: 0 | N152: 0 | O152: 0 | P152: 0 | Q152: 0
A153: 7058 | B153: MIAMI COMMUNITY CH HIGH SCHOOL | C153: 0 | D153: 0 | E153: 0 | F153: 0 | G153: 0 | H153: 0 | I153: 0 | J153: 0 | K153: 0 | L153: 0 | M153: 0 | N153: 0 | O153: 0 | P153: 0 | Q153: 0
A154: 7059 | B154: MIAMI ARTS CHARTER | C154: 0 | D154: 0 | E154: 0 | F154: 0 | G154: 0 | H154: 0 | I154: 0 | J154: 0 | K154: 0 | L154: 0 | M154: 0 | N154: 0 | O154: 0 | P154: 0 | Q154: 0
A155: 7060 | B155: EVERGLADES PREP ACADEMY HIGH | C155: 0 | D155: 0 | E155: 0 | F155: 0 | G155: 0 | H155: 0 | I155: 0 | J155: 0 | K155: 0 | L155: 0 | M155: 0 | N155: 0 | O155: 0 | P155: 0 | Q155: 0
A156: 7062 | B156: MAVERICKS HIGH OF NORTH M-DADE | C156: 0 | D156: 0 | E156: 0 | F156: 0 | G156: 0 | H156: 0 | I156: 0 | J156: 0 | K156: 0 | L156: 0 | M156: 0 | N156: 0 | O156: 0 | P156: 0 | Q156: 0
A157: 7065 | B157: MAVERICKS HIGH OF SOUTH M-DADE | C157: 0 | D157: 0 | E157: 0 | F157: 0 | G157: 0 | H157: 0 | I157: 0 | J157: 0 | K157: 0 | L157: 0 | M157: 0 | N157: 0 | O157: 0 | P157: 0 | Q157: 0
A158: 7066 | B158: LBA CONSTR & BUS MGMT ACAD | C158: 0 | D158: 0 | E158: 0 | F158: 0 | G158: 0 | H158: 0 | I158: 0 | J158: 0 | K158: 0 | L158: 0 | M158: 0 | N158: 0 | O158: 0 | P158: 0 | Q158: 0
A159: 7067 | B159: GREEN SPRINGS HIGH SCHOOL | C159: 0 | D159: 0 | E159: 0 | F159: 0 | G159: 0 | H159: 0 | I159: 0 | J159: 0 | K159: 0 | L159: 0 | M159: 0 | N159: 0 | O159: 0 | P159: 0 | Q159: 0
A160: 7068 | B160: NORTH GARDENS HIGH SCHOOL | C160: 0 | D160: 0 | E160: 0 | F160: 0 | G160: 0 | H160: 0 | I160: 0 | J160: 0 | K160: 0 | L160: 0 | M160: 0 | N160: 0 | O160: 0 | P160: 0 | Q160: 0
A161: 7069 | B161: NORTH PARK HIGH SCHOOL | C161: 0 | D161: 0 | E161: 0 | F161: 0 | G161: 0 | H161: 0 | I161: 0 | J161: 0 | K161: 0 | L161: 0 | M161: 0 | N161: 0 | O161: 0 | P161: 0 | Q161: 0
A162: 7070 | B162: YOUTH CO-OP PREP HIGH SCHOOL | C162: 0 | D162: 0 | E162: 0 | F162: 0 | G162: 0 | H162: 0 | I162: 0 | J162: 0 | K162: 0 | L162: 0 | M162: 0 | N162: 0 | O162: 0 | P162: 0 | Q162: 0
A163: 7071 | B163: CORAL GABLES SENIOR HIGH | C163: 0 | D163: 0 | E163: 0 | F163: 0 | G163: 0 | H163: 0 | I163: 0 | J163: 0 | K163: 0 | L163: 0 | M163: 0 | N163: 0 | O163: 0 | P163: 0 | Q163: 0
A164: 7080 | B164: CHARTER HS OF THE AMERICAS | C164: 0 | D164: 0 | E164: 0 | F164: 0 | G164: 0 | H164: 0 | I164: 0 | J164: 0 | K164: 0 | L164: 0 | M164: 0 | N164: 0 | O164: 0 | P164: 0 | Q164: 0
A165: 7081 | B165: DESIGN & ARCHITECTURE SENIOR | C165: 0 | D165: 0 | E165: 0 | F165: 0 | G165: 0 | H165: 0 | I165: 0 | J165: 0 | K165: 0 | L165: 0 | M165: 0 | N165: 0 | O165: 0 | P165: 0 | Q165: 0
A166: 7101 | B166: CORAL REEF SENIOR HIGH | C166: 0 | D166: 0 | E166: 0 | F166: 0 | G166: 0 | H166: 0 | I166: 0 | J166: 0 | K166: 0 | L166: 0 | M166: 0 | N166: 0 | O166: 0 | P166: 0 | Q166: 0
A167: 7111 | B167: HIALEAH SENIOR | C167: 0 | D167: 0 | E167: 0 | F167: 0 | G167: 0 | H167: 0 | I167: 0 | J167: 0 | K167: 0 | L167: 0 | M167: 0 | N167: 0 | O167: 0 | P167: 0 | Q167: 0
A168: 7121 | B168: JOHN A FERGUSON SENIOR HIGH | C168: 0 | D168: 0 | E168: 0 | F168: 0 | G168: 0 | H168: 0 | I168: 0 | J168: 0 | K168: 0 | L168: 0 | M168: 0 | N168: 0 | O168: 0 | P168: 0 | Q168: 0
A169: 7131 | B169: HIALEAH-MIAMI LAKES SENIOR | C169: 0 | D169: 0 | E169: 0 | F169: 0 | G169: 0 | H169: 0 | I169: 0 | J169: 0 | K169: 0 | L169: 0 | M169: 0 | N169: 0 | O169: 0 | P169: 0 | Q169: 0
A170: 7141 | B170: DR MICHAEL M KROP SENIOR HIGH | C170: 0 | D170: 0 | E170: 0 | F170: 0 | G170: 0 | H170: 0 | I170: 0 | J170: 0 | K170: 0 | L170: 0 | M170: 0 | N170: 0 | O170: 0 | P170: 0 | Q170: 0
A171: 7151 | B171: HOMESTEAD SENIOR HIGH | C171: 0 | D171: 0 | E171: 0 | F171: 0 | G171: 0 | H171: 0 | I171: 0 | J171: 0 | K171: 0 | L171: 0 | M171: 0 | N171: 0 | O171: 0 | P171: 0 | Q171: 0
A172: 7160 | B172: MATER ACADEMY CHARTER HIGH | C172: 0 | D172: 0 | E172: 0 | F172: 0 | G172: 0 | H172: 0 | I172: 0 | J172: 0 | K172: 0 | L172: 0 | M172: 0 | N172: 0 | O172: 0 | P172: 0 | Q172: 0
A173: 7161 | B173: MAST @ VIRGINIA KEY | C173: 0 | D173: 0 | E173: 0 | F173: 0 | G173: 0 | H173: 0 | I173: 0 | J173: 0 | K173: 0 | L173: 0 | M173: 0 | N173: 0 | O173: 0 | P173: 0 | Q173: 0
A174: 7191 | B174: HIALEAH GARDENS SENIOR | C174: 0 | D174: 0 | E174: 0 | F174: 0 | G174: 0 | H174: 0 | I174: 0 | J174: 0 | K174: 0 | L174: 0 | M174: 0 | N174: 0 | O174: 0 | P174: 0 | Q174: 0
A175: 7201 | B175: MIAMI BEACH SENIOR HIGH | C175: 0 | D175: 0 | E175: 0 | F175: 0 | G175: 0 | H175: 0 | I175: 0 | J175: 0 | K175: 0 | L175: 0 | M175: 0 | N175: 0 | O175: 0 | P175: 0 | Q175: 0
A176: 7231 | B176: MIAMI CAROL CITY SENIOR HIGH | C176: 0 | D176: 0 | E176: 0 | F176: 0 | G176: 0 | H176: 0 | I176: 0 | J176: 0 | K176: 0 | L176: 0 | M176: 0 | N176: 0 | O176: 0 | P176: 0 | Q176: 0
A177: 7241 | B177: RONALD W REAGAN/DORAL SENIOR | C177: 0 | D177: 0 | E177: 0 | F177: 0 | G177: 0 | H177: 0 | I177: 0 | J177: 0 | K177: 0 | L177: 0 | M177: 0 | N177: 0 | O177: 0 | P177: 0 | Q177: 0
A178: 7251 | B178: MIAMI CENTRAL SENIOR HIGH | C178: 0 | D178: 0 | E178: 0 | F178: 0 | G178: 0 | H178: 0 | I178: 0 | J178: 0 | K178: 0 | L178: 0 | M178: 0 | N178: 0 | O178: 0 | P178: 0 | Q178: 0
A179: 7262 | B179: CITY OF HIALEAH EDUCATION ACAD | C179: 0 | D179: 0 | E179: 0 | F179: 0 | G179: 0 | H179: 0 | I179: 0 | J179: 0 | K179: 0 | L179: 0 | M179: 0 | N179: 0 | O179: 0 | P179: 0 | Q179: 0
A180: 7271 | B180: MIAMI CORAL PARK SENIOR HIGH | C180: 0 | D180: 0 | E180: 0 | F180: 0 | G180: 0 | H180: 0 | I180: 0 | J180: 0 | K180: 0 | L180: 0 | M180: 0 | N180: 0 | O180: 0 | P180: 0 | Q180: 0
A181: 7291 | B181: JOSE MARTI MAST 6-12 ACADEMY | C181: 0 | D181: 0 | E181: 0 | F181: 0 | G181: 0 | H181: 0 | I181: 0 | J181: 0 | K181: 0 | L181: 0 | M181: 0 | N181: 0 | O181: 0 | P181: 0 | Q181: 0
A182: 7301 | B182: MIAMI EDISON SENIOR HIGH | C182: 0 | D182: 0 | E182: 0 | F182: 0 | G182: 0 | H182: 0 | I182: 0 | J182: 0 | K182: 0 | L182: 0 | M182: 0 | N182: 0 | O182: 0 | P182: 0 | Q182: 0
A183: 7341 | B183: MIAMI JACKSON SENIOR HIGH | C183: 0 | D183: 0 | E183: 0 | F183: 0 | G183: 0 | H183: 0 | I183: 0 | J183: 0 | K183: 0 | L183: 0 | M183: 0 | N183: 0 | O183: 0 | P183: 0 | Q183: 0
A184: 7351 | B184: ARTHUR AND POLLY MAYS CONSERVA | C184: 0 | D184: 0 | E184: 0 | F184: 0 | G184: 0 | H184: 0 | I184: 0 | J184: 0 | K184: 0 | L184: 0 | M184: 0 | N184: 0 | O184: 0 | P184: 0 | Q184: 0
A185: 7361 | B185: MIAMI KILLIAN SENIOR HIGH | C185: 0 | D185: 0 | E185: 0 | F185: 0 | G185: 0 | H185: 0 | I185: 0 | J185: 0 | K185: 0 | L185: 0 | M185: 0 | N185: 0 | O185: 0 | P185: 0 | Q185: 0
A186: 7371 | B186: ROBERT MORGAN EDUCATIONAL CTR | C186: 0 | D186: 0 | E186: 0 | F186: 0 | G186: 0 | H186: 0 | I186: 0 | J186: 0 | K186: 0 | L186: 0 | M186: 0 | N186: 0 | O186: 0 | P186: 0 | Q186: 0
A187: 7381 | B187: MIAMI NORLAND SENIOR HIGH | C187: 0 | D187: 0 | E187: 0 | F187: 0 | G187: 0 | H187: 0 | I187: 0 | J187: 0 | K187: 0 | L187: 0 | M187: 0 | N187: 0 | O187: 0 | P187: 0 | Q187: 0
A188: 7391 | B188: MIAMI LAKES EDUCATIONAL CENTER | C188: 0 | D188: 0 | E188: 0 | F188: 0 | G188: 0 | H188: 0 | I188: 0 | J188: 0 | K188: 0 | L188: 0 | M188: 0 | N188: 0 | O188: 0 | P188: 0 | Q188: 0
A189: 7411 | B189: MIAMI NORTHWESTERN SENIOR HIGH | C189: 0 | D189: 0 | E189: 0 | F189: 0 | G189: 0 | H189: 0 | I189: 0 | J189: 0 | K189: 0 | L189: 0 | M189: 0 | N189: 0 | O189: 0 | P189: 0 | Q189: 0
A190: 7431 | B190: MIAMI PALMETTO SENIOR HIGH | C190: 0 | D190: 0 | E190: 0 | F190: 0 | G190: 0 | H190: 0 | I190: 0 | J190: 0 | K190: 0 | L190: 0 | M190: 0 | N190: 0 | O190: 0 | P190: 0 | Q190: 0
A191: 7461 | B191: MIAMI SENIOR HIGH | C191: 0 | D191: 0 | E191: 0 | F191: 0 | G191: 0 | H191: 0 | I191: 0 | J191: 0 | K191: 0 | L191: 0 | M191: 0 | N191: 0 | O191: 0 | P191: 0 | Q191: 0
A192: 7511 | B192: MIAMI SPRINGS SENIOR HIGH | C192: 0 | D192: 0 | E192: 0 | F192: 0 | G192: 0 | H192: 0 | I192: 0 | J192: 0 | K192: 0 | L192: 0 | M192: 0 | N192: 0 | O192: 0 | P192: 0 | Q192: 0
A193: 7531 | B193: MIAMI SUNSET SENIOR HIGH | C193: 0 | D193: 0 | E193: 0 | F193: 0 | G193: 0 | H193: 0 | I193: 0 | J193: 0 | K193: 0 | L193: 0 | M193: 0 | N193: 0 | O193: 0 | P193: 0 | Q193: 0
A194: 7541 | B194: NORTH MIAMI BEACH SENIOR HIGH | C194: 0 | D194: 0 | E194: 0 | F194: 0 | G194: 0 | H194: 0 | I194: 0 | J194: 0 | K194: 0 | L194: 0 | M194: 0 | N194: 0 | O194: 0 | P194: 0 | Q194: 0
A195: 7571 | B195: INTL STUDIES PREP ACADEMY | C195: 0 | D195: 0 | E195: 0 | F195: 0 | G195: 0 | H195: 0 | I195: 0 | J195: 0 | K195: 0 | L195: 0 | M195: 0 | N195: 0 | O195: 0 | P195: 0 | Q195: 0
A196: 7591 | B196: NORTH MIAMI SENIOR HIGH | C196: 0 | D196: 0 | E196: 0 | F196: 0 | G196: 0 | H196: 0 | I196: 0 | J196: 0 | K196: 0 | L196: 0 | M196: 0 | N196: 0 | O196: 0 | P196: 0 | Q196: 0
A197: 7601 | B197: WILLIAM H. TURNER TECHNICAL | C197: 0 | D197: 0 | E197: 0 | F197: 0 | G197: 0 | H197: 0 | I197: 0 | J197: 0 | K197: 0 | L197: 0 | M197: 0 | N197: 0 | O197: 0 | P197: 0 | Q197: 0
A198: 7631 | B198: MIAMI MACARTHUR SOUTH | C198: 0 | D198: 0 | E198: 0 | F198: 0 | G198: 0 | H198: 0 | I198: 0 | J198: 0 | K198: 0 | L198: 0 | M198: 0 | N198: 0 | O198: 0 | P198: 0 | Q198: 0
A199: 7701 | B199: SOUTH DADE SENIOR HIGH | C199: 0 | D199: 0 | E199: 0 | F199: 0 | G199: 0 | H199: 0 | I199: 0 | J199: 0 | K199: 0 | L199: 0 | M199: 0 | N199: 0 | O199: 0 | P199: 0 | Q199: 0
A200: 7721 | B200: SOUTH MIAMI SENIOR HIGH | C200: 0 | D200: 0 | E200: 0 | F200: 0 | G200: 0 | H200: 0 | I200: 0 | J200: 0 | K200: 0 | L200: 0 | M200: 0 | N200: 0 | O200: 0 | P200: 0 | Q200: 0
... 17 more rows

Sheet ALG Gr07 (hidden)
A1: 1 | B1: 2 | C1: 3 | D1: 4 | E1: 5 | F1: 6 | G1: 7 | H1: 8 | I1: 9 | J1: 10 | K1: 11 | L1: 12 | M1: 13 | N1: 14 | O1: 15 | P1: 16 | Q1: 17
A2: 07 | B2: SchName | C2: Total | D2: ML1 | E2: ML2 | F2: ML3 | G2: ML4 | H2: ML5 | I2: ML0 | J2: W | K2: B | L2: H | M2: A | N2: I | O2: ED | P2: ELL | Q2: SWD
A3: 0070 | B3: CORAL REEF MONTESSORI ACAD CH | C3: 5 | D3: 0 | E3: 0 | F3: 0 | G3: 1 | H3: 3 | I3: 1 | J3: 0 | K3: 0 | L3: 4 | M3: 1 | N3: 0 | O3: 1 | P3: 0 | Q3: 0
A4: 0071 | B4: EUGENIA B. THOMAS K-8 CENTER | C4: 18 | D4: 0 | E4: 0 | F4: 2 | G4: 9 | H4: 6 | I4: 1 | J4: 1 | K4: 0 | L4: 15 | M4: 2 | N4: 0 | O4: 9 | P4: 0 | Q4: 0
A5: 0073 | B5: MANDARIN LAKES K-8 CENTER | C5: 0 | D5: 0 | E5: 0 | F5: 0 | G5: 0 | H5: 0 | I5: 0 | J5: 0 | K5: 0 | L5: 0 | M5: 0 | N5: 0 | O5: 0 | P5: 0 | Q5: 0
A6: 0091 | B6: BOB GRAHAM EDUCATION CTR | C6: 0 | D6: 0 | E6: 0 | F6: 0 | G6: 0 | H6: 0 | I6: 0 | J6: 0 | K6: 0 | L6: 0 | M6: 0 | N6: 0 | O6: 0 | P6: 0 | Q6: 0
A7: 0092 | B7: NORMAN S. EDELCUP/SUNNY ISLES | C7: 27 | D7: 0 | E7: 0 | F7: 0 | G7: 2 | H7: 24 | I7: 1 | J7: 13 | K7: 0 | L7: 13 | M7: 1 | N7: 0 | O7: 6 | P7: 1 | Q7: 0
A8: 0122 | B8: DR ROLANDO ESPINOSA K-8 | C8: 0 | D8: 0 | E8: 0 | F8: 0 | G8: 0 | H8: 0 | I8: 0 | J8: 0 | K8: 0 | L8: 0 | M8: 0 | N8: 0 | O8: 0 | P8: 0 | Q8: 0
A9: 0231 | B9: AVENTURA WATERWAYS K-8 CENTER | C9: 24 | D9: 0 | E9: 0 | F9: 1 | G9: 13 | H9: 10 | I9: 0 | J9: 9 | K9: 1 | L9: 14 | M9: 0 | N9: 0 | O9: 7 | P9: 2 | Q9: 0
A10: 0241 | B10: RUTH K BROAD/BAY HARBOR K-8 | C10: 14 | D10: 0 | E10: 0 | F10: 0 | G10: 5 | H10: 9 | I10: 0 | J10: 6 | K10: 1 | L10: 7 | M10: 0 | N10: 0 | O10: 4 | P10: 0 | Q10: 1
A11: 0332 | B11: SOMERSET ACADEMY(SILVER PALMS) | C11: 1 | D11: 0 | E11: 0 | F11: 1 | G11: 0 | H11: 0 | I11: 0 | J11: 0 | K11: 1 | L11: 0 | M11: 0 | N11: 0 | O11: 1 | P11: 0 | Q11: 0
A12: 0451 | B12: BOWMAN ASHE/DOOLIN K-8 ACAD | C12: 0 | D12: 0 | E12: 0 | F12: 0 | G12: 0 | H12: 0 | I12: 0 | J12: 0 | K12: 0 | L12: 0 | M12: 0 | N12: 0 | O12: 0 | P12: 0 | Q12: 0
A13: 0761 | B13: FIENBERG/FISHER K-8 CENTER | C13: 1 | D13: 0 | E13: 0 | F13: 0 | G13: 1 | H13: 0 | I13: 0 | J13: 1 | K13: 0 | L13: 0 | M13: 0 | N13: 0 | O13: 1 | P13: 0 | Q13: 0
A14: 0950 | B14: AVENTURA CITY OF EXCELLENCE | C14: 25 | D14: 0 | E14: 0 | F14: 0 | G14: 5 | H14: 17 | I14: 3 | J14: 14 | K14: 0 | L14: 10 | M14: 1 | N14: 0 | O14: 0 | P14: 0 | Q14: 0
A15: 0961 | B15: CORAL GABLES PREPARATORY ACAD | C15: 50 | D15: 0 | E15: 2 | F15: 17 | G15: 13 | H15: 17 | I15: 1 | J15: 5 | K15: 1 | L15: 44 | M15: 0 | N15: 0 | O15: 22 | P15: 1 | Q15: 2
A16: 1020 | B16: YOUTH CO-OP CHARTER SCHOOL | C16: 25 | D16: 0 | E16: 0 | F16: 6 | G16: 10 | H16: 9 | I16: 0 | J16: 0 | K16: 0 | L16: 24 | M16: 0 | N16: 1 | O16: 18 | P16: 2 | Q16: 0
A17: 1121 | B17: CORAL WAY K-8 CENTER | C17: 0 | D17: 0 | E17: 0 | F17: 0 | G17: 0 | H17: 0 | I17: 0 | J17: 0 | K17: 0 | L17: 0 | M17: 0 | N17: 0 | O17: 0 | P17: 0 | Q17: 0
A18: 1331 | B18: DEVON AIRE K-8 CENTER | C18: 25 | D18: 0 | E18: 0 | F18: 0 | G18: 9 | H18: 16 | I18: 0 | J18: 9 | K18: 0 | L18: 13 | M18: 3 | N18: 0 | O18: 9 | P18: 1 | Q18: 0
A19: 1681 | B19: LILLIE C. EVANS K-8 CENTER | C19: 5 | D19: 0 | E19: 0 | F19: 0 | G19: 3 | H19: 2 | I19: 0 | J19: 0 | K19: 5 | L19: 0 | M19: 0 | N19: 0 | O19: 5 | P19: 0 | Q19: 0
A20: 1721 | B20: EVERGLADES K-8 CENTER | C20: 21 | D20: 0 | E20: 0 | F20: 3 | G20: 12 | H20: 6 | I20: 0 | J20: 0 | K20: 0 | L20: 21 | M20: 0 | N20: 0 | O20: 13 | P20: 0 | Q20: 0
A21: 2701 | B21: KENWOOD K-8 CENTER | C21: 0 | D21: 0 | E21: 0 | F21: 0 | G21: 0 | H21: 0 | I21: 0 | J21: 0 | K21: 0 | L21: 0 | M21: 0 | N21: 0 | O21: 0 | P21: 0 | Q21: 0
A22: 2741 | B22: KEY BISCAYNE K-8 CENTER | C22: 60 | D22: 0 | E22: 0 | F22: 5 | G22: 36 | H22: 19 | I22: 0 | J22: 17 | K22: 1 | L22: 42 | M22: 0 | N22: 0 | O22: 5 | P22: 12 | Q22: 2
A23: 2881 | B23: LEEWOOD K-8 CENTER | C23: 0 | D23: 0 | E23: 0 | F23: 0 | G23: 0 | H23: 0 | I23: 0 | J23: 0 | K23: 0 | L23: 0 | M23: 0 | N23: 0 | O23: 0 | P23: 0 | Q23: 0
A24: 2901 | B24: LEISURE CITY K-8 CENTER | C24: 0 | D24: 0 | E24: 0 | F24: 0 | G24: 0 | H24: 0 | I24: 0 | J24: 0 | K24: 0 | L24: 0 | M24: 0 | N24: 0 | O24: 0 | P24: 0 | Q24: 0
A25: 2911 | B25: LINDA LENTIN K-8 CENTER | C25: 0 | D25: 0 | E25: 0 | F25: 0 | G25: 0 | H25: 0 | I25: 0 | J25: 0 | K25: 0 | L25: 0 | M25: 0 | N25: 0 | O25: 0 | P25: 0 | Q25: 0
A26: 3029 | B26: DORAL ACADEMY OF TECHNOLOGY | C26: 29 | D26: 0 | E26: 0 | F26: 6 | G26: 11 | H26: 12 | I26: 0 | J26: 0 | K26: 2 | L26: 27 | M26: 0 | N26: 0 | O26: 11 | P26: 2 | Q26: 0
A27: 3032 | B27: PALM GLADES PREPATORY ACADEMY | C27: 0 | D27: 0 | E27: 0 | F27: 0 | G27: 0 | H27: 0 | I27: 0 | J27: 0 | K27: 0 | L27: 0 | M27: 0 | N27: 0 | O27: 0 | P27: 0 | Q27: 0
A28: 3101 | B28: FRANK C. MARTIN K-8 CENTER | C28: 54 | D28: 0 | E28: 0 | F28: 5 | G28: 30 | H28: 17 | I28: 2 | J28: 5 | K28: 22 | L28: 20 | M28: 3 | N28: 0 | O28: 23 | P28: 1 | Q28: 0
A29: 3191 | B29: ADA MERRITT K-8 CENTER | C29: 19 | D29: 0 | E29: 0 | F29: 0 | G29: 1 | H29: 18 | I29: 0 | J29: 7 | K29: 0 | L29: 11 | M29: 1 | N29: 0 | O29: 5 | P29: 0 | Q29: 0
A30: 3281 | B30: MIAMI LAKES K-8 CENTER | C30: 37 | D30: 0 | E30: 0 | F30: 3 | G30: 11 | H30: 21 | I30: 2 | J30: 5 | K30: 1 | L30: 31 | M30: 0 | N30: 0 | O30: 7 | P30: 2 | Q30: 0
A31: 3421 | B31: M.A. MILAM K-8 CENTER | C31: 0 | D31: 0 | E31: 0 | F31: 0 | G31: 0 | H31: 0 | I31: 0 | J31: 0 | K31: 0 | L31: 0 | M31: 0 | N31: 0 | O31: 0 | P31: 0 | Q31: 0
A32: 3610 | B32: KEYS GATE CHARTER SCHOOL | C32: 74 | D32: 0 | E32: 5 | F32: 17 | G32: 38 | H32: 12 | I32: 2 | J32: 17 | K32: 11 | L32: 43 | M32: 3 | N32: 0 | O32: 44 | P32: 1 | Q32: 1
A33: 3621 | B33: COCONUT PALM K-8 ACADEMY | C33: 45 | D33: 0 | E33: 0 | F33: 17 | G33: 18 | H33: 9 | I33: 1 | J33: 1 | K33: 17 | L33: 25 | M33: 2 | N33: 0 | O33: 38 | P33: 3 | Q33: 0
A34: 4691 | B34: JANE ROBERTS K-8 CENTER | C34: 0 | D34: 0 | E34: 0 | F34: 0 | G34: 0 | H34: 0 | I34: 0 | J34: 0 | K34: 0 | L34: 0 | M34: 0 | N34: 0 | O34: 0 | P34: 0 | Q34: 0
A35: 5003 | B35: SOUTH DADE MIDDLE SCHOOL | C35: 0 | D35: 0 | E35: 0 | F35: 0 | G35: 0 | H35: 0 | I35: 0 | J35: 0 | K35: 0 | L35: 0 | M35: 0 | N35: 0 | O35: 0 | P35: 0 | Q35: 0
A36: 5005 | B36: DAVID LAWRENCE JR K-8 CENTER | C36: 10 | D36: 0 | E36: 0 | F36: 0 | G36: 0 | H36: 10 | I36: 0 | J36: 3 | K36: 1 | L36: 4 | M36: 1 | N36: 0 | O36: 4 | P36: 0 | Q36: 0
A37: 5006 | B37: EVERGLADES PREPARATORY ACADEMY | C37: 22 | D37: 0 | E37: 0 | F37: 2 | G37: 9 | H37: 10 | I37: 1 | J37: 1 | K37: 2 | L37: 19 | M37: 0 | N37: 0 | O37: 15 | P37: 0 | Q37: 1
A38: 5010 | B38: OXFORD ACADEMY OF MIAMI | C38: 0 | D38: 0 | E38: 0 | F38: 0 | G38: 0 | H38: 0 | I38: 0 | J38: 0 | K38: 0 | L38: 0 | M38: 0 | N38: 0 | O38: 0 | P38: 0 | Q38: 0
A39: 5025 | B39: LINCOLN-MARTI CS LITTLE HAVANA | C39: 0 | D39: 0 | E39: 0 | F39: 0 | G39: 0 | H39: 0 | I39: 0 | J39: 0 | K39: 0 | L39: 0 | M39: 0 | N39: 0 | O39: 0 | P39: 0 | Q39: 0
A40: 5029 | B40: EXCELSIOR LANGUAGE ACADEMY K-8 | C40: 0 | D40: 0 | E40: 0 | F40: 0 | G40: 0 | H40: 0 | I40: 0 | J40: 0 | K40: 0 | L40: 0 | M40: 0 | N40: 0 | O40: 0 | P40: 0 | Q40: 0
A41: 5047 | B41: MATER ACADEMY (MIAMI BEACH) | C41: 0 | D41: 0 | E41: 0 | F41: 0 | G41: 0 | H41: 0 | I41: 0 | J41: 0 | K41: 0 | L41: 0 | M41: 0 | N41: 0 | O41: 0 | P41: 0 | Q41: 0
A42: 5101 | B42: JOHN I. SMITH K-8 CENTER | C42: 16 | D42: 0 | E42: 0 | F42: 7 | G42: 6 | H42: 2 | I42: 1 | J42: 2 | K42: 1 | L42: 12 | M42: 1 | N42: 0 | O42: 5 | P42: 1 | Q42: 0
A43: 5141 | B43: HUBERT O. SIBLEY K-8 CENTER | C43: 0 | D43: 0 | E43: 0 | F43: 0 | G43: 0 | H43: 0 | I43: 0 | J43: 0 | K43: 0 | L43: 0 | M43: 0 | N43: 0 | O43: 0 | P43: 0 | Q43: 0
A44: 5241 | B44: SOUTH MIAMI K-8 CENTER | C44: 0 | D44: 0 | E44: 0 | F44: 0 | G44: 0 | H44: 0 | I44: 0 | J44: 0 | K44: 0 | L44: 0 | M44: 0 | N44: 0 | O44: 0 | P44: 0 | Q44: 0
A45: 5671 | B45: VINELAND K-8 CENTER | C45: 0 | D45: 0 | E45: 0 | F45: 0 | G45: 0 | H45: 0 | I45: 0 | J45: 0 | K45: 0 | L45: 0 | M45: 0 | N45: 0 | O45: 0 | P45: 0 | Q45: 0
A46: 5961 | B46: WINSTON PARK K-8 CENTER | C46: 22 | D46: 0 | E46: 0 | F46: 1 | G46: 7 | H46: 14 | I46: 0 | J46: 1 | K46: 0 | L46: 20 | M46: 1 | N46: 0 | O46: 14 | P46: 0 | Q46: 1
A47: 6001 | B47: HERBERT A. AMMONS MIDDLE | C47: 99 | D47: 0 | E47: 0 | F47: 8 | G47: 34 | H47: 57 | I47: 0 | J47: 18 | K47: 10 | L47: 62 | M47: 6 | N47: 1 | O47: 35 | P47: 0 | Q47: 1
A48: 6004 | B48: SOMERSET ACADEMY MIDDLE | C48: 27 | D48: 0 | E48: 0 | F48: 0 | G48: 8 | H48: 19 | I48: 0 | J48: 3 | K48: 1 | L48: 22 | M48: 1 | N48: 0 | O48: 13 | P48: 0 | Q48: 0
A49: 6006 | B49: ARCHIMEDEAN CONSERVATORY | C49: 123 | D49: 2 | E49: 12 | F49: 23 | G49: 36 | H49: 48 | I49: 2 | J49: 14 | K49: 2 | L49: 95 | M49: 12 | N49: 0 | O49: 62 | P49: 12 | Q49: 5
A50: 6009 | B50: MATER ACADEMY EAST MIDDLE | C50: 2 | D50: 0 | E50: 0 | F50: 0 | G50: 1 | H50: 1 | I50: 0 | J50: 0 | K50: 2 | L50: 0 | M50: 0 | N50: 0 | O50: 1 | P50: 0 | Q50: 0
A51: 6010 | B51: FLORIDA INTERNATIONAL ACADEMY | C51: 22 | D51: 0 | E51: 0 | F51: 1 | G51: 18 | H51: 3 | I51: 0 | J51: 0 | K51: 21 | L51: 1 | M51: 0 | N51: 0 | O51: 21 | P51: 1 | Q51: 1
A52: 6011 | B52: ALLAPATTAH MIDDLE | C52: 0 | D52: 0 | E52: 0 | F52: 0 | G52: 0 | H52: 0 | I52: 0 | J52: 0 | K52: 0 | L52: 0 | M52: 0 | N52: 0 | O52: 0 | P52: 0 | Q52: 0
A53: 6012 | B53: MATER ACADEMY CHARTER MIDDLE | C53: 1 | D53: 0 | E53: 0 | F53: 0 | G53: 0 | H53: 1 | I53: 0 | J53: 0 | K53: 0 | L53: 1 | M53: 0 | N53: 0 | O53: 1 | P53: 0 | Q53: 0
A54: 6013 | B54: SOMERSET ACADEMY MIDDLE-SOUTH | C54: 0 | D54: 0 | E54: 0 | F54: 0 | G54: 0 | H54: 0 | I54: 0 | J54: 0 | K54: 0 | L54: 0 | M54: 0 | N54: 0 | O54: 0 | P54: 0 | Q54: 0
A55: 6020 | B55: ASPIRA RAUL A. MARTINEZ CHTR | C55: 0 | D55: 0 | E55: 0 | F55: 0 | G55: 0 | H55: 0 | I55: 0 | J55: 0 | K55: 0 | L55: 0 | M55: 0 | N55: 0 | O55: 0 | P55: 0 | Q55: 0
A56: 6021 | B56: ARVIDA MIDDLE SCHOOL | C56: 41 | D56: 0 | E56: 0 | F56: 0 | G56: 6 | H56: 34 | I56: 1 | J56: 6 | K56: 1 | L56: 28 | M56: 6 | N56: 0 | O56: 11 | P56: 1 | Q56: 0
A57: 6022 | B57: PINECREST ACADEMY CHARTER MIDD | C57: 20 | D57: 0 | E57: 0 | F57: 0 | G57: 8 | H57: 12 | I57: 0 | J57: 0 | K57: 0 | L57: 20 | M57: 0 | N57: 0 | O57: 7 | P57: 1 | Q57: 0
A58: 6023 | B58: ANDOVER MIDDLE SCHOOL | C58: 59 | D58: 0 | E58: 1 | F58: 9 | G58: 37 | H58: 11 | I58: 1 | J58: 0 | K58: 56 | L58: 0 | M58: 2 | N58: 0 | O58: 46 | P58: 1 | Q58: 1
A59: 6028 | B59: RENAISSANCE MIDDLE CHARTER | C59: 0 | D59: 0 | E59: 0 | F59: 0 | G59: 0 | H59: 0 | I59: 0 | J59: 0 | K59: 0 | L59: 0 | M59: 0 | N59: 0 | O59: 0 | P59: 0 | Q59: 0
A60: 6030 | B60: DORAL ACADEMY CHARTER MIDDLE | C60: 62 | D60: 0 | E60: 0 | F60: 8 | G60: 26 | H60: 28 | I60: 0 | J60: 5 | K60: 1 | L60: 53 | M60: 3 | N60: 0 | O60: 27 | P60: 1 | Q60: 0
A61: 6031 | B61: BROWNSVILLE MIDDLE | C61: 25 | D61: 0 | E61: 0 | F61: 17 | G61: 8 | H61: 0 | I61: 0 | J61: 0 | K61: 14 | L61: 11 | M61: 0 | N61: 0 | O61: 25 | P61: 1 | Q61: 2
A62: 6033 | B62: MATER ACADEMY LAKES MIDDLE | C62: 1 | D62: 0 | E62: 0 | F62: 0 | G62: 1 | H62: 0 | I62: 0 | J62: 0 | K62: 0 | L62: 1 | M62: 0 | N62: 0 | O62: 1 | P62: 0 | Q62: 0
A63: 6040 | B63: DOCTORS CHARTER/MIAMI SHORES | C63: 3 | D63: 0 | E63: 0 | F63: 0 | G63: 1 | H63: 2 | I63: 0 | J63: 2 | K63: 0 | L63: 1 | M63: 0 | N63: 0 | O63: 1 | P63: 0 | Q63: 0
A64: 6041 | B64: PAUL W. BELL MIDDLE | C64: 6 | D64: 0 | E64: 1 | F64: 0 | G64: 2 | H64: 3 | I64: 0 | J64: 0 | K64: 0 | L64: 6 | M64: 0 | N64: 0 | O64: 6 | P64: 1 | Q64: 0
A65: 6042 | B65: MATER GARDENS ACADEMY MIDDLE | C65: 0 | D65: 0 | E65: 0 | F65: 0 | G65: 0 | H65: 0 | I65: 0 | J65: 0 | K65: 0 | L65: 0 | M65: 0 | N65: 0 | O65: 0 | P65: 0 | Q65: 0
A66: 6045 | B66: INTL. STUDIES CHARTER MIDDLE | C66: 9 | D66: 0 | E66: 0 | F66: 1 | G66: 3 | H66: 5 | I66: 0 | J66: 0 | K66: 0 | L66: 9 | M66: 0 | N66: 0 | O66: 5 | P66: 0 | Q66: 0
A67: 6047 | B67: MATER ACADEMY MIDDLE-INTL STUD | C67: 0 | D67: 0 | E67: 0 | F67: 0 | G67: 0 | H67: 0 | I67: 0 | J67: 0 | K67: 0 | L67: 0 | M67: 0 | N67: 0 | O67: 0 | P67: 0 | Q67: 0
A68: 6048 | B68: MIAMI COMMUNITY CHARTER MIDDLE | C68: 11 | D68: 0 | E68: 0 | F68: 3 | G68: 7 | H68: 1 | I68: 0 | J68: 0 | K68: 2 | L68: 8 | M68: 1 | N68: 0 | O68: 10 | P68: 1 | Q68: 0
A69: 6049 | B69: RIVER CITIES COMMUNITY CHARTER | C69: 0 | D69: 0 | E69: 0 | F69: 0 | G69: 0 | H69: 0 | I69: 0 | J69: 0 | K69: 0 | L69: 0 | M69: 0 | N69: 0 | O69: 0 | P69: 0 | Q69: 0
A70: 6051 | B70: CAROL CITY MIDDLE | C70: 0 | D70: 0 | E70: 0 | F70: 0 | G70: 0 | H70: 0 | I70: 0 | J70: 0 | K70: 0 | L70: 0 | M70: 0 | N70: 0 | O70: 0 | P70: 0 | Q70: 0
A71: 6052 | B71: ZELDA GLAZER MIDDLE SCHOOL | C71: 92 | D71: 2 | E71: 1 | F71: 21 | G71: 55 | H71: 13 | I71: 0 | J71: 2 | K71: 1 | L71: 88 | M71: 1 | N71: 0 | O71: 63 | P71: 2 | Q71: 1
A72: 6053 | B72: SOMERSET ACAD MIDDLE (S-MIAMI) | C72: 0 | D72: 0 | E72: 0 | F72: 0 | G72: 0 | H72: 0 | I72: 0 | J72: 0 | K72: 0 | L72: 0 | M72: 0 | N72: 0 | O72: 0 | P72: 0 | Q72: 0
A73: 6060 | B73: ASPIRA SOUTH YOUTH LEADERSHIP | C73: 1 | D73: 0 | E73: 0 | F73: 0 | G73: 1 | H73: 0 | I73: 0 | J73: 0 | K73: 0 | L73: 1 | M73: 0 | N73: 0 | O73: 1 | P73: 0 | Q73: 0
A74: 6061 | B74: CAMPBELL DRIVE MIDDLE | C74: 1 | D74: 0 | E74: 0 | F74: 0 | G74: 0 | H74: 1 | I74: 0 | J74: 0 | K74: 0 | L74: 1 | M74: 0 | N74: 0 | O74: 1 | P74: 0 | Q74: 0
A75: 6070 | B75: ASPIRA EUGENIO MARIA DE HOSTOS | C75: 0 | D75: 0 | E75: 0 | F75: 0 | G75: 0 | H75: 0 | I75: 0 | J75: 0 | K75: 0 | L75: 0 | M75: 0 | N75: 0 | O75: 0 | P75: 0 | Q75: 0
A76: 6071 | B76: GEORGE WASHINGTON CARVER | C76: 42 | D76: 0 | E76: 0 | F76: 5 | G76: 15 | H76: 22 | I76: 0 | J76: 19 | K76: 1 | L76: 20 | M76: 2 | N76: 0 | O76: 4 | P76: 4 | Q76: 0
A77: 6081 | B77: CENTENNIAL MIDDLE | C77: 7 | D77: 0 | E77: 0 | F77: 1 | G77: 1 | H77: 4 | I77: 1 | J77: 3 | K77: 2 | L77: 2 | M77: 0 | N77: 0 | O77: 2 | P77: 0 | Q77: 1
A78: 6091 | B78: CITRUS GROVE MIDDLE SCHOOL | C78: 0 | D78: 0 | E78: 0 | F78: 0 | G78: 0 | H78: 0 | I78: 0 | J78: 0 | K78: 0 | L78: 0 | M78: 0 | N78: 0 | O78: 0 | P78: 0 | Q78: 0
A79: 6111 | B79: CUTLER RIDGE MIDDLE | C79: 8 | D79: 0 | E79: 3 | F79: 2 | G79: 2 | H79: 1 | I79: 0 | J79: 1 | K79: 3 | L79: 3 | M79: 1 | N79: 0 | O79: 8 | P79: 0 | Q79: 0
A80: 6121 | B80: RUBEN DARIO MIDDLE | C80: 0 | D80: 0 | E80: 0 | F80: 0 | G80: 0 | H80: 0 | I80: 0 | J80: 0 | K80: 0 | L80: 0 | M80: 0 | N80: 0 | O80: 0 | P80: 0 | Q80: 0
A81: 6141 | B81: CHARLES R. DREW MIDDLE | C81: 0 | D81: 0 | E81: 0 | F81: 0 | G81: 0 | H81: 0 | I81: 0 | J81: 0 | K81: 0 | L81: 0 | M81: 0 | N81: 0 | O81: 0 | P81: 0 | Q81: 0
A82: 6151 | B82: DORAL MIDDLE SCHOOL | C82: 0 | D82: 0 | E82: 0 | F82: 0 | G82: 0 | H82: 0 | I82: 0 | J82: 0 | K82: 0 | L82: 0 | M82: 0 | N82: 0 | O82: 0 | P82: 0 | Q82: 0
A83: 6161 | B83: LAWTON CHILES MIDDLE SCHOOL | C83: 0 | D83: 0 | E83: 0 | F83: 0 | G83: 0 | H83: 0 | I83: 0 | J83: 0 | K83: 0 | L83: 0 | M83: 0 | N83: 0 | O83: 0 | P83: 0 | Q83: 0
A84: 6171 | B84: HENRY H. FILER MIDDLE | C84: 0 | D84: 0 | E84: 0 | F84: 0 | G84: 0 | H84: 0 | I84: 0 | J84: 0 | K84: 0 | L84: 0 | M84: 0 | N84: 0 | O84: 0 | P84: 0 | Q84: 0
A85: 6211 | B85: GLADES MIDDLE | C85: 56 | D85: 0 | E85: 0 | F85: 5 | G85: 27 | H85: 24 | I85: 0 | J85: 6 | K85: 1 | L85: 46 | M85: 3 | N85: 0 | O85: 22 | P85: 2 | Q85: 0
A86: 6221 | B86: HAMMOCKS MIDDLE | C86: 2 | D86: 0 | E86: 0 | F86: 0 | G86: 1 | H86: 0 | I86: 1 | J86: 1 | K86: 0 | L86: 1 | M86: 0 | N86: 0 | O86: 2 | P86: 0 | Q86: 0
A87: 6231 | B87: HIALEAH MIDDLE | C87: 0 | D87: 0 | E87: 0 | F87: 0 | G87: 0 | H87: 0 | I87: 0 | J87: 0 | K87: 0 | L87: 0 | M87: 0 | N87: 0 | O87: 0 | P87: 0 | Q87: 0
A88: 6241 | B88: HIGHLAND OAKS MIDDLE | C88: 106 | D88: 0 | E88: 0 | F88: 8 | G88: 61 | H88: 36 | I88: 1 | J88: 47 | K88: 28 | L88: 29 | M88: 2 | N88: 0 | O88: 51 | P88: 4 | Q88: 3
A89: 6251 | B89: HOMESTEAD MIDDLE | C89: 0 | D89: 0 | E89: 0 | F89: 0 | G89: 0 | H89: 0 | I89: 0 | J89: 0 | K89: 0 | L89: 0 | M89: 0 | N89: 0 | O89: 0 | P89: 0 | Q89: 0
A90: 6281 | B90: THOMAS JEFFERSON MIDDLE | C90: 0 | D90: 0 | E90: 0 | F90: 0 | G90: 0 | H90: 0 | I90: 0 | J90: 0 | K90: 0 | L90: 0 | M90: 0 | N90: 0 | O90: 0 | P90: 0 | Q90: 0
A91: 6301 | B91: JOHN F. KENNEDY MIDDLE | C91: 140 | D91: 1 | E91: 7 | F91: 51 | G91: 52 | H91: 29 | I91: 0 | J91: 10 | K91: 91 | L91: 32 | M91: 5 | N91: 0 | O91: 115 | P91: 7 | Q91: 1
A92: 6331 | B92: KINLOCH PARK MIDDLE | C92: 0 | D92: 0 | E92: 0 | F92: 0 | G92: 0 | H92: 0 | I92: 0 | J92: 0 | K92: 0 | L92: 0 | M92: 0 | N92: 0 | O92: 0 | P92: 0 | Q92: 0
A93: 6351 | B93: LAKE STEVENS MIDDLE | C93: 0 | D93: 0 | E93: 0 | F93: 0 | G93: 0 | H93: 0 | I93: 0 | J93: 0 | K93: 0 | L93: 0 | M93: 0 | N93: 0 | O93: 0 | P93: 0 | Q93: 0
A94: 6361 | B94: JOSE DE DIEGO MIDDLE SCHOOL | C94: 2 | D94: 0 | E94: 0 | F94: 0 | G94: 0 | H94: 1 | I94: 1 | J94: 0 | K94: 0 | L94: 2 | M94: 0 | N94: 0 | O94: 2 | P94: 1 | Q94: 0
A95: 6391 | B95: MADISON MIDDLE SCHOOL | C95: 0 | D95: 0 | E95: 0 | F95: 0 | G95: 0 | H95: 0 | I95: 0 | J95: 0 | K95: 0 | L95: 0 | M95: 0 | N95: 0 | O95: 0 | P95: 0 | Q95: 0
A96: 6411 | B96: HORACE MANN MIDDLE | C96: 0 | D96: 0 | E96: 0 | F96: 0 | G96: 0 | H96: 0 | I96: 0 | J96: 0 | K96: 0 | L96: 0 | M96: 0 | N96: 0 | O96: 0 | P96: 0 | Q96: 0
A97: 6421 | B97: JOSE MARTI MIDDLE | C97: 0 | D97: 0 | E97: 0 | F97: 0 | G97: 0 | H97: 0 | I97: 0 | J97: 0 | K97: 0 | L97: 0 | M97: 0 | N97: 0 | O97: 0 | P97: 0 | Q97: 0
A98: 6431 | B98: MAYS MIDDLE | C98: 0 | D98: 0 | E98: 0 | F98: 0 | G98: 0 | H98: 0 | I98: 0 | J98: 0 | K98: 0 | L98: 0 | M98: 0 | N98: 0 | O98: 0 | P98: 0 | Q98: 0
A99: 6441 | B99: HOWARD D. MCMILLAN MIDDLE | C99: 54 | D99: 0 | E99: 2 | F99: 9 | G99: 23 | H99: 20 | I99: 0 | J99: 3 | K99: 2 | L99: 46 | M99: 3 | N99: 0 | O99: 39 | P99: 5 | Q99: 0
A100: 6481 | B100: MIAMI EDISON MIDDLE | C100: 0 | D100: 0 | E100: 0 | F100: 0 | G100: 0 | H100: 0 | I100: 0 | J100: 0 | K100: 0 | L100: 0 | M100: 0 | N100: 0 | O100: 0 | P100: 0 | Q100: 0
A101: 6501 | B101: MIAMI LAKES MIDDLE | C101: 16 | D101: 0 | E101: 0 | F101: 2 | G101: 3 | H101: 11 | I101: 0 | J101: 0 | K101: 0 | L101: 15 | M101: 1 | N101: 0 | O101: 15 | P101: 0 | Q101: 0
A102: 6521 | B102: MIAMI SPRINGS MIDDLE | C102: 59 | D102: 1 | E102: 5 | F102: 14 | G102: 19 | H102: 19 | I102: 1 | J102: 4 | K102: 6 | L102: 45 | M102: 4 | N102: 0 | O102: 42 | P102: 3 | Q102: 1
A103: 6541 | B103: NAUTILUS MIDDLE | C103: 61 | D103: 0 | E103: 0 | F103: 2 | G103: 20 | H103: 38 | I103: 1 | J103: 30 | K103: 0 | L103: 30 | M103: 0 | N103: 0 | O103: 28 | P103: 2 | Q103: 0
A104: 6571 | B104: NORLAND MIDDLE | C104: 8 | D104: 0 | E104: 0 | F104: 0 | G104: 4 | H104: 4 | I104: 0 | J104: 0 | K104: 8 | L104: 0 | M104: 0 | N104: 0 | O104: 8 | P104: 0 | Q104: 0
A105: 6591 | B105: NORTH DADE MIDDLE | C105: 25 | D105: 0 | E105: 0 | F105: 6 | G105: 13 | H105: 6 | I105: 0 | J105: 0 | K105: 19 | L105: 6 | M105: 0 | N105: 0 | O105: 17 | P105: 1 | Q105: 0
A106: 6611 | B106: COUNTRY CLUB MIDDLE SCHOOL | C106: 26 | D106: 0 | E106: 0 | F106: 3 | G106: 8 | H106: 14 | I106: 1 | J106: 0 | K106: 8 | L106: 17 | M106: 0 | N106: 0 | O106: 23 | P106: 1 | Q106: 0
A107: 6631 | B107: NORTH MIAMI MIDDLE | C107: 0 | D107: 0 | E107: 0 | F107: 0 | G107: 0 | H107: 0 | I107: 0 | J107: 0 | K107: 0 | L107: 0 | M107: 0 | N107: 0 | O107: 0 | P107: 0 | Q107: 0
A108: 6681 | B108: PALM SPRINGS MIDDLE | C108: 0 | D108: 0 | E108: 0 | F108: 0 | G108: 0 | H108: 0 | I108: 0 | J108: 0 | K108: 0 | L108: 0 | M108: 0 | N108: 0 | O108: 0 | P108: 0 | Q108: 0
A109: 6701 | B109: PALMETTO MIDDLE | C109: 27 | D109: 0 | E109: 0 | F109: 0 | G109: 11 | H109: 14 | I109: 2 | J109: 12 | K109: 0 | L109: 7 | M109: 7 | N109: 0 | O109: 1 | P109: 1 | Q109: 1
A110: 6721 | B110: PARKWAY MIDDLE | C110: 0 | D110: 0 | E110: 0 | F110: 0 | G110: 0 | H110: 0 | I110: 0 | J110: 0 | K110: 0 | L110: 0 | M110: 0 | N110: 0 | O110: 0 | P110: 0 | Q110: 0
A111: 6741 | B111: PONCE DE LEON MIDDLE | C111: 76 | D111: 0 | E111: 0 | F111: 1 | G111: 42 | H111: 32 | I111: 1 | J111: 9 | K111: 5 | L111: 59 | M111: 2 | N111: 1 | O111: 52 | P111: 3 | Q111: 0
A112: 6751 | B112: HIALEAH GARDENS MIDDLE SCHOOL | C112: 242 | D112: 1 | E112: 10 | F112: 79 | G112: 108 | H112: 44 | I112: 0 | J112: 2 | K112: 0 | L112: 238 | M112: 2 | N112: 0 | O112: 193 | P112: 28 | Q112: 2
A113: 6761 | B113: REDLAND MIDDLE | C113: 0 | D113: 0 | E113: 0 | F113: 0 | G113: 0 | H113: 0 | I113: 0 | J113: 0 | K113: 0 | L113: 0 | M113: 0 | N113: 0 | O113: 0 | P113: 0 | Q113: 0
A114: 6771 | B114: JORGE MAS CANOSA MIDDLE | C114: 54 | D114: 0 | E114: 0 | F114: 2 | G114: 16 | H114: 36 | I114: 0 | J114: 7 | K114: 1 | L114: 45 | M114: 1 | N114: 0 | O114: 33 | P114: 3 | Q114: 1
A115: 6781 | B115: RICHMOND HEIGHTS MIDDLE | C115: 10 | D115: 0 | E115: 0 | F115: 2 | G115: 4 | H115: 4 | I115: 0 | J115: 2 | K115: 1 | L115: 6 | M115: 1 | N115: 0 | O115: 8 | P115: 1 | Q115: 0
A116: 6801 | B116: RIVIERA MIDDLE | C116: 70 | D116: 0 | E116: 0 | F116: 18 | G116: 37 | H116: 15 | I116: 0 | J116: 9 | K116: 1 | L116: 58 | M116: 2 | N116: 0 | O116: 53 | P116: 4 | Q116: 2
A117: 6821 | B117: ROCKWAY MIDDLE | C117: 24 | D117: 0 | E117: 0 | F117: 1 | G117: 11 | H117: 11 | I117: 1 | J117: 3 | K117: 0 | L117: 19 | M117: 2 | N117: 0 | O117: 19 | P117: 3 | Q117: 0
A118: 6841 | B118: SHENANDOAH MIDDLE | C118: 16 | D118: 0 | E118: 0 | F118: 0 | G118: 7 | H118: 9 | I118: 0 | J118: 0 | K118: 1 | L118: 15 | M118: 0 | N118: 0 | O118: 15 | P118: 1 | Q118: 0
A119: 6861 | B119: SOUTHWOOD MIDDLE | C119: 25 | D119: 0 | E119: 0 | F119: 0 | G119: 6 | H119: 19 | I119: 0 | J119: 13 | K119: 0 | L119: 5 | M119: 6 | N119: 0 | O119: 1 | P119: 0 | Q119: 0
A120: 6881 | B120: SOUTH MIAMI MIDDLE SCHOOL | C120: 0 | D120: 0 | E120: 0 | F120: 0 | G120: 0 | H120: 0 | I120: 0 | J120: 0 | K120: 0 | L120: 0 | M120: 0 | N120: 0 | O120: 0 | P120: 0 | Q120: 0
A121: 6901 | B121: W. R. THOMAS MIDDLE | C121: 161 | D121: 0 | E121: 0 | F121: 6 | G121: 55 | H121: 91 | I121: 9 | J121: 7 | K121: 2 | L121: 145 | M121: 7 | N121: 0 | O121: 108 | P121: 11 | Q121: 8
A122: 6921 | B122: LAMAR LOUISE CURRY MIDDLE SCH | C122: 56 | D122: 0 | E122: 0 | F122: 0 | G122: 5 | H122: 51 | I122: 0 | J122: 2 | K122: 1 | L122: 50 | M122: 3 | N122: 0 | O122: 32 | P122: 1 | Q122: 0
A123: 6961 | B123: WEST MIAMI MIDDLE | C123: 0 | D123: 0 | E123: 0 | F123: 0 | G123: 0 | H123: 0 | I123: 0 | J123: 0 | K123: 0 | L123: 0 | M123: 0 | N123: 0 | O123: 0 | P123: 0 | Q123: 0
A124: 6981 | B124: WESTVIEW MIDDLE | C124: 0 | D124: 0 | E124: 0 | F124: 0 | G124: 0 | H124: 0 | I124: 0 | J124: 0 | K124: 0 | L124: 0 | M124: 0 | N124: 0 | O124: 0 | P124: 0 | Q124: 0
A125: 7001 | B125: MIAMI-DADE ONLINE ACADEMY | C125: 3 | D125: 0 | E125: 1 | F125: 0 | G125: 1 | H125: 1 | I125: 0 | J125: 0 | K125: 0 | L125: 3 | M125: 0 | N125: 0 | O125: 0 | P125: 0 | Q125: 0
A126: 7007 | B126: INTL. STUDIES CHARTER SENIOR | C126: 0 | D126: 0 | E126: 0 | F126: 0 | G126: 0 | H126: 0 | I126: 0 | J126: 0 | K126: 0 | L126: 0 | M126: 0 | N126: 0 | O126: 0 | P126: 0 | Q126: 0
A127: 7009 | B127: DORAL PERFORMING ARTS ACADEMY | C127: 0 | D127: 0 | E127: 0 | F127: 0 | G127: 0 | H127: 0 | I127: 0 | J127: 0 | K127: 0 | L127: 0 | M127: 0 | N127: 0 | O127: 0 | P127: 0 | Q127: 0
A128: 7011 | B128: AMERICAN SENIOR | C128: 0 | D128: 0 | E128: 0 | F128: 0 | G128: 0 | H128: 0 | I128: 0 | J128: 0 | K128: 0 | L128: 0 | M128: 0 | N128: 0 | O128: 0 | P128: 0 | Q128: 0
A129: 7014 | B129: MATER PERFORMING ARTS ACADEMY | C129: 0 | D129: 0 | E129: 0 | F129: 0 | G129: 0 | H129: 0 | I129: 0 | J129: 0 | K129: 0 | L129: 0 | M129: 0 | N129: 0 | O129: 0 | P129: 0 | Q129: 0
A130: 7015 | B130: STELLAR LEADERSHIP ACADEMY | C130: 0 | D130: 0 | E130: 0 | F130: 0 | G130: 0 | H130: 0 | I130: 0 | J130: 0 | K130: 0 | L130: 0 | M130: 0 | N130: 0 | O130: 0 | P130: 0 | Q130: 0
A131: 7016 | B131: SPORTS LEADERSHIP OF MIAMI CHS | C131: 0 | D131: 0 | E131: 0 | F131: 0 | G131: 0 | H131: 0 | I131: 0 | J131: 0 | K131: 0 | L131: 0 | M131: 0 | N131: 0 | O131: 0 | P131: 0 | Q131: 0
A132: 7018 | B132: MATER ACADEMY LAKES HIGH SCH | C132: 0 | D132: 0 | E132: 0 | F132: 0 | G132: 0 | H132: 0 | I132: 0 | J132: 0 | K132: 0 | L132: 0 | M132: 0 | N132: 0 | O132: 0 | P132: 0 | Q132: 0
A133: 7020 | B133: DORAL ACADEMY HIGH SCHOOL | C133: 0 | D133: 0 | E133: 0 | F133: 0 | G133: 0 | H133: 0 | I133: 0 | J133: 0 | K133: 0 | L133: 0 | M133: 0 | N133: 0 | O133: 0 | P133: 0 | Q133: 0
A134: 7022 | B134: ACADEMY OF ARTS AND MINDS | C134: 0 | D134: 0 | E134: 0 | F134: 0 | G134: 0 | H134: 0 | I134: 0 | J134: 0 | K134: 0 | L134: 0 | M134: 0 | N134: 0 | O134: 0 | P134: 0 | Q134: 0
A135: 7024 | B135: MATER ACADEMY HIGH-INTL STUDIE | C135: 0 | D135: 0 | E135: 0 | F135: 0 | G135: 0 | H135: 0 | I135: 0 | J135: 0 | K135: 0 | L135: 0 | M135: 0 | N135: 0 | O135: 0 | P135: 0 | Q135: 0
A136: 7025 | B136: MATER ACAD HIGH (MIAMI BEACH) | C136: 0 | D136: 0 | E136: 0 | F136: 0 | G136: 0 | H136: 0 | I136: 0 | J136: 0 | K136: 0 | L136: 0 | M136: 0 | N136: 0 | O136: 0 | P136: 0 | Q136: 0
A137: 7029 | B137: TERRA ENVIRONMENTAL RESEARCH | C137: 0 | D137: 0 | E137: 0 | F137: 0 | G137: 0 | H137: 0 | I137: 0 | J137: 0 | K137: 0 | L137: 0 | M137: 0 | N137: 0 | O137: 0 | P137: 0 | Q137: 0
A138: 7030 | B138: INTEGRATED ACADEMICS (SIATECH) | C138: 0 | D138: 0 | E138: 0 | F138: 0 | G138: 0 | H138: 0 | I138: 0 | J138: 0 | K138: 0 | L138: 0 | M138: 0 | N138: 0 | O138: 0 | P138: 0 | Q138: 0
A139: 7032 | B139: PALM GLADES PREP HIGH SCHOOL | C139: 0 | D139: 0 | E139: 0 | F139: 0 | G139: 0 | H139: 0 | I139: 0 | J139: 0 | K139: 0 | L139: 0 | M139: 0 | N139: 0 | O139: 0 | P139: 0 | Q139: 0
A140: 7033 | B140: LAW ENFORCEMENT OFFICERS HS | C140: 0 | D140: 0 | E140: 0 | F140: 0 | G140: 0 | H140: 0 | I140: 0 | J140: 0 | K140: 0 | L140: 0 | M140: 0 | N140: 0 | O140: 0 | P140: 0 | Q140: 0
A141: 7034 | B141: SOMERSET ACAD HIGH SOUTH-HMSTD | C141: 0 | D141: 0 | E141: 0 | F141: 0 | G141: 0 | H141: 0 | I141: 0 | J141: 0 | K141: 0 | L141: 0 | M141: 0 | N141: 0 | O141: 0 | P141: 0 | Q141: 0
A142: 7036 | B142: LAWRENCE ACADEMY SENIOR | C142: 0 | D142: 0 | E142: 0 | F142: 0 | G142: 0 | H142: 0 | I142: 0 | J142: 0 | K142: 0 | L142: 0 | M142: 0 | N142: 0 | O142: 0 | P142: 0 | Q142: 0
A143: 7037 | B143: MATER ACADEMY EAST HIGH SCHOOL | C143: 0 | D143: 0 | E143: 0 | F143: 0 | G143: 0 | H143: 0 | I143: 0 | J143: 0 | K143: 0 | L143: 0 | M143: 0 | N143: 0 | O143: 0 | P143: 0 | Q143: 0
A144: 7042 | B144: SOMERSET ACADEMY CHARTER HIGH | C144: 0 | D144: 0 | E144: 0 | F144: 0 | G144: 0 | H144: 0 | I144: 0 | J144: 0 | K144: 0 | L144: 0 | M144: 0 | N144: 0 | O144: 0 | P144: 0 | Q144: 0
A145: 7048 | B145: ALONZO & TRACY MOURNING SH | C145: 0 | D145: 0 | E145: 0 | F145: 0 | G145: 0 | H145: 0 | I145: 0 | J145: 0 | K145: 0 | L145: 0 | M145: 0 | N145: 0 | O145: 0 | P145: 0 | Q145: 0
A146: 7049 | B146: WESTLAND HIALEAH SENIOR HIGH | C146: 0 | D146: 0 | E146: 0 | F146: 0 | G146: 0 | H146: 0 | I146: 0 | J146: 0 | K146: 0 | L146: 0 | M146: 0 | N146: 0 | O146: 0 | P146: 0 | Q146: 0
A147: 7050 | B147: KEYS GATE CHARTER HIGH SCHL | C147: 0 | D147: 0 | E147: 0 | F147: 0 | G147: 0 | H147: 0 | I147: 0 | J147: 0 | K147: 0 | L147: 0 | M147: 0 | N147: 0 | O147: 0 | P147: 0 | Q147: 0
A148: 7051 | B148: G. HOLMES BRADDOCK SENIOR HIGH | C148: 0 | D148: 0 | E148: 0 | F148: 0 | G148: 0 | H148: 0 | I148: 0 | J148: 0 | K148: 0 | L148: 0 | M148: 0 | N148: 0 | O148: 0 | P148: 0 | Q148: 0
A149: 7053 | B149: PINECREST ACADEMY CHARTER HIGH | C149: 0 | D149: 0 | E149: 0 | F149: 0 | G149: 0 | H149: 0 | I149: 0 | J149: 0 | K149: 0 | L149: 0 | M149: 0 | N149: 0 | O149: 0 | P149: 0 | Q149: 0
A150: 7054 | B150: EXCELSIOR CHARTER HIGH SCHOOL | C150: 0 | D150: 0 | E150: 0 | F150: 0 | G150: 0 | H150: 0 | I150: 0 | J150: 0 | K150: 0 | L150: 0 | M150: 0 | N150: 0 | O150: 0 | P150: 0 | Q150: 0
A151: 7055 | B151: YOUNG WOMEN'S PREPARATORY ACAD | C151: 1 | D151: 0 | E151: 0 | F151: 0 | G151: 0 | H151: 1 | I151: 0 | J151: 0 | K151: 0 | L151: 1 | M151: 0 | N151: 0 | O151: 0 | P151: 0 | Q151: 0
A152: 7056 | B152: YOUNG MENS PREPARATORY ACADEMY | C152: 0 | D152: 0 | E152: 0 | F152: 0 | G152: 0 | H152: 0 | I152: 0 | J152: 0 | K152: 0 | L152: 0 | M152: 0 | N152: 0 | O152: 0 | P152: 0 | Q152: 0
A153: 7058 | B153: MIAMI COMMUNITY CH HIGH SCHOOL | C153: 0 | D153: 0 | E153: 0 | F153: 0 | G153: 0 | H153: 0 | I153: 0 | J153: 0 | K153: 0 | L153: 0 | M153: 0 | N153: 0 | O153: 0 | P153: 0 | Q153: 0
A154: 7059 | B154: MIAMI ARTS CHARTER | C154: 3 | D154: 0 | E154: 0 | F154: 1 | G154: 1 | H154: 0 | I154: 1 | J154: 1 | K154: 1 | L154: 1 | M154: 0 | N154: 0 | O154: 0 | P154: 0 | Q154: 0
A155: 7060 | B155: EVERGLADES PREP ACADEMY HIGH | C155: 0 | D155: 0 | E155: 0 | F155: 0 | G155: 0 | H155: 0 | I155: 0 | J155: 0 | K155: 0 | L155: 0 | M155: 0 | N155: 0 | O155: 0 | P155: 0 | Q155: 0
A156: 7062 | B156: MAVERICKS HIGH OF NORTH M-DADE | C156: 0 | D156: 0 | E156: 0 | F156: 0 | G156: 0 | H156: 0 | I156: 0 | J156: 0 | K156: 0 | L156: 0 | M156: 0 | N156: 0 | O156: 0 | P156: 0 | Q156: 0
A157: 7065 | B157: MAVERICKS HIGH OF SOUTH M-DADE | C157: 0 | D157: 0 | E157: 0 | F157: 0 | G157: 0 | H157: 0 | I157: 0 | J157: 0 | K157: 0 | L157: 0 | M157: 0 | N157: 0 | O157: 0 | P157: 0 | Q157: 0
A158: 7066 | B158: LBA CONSTR & BUS MGMT ACAD | C158: 0 | D158: 0 | E158: 0 | F158: 0 | G158: 0 | H158: 0 | I158: 0 | J158: 0 | K158: 0 | L158: 0 | M158: 0 | N158: 0 | O158: 0 | P158: 0 | Q158: 0
A159: 7067 | B159: GREEN SPRINGS HIGH SCHOOL | C159: 0 | D159: 0 | E159: 0 | F159: 0 | G159: 0 | H159: 0 | I159: 0 | J159: 0 | K159: 0 | L159: 0 | M159: 0 | N159: 0 | O159: 0 | P159: 0 | Q159: 0
A160: 7068 | B160: NORTH GARDENS HIGH SCHOOL | C160: 0 | D160: 0 | E160: 0 | F160: 0 | G160: 0 | H160: 0 | I160: 0 | J160: 0 | K160: 0 | L160: 0 | M160: 0 | N160: 0 | O160: 0 | P160: 0 | Q160: 0
A161: 7069 | B161: NORTH PARK HIGH SCHOOL | C161: 0 | D161: 0 | E161: 0 | F161: 0 | G161: 0 | H161: 0 | I161: 0 | J161: 0 | K161: 0 | L161: 0 | M161: 0 | N161: 0 | O161: 0 | P161: 0 | Q161: 0
A162: 7070 | B162: YOUTH CO-OP PREP HIGH SCHOOL | C162: 0 | D162: 0 | E162: 0 | F162: 0 | G162: 0 | H162: 0 | I162: 0 | J162: 0 | K162: 0 | L162: 0 | M162: 0 | N162: 0 | O162: 0 | P162: 0 | Q162: 0
A163: 7071 | B163: CORAL GABLES SENIOR HIGH | C163: 0 | D163: 0 | E163: 0 | F163: 0 | G163: 0 | H163: 0 | I163: 0 | J163: 0 | K163: 0 | L163: 0 | M163: 0 | N163: 0 | O163: 0 | P163: 0 | Q163: 0
A164: 7080 | B164: CHARTER HS OF THE AMERICAS | C164: 0 | D164: 0 | E164: 0 | F164: 0 | G164: 0 | H164: 0 | I164: 0 | J164: 0 | K164: 0 | L164: 0 | M164: 0 | N164: 0 | O164: 0 | P164: 0 | Q164: 0
A165: 7081 | B165: DESIGN & ARCHITECTURE SENIOR | C165: 0 | D165: 0 | E165: 0 | F165: 0 | G165: 0 | H165: 0 | I165: 0 | J165: 0 | K165: 0 | L165: 0 | M165: 0 | N165: 0 | O165: 0 | P165: 0 | Q165: 0
A166: 7101 | B166: CORAL REEF SENIOR HIGH | C166: 0 | D166: 0 | E166: 0 | F166: 0 | G166: 0 | H166: 0 | I166: 0 | J166: 0 | K166: 0 | L166: 0 | M166: 0 | N166: 0 | O166: 0 | P166: 0 | Q166: 0
A167: 7111 | B167: HIALEAH SENIOR | C167: 0 | D167: 0 | E167: 0 | F167: 0 | G167: 0 | H167: 0 | I167: 0 | J167: 0 | K167: 0 | L167: 0 | M167: 0 | N167: 0 | O167: 0 | P167: 0 | Q167: 0
A168: 7121 | B168: JOHN A FERGUSON SENIOR HIGH | C168: 0 | D168: 0 | E168: 0 | F168: 0 | G168: 0 | H168: 0 | I168: 0 | J168: 0 | K168: 0 | L168: 0 | M168: 0 | N168: 0 | O168: 0 | P168: 0 | Q168: 0
A169: 7131 | B169: HIALEAH-MIAMI LAKES SENIOR | C169: 0 | D169: 0 | E169: 0 | F169: 0 | G169: 0 | H169: 0 | I169: 0 | J169: 0 | K169: 0 | L169: 0 | M169: 0 | N169: 0 | O169: 0 | P169: 0 | Q169: 0
A170: 7141 | B170: DR MICHAEL M KROP SENIOR HIGH | C170: 0 | D170: 0 | E170: 0 | F170: 0 | G170: 0 | H170: 0 | I170: 0 | J170: 0 | K170: 0 | L170: 0 | M170: 0 | N170: 0 | O170: 0 | P170: 0 | Q170: 0
A171: 7151 | B171: HOMESTEAD SENIOR HIGH | C171: 0 | D171: 0 | E171: 0 | F171: 0 | G171: 0 | H171: 0 | I171: 0 | J171: 0 | K171: 0 | L171: 0 | M171: 0 | N171: 0 | O171: 0 | P171: 0 | Q171: 0
A172: 7160 | B172: MATER ACADEMY CHARTER HIGH | C172: 0 | D172: 0 | E172: 0 | F172: 0 | G172: 0 | H172: 0 | I172: 0 | J172: 0 | K172: 0 | L172: 0 | M172: 0 | N172: 0 | O172: 0 | P172: 0 | Q172: 0
A173: 7161 | B173: MAST @ VIRGINIA KEY | C173: 0 | D173: 0 | E173: 0 | F173: 0 | G173: 0 | H173: 0 | I173: 0 | J173: 0 | K173: 0 | L173: 0 | M173: 0 | N173: 0 | O173: 0 | P173: 0 | Q173: 0
A174: 7191 | B174: HIALEAH GARDENS SENIOR | C174: 0 | D174: 0 | E174: 0 | F174: 0 | G174: 0 | H174: 0 | I174: 0 | J174: 0 | K174: 0 | L174: 0 | M174: 0 | N174: 0 | O174: 0 | P174: 0 | Q174: 0
A175: 7201 | B175: MIAMI BEACH SENIOR HIGH | C175: 0 | D175: 0 | E175: 0 | F175: 0 | G175: 0 | H175: 0 | I175: 0 | J175: 0 | K175: 0 | L175: 0 | M175: 0 | N175: 0 | O175: 0 | P175: 0 | Q175: 0
A176: 7231 | B176: MIAMI CAROL CITY SENIOR HIGH | C176: 0 | D176: 0 | E176: 0 | F176: 0 | G176: 0 | H176: 0 | I176: 0 | J176: 0 | K176: 0 | L176: 0 | M176: 0 | N176: 0 | O176: 0 | P176: 0 | Q176: 0
A177: 7241 | B177: RONALD W REAGAN/DORAL SENIOR | C177: 0 | D177: 0 | E177: 0 | F177: 0 | G177: 0 | H177: 0 | I177: 0 | J177: 0 | K177: 0 | L177: 0 | M177: 0 | N177: 0 | O177: 0 | P177: 0 | Q177: 0
A178: 7251 | B178: MIAMI CENTRAL SENIOR HIGH | C178: 0 | D178: 0 | E178: 0 | F178: 0 | G178: 0 | H178: 0 | I178: 0 | J178: 0 | K178: 0 | L178: 0 | M178: 0 | N178: 0 | O178: 0 | P178: 0 | Q178: 0
A179: 7262 | B179: CITY OF HIALEAH EDUCATION ACAD | C179: 0 | D179: 0 | E179: 0 | F179: 0 | G179: 0 | H179: 0 | I179: 0 | J179: 0 | K179: 0 | L179: 0 | M179: 0 | N179: 0 | O179: 0 | P179: 0 | Q179: 0
A180: 7271 | B180: MIAMI CORAL PARK SENIOR HIGH | C180: 0 | D180: 0 | E180: 0 | F180: 0 | G180: 0 | H180: 0 | I180: 0 | J180: 0 | K180: 0 | L180: 0 | M180: 0 | N180: 0 | O180: 0 | P180: 0 | Q180: 0
A181: 7291 | B181: JOSE MARTI MAST 6-12 ACADEMY | C181: 26 | D181: 0 | E181: 0 | F181: 3 | G181: 10 | H181: 12 | I181: 1 | J181: 2 | K181: 4 | L181: 19 | M181: 1 | N181: 0 | O181: 20 | P181: 2 | Q181: 0
A182: 7301 | B182: MIAMI EDISON SENIOR HIGH | C182: 0 | D182: 0 | E182: 0 | F182: 0 | G182: 0 | H182: 0 | I182: 0 | J182: 0 | K182: 0 | L182: 0 | M182: 0 | N182: 0 | O182: 0 | P182: 0 | Q182: 0
A183: 7341 | B183: MIAMI JACKSON SENIOR HIGH | C183: 0 | D183: 0 | E183: 0 | F183: 0 | G183: 0 | H183: 0 | I183: 0 | J183: 0 | K183: 0 | L183: 0 | M183: 0 | N183: 0 | O183: 0 | P183: 0 | Q183: 0
A184: 7351 | B184: ARTHUR AND POLLY MAYS CONSERVA | C184: 22 | D184: 0 | E184: 0 | F184: 10 | G184: 8 | H184: 3 | I184: 1 | J184: 1 | K184: 13 | L184: 7 | M184: 1 | N184: 0 | O184: 20 | P184: 0 | Q184: 0
A185: 7361 | B185: MIAMI KILLIAN SENIOR HIGH | C185: 0 | D185: 0 | E185: 0 | F185: 0 | G185: 0 | H185: 0 | I185: 0 | J185: 0 | K185: 0 | L185: 0 | M185: 0 | N185: 0 | O185: 0 | P185: 0 | Q185: 0
A186: 7371 | B186: ROBERT MORGAN EDUCATIONAL CTR | C186: 0 | D186: 0 | E186: 0 | F186: 0 | G186: 0 | H186: 0 | I186: 0 | J186: 0 | K186: 0 | L186: 0 | M186: 0 | N186: 0 | O186: 0 | P186: 0 | Q186: 0
A187: 7381 | B187: MIAMI NORLAND SENIOR HIGH | C187: 0 | D187: 0 | E187: 0 | F187: 0 | G187: 0 | H187: 0 | I187: 0 | J187: 0 | K187: 0 | L187: 0 | M187: 0 | N187: 0 | O187: 0 | P187: 0 | Q187: 0
A188: 7391 | B188: MIAMI LAKES EDUCATIONAL CENTER | C188: 0 | D188: 0 | E188: 0 | F188: 0 | G188: 0 | H188: 0 | I188: 0 | J188: 0 | K188: 0 | L188: 0 | M188: 0 | N188: 0 | O188: 0 | P188: 0 | Q188: 0
A189: 7411 | B189: MIAMI NORTHWESTERN SENIOR HIGH | C189: 0 | D189: 0 | E189: 0 | F189: 0 | G189: 0 | H189: 0 | I189: 0 | J189: 0 | K189: 0 | L189: 0 | M189: 0 | N189: 0 | O189: 0 | P189: 0 | Q189: 0
A190: 7431 | B190: MIAMI PALMETTO SENIOR HIGH | C190: 0 | D190: 0 | E190: 0 | F190: 0 | G190: 0 | H190: 0 | I190: 0 | J190: 0 | K190: 0 | L190: 0 | M190: 0 | N190: 0 | O190: 0 | P190: 0 | Q190: 0
A191: 7461 | B191: MIAMI SENIOR HIGH | C191: 0 | D191: 0 | E191: 0 | F191: 0 | G191: 0 | H191: 0 | I191: 0 | J191: 0 | K191: 0 | L191: 0 | M191: 0 | N191: 0 | O191: 0 | P191: 0 | Q191: 0
A192: 7511 | B192: MIAMI SPRINGS SENIOR HIGH | C192: 0 | D192: 0 | E192: 0 | F192: 0 | G192: 0 | H192: 0 | I192: 0 | J192: 0 | K192: 0 | L192: 0 | M192: 0 | N192: 0 | O192: 0 | P192: 0 | Q192: 0
A193: 7531 | B193: MIAMI SUNSET SENIOR HIGH | C193: 0 | D193: 0 | E193: 0 | F193: 0 | G193: 0 | H193: 0 | I193: 0 | J193: 0 | K193: 0 | L193: 0 | M193: 0 | N193: 0 | O193: 0 | P193: 0 | Q193: 0
A194: 7541 | B194: NORTH MIAMI BEACH SENIOR HIGH | C194: 0 | D194: 0 | E194: 0 | F194: 0 | G194: 0 | H194: 0 | I194: 0 | J194: 0 | K194: 0 | L194: 0 | M194: 0 | N194: 0 | O194: 0 | P194: 0 | Q194: 0
A195: 7571 | B195: INTL STUDIES PREP ACADEMY | C195: 0 | D195: 0 | E195: 0 | F195: 0 | G195: 0 | H195: 0 | I195: 0 | J195: 0 | K195: 0 | L195: 0 | M195: 0 | N195: 0 | O195: 0 | P195: 0 | Q195: 0
A196: 7591 | B196: NORTH MIAMI SENIOR HIGH | C196: 0 | D196: 0 | E196: 0 | F196: 0 | G196: 0 | H196: 0 | I196: 0 | J196: 0 | K196: 0 | L196: 0 | M196: 0 | N196: 0 | O196: 0 | P196: 0 | Q196: 0
A197: 7601 | B197: WILLIAM H. TURNER TECHNICAL | C197: 0 | D197: 0 | E197: 0 | F197: 0 | G197: 0 | H197: 0 | I197: 0 | J197: 0 | K197: 0 | L197: 0 | M197: 0 | N197: 0 | O197: 0 | P197: 0 | Q197: 0
A198: 7631 | B198: MIAMI MACARTHUR SOUTH | C198: 0 | D198: 0 | E198: 0 | F198: 0 | G198: 0 | H198: 0 | I198: 0 | J198: 0 | K198: 0 | L198: 0 | M198: 0 | N198: 0 | O198: 0 | P198: 0 | Q198: 0
A199: 7701 | B199: SOUTH DADE SENIOR HIGH | C199: 0 | D199: 0 | E199: 0 | F199: 0 | G199: 0 | H199: 0 | I199: 0 | J199: 0 | K199: 0 | L199: 0 | M199: 0 | N199: 0 | O199: 0 | P199: 0 | Q199: 0
A200: 7721 | B200: SOUTH MIAMI SENIOR HIGH | C200: 0 | D200: 0 | E200: 0 | F200: 0 | G200: 0 | H200: 0 | I200: 0 | J200: 0 | K200: 0 | L200: 0 | M200: 0 | N200: 0 | O200: 0 | P200: 0 | Q200: 0
... 17 more rows

Sheet ALG Gr08 (hidden)
A1: 1 | B1: 2 | C1: 3 | D1: 4 | E1: 5 | F1: 6 | G1: 7 | H1: 8 | I1: 9 | J1: 10 | K1: 11 | L1: 12 | M1: 13 | N1: 14 | O1: 15 | P1: 16 | Q1: 17
A2: 08 | B2: SchName | C2: Total | D2: ML1 | E2: ML2 | F2: ML3 | G2: ML4 | H2: ML5 | I2: ML0 | J2: W | K2: B | L2: H | M2: A | N2: I | O2: ED | P2: ELL | Q2: SWD
A3: 0070 | B3: CORAL REEF MONTESSORI ACAD CH | C3: 15 | D3: 0 | E3: 1 | F3: 4 | G3: 6 | H3: 4 | I3: 0 | J3: 4 | K3: 3 | L3: 8 | M3: 0 | N3: 0 | O3: 4 | P3: 0 | Q3: 1
A4: 0071 | B4: EUGENIA B. THOMAS K-8 CENTER | C4: 26 | D4: 0 | E4: 0 | F4: 1 | G4: 14 | H4: 9 | I4: 2 | J4: 3 | K4: 0 | L4: 22 | M4: 1 | N4: 0 | O4: 9 | P4: 1 | Q4: 1
A5: 0073 | B5: MANDARIN LAKES K-8 CENTER | C5: 32 | D5: 0 | E5: 1 | F5: 18 | G5: 10 | H5: 2 | I5: 1 | J5: 3 | K5: 14 | L5: 14 | M5: 0 | N5: 0 | O5: 29 | P5: 0 | Q5: 1
A6: 0091 | B6: BOB GRAHAM EDUCATION CTR | C6: 76 | D6: 0 | E6: 0 | F6: 12 | G6: 33 | H6: 31 | I6: 0 | J6: 5 | K6: 3 | L6: 66 | M6: 1 | N6: 0 | O6: 32 | P6: 0 | Q6: 0
A7: 0092 | B7: NORMAN S. EDELCUP/SUNNY ISLES | C7: 58 | D7: 0 | E7: 0 | F7: 2 | G7: 23 | H7: 32 | I7: 1 | J7: 22 | K7: 1 | L7: 32 | M7: 3 | N7: 0 | O7: 26 | P7: 5 | Q7: 1
A8: 0122 | B8: DR ROLANDO ESPINOSA K-8 | C8: 31 | D8: 0 | E8: 0 | F8: 4 | G8: 11 | H8: 14 | I8: 2 | J8: 1 | K8: 0 | L8: 29 | M8: 1 | N8: 0 | O8: 11 | P8: 12 | Q8: 0
A9: 0231 | B9: AVENTURA WATERWAYS K-8 CENTER | C9: 51 | D9: 0 | E9: 1 | F9: 8 | G9: 26 | H9: 11 | I9: 5 | J9: 13 | K9: 8 | L9: 30 | M9: 0 | N9: 0 | O9: 25 | P9: 2 | Q9: 0
A10: 0241 | B10: RUTH K BROAD/BAY HARBOR K-8 | C10: 35 | D10: 0 | E10: 0 | F10: 2 | G10: 17 | H10: 13 | I10: 3 | J10: 17 | K10: 0 | L10: 18 | M10: 0 | N10: 0 | O10: 11 | P10: 1 | Q10: 1
A11: 0332 | B11: SOMERSET ACADEMY(SILVER PALMS) | C11: 42 | D11: 0 | E11: 0 | F11: 15 | G11: 23 | H11: 4 | I11: 0 | J11: 3 | K11: 3 | L11: 36 | M11: 0 | N11: 0 | O11: 33 | P11: 1 | Q11: 3
A12: 0451 | B12: BOWMAN ASHE/DOOLIN K-8 ACAD | C12: 44 | D12: 0 | E12: 2 | F12: 13 | G12: 21 | H12: 8 | I12: 0 | J12: 3 | K12: 0 | L12: 40 | M12: 1 | N12: 0 | O12: 41 | P12: 2 | Q12: 3
A13: 0761 | B13: FIENBERG/FISHER K-8 CENTER | C13: 23 | D13: 0 | E13: 2 | F13: 5 | G13: 9 | H13: 5 | I13: 2 | J13: 2 | K13: 2 | L13: 16 | M13: 3 | N13: 0 | O13: 22 | P13: 0 | Q13: 0
A14: 0950 | B14: AVENTURA CITY OF EXCELLENCE | C14: 67 | D14: 0 | E14: 0 | F14: 14 | G14: 33 | H14: 20 | I14: 0 | J14: 38 | K14: 1 | L14: 27 | M14: 1 | N14: 0 | O14: 11 | P14: 3 | Q14: 2
A15: 0961 | B15: CORAL GABLES PREPARATORY ACAD | C15: 24 | D15: 1 | E15: 4 | F15: 11 | G15: 5 | H15: 1 | I15: 2 | J15: 6 | K15: 0 | L15: 17 | M15: 1 | N15: 0 | O15: 8 | P15: 1 | Q15: 1
A16: 1020 | B16: YOUTH CO-OP CHARTER SCHOOL | C16: 0 | D16: 0 | E16: 0 | F16: 0 | G16: 0 | H16: 0 | I16: 0 | J16: 0 | K16: 0 | L16: 0 | M16: 0 | N16: 0 | O16: 0 | P16: 0 | Q16: 0
A17: 1121 | B17: CORAL WAY K-8 CENTER | C17: 52 | D17: 0 | E17: 4 | F17: 13 | G17: 15 | H17: 17 | I17: 3 | J17: 9 | K17: 0 | L17: 42 | M17: 1 | N17: 0 | O17: 30 | P17: 5 | Q17: 1
A18: 1331 | B18: DEVON AIRE K-8 CENTER | C18: 52 | D18: 0 | E18: 0 | F18: 8 | G18: 23 | H18: 21 | I18: 0 | J18: 9 | K18: 1 | L18: 41 | M18: 1 | N18: 0 | O18: 25 | P18: 1 | Q18: 2
A19: 1681 | B19: LILLIE C. EVANS K-8 CENTER | C19: 10 | D19: 0 | E19: 0 | F19: 7 | G19: 1 | H19: 2 | I19: 0 | J19: 0 | K19: 8 | L19: 2 | M19: 0 | N19: 0 | O19: 10 | P19: 0 | Q19: 0
A20: 1721 | B20: EVERGLADES K-8 CENTER | C20: 21 | D20: 0 | E20: 1 | F20: 12 | G20: 6 | H20: 2 | I20: 0 | J20: 1 | K20: 0 | L20: 20 | M20: 0 | N20: 0 | O20: 14 | P20: 3 | Q20: 0
A21: 2701 | B21: KENWOOD K-8 CENTER | C21: 53 | D21: 0 | E21: 3 | F21: 16 | G21: 23 | H21: 10 | I21: 1 | J21: 12 | K21: 2 | L21: 38 | M21: 1 | N21: 0 | O21: 15 | P21: 2 | Q21: 1
A22: 2741 | B22: KEY BISCAYNE K-8 CENTER | C22: 33 | D22: 2 | E22: 2 | F22: 12 | G22: 10 | H22: 4 | I22: 3 | J22: 11 | K22: 1 | L22: 21 | M22: 0 | N22: 0 | O22: 6 | P22: 10 | Q22: 3
A23: 2881 | B23: LEEWOOD K-8 CENTER | C23: 35 | D23: 0 | E23: 0 | F23: 7 | G23: 17 | H23: 11 | I23: 0 | J23: 12 | K23: 2 | L23: 21 | M23: 0 | N23: 0 | O23: 4 | P23: 1 | Q23: 1
A24: 2901 | B24: LEISURE CITY K-8 CENTER | C24: 44 | D24: 0 | E24: 0 | F24: 29 | G24: 7 | H24: 7 | I24: 1 | J24: 1 | K24: 5 | L24: 38 | M24: 0 | N24: 0 | O24: 42 | P24: 0 | Q24: 1
A25: 2911 | B25: LINDA LENTIN K-8 CENTER | C25: 39 | D25: 0 | E25: 2 | F25: 22 | G25: 10 | H25: 4 | I25: 1 | J25: 1 | K25: 33 | L25: 5 | M25: 0 | N25: 0 | O25: 34 | P25: 2 | Q25: 1
A26: 3029 | B26: DORAL ACADEMY OF TECHNOLOGY | C26: 28 | D26: 0 | E26: 0 | F26: 13 | G26: 12 | H26: 3 | I26: 0 | J26: 4 | K26: 0 | L26: 24 | M26: 0 | N26: 0 | O26: 14 | P26: 1 | Q26: 0
A27: 3032 | B27: PALM GLADES PREPATORY ACADEMY | C27: 25 | D27: 0 | E27: 0 | F27: 5 | G27: 12 | H27: 4 | I27: 4 | J27: 1 | K27: 4 | L27: 20 | M27: 0 | N27: 0 | O27: 16 | P27: 2 | Q27: 0
A28: 3101 | B28: FRANK C. MARTIN K-8 CENTER | C28: 45 | D28: 0 | E28: 4 | F28: 19 | G28: 18 | H28: 4 | I28: 0 | J28: 2 | K28: 25 | L28: 12 | M28: 1 | N28: 0 | O28: 18 | P28: 0 | Q28: 0
A29: 3191 | B29: ADA MERRITT K-8 CENTER | C29: 51 | D29: 0 | E29: 1 | F29: 18 | G29: 21 | H29: 10 | I29: 1 | J29: 10 | K29: 9 | L29: 31 | M29: 0 | N29: 0 | O29: 13 | P29: 1 | Q29: 1
A30: 3281 | B30: MIAMI LAKES K-8 CENTER | C30: 44 | D30: 0 | E30: 1 | F30: 11 | G30: 21 | H30: 10 | I30: 1 | J30: 7 | K30: 1 | L30: 33 | M30: 3 | N30: 0 | O30: 17 | P30: 6 | Q30: 1
A31: 3421 | B31: M.A. MILAM K-8 CENTER | C31: 16 | D31: 0 | E31: 0 | F31: 1 | G31: 12 | H31: 3 | I31: 0 | J31: 0 | K31: 0 | L31: 16 | M31: 0 | N31: 0 | O31: 15 | P31: 2 | Q31: 1
A32: 3610 | B32: KEYS GATE CHARTER SCHOOL | C32: 90 | D32: 0 | E32: 4 | F32: 32 | G32: 42 | H32: 9 | I32: 3 | J32: 33 | K32: 11 | L32: 44 | M32: 1 | N32: 1 | O32: 32 | P32: 4 | Q32: 4
A33: 3621 | B33: COCONUT PALM K-8 ACADEMY | C33: 32 | D33: 0 | E33: 2 | F33: 17 | G33: 7 | H33: 5 | I33: 1 | J33: 1 | K33: 11 | L33: 19 | M33: 1 | N33: 0 | O33: 29 | P33: 4 | Q33: 5
A34: 4691 | B34: JANE ROBERTS K-8 CENTER | C34: 35 | D34: 0 | E34: 0 | F34: 1 | G34: 16 | H34: 18 | I34: 0 | J34: 4 | K34: 0 | L34: 31 | M34: 0 | N34: 0 | O34: 15 | P34: 1 | Q34: 0
A35: 5003 | B35: SOUTH DADE MIDDLE SCHOOL | C35: 91 | D35: 0 | E35: 1 | F35: 63 | G35: 18 | H35: 5 | I35: 4 | J35: 17 | K35: 10 | L35: 62 | M35: 0 | N35: 0 | O35: 78 | P35: 5 | Q35: 5
A36: 5005 | B36: DAVID LAWRENCE JR K-8 CENTER | C36: 42 | D36: 0 | E36: 0 | F36: 2 | G36: 27 | H36: 12 | I36: 1 | J36: 7 | K36: 10 | L36: 21 | M36: 3 | N36: 0 | O36: 23 | P36: 1 | Q36: 1
A37: 5006 | B37: EVERGLADES PREPARATORY ACADEMY | C37: 53 | D37: 0 | E37: 3 | F37: 5 | G37: 34 | H37: 10 | I37: 1 | J37: 7 | K37: 5 | L37: 40 | M37: 1 | N37: 0 | O37: 43 | P37: 5 | Q37: 1
A38: 5010 | B38: OXFORD ACADEMY OF MIAMI | C38: 1 | D38: 0 | E38: 0 | F38: 0 | G38: 1 | H38: 0 | I38: 0 | J38: 1 | K38: 0 | L38: 0 | M38: 0 | N38: 0 | O38: 0 | P38: 0 | Q38: 0
A39: 5025 | B39: LINCOLN-MARTI CS LITTLE HAVANA | C39: 12 | D39: 0 | E39: 0 | F39: 5 | G39: 6 | H39: 1 | I39: 0 | J39: 0 | K39: 4 | L39: 8 | M39: 0 | N39: 0 | O39: 9 | P39: 5 | Q39: 0
A40: 5029 | B40: EXCELSIOR LANGUAGE ACADEMY K-8 | C40: 28 | D40: 0 | E40: 0 | F40: 18 | G40: 7 | H40: 2 | I40: 1 | J40: 0 | K40: 0 | L40: 28 | M40: 0 | N40: 0 | O40: 24 | P40: 9 | Q40: 1
A41: 5047 | B41: MATER ACADEMY (MIAMI BEACH) | C41: 1 | D41: 0 | E41: 0 | F41: 0 | G41: 0 | H41: 1 | I41: 0 | J41: 0 | K41: 0 | L41: 1 | M41: 0 | N41: 0 | O41: 1 | P41: 0 | Q41: 0
A42: 5101 | B42: JOHN I. SMITH K-8 CENTER | C42: 0 | D42: 0 | E42: 0 | F42: 0 | G42: 0 | H42: 0 | I42: 0 | J42: 0 | K42: 0 | L42: 0 | M42: 0 | N42: 0 | O42: 0 | P42: 0 | Q42: 0
A43: 5141 | B43: HUBERT O. SIBLEY K-8 CENTER | C43: 38 | D43: 0 | E43: 0 | F43: 22 | G43: 12 | H43: 3 | I43: 1 | J43: 0 | K43: 32 | L43: 6 | M43: 0 | N43: 0 | O43: 33 | P43: 7 | Q43: 0
A44: 5241 | B44: SOUTH MIAMI K-8 CENTER | C44: 23 | D44: 0 | E44: 1 | F44: 2 | G44: 11 | H44: 9 | I44: 0 | J44: 3 | K44: 1 | L44: 18 | M44: 1 | N44: 0 | O44: 8 | P44: 0 | Q44: 2
A45: 5671 | B45: VINELAND K-8 CENTER | C45: 28 | D45: 0 | E45: 0 | F45: 1 | G45: 7 | H45: 20 | I45: 0 | J45: 10 | K45: 0 | L45: 16 | M45: 2 | N45: 0 | O45: 4 | P45: 0 | Q45: 1
A46: 5961 | B46: WINSTON PARK K-8 CENTER | C46: 53 | D46: 0 | E46: 2 | F46: 18 | G46: 23 | H46: 9 | I46: 1 | J46: 4 | K46: 0 | L46: 48 | M46: 1 | N46: 0 | O46: 38 | P46: 4 | Q46: 3
A47: 6001 | B47: HERBERT A. AMMONS MIDDLE | C47: 181 | D47: 1 | E47: 11 | F47: 52 | G47: 87 | H47: 29 | I47: 1 | J47: 27 | K47: 25 | L47: 123 | M47: 5 | N47: 0 | O47: 89 | P47: 3 | Q47: 6
A48: 6004 | B48: SOMERSET ACADEMY MIDDLE | C48: 49 | D48: 2 | E48: 11 | F48: 23 | G48: 9 | H48: 2 | I48: 2 | J48: 6 | K48: 0 | L48: 42 | M48: 0 | N48: 0 | O48: 22 | P48: 2 | Q48: 0
A49: 6006 | B49: ARCHIMEDEAN CONSERVATORY | C49: 17 | D49: 1 | E49: 5 | F49: 9 | G49: 0 | H49: 0 | I49: 2 | J49: 2 | K49: 0 | L49: 15 | M49: 0 | N49: 0 | O49: 10 | P49: 1 | Q49: 1
A50: 6009 | B50: MATER ACADEMY EAST MIDDLE | C50: 51 | D50: 0 | E50: 0 | F50: 28 | G50: 17 | H50: 6 | I50: 0 | J50: 0 | K50: 4 | L50: 47 | M50: 0 | N50: 0 | O50: 36 | P50: 3 | Q50: 0
A51: 6010 | B51: FLORIDA INTERNATIONAL ACADEMY | C51: 8 | D51: 0 | E51: 0 | F51: 1 | G51: 4 | H51: 2 | I51: 1 | J51: 0 | K51: 7 | L51: 1 | M51: 0 | N51: 0 | O51: 8 | P51: 1 | Q51: 0
A52: 6011 | B52: ALLAPATTAH MIDDLE | C52: 29 | D52: 0 | E52: 0 | F52: 24 | G52: 2 | H52: 3 | I52: 0 | J52: 1 | K52: 14 | L52: 14 | M52: 0 | N52: 0 | O52: 29 | P52: 1 | Q52: 2
A53: 6012 | B53: MATER ACADEMY CHARTER MIDDLE | C53: 321 | D53: 0 | E53: 1 | F53: 166 | G53: 99 | H53: 55 | I53: 0 | J53: 11 | K53: 9 | L53: 300 | M53: 1 | N53: 0 | O53: 254 | P53: 27 | Q53: 5
A54: 6013 | B54: SOMERSET ACADEMY MIDDLE-SOUTH | C54: 45 | D54: 8 | E54: 11 | F54: 14 | G54: 9 | H54: 1 | I54: 2 | J54: 11 | K54: 4 | L54: 30 | M54: 0 | N54: 0 | O54: 29 | P54: 1 | Q54: 2
A55: 6020 | B55: ASPIRA RAUL A. MARTINEZ CHTR | C55: 74 | D55: 0 | E55: 1 | F55: 59 | G55: 10 | H55: 4 | I55: 0 | J55: 1 | K55: 49 | L55: 24 | M55: 0 | N55: 0 | O55: 74 | P55: 7 | Q55: 3
A56: 6021 | B56: ARVIDA MIDDLE SCHOOL | C56: 101 | D56: 0 | E56: 0 | F56: 6 | G56: 57 | H56: 36 | I56: 2 | J56: 24 | K56: 2 | L56: 72 | M56: 3 | N56: 0 | O56: 40 | P56: 1 | Q56: 0
A57: 6022 | B57: PINECREST ACADEMY CHARTER MIDD | C57: 181 | D57: 0 | E57: 2 | F57: 116 | G57: 52 | H57: 11 | I57: 0 | J57: 9 | K57: 1 | L57: 170 | M57: 1 | N57: 0 | O57: 99 | P57: 14 | Q57: 9
A58: 6023 | B58: ANDOVER MIDDLE SCHOOL | C58: 75 | D58: 0 | E58: 2 | F58: 37 | G58: 22 | H58: 11 | I58: 3 | J58: 2 | K58: 68 | L58: 3 | M58: 1 | N58: 1 | O58: 65 | P58: 4 | Q58: 0
A59: 6028 | B59: RENAISSANCE MIDDLE CHARTER | C59: 61 | D59: 0 | E59: 1 | F59: 4 | G59: 38 | H59: 13 | I59: 5 | J59: 11 | K59: 2 | L59: 47 | M59: 1 | N59: 0 | O59: 19 | P59: 8 | Q59: 2
A60: 6030 | B60: DORAL ACADEMY CHARTER MIDDLE | C60: 147 | D60: 1 | E60: 3 | F60: 62 | G60: 63 | H60: 15 | I60: 3 | J60: 11 | K60: 0 | L60: 134 | M60: 2 | N60: 0 | O60: 71 | P60: 5 | Q60: 0
A61: 6031 | B61: BROWNSVILLE MIDDLE | C61: 49 | D61: 0 | E61: 2 | F61: 32 | G61: 12 | H61: 1 | I61: 2 | J61: 0 | K61: 31 | L61: 18 | M61: 0 | N61: 0 | O61: 48 | P61: 1 | Q61: 1
A62: 6033 | B62: MATER ACADEMY LAKES MIDDLE | C62: 64 | D62: 0 | E62: 2 | F62: 20 | G62: 27 | H62: 13 | I62: 2 | J62: 5 | K62: 0 | L62: 58 | M62: 1 | N62: 0 | O62: 47 | P62: 5 | Q62: 1
A63: 6040 | B63: DOCTORS CHARTER/MIAMI SHORES | C63: 28 | D63: 0 | E63: 0 | F63: 2 | G63: 13 | H63: 13 | I63: 0 | J63: 13 | K63: 7 | L63: 3 | M63: 5 | N63: 0 | O63: 8 | P63: 0 | Q63: 1
A64: 6041 | B64: PAUL W. BELL MIDDLE | C64: 39 | D64: 0 | E64: 0 | F64: 13 | G64: 21 | H64: 4 | I64: 1 | J64: 1 | K64: 0 | L64: 38 | M64: 0 | N64: 0 | O64: 38 | P64: 4 | Q64: 1
A65: 6042 | B65: MATER GARDENS ACADEMY MIDDLE | C65: 36 | D65: 0 | E65: 4 | F65: 8 | G65: 18 | H65: 5 | I65: 1 | J65: 0 | K65: 1 | L65: 34 | M65: 0 | N65: 1 | O65: 9 | P65: 0 | Q65: 0
A66: 6045 | B66: INTL. STUDIES CHARTER MIDDLE | C66: 61 | D66: 0 | E66: 0 | F66: 24 | G66: 21 | H66: 8 | I66: 8 | J66: 12 | K66: 1 | L66: 48 | M66: 0 | N66: 0 | O66: 39 | P66: 11 | Q66: 1
A67: 6047 | B67: MATER ACADEMY MIDDLE-INTL STUD | C67: 33 | D67: 0 | E67: 0 | F67: 20 | G67: 10 | H67: 3 | I67: 0 | J67: 1 | K67: 6 | L67: 25 | M67: 1 | N67: 0 | O67: 28 | P67: 4 | Q67: 0
A68: 6048 | B68: MIAMI COMMUNITY CHARTER MIDDLE | C68: 40 | D68: 1 | E68: 14 | F68: 17 | G68: 6 | H68: 2 | I68: 0 | J68: 2 | K68: 2 | L68: 36 | M68: 0 | N68: 0 | O68: 38 | P68: 4 | Q68: 2
A69: 6049 | B69: RIVER CITIES COMMUNITY CHARTER | C69: 16 | D69: 1 | E69: 6 | F69: 6 | G69: 2 | H69: 1 | I69: 0 | J69: 0 | K69: 7 | L69: 9 | M69: 0 | N69: 0 | O69: 12 | P69: 0 | Q69: 0
A70: 6051 | B70: CAROL CITY MIDDLE | C70: 43 | D70: 1 | E70: 2 | F70: 30 | G70: 9 | H70: 0 | I70: 1 | J70: 0 | K70: 39 | L70: 3 | M70: 0 | N70: 0 | O70: 41 | P70: 1 | Q70: 1
A71: 6052 | B71: ZELDA GLAZER MIDDLE SCHOOL | C71: 224 | D71: 1 | E71: 1 | F71: 139 | G71: 63 | H71: 11 | I71: 9 | J71: 5 | K71: 1 | L71: 215 | M71: 3 | N71: 0 | O71: 166 | P71: 31 | Q71: 18
A72: 6053 | B72: SOMERSET ACAD MIDDLE (S-MIAMI) | C72: 28 | D72: 0 | E72: 0 | F72: 16 | G72: 10 | H72: 1 | I72: 1 | J72: 5 | K72: 0 | L72: 23 | M72: 0 | N72: 0 | O72: 7 | P72: 0 | Q72: 0
A73: 6060 | B73: ASPIRA SOUTH YOUTH LEADERSHIP | C73: 26 | D73: 1 | E73: 4 | F73: 14 | G73: 5 | H73: 0 | I73: 2 | J73: 1 | K73: 2 | L73: 23 | M73: 0 | N73: 0 | O73: 22 | P73: 3 | Q73: 1
A74: 6061 | B74: CAMPBELL DRIVE MIDDLE | C74: 70 | D74: 0 | E74: 0 | F74: 41 | G74: 23 | H74: 2 | I74: 4 | J74: 1 | K74: 26 | L74: 42 | M74: 1 | N74: 0 | O74: 63 | P74: 4 | Q74: 4
A75: 6070 | B75: ASPIRA EUGENIO MARIA DE HOSTOS | C75: 69 | D75: 2 | E75: 12 | F75: 37 | G75: 15 | H75: 2 | I75: 1 | J75: 0 | K75: 21 | L75: 48 | M75: 0 | N75: 0 | O75: 66 | P75: 6 | Q75: 0
A76: 6071 | B76: GEORGE WASHINGTON CARVER | C76: 267 | D76: 2 | E76: 4 | F76: 54 | G76: 97 | H76: 108 | I76: 2 | J76: 82 | K76: 15 | L76: 163 | M76: 6 | N76: 0 | O76: 86 | P76: 19 | Q76: 1
A77: 6081 | B77: CENTENNIAL MIDDLE | C77: 60 | D77: 1 | E77: 1 | F77: 28 | G77: 27 | H77: 1 | I77: 2 | J77: 6 | K77: 17 | L77: 36 | M77: 0 | N77: 0 | O77: 44 | P77: 4 | Q77: 0
A78: 6091 | B78: CITRUS GROVE MIDDLE SCHOOL | C78: 67 | D78: 0 | E78: 0 | F78: 44 | G78: 13 | H78: 9 | I78: 1 | J78: 0 | K78: 4 | L78: 62 | M78: 1 | N78: 0 | O78: 66 | P78: 11 | Q78: 0
A79: 6111 | B79: CUTLER RIDGE MIDDLE | C79: 47 | D79: 4 | E79: 12 | F79: 21 | G79: 9 | H79: 1 | I79: 0 | J79: 9 | K79: 15 | L79: 21 | M79: 2 | N79: 0 | O79: 39 | P79: 1 | Q79: 4
A80: 6121 | B80: RUBEN DARIO MIDDLE | C80: 61 | D80: 0 | E80: 0 | F80: 18 | G80: 31 | H80: 12 | I80: 0 | J80: 1 | K80: 0 | L80: 60 | M80: 0 | N80: 0 | O80: 54 | P80: 8 | Q80: 0
A81: 6141 | B81: CHARLES R. DREW MIDDLE | C81: 26 | D81: 0 | E81: 0 | F81: 20 | G81: 4 | H81: 2 | I81: 0 | J81: 1 | K81: 24 | L81: 1 | M81: 0 | N81: 0 | O81: 26 | P81: 0 | Q81: 1
A82: 6151 | B82: DORAL MIDDLE SCHOOL | C82: 38 | D82: 3 | E82: 0 | F82: 16 | G82: 13 | H82: 5 | I82: 1 | J82: 4 | K82: 8 | L82: 26 | M82: 0 | N82: 0 | O82: 24 | P82: 12 | Q82: 0
A83: 6161 | B83: LAWTON CHILES MIDDLE SCHOOL | C83: 106 | D83: 2 | E83: 5 | F83: 69 | G83: 23 | H83: 7 | I83: 0 | J83: 6 | K83: 36 | L83: 63 | M83: 1 | N83: 0 | O83: 85 | P83: 0 | Q83: 3
A84: 6171 | B84: HENRY H. FILER MIDDLE | C84: 180 | D84: 0 | E84: 1 | F84: 99 | G84: 60 | H84: 18 | I84: 2 | J84: 2 | K84: 2 | L84: 176 | M84: 0 | N84: 0 | O84: 168 | P84: 46 | Q84: 3
A85: 6211 | B85: GLADES MIDDLE | C85: 78 | D85: 0 | E85: 1 | F85: 24 | G85: 41 | H85: 12 | I85: 0 | J85: 9 | K85: 0 | L85: 66 | M85: 3 | N85: 0 | O85: 49 | P85: 6 | Q85: 1
A86: 6221 | B86: HAMMOCKS MIDDLE | C86: 114 | D86: 0 | E86: 0 | F86: 28 | G86: 49 | H86: 34 | I86: 3 | J86: 20 | K86: 5 | L86: 84 | M86: 5 | N86: 0 | O86: 70 | P86: 4 | Q86: 1
A87: 6231 | B87: HIALEAH MIDDLE | C87: 56 | D87: 0 | E87: 1 | F87: 49 | G87: 5 | H87: 1 | I87: 0 | J87: 2 | K87: 2 | L87: 52 | M87: 0 | N87: 0 | O87: 52 | P87: 14 | Q87: 4
A88: 6241 | B88: HIGHLAND OAKS MIDDLE | C88: 161 | D88: 0 | E88: 12 | F88: 85 | G88: 50 | H88: 9 | I88: 5 | J88: 32 | K88: 73 | L88: 47 | M88: 8 | N88: 0 | O88: 111 | P88: 9 | Q88: 6
A89: 6251 | B89: HOMESTEAD MIDDLE | C89: 75 | D89: 0 | E89: 0 | F89: 46 | G89: 25 | H89: 1 | I89: 3 | J89: 3 | K89: 26 | L89: 46 | M89: 0 | N89: 0 | O89: 69 | P89: 5 | Q89: 5
A90: 6281 | B90: THOMAS JEFFERSON MIDDLE | C90: 45 | D90: 0 | E90: 0 | F90: 33 | G90: 10 | H90: 0 | I90: 2 | J90: 0 | K90: 44 | L90: 0 | M90: 0 | N90: 0 | O90: 38 | P90: 7 | Q90: 1
A91: 6301 | B91: JOHN F. KENNEDY MIDDLE | C91: 125 | D91: 0 | E91: 10 | F91: 57 | G91: 47 | H91: 10 | I91: 1 | J91: 4 | K91: 90 | L91: 26 | M91: 3 | N91: 2 | O91: 111 | P91: 2 | Q91: 0
A92: 6331 | B92: KINLOCH PARK MIDDLE | C92: 90 | D92: 0 | E92: 0 | F92: 22 | G92: 50 | H92: 17 | I92: 1 | J92: 2 | K92: 0 | L92: 88 | M92: 0 | N92: 0 | O92: 84 | P92: 12 | Q92: 3
A93: 6351 | B93: LAKE STEVENS MIDDLE | C93: 80 | D93: 0 | E93: 0 | F93: 41 | G93: 29 | H93: 8 | I93: 2 | J93: 2 | K93: 35 | L93: 43 | M93: 0 | N93: 0 | O93: 73 | P93: 3 | Q93: 1
A94: 6361 | B94: JOSE DE DIEGO MIDDLE SCHOOL | C94: 50 | D94: 0 | E94: 2 | F94: 36 | G94: 9 | H94: 1 | I94: 2 | J94: 1 | K94: 22 | L94: 27 | M94: 0 | N94: 0 | O94: 48 | P94: 6 | Q94: 2
A95: 6391 | B95: MADISON MIDDLE SCHOOL | C95: 51 | D95: 0 | E95: 1 | F95: 38 | G95: 9 | H95: 1 | I95: 2 | J95: 0 | K95: 30 | L95: 20 | M95: 0 | N95: 0 | O95: 49 | P95: 1 | Q95: 5
A96: 6411 | B96: HORACE MANN MIDDLE | C96: 59 | D96: 0 | E96: 5 | F96: 40 | G96: 12 | H96: 1 | I96: 1 | J96: 1 | K96: 53 | L96: 5 | M96: 0 | N96: 0 | O96: 57 | P96: 2 | Q96: 2
A97: 6421 | B97: JOSE MARTI MIDDLE | C97: 17 | D97: 0 | E97: 0 | F97: 8 | G97: 6 | H97: 3 | I97: 0 | J97: 3 | K97: 0 | L97: 13 | M97: 1 | N97: 0 | O97: 11 | P97: 2 | Q97: 1
A98: 6431 | B98: MAYS MIDDLE | C98: 42 | D98: 0 | E98: 0 | F98: 25 | G98: 13 | H98: 4 | I98: 0 | J98: 5 | K98: 15 | L98: 21 | M98: 1 | N98: 0 | O98: 38 | P98: 1 | Q98: 1
A99: 6441 | B99: HOWARD D. MCMILLAN MIDDLE | C99: 59 | D99: 0 | E99: 5 | F99: 34 | G99: 15 | H99: 4 | I99: 1 | J99: 4 | K99: 1 | L99: 52 | M99: 2 | N99: 0 | O99: 46 | P99: 6 | Q99: 0
A100: 6481 | B100: MIAMI EDISON MIDDLE | C100: 53 | D100: 0 | E100: 0 | F100: 37 | G100: 11 | H100: 3 | I100: 2 | J100: 3 | K100: 39 | L100: 9 | M100: 0 | N100: 0 | O100: 52 | P100: 9 | Q100: 2
A101: 6501 | B101: MIAMI LAKES MIDDLE | C101: 35 | D101: 1 | E101: 4 | F101: 6 | G101: 12 | H101: 11 | I101: 1 | J101: 3 | K101: 4 | L101: 28 | M101: 0 | N101: 0 | O101: 33 | P101: 4 | Q101: 2
A102: 6521 | B102: MIAMI SPRINGS MIDDLE | C102: 117 | D102: 0 | E102: 2 | F102: 49 | G102: 58 | H102: 7 | I102: 1 | J102: 3 | K102: 16 | L102: 97 | M102: 0 | N102: 0 | O102: 103 | P102: 14 | Q102: 1
A103: 6541 | B103: NAUTILUS MIDDLE | C103: 91 | D103: 2 | E103: 5 | F103: 31 | G103: 37 | H103: 13 | I103: 3 | J103: 28 | K103: 8 | L103: 53 | M103: 2 | N103: 0 | O103: 58 | P103: 2 | Q103: 1
A104: 6571 | B104: NORLAND MIDDLE | C104: 20 | D104: 0 | E104: 1 | F104: 5 | G104: 9 | H104: 4 | I104: 1 | J104: 0 | K104: 20 | L104: 0 | M104: 0 | N104: 0 | O104: 18 | P104: 0 | Q104: 0
A105: 6591 | B105: NORTH DADE MIDDLE | C105: 71 | D105: 0 | E105: 5 | F105: 51 | G105: 12 | H105: 1 | I105: 2 | J105: 0 | K105: 64 | L105: 7 | M105: 0 | N105: 0 | O105: 64 | P105: 4 | Q105: 1
A106: 6611 | B106: COUNTRY CLUB MIDDLE SCHOOL | C106: 57 | D106: 0 | E106: 0 | F106: 14 | G106: 36 | H106: 5 | I106: 2 | J106: 2 | K106: 14 | L106: 39 | M106: 2 | N106: 0 | O106: 45 | P106: 5 | Q106: 0
A107: 6631 | B107: NORTH MIAMI MIDDLE | C107: 118 | D107: 1 | E107: 9 | F107: 61 | G107: 35 | H107: 8 | I107: 4 | J107: 1 | K107: 104 | L107: 11 | M107: 0 | N107: 0 | O107: 114 | P107: 12 | Q107: 4
A108: 6681 | B108: PALM SPRINGS MIDDLE | C108: 183 | D108: 0 | E108: 2 | F108: 102 | G108: 67 | H108: 11 | I108: 1 | J108: 6 | K108: 0 | L108: 176 | M108: 1 | N108: 0 | O108: 164 | P108: 42 | Q108: 7
A109: 6701 | B109: PALMETTO MIDDLE | C109: 186 | D109: 0 | E109: 5 | F109: 36 | G109: 55 | H109: 77 | I109: 13 | J109: 85 | K109: 9 | L109: 82 | M109: 8 | N109: 0 | O109: 28 | P109: 2 | Q109: 6
A110: 6721 | B110: PARKWAY MIDDLE | C110: 32 | D110: 2 | E110: 10 | F110: 18 | G110: 1 | H110: 1 | I110: 0 | J110: 0 | K110: 30 | L110: 2 | M110: 0 | N110: 0 | O110: 30 | P110: 0 | Q110: 2
A111: 6741 | B111: PONCE DE LEON MIDDLE | C111: 161 | D111: 1 | E111: 9 | F111: 57 | G111: 56 | H111: 31 | I111: 7 | J111: 20 | K111: 14 | L111: 125 | M111: 2 | N111: 0 | O111: 119 | P111: 11 | Q111: 10
A112: 6751 | B112: HIALEAH GARDENS MIDDLE SCHOOL | C112: 129 | D112: 3 | E112: 14 | F112: 81 | G112: 21 | H112: 6 | I112: 4 | J112: 3 | K112: 2 | L112: 123 | M112: 1 | N112: 0 | O112: 111 | P112: 30 | Q112: 6
A113: 6761 | B113: REDLAND MIDDLE | C113: 42 | D113: 0 | E113: 5 | F113: 27 | G113: 7 | H113: 0 | I113: 3 | J113: 8 | K113: 12 | L113: 22 | M113: 0 | N113: 0 | O113: 39 | P113: 1 | Q113: 5
A114: 6771 | B114: JORGE MAS CANOSA MIDDLE | C114: 69 | D114: 0 | E114: 3 | F114: 10 | G114: 40 | H114: 14 | I114: 2 | J114: 5 | K114: 3 | L114: 56 | M114: 4 | N114: 0 | O114: 42 | P114: 3 | Q114: 1
A115: 6781 | B115: RICHMOND HEIGHTS MIDDLE | C115: 79 | D115: 0 | E115: 7 | F115: 40 | G115: 26 | H115: 5 | I115: 1 | J115: 7 | K115: 38 | L115: 31 | M115: 2 | N115: 0 | O115: 66 | P115: 3 | Q115: 2
A116: 6801 | B116: RIVIERA MIDDLE | C116: 97 | D116: 0 | E116: 6 | F116: 56 | G116: 27 | H116: 6 | I116: 2 | J116: 5 | K116: 1 | L116: 89 | M116: 1 | N116: 1 | O116: 82 | P116: 10 | Q116: 12
A117: 6821 | B117: ROCKWAY MIDDLE | C117: 149 | D117: 1 | E117: 8 | F117: 58 | G117: 51 | H117: 28 | I117: 3 | J117: 4 | K117: 2 | L117: 141 | M117: 2 | N117: 0 | O117: 109 | P117: 22 | Q117: 3
A118: 6841 | B118: SHENANDOAH MIDDLE | C118: 121 | D118: 0 | E118: 0 | F118: 101 | G118: 17 | H118: 2 | I118: 1 | J118: 5 | K118: 8 | L118: 108 | M118: 0 | N118: 0 | O118: 114 | P118: 11 | Q118: 2
A119: 6861 | B119: SOUTHWOOD MIDDLE | C119: 304 | D119: 0 | E119: 2 | F119: 134 | G119: 91 | H119: 63 | I119: 14 | J119: 98 | K119: 50 | L119: 146 | M119: 7 | N119: 0 | O119: 120 | P119: 4 | Q119: 12
A120: 6881 | B120: SOUTH MIAMI MIDDLE SCHOOL | C120: 115 | D120: 0 | E120: 0 | F120: 6 | G120: 45 | H120: 62 | I120: 2 | J120: 32 | K120: 4 | L120: 73 | M120: 5 | N120: 0 | O120: 37 | P120: 0 | Q120: 2
A121: 6901 | B121: W. R. THOMAS MIDDLE | C121: 87 | D121: 0 | E121: 2 | F121: 57 | G121: 23 | H121: 3 | I121: 2 | J121: 3 | K121: 0 | L121: 83 | M121: 1 | N121: 0 | O121: 64 | P121: 9 | Q121: 9
A122: 6921 | B122: LAMAR LOUISE CURRY MIDDLE SCH | C122: 231 | D122: 0 | E122: 3 | F122: 89 | G122: 83 | H122: 54 | I122: 2 | J122: 15 | K122: 5 | L122: 201 | M122: 10 | N122: 0 | O122: 150 | P122: 12 | Q122: 11
A123: 6961 | B123: WEST MIAMI MIDDLE | C123: 81 | D123: 0 | E123: 0 | F123: 46 | G123: 27 | H123: 7 | I123: 1 | J123: 3 | K123: 0 | L123: 78 | M123: 0 | N123: 0 | O123: 70 | P123: 13 | Q123: 5
A124: 6981 | B124: WESTVIEW MIDDLE | C124: 52 | D124: 0 | E124: 0 | F124: 38 | G124: 11 | H124: 3 | I124: 0 | J124: 0 | K124: 39 | L124: 13 | M124: 0 | N124: 0 | O124: 51 | P124: 11 | Q124: 6
A125: 7001 | B125: MIAMI-DADE ONLINE ACADEMY | C125: 8 | D125: 1 | E125: 0 | F125: 1 | G125: 4 | H125: 2 | I125: 0 | J125: 2 | K125: 2 | L125: 4 | M125: 0 | N125: 0 | O125: 3 | P125: 0 | Q125: 0
A126: 7007 | B126: INTL. STUDIES CHARTER SENIOR | C126: 0 | D126: 0 | E126: 0 | F126: 0 | G126: 0 | H126: 0 | I126: 0 | J126: 0 | K126: 0 | L126: 0 | M126: 0 | N126: 0 | O126: 0 | P126: 0 | Q126: 0
A127: 7009 | B127: DORAL PERFORMING ARTS ACADEMY | C127: 0 | D127: 0 | E127: 0 | F127: 0 | G127: 0 | H127: 0 | I127: 0 | J127: 0 | K127: 0 | L127: 0 | M127: 0 | N127: 0 | O127: 0 | P127: 0 | Q127: 0
A128: 7011 | B128: AMERICAN SENIOR | C128: 0 | D128: 0 | E128: 0 | F128: 0 | G128: 0 | H128: 0 | I128: 0 | J128: 0 | K128: 0 | L128: 0 | M128: 0 | N128: 0 | O128: 0 | P128: 0 | Q128: 0
A129: 7014 | B129: MATER PERFORMING ARTS ACADEMY | C129: 0 | D129: 0 | E129: 0 | F129: 0 | G129: 0 | H129: 0 | I129: 0 | J129: 0 | K129: 0 | L129: 0 | M129: 0 | N129: 0 | O129: 0 | P129: 0 | Q129: 0
A130: 7015 | B130: STELLAR LEADERSHIP ACADEMY | C130: 0 | D130: 0 | E130: 0 | F130: 0 | G130: 0 | H130: 0 | I130: 0 | J130: 0 | K130: 0 | L130: 0 | M130: 0 | N130: 0 | O130: 0 | P130: 0 | Q130: 0
A131: 7016 | B131: SPORTS LEADERSHIP OF MIAMI CHS | C131: 0 | D131: 0 | E131: 0 | F131: 0 | G131: 0 | H131: 0 | I131: 0 | J131: 0 | K131: 0 | L131: 0 | M131: 0 | N131: 0 | O131: 0 | P131: 0 | Q131: 0
A132: 7018 | B132: MATER ACADEMY LAKES HIGH SCH | C132: 0 | D132: 0 | E132: 0 | F132: 0 | G132: 0 | H132: 0 | I132: 0 | J132: 0 | K132: 0 | L132: 0 | M132: 0 | N132: 0 | O132: 0 | P132: 0 | Q132: 0
A133: 7020 | B133: DORAL ACADEMY HIGH SCHOOL | C133: 0 | D133: 0 | E133: 0 | F133: 0 | G133: 0 | H133: 0 | I133: 0 | J133: 0 | K133: 0 | L133: 0 | M133: 0 | N133: 0 | O133: 0 | P133: 0 | Q133: 0
A134: 7022 | B134: ACADEMY OF ARTS AND MINDS | C134: 0 | D134: 0 | E134: 0 | F134: 0 | G134: 0 | H134: 0 | I134: 0 | J134: 0 | K134: 0 | L134: 0 | M134: 0 | N134: 0 | O134: 0 | P134: 0 | Q134: 0
A135: 7024 | B135: MATER ACADEMY HIGH-INTL STUDIE | C135: 0 | D135: 0 | E135: 0 | F135: 0 | G135: 0 | H135: 0 | I135: 0 | J135: 0 | K135: 0 | L135: 0 | M135: 0 | N135: 0 | O135: 0 | P135: 0 | Q135: 0
A136: 7025 | B136: MATER ACAD HIGH (MIAMI BEACH) | C136: 0 | D136: 0 | E136: 0 | F136: 0 | G136: 0 | H136: 0 | I136: 0 | J136: 0 | K136: 0 | L136: 0 | M136: 0 | N136: 0 | O136: 0 | P136: 0 | Q136: 0
A137: 7029 | B137: TERRA ENVIRONMENTAL RESEARCH | C137: 0 | D137: 0 | E137: 0 | F137: 0 | G137: 0 | H137: 0 | I137: 0 | J137: 0 | K137: 0 | L137: 0 | M137: 0 | N137: 0 | O137: 0 | P137: 0 | Q137: 0
A138: 7030 | B138: INTEGRATED ACADEMICS (SIATECH) | C138: 0 | D138: 0 | E138: 0 | F138: 0 | G138: 0 | H138: 0 | I138: 0 | J138: 0 | K138: 0 | L138: 0 | M138: 0 | N138: 0 | O138: 0 | P138: 0 | Q138: 0
A139: 7032 | B139: PALM GLADES PREP HIGH SCHOOL | C139: 0 | D139: 0 | E139: 0 | F139: 0 | G139: 0 | H139: 0 | I139: 0 | J139: 0 | K139: 0 | L139: 0 | M139: 0 | N139: 0 | O139: 0 | P139: 0 | Q139: 0
A140: 7033 | B140: LAW ENFORCEMENT OFFICERS HS | C140: 0 | D140: 0 | E140: 0 | F140: 0 | G140: 0 | H140: 0 | I140: 0 | J140: 0 | K140: 0 | L140: 0 | M140: 0 | N140: 0 | O140: 0 | P140: 0 | Q140: 0
A141: 7034 | B141: SOMERSET ACAD HIGH SOUTH-HMSTD | C141: 0 | D141: 0 | E141: 0 | F141: 0 | G141: 0 | H141: 0 | I141: 0 | J141: 0 | K141: 0 | L141: 0 | M141: 0 | N141: 0 | O141: 0 | P141: 0 | Q141: 0
A142: 7036 | B142: LAWRENCE ACADEMY SENIOR | C142: 0 | D142: 0 | E142: 0 | F142: 0 | G142: 0 | H142: 0 | I142: 0 | J142: 0 | K142: 0 | L142: 0 | M142: 0 | N142: 0 | O142: 0 | P142: 0 | Q142: 0
A143: 7037 | B143: MATER ACADEMY EAST HIGH SCHOOL | C143: 0 | D143: 0 | E143: 0 | F143: 0 | G143: 0 | H143: 0 | I143: 0 | J143: 0 | K143: 0 | L143: 0 | M143: 0 | N143: 0 | O143: 0 | P143: 0 | Q143: 0
A144: 7042 | B144: SOMERSET ACADEMY CHARTER HIGH | C144: 0 | D144: 0 | E144: 0 | F144: 0 | G144: 0 | H144: 0 | I144: 0 | J144: 0 | K144: 0 | L144: 0 | M144: 0 | N144: 0 | O144: 0 | P144: 0 | Q144: 0
A145: 7048 | B145: ALONZO & TRACY MOURNING SH | C145: 0 | D145: 0 | E145: 0 | F145: 0 | G145: 0 | H145: 0 | I145: 0 | J145: 0 | K145: 0 | L145: 0 | M145: 0 | N145: 0 | O145: 0 | P145: 0 | Q145: 0
A146: 7049 | B146: WESTLAND HIALEAH SENIOR HIGH | C146: 0 | D146: 0 | E146: 0 | F146: 0 | G146: 0 | H146: 0 | I146: 0 | J146: 0 | K146: 0 | L146: 0 | M146: 0 | N146: 0 | O146: 0 | P146: 0 | Q146: 0
A147: 7050 | B147: KEYS GATE CHARTER HIGH SCHL | C147: 0 | D147: 0 | E147: 0 | F147: 0 | G147: 0 | H147: 0 | I147: 0 | J147: 0 | K147: 0 | L147: 0 | M147: 0 | N147: 0 | O147: 0 | P147: 0 | Q147: 0
A148: 7051 | B148: G. HOLMES BRADDOCK SENIOR HIGH | C148: 0 | D148: 0 | E148: 0 | F148: 0 | G148: 0 | H148: 0 | I148: 0 | J148: 0 | K148: 0 | L148: 0 | M148: 0 | N148: 0 | O148: 0 | P148: 0 | Q148: 0
A149: 7053 | B149: PINECREST ACADEMY CHARTER HIGH | C149: 0 | D149: 0 | E149: 0 | F149: 0 | G149: 0 | H149: 0 | I149: 0 | J149: 0 | K149: 0 | L149: 0 | M149: 0 | N149: 0 | O149: 0 | P149: 0 | Q149: 0
A150: 7054 | B150: EXCELSIOR CHARTER HIGH SCHOOL | C150: 0 | D150: 0 | E150: 0 | F150: 0 | G150: 0 | H150: 0 | I150: 0 | J150: 0 | K150: 0 | L150: 0 | M150: 0 | N150: 0 | O150: 0 | P150: 0 | Q150: 0
A151: 7055 | B151: YOUNG WOMEN'S PREPARATORY ACAD | C151: 76 | D151: 1 | E151: 12 | F151: 22 | G151: 25 | H151: 15 | I151: 1 | J151: 9 | K151: 18 | L151: 49 | M151: 0 | N151: 0 | O151: 49 | P151: 2 | Q151: 1
A152: 7056 | B152: YOUNG MENS PREPARATORY ACADEMY | C152: 0 | D152: 0 | E152: 0 | F152: 0 | G152: 0 | H152: 0 | I152: 0 | J152: 0 | K152: 0 | L152: 0 | M152: 0 | N152: 0 | O152: 0 | P152: 0 | Q152: 0
A153: 7058 | B153: MIAMI COMMUNITY CH HIGH SCHOOL | C153: 0 | D153: 0 | E153: 0 | F153: 0 | G153: 0 | H153: 0 | I153: 0 | J153: 0 | K153: 0 | L153: 0 | M153: 0 | N153: 0 | O153: 0 | P153: 0 | Q153: 0
A154: 7059 | B154: MIAMI ARTS CHARTER | C154: 36 | D154: 1 | E154: 2 | F154: 13 | G154: 12 | H154: 8 | I154: 0 | J154: 14 | K154: 9 | L154: 13 | M154: 0 | N154: 0 | O154: 3 | P154: 0 | Q154: 1
